Workbook

Sheet Cover
C6: COVIDTracer Advanced
C10: A Planning Tool to Illustrate the Resources Needed and Potential Impact of Contact Tracing and Monitoring of COVID-19 cases
C13: Special Edition - Designed to Estimate Cases Averted by Contact Tracing
C16: Authors of the special edition:
C17: Bradford Greening Jr., Gabriel Rainisch, Seonghye Jeon, Leah S. Fischer, Bishwa B. Adhikari, Emily B. Kahn, Michael L. Washington, Martin I. Meltzer
C21: Authors of the original version (alphabetical order):
C22: Bishwa B. Adhikari, Aziza Arifkhanova, Fatima Coronado, Leah S. Fischer, Bradford Greening Jr., Seonghye Jeon, Emily B. Kahn, Gloria J. Kang, Martin I. Meltzer, Gabrielle Miller, Gabriel Rainisch, Ketra Rice, Michael L. Washington
C26: Health Economics and Modeling Unit: hemu@cdc.gov
D28: Centers for Disease Control and Prevention
C29: Atlanta, Georgia
B30: Updated: | C30: 2021-09-13 | J30: Note: For COVIDTracer to work correctly, users must meet ALL of the following criteria: 1) Enable macros by clicking the "Enable Content" button when opening file. 2) Use Microsoft Office Excel 2013 or later in a Windows environment 3) Do not use browser or mobile version of Office - open file in Desktop app.

Sheet Case Counts
V1: New Cases By Day | Z1: Cumulative Cases | AH1: Reported Cases | BB1: Daily New Cases | BC1: ='B. Contact Tracing Strategies'!F16 -> No Contact Tracing
V2: Base Case | W2: With Contact Tracing | Z2: Base Case | AA2: With Contact Tracing | AD2: Contact Tracing Begins on | BB2: Cumulative Cases | BC2: ='B. Contact Tracing Strategies'!G16 -> Continued Contact Tracing
T3: Day | U3: Date | W3: ='B. Contact Tracing Strategies'!F16 -> No Contact Tracing | X3: ='B. Contact Tracing Strategies'!G16 -> Continued Contact Tracing | Y3: ='B. Contact Tracing Strategies'!H16 -> Strategy 3 (Optional) | AA3: =W3 -> No Contact Tracing | AB3: Continued Contact Tracing | AC3: Strategy 3 (Optional) | AD3: Day | AE3: Date | AH3: Daily | AI3: 7-day Avg | AJ3: Cumulative | AL3: Squared Error | BC3: ='B. Contact Tracing Strategies'!H16 -> Strategy 3 (Optional)
T4: 0 | U4: =VLOOKUP(T4, 'Calc - Base'!H35:$I$400, 2) -> 2021-01-01 | V4: ='Calc - Base'!L35 -> 449.3531615 | W4: ='Calc - Likely, S1'!L35 -> 424.1689833 | X4: ='Calc - Likely, S2'!L35 -> 413.6104412 | Y4: ='Calc - Likely, S3'!L35 -> 936.1524197 | Z4: =V4 -> 449.3531615 | AA4: =W4+'A. Outbreak Details'!F14 -> 35424.16898 | AB4: =X4+'A. Outbreak Details'!F14 -> 35413.61044 | AC4: =Y4+'A. Outbreak Details'!F14 -> 35936.15242 | AD4: =INDEX($T$4:$T$369, MATCH(AE4, $U$4:$U$369, 0)) -> 0 | AE4: ='B. Contact Tracing Strategies'!$F$12 -> 2021-01-01 | AF4: 0 | AH4: 421 | AJ4: =AH4+'A. Outbreak Details'!F14 -> 35421 | AL4: =(AJ4-AB4)^2 -> 54.60557931
T5: 1 | U5: =VLOOKUP(T5, 'Calc - Base'!H36:$I$400, 2) -> 2021-01-02 | V5: ='Calc - Base'!L36 -> 504.2610996 | W5: ='Calc - Likely, S1'!L36 -> 476.0120122 | X5: ='Calc - Likely, S2'!L36 -> 463.1384981 | Y5: ='Calc - Likely, S3'!L36 -> 1050.013758 | Z5: =Z4+V5 -> 953.614261 | AA5: =AA4+W5 -> 35900.181 | AB5: =AB4+X5 -> 35876.74894 | AC5: =AC4+Y5 -> 36986.16618 | AD5: =INDEX($T$4:$T$369, MATCH(AE5, $U$4:$U$369, 0)) -> 0 | AE5: ='B. Contact Tracing Strategies'!$F$12 -> 2021-01-01 | AF5: =ROUND(MAX(W4:Y369), -2) -> 34100 | AG5: ='D. Epi Parameters'!BB10 -> 900000 | AH5: 0 | AJ5: =AJ4+AH5 -> 35421 | AL5: =(AJ5-AB5)^2 -> 207707.0957 | BB5: Chart Titles | BF5: X-Axis Label | BG5: Y-Axis Label
T6: 2 | U6: =VLOOKUP(T6, 'Calc - Base'!H37:$I$400, 2) -> 2021-01-03 | V6: ='Calc - Base'!L37 -> 559.0858399 | W6: ='Calc - Likely, S1'!L37 -> 527.7809009 | X6: ='Calc - Likely, S2'!L37 -> 512.5975955 | Y6: ='Calc - Likely, S3'!L37 -> 1163.514636 | Z6: 1512.700101 | AA6: 36427.9619 | AB6: 36389.34653 | AC6: 38149.68081 | AD6: 0 | AE6: ='B. Contact Tracing Strategies'!$F$12 -> 2021-01-01 | AH6: 801 | AJ6: =AJ5+AH6 -> 36222 | AL6: 28004.86271 | BB6: =IFERROR(_xlfn.CONCAT($BB$1, "(", BC1, ")"), CONCATENATE($BB$1, "(", BC1, ")")) -> Daily New Cases (No Contact Tracing) | BC6: =IFERROR(_xlfn.CONCAT($BB$2, "(", BC1, ")"), CONCATENATE($BB$2, "(", BC1, ")")) -> Cumulative Cases (No Contact Tracing) | BF6: Days | BG6: Cases
T7: 3 | U7: =VLOOKUP(T7, 'Calc - Base'!H38:$I$400, 2) -> 2021-01-04 | V7: ='Calc - Base'!L38 -> 613.8180226 | W7: ='Calc - Likely, S1'!L38 -> 579.4673047 | X7: ='Calc - Likely, S2'!L38 -> 561.9801169 | Y7: ='Calc - Likely, S3'!L38 -> 1276.614866 | Z7: 2126.518124 | AA7: 37007.4292 | AB7: 36951.32665 | AC7: 39426.29568 | AD7: 0 | AE7: ='B. Contact Tracing Strategies'!$F$12 -> 2021-01-01 | AH7: 344 | AJ7: 36566 | AL7: 148476.6285 | BB7: =IFERROR(_xlfn.CONCAT($BB$1, "(", BC2, ")"), CONCATENATE($BB$1, "(", BC2, ")")) -> Daily New Cases (Continued Contact Tracing) | BC7: =IFERROR(_xlfn.CONCAT($BB$2, "(", BC2, ")"), CONCATENATE($BB$2, "(", BC2, ")")) -> Cumulative Cases (Continued Contact Tracing)
T8: 4 | U8: =VLOOKUP(T8, 'Calc - Base'!H39:$I$400, 2) -> 2021-01-05 | V8: ='Calc - Base'!L39 -> 617.090618 | W8: ='Calc - Likely, S1'!L39 -> 577.9686129 | X8: ='Calc - Likely, S2'!L39 -> 556.2486522 | Y8: ='Calc - Likely, S3'!L39 -> 1478.663182 | Z8: 2743.608741 | AA8: 37585.39781 | AB8: 37507.5753 | AC8: 40904.95886 | AD8: 0 | AE8: ='B. Contact Tracing Strategies'!$F$12 -> 2021-01-01 | AH8: 382 | AJ8: 36948 | AL8: 313124.5208 | BB8: Daily New Cases (Strategy 3 (Optional)) | BC8: Cumulative Cases (Strategy 3 (Optional))
T9: 5 | U9: =VLOOKUP(T9, 'Calc - Base'!H40:$I$400, 2) -> 2021-01-06 | V9: ='Calc - Base'!L40 -> 617.9479768 | W9: ='Calc - Likely, S1'!L40 -> 573.2949079 | X9: ='Calc - Likely, S2'!L40 -> 546.7820138 | Y9: ='Calc - Likely, S3'!L40 -> 1713.107257 | Z9: 3361.556718 | AA9: 38158.69272 | AB9: 38054.35732 | AC9: 42618.06612 | AD9: 0 | AE9: ='B. Contact Tracing Strategies'!$F$12 -> 2021-01-01 | AH9: 274 | AJ9: 37222 | AL9: 692818.7044
T10: 6 | U10: =VLOOKUP(T10, 'Calc - Base'!H41:$I$400, 2) -> 2021-01-07 | V10: ='Calc - Base'!L41 -> 623.2225525 | W10: ='Calc - Likely, S1'!L41 -> 572.4634528 | X10: ='Calc - Likely, S2'!L41 -> 540.8220408 | Y10: ='Calc - Likely, S3'!L41 -> 1969.70934 | Z10: 3984.779271 | AA10: 38731.15617 | AB10: 38595.17936 | AC10: 44587.77546 | AD10: 0 | AE10: ='B. Contact Tracing Strategies'!$F$12 -> 2021-01-01 | AH10: 288 | AI10: =AVERAGE(AH4:AH10) -> 358.5714286 | AJ10: 37510 | AL10: 1177614.24
T11: 7 | U11: =VLOOKUP(T11, 'Calc - Base'!H42:$I$400, 2) -> 2021-01-08 | V11: ='Calc - Base'!L42 -> 637.6874975 | W11: ='Calc - Likely, S1'!L42 -> 580.4549082 | X11: ='Calc - Likely, S2'!L42 -> 543.5602131 | Y11: ='Calc - Likely, S3'!L42 -> 2237.947708 | Z11: 4622.466768 | AA11: 39311.61108 | AB11: 39138.73957 | AC11: 46825.72317 | AD11: 0 | AE11: ='B. Contact Tracing Strategies'!$F$12 -> 2021-01-01 | AH11: 420 | AI11: =AVERAGE(AH5:AH11) -> 358.4285714 | AJ11: 37930 | AL11: 1461051.352
T12: 8 | U12: =VLOOKUP(T12, 'Calc - Base'!H43:$I$400, 2) -> 2021-01-09 | V12: ='Calc - Base'!L43 -> 653.2807294 | W12: ='Calc - Likely, S1'!L43 -> 589.6195521 | X12: ='Calc - Likely, S2'!L43 -> 547.1392265 | Y12: ='Calc - Likely, S3'!L43 -> 2545.333984 | Z12: 5275.747498 | AA12: 39901.23063 | AB12: 39685.8788 | AC12: 49371.05715 | AD12: 0 | AE12: ='B. Contact Tracing Strategies'!$F$12 -> 2021-01-01 | AH12: 563 | AI12: 438.8571429 | AJ12: 38493 | AL12: 1422959.827
T13: 9 | U13: =VLOOKUP(T13, 'Calc - Base'!H44:$I$400, 2) -> 2021-01-10 | V13: ='Calc - Base'!L44 -> 668.2654591 | W13: ='Calc - Likely, S1'!L44 -> 598.2406328 | X13: ='Calc - Likely, S2'!L44 -> 555.0864057 | Y13: ='Calc - Likely, S3'!L44 -> 2902.111681 | Z13: 5944.012957 | AA13: 40499.47127 | AB13: 40240.9652 | AC13: 52273.16883 | AD13: 0 | AE13: ='B. Contact Tracing Strategies'!$F$12 -> 2021-01-01 | AH13: 530 | AI13: 400.1428571 | AJ13: 39023 | AL13: 1483439.238
T14: 10 | U14: =VLOOKUP(T14, 'Calc - Base'!H45:$I$400, 2) -> 2021-01-11 | V14: ='Calc - Base'!L45 -> 682.1041697 | W14: ='Calc - Likely, S1'!L45 -> 605.6691515 | X14: ='Calc - Likely, S2'!L45 -> 559.6656885 | Y14: ='Calc - Likely, S3'!L45 -> 3313.043061 | Z14: 6626.117126 | AA14: 41105.14042 | AB14: 40800.63089 | AC14: 55586.21189 | AD14: 0 | AE14: ='B. Contact Tracing Strategies'!$F$12 -> 2021-01-01 | AH14: 602 | AI14: 437 | AJ14: 39625 | AL14: 1382107.995
T15: 11 | U15: =VLOOKUP(T15, 'Calc - Base'!H46:$I$400, 2) -> 2021-01-12 | V15: ='Calc - Base'!L46 -> 695.8482304 | W15: ='Calc - Likely, S1'!L46 -> 612.7764027 | X15: ='Calc - Likely, S2'!L46 -> 562.2366452 | Y15: ='Calc - Likely, S3'!L46 -> 3775.671177 | Z15: 7321.965357 | AA15: 41717.91682 | AB15: 41362.86754 | AC15: 59361.88307 | AD15: 0 | AE15: ='B. Contact Tracing Strategies'!$F$12 -> 2021-01-01 | AH15: 644 | AI15: 474.4285714 | AJ15: 40269 | AL15: 1196546.19
T16: 12 | U16: =VLOOKUP(T16, 'Calc - Base'!H47:$I$400, 2) -> 2021-01-13 | V16: ='Calc - Base'!L47 -> 709.6979298 | W16: ='Calc - Likely, S1'!L47 -> 619.7332069 | X16: ='Calc - Likely, S2'!L47 -> 563.3986772 | Y16: ='Calc - Likely, S3'!L47 -> 4295.468975 | Z16: 8031.663287 | AA16: 42337.65003 | AB16: 41926.26621 | AC16: 63657.35204 | AD16: 0 | AE16: ='B. Contact Tracing Strategies'!$F$12 -> 2021-01-01 | AH16: 438 | AI16: 497.8571429 | AJ16: 40707 | AL16: 1486610.102
T17: 13 | U17: =VLOOKUP(T17, 'Calc - Base'!H48:$I$400, 2) -> 2021-01-14 | V17: ='Calc - Base'!L48 -> 723.6854694 | W17: ='Calc - Likely, S1'!L48 -> 626.5977054 | X17: ='Calc - Likely, S2'!L48 -> 565.4694618 | Y17: ='Calc - Likely, S3'!L48 -> 4881.084841 | Z17: 8755.348756 | AA17: 42964.24773 | AB17: 42491.73568 | AC17: 68538.43689 | AD17: 0 | AE17: ='B. Contact Tracing Strategies'!$F$12 -> 2021-01-01 | AH17: 467 | AI17: 523.4285714 | AJ17: 41174 | AL17: 1736427.313
T18: 14 | U18: =VLOOKUP(T18, 'Calc - Base'!H49:$I$400, 2) -> 2021-01-15 | V18: ='Calc - Base'!L49 -> 736.2238395 | W18: ='Calc - Likely, S1'!L49 -> 631.7725553 | X18: ='Calc - Likely, S2'!L49 -> 566.8261229 | Y18: ='Calc - Likely, S3'!L49 -> 5544.667807 | Z18: 9491.572596 | AA18: 43596.02029 | AB18: 43058.5618 | AC18: 74083.10469 | AD18: 0 | AE18: ='B. Contact Tracing Strategies'!$F$12 -> 2021-01-01 | AH18: 649 | AI18: 556.1428571 | AJ18: 41823 | AL18: 1526612.96
T19: 15 | U19: =VLOOKUP(T19, 'Calc - Base'!H50:$I$400, 2) -> 2021-01-16 | V19: ='Calc - Base'!L50 -> 752.506112 | W19: ='Calc - Likely, S1'!L50 -> 640.6186195 | X19: ='Calc - Likely, S2'!L50 -> 571.4069781 | Y19: ='Calc - Likely, S3'!L50 -> 6285.194045 | Z19: 10244.07871 | AA19: 44236.63891 | AB19: 43629.96878 | AC19: 80368.29874 | AD19: 0 | AE19: ='B. Contact Tracing Strategies'!$F$12 -> 2021-01-01 | AH19: 556 | AI19: 555.1428571 | AJ19: 42379 | AL19: 1564922.882
T20: 16 | U20: =VLOOKUP(T20, 'Calc - Base'!H51:$I$400, 2) -> 2021-01-17 | V20: ='Calc - Base'!L51 -> 768.265529 | W20: ='Calc - Likely, S1'!L51 -> 648.7680823 | X20: ='Calc - Likely, S2'!L51 -> 575.0774469 | Y20: ='Calc - Likely, S3'!L51 -> 7114.3762 | Z20: 11012.34424 | AA20: 44885.40699 | AB20: 44205.04622 | AC20: 87482.67494 | AD20: 0 | AE20: ='B. Contact Tracing Strategies'!$F$12 -> 2021-01-01 | AH20: 754 | AI20: 587.1428571 | AJ20: 43133 | AL20: 1149283.107
T21: 17 | U21: =VLOOKUP(T21, 'Calc - Base'!H52:$I$400, 2) -> 2021-01-18 | V21: ='Calc - Base'!L52 -> 783.682447 | W21: ='Calc - Likely, S1'!L52 -> 656.3946902 | X21: ='Calc - Likely, S2'!L52 -> 578.0709401 | Y21: ='Calc - Likely, S3'!L52 -> 8039.018484 | Z21: 11796.02668 | AA21: 45541.80168 | AB21: 44783.11716 | AC21: 95521.69342 | AD21: 0 | AE21: ='B. Contact Tracing Strategies'!$F$12 -> 2021-01-01 | AH21: 615 | AI21: 589 | AJ21: 43748 | AL21: 1071467.544
T22: 18 | U22: =VLOOKUP(T22, 'Calc - Base'!H53:$I$400, 2) -> 2021-01-19 | V22: ='Calc - Base'!L53 -> 798.2597637 | W22: ='Calc - Likely, S1'!L53 -> 663.0116665 | X22: ='Calc - Likely, S2'!L53 -> 580.0497585 | Y22: ='Calc - Likely, S3'!L53 -> 9068.502363 | Z22: 12594.28645 | AA22: 46204.81335 | AB22: 45363.16692 | AC22: 104590.1958 | AD22: 0 | AE22: ='B. Contact Tracing Strategies'!$F$12 -> 2021-01-01 | AH22: 682 | AI22: 594.4285714 | AJ22: 44430 | AL22: 870800.5062
T23: 19 | U23: =VLOOKUP(T23, 'Calc - Base'!H54:$I$400, 2) -> 2021-01-20 | V23: ='Calc - Base'!L54 -> 813.4234295 | W23: ='Calc - Likely, S1'!L54 -> 670.0050702 | X23: ='Calc - Likely, S2'!L54 -> 582.3359299 | Y23: ='Calc - Likely, S3'!L54 -> 10205.36426 | Z23: 13407.70988 | AA23: 46874.81842 | AB23: 45945.50285 | AC23: 114795.56 | AD23: 0 | AE23: ='B. Contact Tracing Strategies'!$F$12 -> 2021-01-01 | AH23: 477 | AI23: 600 | AJ23: 44907 | AL23: 1078488.175
T24: 20 | U24: =VLOOKUP(T24, 'Calc - Base'!H55:$I$400, 2) -> 2021-01-21 | V24: ='Calc - Base'!L55 -> 829.1237954 | W24: ='Calc - Likely, S1'!L55 -> 677.3370217 | X24: ='Calc - Likely, S2'!L55 -> 584.9249718 | Y24: ='Calc - Likely, S3'!L55 -> 11454.09129 | Z24: 14236.83367 | AA24: 47552.15544 | AB24: 46530.42782 | AC24: 126249.6513 | AD24: 0 | AE24: ='B. Contact Tracing Strategies'!$F$12 -> 2021-01-01 | AH24: 524 | AI24: 608.1428571 | AJ24: 45431 | AL24: 1208741.542
T25: 21 | U25: =VLOOKUP(T25, 'Calc - Base'!H56:$I$400, 2) -> 2021-01-22 | V25: ='Calc - Base'!L56 -> 845.2314848 | W25: ='Calc - Likely, S1'!L56 -> 684.8910022 | X25: ='Calc - Likely, S2'!L56 -> 587.7119764 | Y25: ='Calc - Likely, S3'!L56 -> 12817.3483 | Z25: 15082.06516 | AA25: 48237.04644 | AB25: 47118.1398 | AC25: 139066.9996 | AD25: 0 | AE25: ='B. Contact Tracing Strategies'!$F$12 -> 2021-01-01 | AH25: 527 | AI25: 590.7142857 | AJ25: 45958 | AL25: 1345924.358
T26: 22 | U26: =VLOOKUP(T26, 'Calc - Base'!H57:$I$400, 2) -> 2021-01-23 | V26: ='Calc - Base'!L57 -> 861.3907739 | W26: ='Calc - Likely, S1'!L57 -> 692.3367513 | X26: ='Calc - Likely, S2'!L57 -> 590.3639181 | Y26: ='Calc - Likely, S3'!L57 -> 14296.6552 | Z26: 15943.45593 | AA26: 48929.38319 | AB26: 47708.50372 | AC26: 153363.6548 | AD26: 0 | AE26: ='B. Contact Tracing Strategies'!$F$12 -> 2021-01-01 | AH26: 579 | AI26: 594 | AJ26: 46537 | AL26: 1372420.964
T27: 23 | U27: =VLOOKUP(T27, 'Calc - Base'!H58:$I$400, 2) -> 2021-01-24 | V27: ='Calc - Base'!L58 -> 877.6194905 | W27: ='Calc - Likely, S1'!L58 -> 699.6841381 | X27: ='Calc - Likely, S2'!L58 -> 592.917326 | Y27: ='Calc - Likely, S3'!L58 -> 15888.10621 | Z27: 16821.07542 | AA27: 49629.06733 | AB27: 48301.42105 | AC27: 169251.761 | AD27: 0 | AE27: ='B. Contact Tracing Strategies'!$F$12 -> 2021-01-01 | AH27: 844 | AI27: 606.8571429 | AJ27: 47381 | AL27: 847174.9004
T28: 24 | U28: =VLOOKUP(T28, 'Calc - Base'!H59:$I$400, 2) -> 2021-01-25 | V28: ='Calc - Base'!L59 -> 893.9802443 | W28: ='Calc - Likely, S1'!L59 -> 706.9863264 | X28: ='Calc - Likely, S2'!L59 -> 595.3003656 | Y28: ='Calc - Likely, S3'!L59 -> 17582.96676 | Z28: 17715.05567 | AA28: 50336.05366 | AB28: 48896.72141 | AC28: 186834.7278 | AD28: 0 | AE28: ='B. Contact Tracing Strategies'!$F$12 -> 2021-01-01 | AH28: 619 | AI28: 607.4285714 | AJ28: 48000 | AL28: 804109.2886
T29: 25 | U29: =VLOOKUP(T29, 'Calc - Base'!H60:$I$400, 2) -> 2021-01-26 | V29: ='Calc - Base'!L60 -> 910.5427855 | W29: ='Calc - Likely, S1'!L60 -> 714.3067437 | X29: ='Calc - Likely, S2'!L60 -> 597.6299672 | Y29: ='Calc - Likely, S3'!L60 -> 19366.87386 | Z29: 18625.59845 | AA29: 51050.3604 | AB29: 49494.35138 | AC29: 206201.6016 | AD29: 0 | AE29: ='B. Contact Tracing Strategies'!$F$12 -> 2021-01-01 | AH29: 688 | AI29: 608.2857143 | AJ29: 48688 | AL29: 650202.5448
T30: 26 | U30: =VLOOKUP(T30, 'Calc - Base'!H61:$I$400, 2) -> 2021-01-27 | V30: ='Calc - Base'!L61 -> 927.2966116 | W30: ='Calc - Likely, S1'!L61 -> 721.640721 | X30: ='Calc - Likely, S2'!L61 -> 599.9374083 | Y30: ='Calc - Likely, S3'!L61 -> 21219.71536 | Z30: 19552.89506 | AA30: 51772.00112 | AB30: 50094.28879 | AC30: 227421.317 | AD30: 0 | AE30: ='B. Contact Tracing Strategies'!$F$12 -> 2021-01-01 | AH30: 447 | AI30: 604 | AJ30: 49135 | AL30: 920234.9755
T31: 27 | U31: =VLOOKUP(T31, 'Calc - Base'!H62:$I$400, 2) -> 2021-01-28 | V31: ='Calc - Base'!L62 -> 944.2206244 | W31: ='Calc - Likely, S1'!L62 -> 728.9735762 | X31: ='Calc - Likely, S2'!L62 -> 602.2517863 | Y31: ='Calc - Likely, S3'!L62 -> 23113.99196 | Z31: 20497.11569 | AA31: 52500.9747 | AB31: 50696.54057 | AC31: 250535.309 | AD31: 0 | AE31: ='B. Contact Tracing Strategies'!$F$12 -> 2021-01-01 | AH31: 526 | AI31: 604.2857143 | AJ31: 49661 | AL31: 1072344.278
T32: 28 | U32: =VLOOKUP(T32, 'Calc - Base'!H63:$I$400, 2) -> 2021-01-29 | V32: ='Calc - Base'!L63 -> 961.2895254 | W32: ='Calc - Likely, S1'!L63 -> 736.2845641 | X32: ='Calc - Likely, S2'!L63 -> 604.5209011 | Y32: ='Calc - Likely, S3'!L63 -> 25014.06615 | Z32: 21458.40521 | AA32: 53237.25926 | AB32: 51301.06147 | AC32: 275549.3751 | AD32: 0 | AE32: ='B. Contact Tracing Strategies'!$F$12 -> 2021-01-01 | AH32: 561 | AI32: 609.1428571 | AJ32: 50222 | AL32: 1164373.664
T33: 29 | U33: =VLOOKUP(T33, 'Calc - Base'!H64:$I$400, 2) -> 2021-01-30 | V33: ='Calc - Base'!L64 -> 978.5409409 | W33: ='Calc - Likely, S1'!L64 -> 743.6118705 | X33: ='Calc - Likely, S2'!L64 -> 606.7483307 | Y33: ='Calc - Likely, S3'!L64 -> 26875.81874 | Z33: 22436.94615 | AA33: 53980.87113 | AB33: 51907.8098 | AC33: 302425.1939 | AD33: 0 | AE33: ='B. Contact Tracing Strategies'!$F$12 -> 2021-01-01 | AH33: 0 | AI33: 526.4285714 | AJ33: 50222 | AL33: 2841954.697
T34: 30 | U34: =VLOOKUP(T34, 'Calc - Base'!H65:$I$400, 2) -> 2021-01-31 | V34: ='Calc - Base'!L65 -> 995.9161706 | W34: ='Calc - Likely, S1'!L65 -> 750.9001805 | X34: ='Calc - Likely, S2'!L65 -> 608.8913534 | Y34: ='Calc - Likely, S3'!L65 -> 28647.88584 | Z34: 23432.86232 | AA34: 54731.77131 | AB34: 52516.70116 | AC34: 331073.0797 | AD34: 0 | AE34: ='B. Contact Tracing Strategies'!$F$12 -> 2021-01-01 | AH34: 0 | AI34: 405.8571429 | AJ34: 50222 | AL34: 5265653.404
T35: 31 | U35: =VLOOKUP(T35, 'Calc - Base'!H66:$I$400, 2) -> 2021-02-01 | V35: ='Calc - Base'!L66 -> 1013.422053 | W35: ='Calc - Likely, S1'!L66 -> 758.1586807 | X35: ='Calc - Likely, S2'!L66 -> 610.9722636 | Y35: ='Calc - Likely, S3'!L66 -> 30272.69101 | Z35: 24446.28438 | AA35: 55489.92999 | AB35: 53127.67342 | AC35: 361345.7707 | AD35: 0 | AE35: ='B. Contact Tracing Strategies'!$F$12 -> 2021-01-01 | AH35: 1942 | AI35: 594.8571429 | AJ35: 52164 | AL35: 928666.4633
T36: 32 | U36: =VLOOKUP(T36, 'Calc - Base'!H67:$I$400, 2) -> 2021-02-02 | V36: ='Calc - Base'!L67 -> 1031.053516 | W36: ='Calc - Likely, S1'!L67 -> 765.3862216 | X36: ='Calc - Likely, S2'!L67 -> 612.998577 | Y36: ='Calc - Likely, S3'!L67 -> 31688.91487 | Z36: 25477.33789 | AA36: 56255.31622 | AB36: 53740.672 | AC36: 393034.6856 | AD36: 0 | AE36: ='B. Contact Tracing Strategies'!$F$12 -> 2021-01-01 | AH36: 290 | AI36: 538 | AJ36: 52454 | AL36: 1655524.832
T37: 33 | U37: =VLOOKUP(T37, 'Calc - Base'!H68:$I$400, 2) -> 2021-02-03 | V37: ='Calc - Base'!L68 -> 1048.826051 | W37: ='Calc - Likely, S1'!L68 -> 772.6008972 | X37: ='Calc - Likely, S2'!L68 -> 614.9865275 | Y37: ='Calc - Likely, S3'!L68 -> 32834.64618 | Z37: 26526.16394 | AA37: 57027.91711 | AB37: 54355.65853 | AC37: 425869.3318 | AD37: 0 | AE37: ='B. Contact Tracing Strategies'!$F$12 -> 2021-01-01 | AH37: 389 | AI37: 529.7142857 | AJ37: 52843 | AL37: 2288135.816
T38: 34 | U38: =VLOOKUP(T38, 'Calc - Base'!H69:$I$400, 2) -> 2021-02-04 | V38: ='Calc - Base'!L69 -> 1066.723595 | W38: ='Calc - Likely, S1'!L69 -> 779.7919188 | X38: ='Calc - Likely, S2'!L69 -> 616.9259864 | Y38: ='Calc - Likely, S3'!L69 -> 33651.90003 | Z38: 27592.88754 | AA38: 57807.70903 | AB38: 54972.58451 | AC38: 459521.2318 | AD38: 0 | AE38: ='B. Contact Tracing Strategies'!$F$12 -> 2021-01-01 | AH38: 356 | AI38: 505.4285714 | AJ38: 53199 | AL38: 3145602.022
T39: 35 | U39: =VLOOKUP(T39, 'Calc - Base'!H70:$I$400, 2) -> 2021-02-05 | V39: ='Calc - Base'!L70 -> 1084.732399 | W39: ='Calc - Likely, S1'!L70 -> 786.9506874 | X39: ='Calc - Likely, S2'!L70 -> 618.8095497 | Y39: ='Calc - Likely, S3'!L70 -> 34091.41012 | Z39: 28677.61994 | AA39: 58594.65972 | AB39: 55591.39406 | AC39: 493612.6419 | AD39: 0 | AE39: ='B. Contact Tracing Strategies'!$F$12 -> 2021-01-01 | AH39: 855 | AI39: 547.4285714 | AJ39: 54054 | AL39: 2363580.502
T40: 36 | U40: =VLOOKUP(T40, 'Calc - Base'!H71:$I$400, 2) -> 2021-02-06 | V40: ='Calc - Base'!L71 -> 1102.838931 | W40: ='Calc - Likely, S1'!L71 -> 794.0690868 | X40: ='Calc - Likely, S2'!L71 -> 620.6313442 | Y40: ='Calc - Likely, S3'!L71 -> 34117.62604 | Z40: 29780.45887 | AA40: 59388.72881 | AB40: 56212.02541 | AC40: 527730.2679 | AD40: 0 | AE40: ='B. Contact Tracing Strategies'!$F$12 -> 2021-01-01 | AH40: 672 | AI40: 643.4285714 | AJ40: 54726 | AL40: 2208271.508
T41: 37 | U41: =VLOOKUP(T41, 'Calc - Base'!H72:$I$400, 2) -> 2021-02-07 | V41: ='Calc - Base'!L72 -> 1121.038865 | W41: ='Calc - Likely, S1'!L72 -> 801.1474284 | X41: ='Calc - Likely, S2'!L72 -> 622.3942635 | Y41: ='Calc - Likely, S3'!L72 -> 33713.02191 | Z41: 30901.49774 | AA41: 60189.87623 | AB41: 56834.41967 | AC41: 561443.2898 | AD41: 0 | AE41: ='B. Contact Tracing Strategies'!$F$12 -> 2021-01-01 | AH41: 0 | AI41: 643.4285714 | AJ41: 54726 | AL41: 4445433.503
T42: 38 | U42: =VLOOKUP(T42, 'Calc - Base'!H73:$I$400, 2) -> 2021-02-08 | V42: ='Calc - Base'!L73 -> 1139.326163 | W42: ='Calc - Likely, S1'!L73 -> 808.1849841 | X42: ='Calc - Likely, S2'!L73 -> 624.0992836 | Y42: ='Calc - Likely, S3'!L73 -> 32881.19617 | Z42: 32040.8239 | AA42: 60998.06122 | AB42: 57458.51895 | AC42: 594324.486 | AD42: 0 | AE42: ='B. Contact Tracing Strategies'!$F$12 -> 2021-01-01 | AH42: 1889 | AI42: 635.8571429 | AJ42: 56615 | AL42: 711524.2246
T43: 39 | U43: =VLOOKUP(T43, 'Calc - Base'!H74:$I$400, 2) -> 2021-02-09 | V43: ='Calc - Base'!L74 -> 1157.692609 | W43: ='Calc - Likely, S1'!L74 -> 815.179523 | X43: ='Calc - Likely, S2'!L74 -> 625.7481243 | Y43: ='Calc - Likely, S3'!L74 -> 31647.93002 | Z43: 33198.51651 | AA43: 61813.24074 | AB43: 58084.26708 | AC43: 625972.416 | AD43: 0 | AE43: ='B. Contact Tracing Strategies'!$F$12 -> 2021-01-01 | AH43: 649 | AI43: 687.1428571 | AJ43: 57264 | AL43: 672838.0786
T44: 40 | U44: =VLOOKUP(T44, 'Calc - Base'!H75:$I$400, 2) -> 2021-02-10 | V44: ='Calc - Base'!L75 -> 1176.127255 | W44: ='Calc - Likely, S1'!L75 -> 822.126784 | X44: ='Calc - Likely, S2'!L75 -> 627.3394147 | Y44: ='Calc - Likely, S3'!L75 -> 30059.87834 | Z44: 34374.64376 | AA44: 62635.36753 | AB44: 58711.60649 | AC44: 656032.2944 | AD44: 0 | AE44: ='B. Contact Tracing Strategies'!$F$12 -> 2021-01-01 | AH44: 519 | AI44: 705.7142857 | AJ44: 57783 | AL44: 862310.0175
T45: 41 | U45: =VLOOKUP(T45, 'Calc - Base'!H76:$I$400, 2) -> 2021-02-11 | V45: ='Calc - Base'!L76 -> 1194.619326 | W45: ='Calc - Likely, S1'!L76 -> 829.022869 | X45: ='Calc - Likely, S2'!L76 -> 628.8717651 | Y45: ='Calc - Likely, S3'!L76 -> 28180.87646 | Z45: 35569.26309 | AA45: 63464.39039 | AB45: 59340.47826 | AC45: 684213.1708 | AD45: 0 | AE45: ='B. Contact Tracing Strategies'!$F$12 -> 2021-01-01 | AH45: 529 | AI45: 730.4285714 | AJ45: 58312 | AL45: 1057767.526
T46: 42 | U46: =VLOOKUP(T46, 'Calc - Base'!H77:$I$400, 2) -> 2021-02-12 | V46: ='Calc - Base'!L77 -> 1213.15832 | W46: ='Calc - Likely, S1'!L77 -> 835.8643578 | X46: ='Calc - Likely, S2'!L77 -> 630.3433264 | Y46: ='Calc - Likely, S3'!L77 -> 26086.37402 | Z46: 36782.42141 | AA46: 64300.25475 | AB46: 59970.82158 | AC46: 710299.5449 | AD46: 0 | AE46: ='B. Contact Tracing Strategies'!$F$12 -> 2021-01-01 | AH46: 695 | AI46: 707.5714286 | AJ46: 59007 | AL46: 928952.0454
T47: 43 | U47: =VLOOKUP(T47, 'Calc - Base'!H78:$I$400, 2) -> 2021-02-13 | V47: ='Calc - Base'!L78 -> 1231.734156 | W47: ='Calc - Likely, S1'!L78 -> 842.6485129 | X47: ='Calc - Likely, S2'!L78 -> 631.7536982 | Y47: ='Calc - Likely, S3'!L78 -> 23856.80613 | Z47: 38014.15556 | AA47: 65142.90327 | AB47: 60602.57528 | AC47: 734156.351 | AD47: 0 | AE47: ='B. Contact Tracing Strategies'!$F$12 -> 2021-01-01 | AH47: 1040 | AI47: 760.1428571 | AJ47: 60047 | AL47: 308663.894
T48: 44 | U48: =VLOOKUP(T48, 'Calc - Base'!H79:$I$400, 2) -> 2021-02-14 | V48: ='Calc - Base'!L79 -> 1250.335313 | W48: ='Calc - Likely, S1'!L79 -> 849.371653 | X48: ='Calc - Likely, S2'!L79 -> 633.102427 | Y48: ='Calc - Likely, S3'!L79 -> 21570.92407 | Z48: 39264.49088 | AA48: 65992.27492 | AB48: 61235.67771 | AC48: 755727.2751 | AD48: 0 | AE48: ='B. Contact Tracing Strategies'!$F$12 -> 2021-01-01 | AH48: 1003 | AI48: 903.4285714 | AJ48: 61050 | AL48: 34476.21163
T49: 45 | U49: =VLOOKUP(T49, 'Calc - Base'!H80:$I$400, 2) -> 2021-02-15 | V49: ='Calc - Base'!L80 -> 1268.950586 | W49: ='Calc - Likely, S1'!L80 -> 856.03076 | X49: ='Calc - Likely, S2'!L80 -> 634.3895928 | Y49: ='Calc - Likely, S3'!L80 -> 19300.03496 | Z49: 40533.44146 | AA49: 66848.30568 | AB49: 61870.0673 | AC49: 775027.31 | AD49: 0 | AE49: ='B. Contact Tracing Strategies'!$F$12 -> 2021-01-01 | AH49: 1158 | AI49: 799 | AJ49: 62208 | AL49: 114198.5085
T50: 46 | U50: =VLOOKUP(T50, 'Calc - Base'!H81:$I$400, 2) -> 2021-02-16 | V50: ='Calc - Base'!L81 -> 1287.568102 | W50: ='Calc - Likely, S1'!L81 -> 862.6225436 | X50: ='Calc - Likely, S2'!L81 -> 635.6146888 | Y50: ='Calc - Likely, S3'!L81 -> 17103.86228 | Z50: 41821.00957 | AA50: 67710.92822 | AB50: 62505.68199 | AC50: 792131.1723 | AD50: 0 | AE50: ='B. Contact Tracing Strategies'!$F$12 -> 2021-01-01 | AH50: 884 | AI50: 832.5714286 | AJ50: 63092 | AL50: 343768.8081
T51: 47 | U51: =VLOOKUP(T51, 'Calc - Base'!H82:$I$400, 2) -> 2021-02-17 | V51: ='Calc - Base'!L82 -> 1306.175803 | W51: ='Calc - Likely, S1'!L82 -> 869.1438437 | X51: ='Calc - Likely, S2'!L82 -> 636.7771475 | Y51: ='Calc - Likely, S3'!L82 -> 15028.32358 | Z51: 43127.18537 | AA51: 68580.07207 | AB51: 63142.45914 | AC51: 807159.4959 | AD51: 0 | AE51: ='B. Contact Tracing Strategies'!$F$12 -> 2021-01-01 | AH51: 593 | AI51: 843.1428571 | AJ51: 63685 | AL51: 294350.5868
T52: 48 | U52: =VLOOKUP(T52, 'Calc - Base'!H83:$I$400, 2) -> 2021-02-18 | V52: ='Calc - Base'!L83 -> 1324.760844 | W52: ='Calc - Likely, S1'!L83 -> 875.5911045 | X52: ='Calc - Likely, S2'!L83 -> 637.8761752 | Y52: ='Calc - Likely, S3'!L83 -> 13105.14194 | Z52: 44451.94621 | AA52: 69455.66317 | AB52: 63780.33531 | AC52: 820264.6378 | AD52: 0 | AE52: ='B. Contact Tracing Strategies'!$F$12 -> 2021-01-01 | AH52: 685 | AI52: 865.4285714 | AJ52: 64370 | AL52: 347704.4426
T53: 49 | U53: =VLOOKUP(T53, 'Calc - Base'!H84:$I$400, 2) -> 2021-02-19 | V53: ='Calc - Base'!L84 -> 1343.310198 | W53: ='Calc - Likely, S1'!L84 -> 881.9609122 | X53: ='Calc - Likely, S2'!L84 -> 638.9112421 | Y53: ='Calc - Likely, S3'!L84 -> 11352.909 | Z53: 45795.25641 | AA53: 70337.62408 | AB53: 64419.24656 | AC53: 831617.5468 | AD53: 0 | AE53: ='B. Contact Tracing Strategies'!$F$12 -> 2021-01-01 | AH53: 510 | AI53: 839 | AJ53: 64880 | AL53: 212293.7366
T54: 50 | U54: =VLOOKUP(T54, 'Calc - Base'!H85:$I$400, 2) -> 2021-02-20 | V54: ='Calc - Base'!L85 -> 1361.810564 | W54: ='Calc - Likely, S1'!L85 -> 888.2499131 | X54: ='Calc - Likely, S2'!L85 -> 639.881946 | Y54: ='Calc - Likely, S3'!L85 -> 9779.087887 | Z54: 47157.06698 | AA54: 71225.874 | AB54: 65059.1285 | AC54: 841396.6347 | AD54: 0 | AE54: ='B. Contact Tracing Strategies'!$F$12 -> 2021-01-01 | AH54: 984 | AI54: 831 | AJ54: 65864 | AL54: 647818.1291
T55: 51 | U55: =VLOOKUP(T55, 'Calc - Base'!H86:$I$400, 2) -> 2021-02-21 | V55: ='Calc - Base'!L86 -> 1380.248438 | W55: ='Calc - Likely, S1'!L86 -> 894.4548669 | X55: ='Calc - Likely, S2'!L86 -> 640.7880007 | Y55: ='Calc - Likely, S3'!L86 -> 8382.441895 | Z55: 48537.31541 | AA55: 72120.32886 | AB55: 65699.9165 | AC55: 849779.0766 | AD55: 0 | AE55: ='B. Contact Tracing Strategies'!$F$12 -> 2021-01-01 | AH55: 891 | AI55: 815 | AJ55: 66755 | AL55: 1113201.187
T56: 52 | U56: =VLOOKUP(T56, 'Calc - Base'!H87:$I$400, 2) -> 2021-02-22 | V56: ='Calc - Base'!L87 -> 1398.609907 | W56: ='Calc - Likely, S1'!L87 -> 900.5724617 | X56: ='Calc - Likely, S2'!L87 -> 641.6290433 | Y56: ='Calc - Likely, S3'!L87 -> 7155.476411 | Z56: 49935.92532 | AA56: 73020.90132 | AB56: 66341.54555 | AC56: 856934.553 | AD56: 0 | AE56: ='B. Contact Tracing Strategies'!$F$12 -> 2021-01-01 | AH56: 799 | AI56: 763.7142857 | AJ56: 67554 | AL56: 1470045.804
T57: 53 | U57: =VLOOKUP(T57, 'Calc - Base'!H88:$I$400, 2) -> 2021-02-23 | V57: ='Calc - Base'!L88 -> 1416.880699 | W57: ='Calc - Likely, S1'!L88 -> 906.5993484 | X57: ='Calc - Likely, S2'!L88 -> 642.4047003 | Y57: ='Calc - Likely, S3'!L88 -> 6086.619498 | Z57: 51352.80602 | AA57: 73927.50067 | AB57: 66983.95025 | AC57: 863021.1725 | AD57: 0 | AE57: ='B. Contact Tracing Strategies'!$F$12 -> 2021-01-01 | AH57: 681 | AI57: 734.7142857 | AJ57: 68235 | AL57: 1565125.487
T58: 54 | U58: =VLOOKUP(T58, 'Calc - Base'!H89:$I$400, 2) -> 2021-02-24 | V58: ='Calc - Base'!L89 -> 1435.046227 | W58: ='Calc - Likely, S1'!L89 -> 912.5321677 | X58: ='Calc - Likely, S2'!L89 -> 643.1145833 | Y58: ='Calc - Likely, S3'!L89 -> 5162.004022 | Z58: 52787.85225 | AA58: 74840.03284 | AB58: 67627.06483 | AC58: 868183.1765 | AD58: 0 | AE58: ='B. Contact Tracing Strategies'!$F$12 -> 2021-01-01 | AH58: 0 | AI58: 650 | AJ58: 68235 | AL58: 369585.172
T59: 55 | U59: =VLOOKUP(T59, 'Calc - Base'!H90:$I$400, 2) -> 2021-02-25 | V59: ='Calc - Base'!L90 -> 1453.091672 | W59: ='Calc - Likely, S1'!L90 -> 918.3676034 | X59: ='Calc - Likely, S2'!L90 -> 643.7583616 | Y59: ='Calc - Likely, S3'!L90 -> 4366.81882 | Z59: 54240.94392 | AA59: 75758.40044 | AB59: 68270.82319 | AC59: 872549.9954 | AD59: 0 | AE59: ='B. Contact Tracing Strategies'!$F$12 -> 2021-01-01 | AH59: 986 | AI59: 693 | AJ59: 69221 | AL59: 902835.9689
T60: 56 | U60: =VLOOKUP(T60, 'Calc - Base'!H91:$I$400, 2) -> 2021-02-26 | V60: ='Calc - Base'!L91 -> 1471.001975 | W60: ='Calc - Likely, S1'!L91 -> 924.1023726 | X60: ='Calc - Likely, S2'!L91 -> 644.3357477 | Y60: ='Calc - Likely, S3'!L91 -> 3686.26374 | Z60: 55711.94589 | AA60: 76682.50282 | AB60: 68915.15894 | AC60: 876236.2591 | AD60: 0 | AE60: ='B. Contact Tracing Strategies'!$F$12 -> 2021-01-01 | AH60: 642 | AI60: 711.8571429 | AJ60: 69863 | AL60: 898402.678
T61: 57 | U61: =VLOOKUP(T61, 'Calc - Base'!H92:$I$400, 2) -> 2021-02-27 | V61: ='Calc - Base'!L92 -> 1488.761844 | W61: ='Calc - Likely, S1'!L92 -> 929.7332168 | X61: ='Calc - Likely, S2'!L92 -> 644.846503 | Y61: ='Calc - Likely, S3'!L92 -> 3106.176026 | Z61: 57200.70774 | AA61: 77612.23603 | AB61: 69560.00544 | AC61: 879342.4351 | AD61: 0 | AE61: ='B. Contact Tracing Strategies'!$F$12 -> 2021-01-01 | AH61: 719 | AI61: 674 | AJ61: 70582 | AL61: 1044472.878
T62: 58 | U62: =VLOOKUP(T62, 'Calc - Base'!H93:$I$400, 2) -> 2021-02-28 | V62: ='Calc - Base'!L93 -> 1506.355747 | W62: ='Calc - Likely, S1'!L93 -> 935.2568869 | X62: ='Calc - Likely, S2'!L93 -> 645.2904059 | Y62: ='Calc - Likely, S3'!L93 -> 2613.404144 | Z62: 58707.06348 | AA62: 78547.49292 | AB62: 70205.29585 | AC62: 881955.8393 | AD62: 0 | AE62: ='B. Contact Tracing Strategies'!$F$12 -> 2021-01-01 | AH62: 744 | AI62: 653 | AJ62: 71326 | AL62: 1255977.798
T63: 59 | U63: =VLOOKUP(T63, 'Calc - Base'!H94:$I$400, 2) -> 2021-03-01 | V63: ='Calc - Base'!L94 -> 1523.767965 | W63: ='Calc - Likely, S1'!L94 -> 940.6701664 | X63: ='Calc - Likely, S2'!L94 -> 645.6672564 | Y63: ='Calc - Likely, S3'!L94 -> 2195.999124 | Z63: 60230.83145 | AA63: 79488.16309 | AB63: 70850.9631 | AC63: 884151.8384 | AD63: 0 | AE63: ='B. Contact Tracing Strategies'!$F$12 -> 2021-01-01 | AH63: 718 | AI63: 641.4285714 | AJ63: 72044 | AL63: 1423337.036
T64: 60 | U64: =VLOOKUP(T64, 'Calc - Base'!H95:$I$400, 2) -> 2021-03-02 | V64: ='Calc - Base'!L95 -> 1540.9826 | W64: ='Calc - Likely, S1'!L95 -> 945.9698674 | X64: ='Calc - Likely, S2'!L95 -> 645.9768704 | Y64: ='Calc - Likely, S3'!L95 -> 1843.281029 | Z64: 61771.81405 | AA64: 80434.13295 | AB64: 71496.93997 | AC64: 885995.1194 | AD64: 0 | AE64: ='B. Contact Tracing Strategies'!$F$12 -> 2021-01-01
T65: 61 | U65: =VLOOKUP(T65, 'Calc - Base'!H96:$I$400, 2) -> 2021-03-03 | V65: ='Calc - Base'!L96 -> 1557.983608 | W65: ='Calc - Likely, S1'!L96 -> 951.1528398 | X65: ='Calc - Likely, S2'!L96 -> 646.2190947 | Y65: ='Calc - Likely, S3'!L96 -> 1545.824286 | Z65: 63329.79766 | AA65: 81385.28579 | AB65: 72143.15907 | AC65: 887540.9437 | AD65: 0 | AE65: ='B. Contact Tracing Strategies'!$F$12 -> 2021-01-01
T66: 62 | U66: =VLOOKUP(T66, 'Calc - Base'!H97:$I$400, 2) -> 2021-03-04 | V66: ='Calc - Base'!L97 -> 1574.754819 | W66: ='Calc - Likely, S1'!L97 -> 956.2159695 | X66: ='Calc - Likely, S2'!L97 -> 646.3938065 | Y66: ='Calc - Likely, S3'!L97 -> 1295.393339 | Z66: 64904.55248 | AA66: 82341.50176 | AB66: 72789.55288 | AC66: 888836.3371 | AD66: 0 | AE66: ='B. Contact Tracing Strategies'!$F$12 -> 2021-01-01
T67: 63 | U67: =VLOOKUP(T67, 'Calc - Base'!H98:$I$400, 2) -> 2021-03-05 | V67: ='Calc - Base'!L98 -> 1591.279968 | W67: ='Calc - Likely, S1'!L98 -> 961.1561883 | X67: ='Calc - Likely, S2'!L98 -> 646.5009166 | Y67: ='Calc - Likely, S3'!L98 -> 1084.850382 | Z67: 66495.83244 | AA67: 83302.65795 | AB67: 73436.05379 | AC67: 889921.1874 | AD67: 0 | AE67: ='B. Contact Tracing Strategies'!$F$12 -> 2021-01-01
T68: 64 | U68: =VLOOKUP(T68, 'Calc - Base'!H99:$I$400, 2) -> 2021-03-06 | V68: ='Calc - Base'!L99 -> 1607.542719 | W68: ='Calc - Likely, S1'!L99 -> 965.9704751 | X68: ='Calc - Likely, S2'!L99 -> 646.540364 | Y68: ='Calc - Likely, S3'!L99 -> 908.0498008 | Z68: 68103.37516 | AA68: 84268.62843 | AB68: 74082.59416 | AC68: 890829.2372 | AD68: 0 | AE68: ='B. Contact Tracing Strategies'!$F$12 -> 2021-01-01
T69: 65 | U69: =VLOOKUP(T69, 'Calc - Base'!H100:$I$400, 2) -> 2021-03-07 | V69: ='Calc - Base'!L100 -> 1623.526696 | W69: ='Calc - Likely, S1'!L100 -> 970.6558592 | X69: ='Calc - Likely, S2'!L100 -> 646.5121146 | Y69: ='Calc - Likely, S3'!L100 -> 759.7289353 | Z69: =Z68+V69 -> 69726.90186 | AA69: =AA68+W69 -> 85239.28429 | AB69: =AB68+X69 -> 74729.10627 | AC69: =AC68+Y69 -> 891588.9662 | AD69: =INDEX($T$4:$T$369, MATCH(AE69, $U$4:$U$369, 0)) -> 0 | AE69: ='B. Contact Tracing Strategies'!$F$12 -> 2021-01-01
T70: 66 | U70: =VLOOKUP(T70, 'Calc - Base'!H101:$I$400, 2) -> 2021-03-08 | V70: ='Calc - Base'!L101 -> 1639.215508 | W70: ='Calc - Likely, S1'!L101 -> 975.209422 | X70: ='Calc - Likely, S2'!L101 -> 646.4161603 | Y70: ='Calc - Likely, S3'!L101 -> 635.401344 | Z70: 71366.11737 | AA70: 86214.49371 | AB70: 75375.52243 | AC70: 892224.3675 | AD70: 0 | AE70: ='B. Contact Tracing Strategies'!$F$12 -> 2021-01-01
T71: 67 | U71: =VLOOKUP(T71, 'Calc - Base'!H102:$I$400, 2) -> 2021-03-09 | V71: ='Calc - Base'!L102 -> 1654.592783 | W71: ='Calc - Likely, S1'!L102 -> 979.628302 | X71: ='Calc - Likely, S2'!L102 -> 646.2525209 | Y71: ='Calc - Likely, S3'!L102 -> 531.2563387 | Z71: 73020.71015 | AA71: 87194.12201 | AB71: 76021.77495 | AC71: 892755.6239 | AD71: 0 | AE71: ='B. Contact Tracing Strategies'!$F$12 -> 2021-01-01
T72: 68 | U72: =VLOOKUP(T72, 'Calc - Base'!H103:$I$400, 2) -> 2021-03-10 | V72: ='Calc - Base'!L103 -> 1669.642199 | W72: ='Calc - Likely, S1'!L103 -> 983.9096988 | X72: ='Calc - Likely, S2'!L103 -> 646.0212455 | Y72: ='Calc - Likely, S3'!L103 -> 444.066921 | Z72: 74690.35235 | AA72: 88178.03171 | AB72: 76667.7962 | AC72: 893199.6908 | AD72: 0 | AE72: ='B. Contact Tracing Strategies'!$F$12 -> 2021-01-01
T73: 69 | U73: =VLOOKUP(T73, 'Calc - Base'!H104:$I$400, 2) -> 2021-03-11 | V73: ='Calc - Base'!L104 -> 1684.347514 | W73: ='Calc - Likely, S1'!L104 -> 988.0508775 | X73: ='Calc - Likely, S2'!L104 -> 645.7224122 | Y73: ='Calc - Likely, S3'!L104 -> 371.107084 | Z73: 76374.69986 | AA73: 89166.08259 | AB73: 77313.51861 | AC73: 893570.7979 | AD73: 0 | AE73: ='B. Contact Tracing Strategies'!$F$12 -> 2021-01-01
T74: 70 | U74: =VLOOKUP(T74, 'Calc - Base'!H105:$I$400, 2) -> 2021-03-12 | V74: ='Calc - Base'!L105 -> 1698.692605 | W74: ='Calc - Likely, S1'!L105 -> 992.0491713 | X74: ='Calc - Likely, S2'!L105 -> 645.3561278 | Y74: ='Calc - Likely, S3'!L105 -> 310.0786554 | Z74: 78073.39247 | AA74: 90158.13176 | AB74: 77958.87474 | AC74: 893880.8765 | AD74: 0 | AE74: ='B. Contact Tracing Strategies'!$F$12 -> 2021-01-01
T75: 71 | U75: =VLOOKUP(T75, 'Calc - Base'!H106:$I$400, 2) -> 2021-03-13 | V75: ='Calc - Base'!L106 -> 1712.661493 | W75: ='Calc - Likely, S1'!L106 -> 995.901985 | X75: ='Calc - Likely, S2'!L106 -> 644.922527 | Y75: ='Calc - Likely, S3'!L106 -> 259.0473422 | Z75: 79786.05396 | AA75: 91154.03374 | AB75: 78603.79726 | AC75: 894139.9239 | AD75: 0 | AE75: ='B. Contact Tracing Strategies'!$F$12 -> 2021-01-01
T76: 72 | U76: =VLOOKUP(T76, 'Calc - Base'!H107:$I$400, 2) -> 2021-03-14 | V76: ='Calc - Base'!L107 -> 1726.238383 | W76: ='Calc - Likely, S1'!L107 -> 999.6067979 | X76: ='Calc - Likely, S2'!L107 -> 644.4217722 | Y76: ='Calc - Likely, S3'!L107 -> 216.387329 | Z76: 81512.29234 | AA76: 92153.64054 | AB76: 79248.21904 | AC76: 894356.3112 | AD76: 0 | AE76: ='B. Contact Tracing Strategies'!$F$12 -> 2021-01-01
T77: 73 | U77: =VLOOKUP(T77, 'Calc - Base'!H108:$I$400, 2) -> 2021-03-15 | V77: ='Calc - Base'!L108 -> 1739.407698 | W77: ='Calc - Likely, S1'!L108 -> 1003.161168 | X77: ='Calc - Likely, S2'!L108 -> 643.8540537 | Y77: ='Calc - Likely, S3'!L108 -> 180.7336255 | Z77: 83251.70004 | AA77: 93156.80171 | AB77: 79892.07309 | AC77: 894537.0448 | AD77: 0 | AE77: ='B. Contact Tracing Strategies'!$F$12 -> 2021-01-01
T78: 74 | U78: =VLOOKUP(T78, 'Calc - Base'!H109:$I$400, 2) -> 2021-03-16 | V78: ='Calc - Base'!L109 -> 1752.154108 | W78: ='Calc - Likely, S1'!L109 -> 1006.562735 | X78: ='Calc - Likely, S2'!L109 -> 643.2195895 | Y78: ='Calc - Likely, S3'!L109 -> 150.9413038 | Z78: 85003.85415 | AA78: 94163.36444 | AB78: 80535.29268 | AC78: 894687.9861 | AD78: 0 | AE78: ='B. Contact Tracing Strategies'!$F$12 -> 2021-01-01
T79: 75 | U79: =VLOOKUP(T79, 'Calc - Base'!H110:$I$400, 2) -> 2021-03-17 | V79: ='Calc - Base'!L110 -> 1764.462573 | W79: ='Calc - Likely, S1'!L110 -> 1009.809224 | X79: ='Calc - Likely, S2'!L110 -> 642.5186254 | Y79: ='Calc - Likely, S3'!L110 -> 126.0507797 | Z79: 86768.31672 | AA79: 95173.17367 | AB79: 81177.81131 | AC79: 894814.0369 | AD79: 0 | AE79: ='B. Contact Tracing Strategies'!$F$12 -> 2021-01-01
T80: 76 | U80: =VLOOKUP(T80, 'Calc - Base'!H111:$I$400, 2) -> 2021-03-18 | V80: ='Calc - Base'!L111 -> 1776.318373 | W80: ='Calc - Likely, S1'!L111 -> 1012.898446 | X80: ='Calc - Likely, S2'!L111 -> 641.7514348 | Y80: ='Calc - Likely, S3'!L111 -> 105.2583424 | Z80: 88544.63509 | AA80: 96186.07211 | AB80: 81819.56274 | AC80: 894919.2952 | AD80: 0 | AE80: ='B. Contact Tracing Strategies'!$F$12 -> 2021-01-01
T81: 77 | U81: =VLOOKUP(T81, 'Calc - Base'!H112:$I$400, 2) -> 2021-03-19 | V81: ='Calc - Base'!L112 -> 1787.707142 | W81: ='Calc - Likely, S1'!L112 -> 1015.828307 | X81: ='Calc - Likely, S2'!L112 -> 640.9183182 | Y81: ='Calc - Likely, S3'!L112 -> 87.891208 | Z81: 90332.34224 | AA81: 97201.90042 | AB81: 82460.48106 | AC81: 895007.1864 | AD81: 0 | AE81: ='B. Contact Tracing Strategies'!$F$12 -> 2021-01-01
T82: 78 | U82: =VLOOKUP(T82, 'Calc - Base'!H113:$I$400, 2) -> 2021-03-20 | V82: ='Calc - Base'!L113 -> 1798.614906 | W82: ='Calc - Likely, S1'!L113 -> 1018.596803 | X82: ='Calc - Likely, S2'!L113 -> 640.019603 | Y82: ='Calc - Likely, S3'!L113 -> 73.38645237 | Z82: 92130.95714 | AA82: 98220.49722 | AB82: 83100.50066 | AC82: 895080.5729 | AD82: 0 | AE82: ='B. Contact Tracing Strategies'!$F$12 -> 2021-01-01
T83: 79 | U83: =VLOOKUP(T83, 'Calc - Base'!H114:$I$400, 2) -> 2021-03-21 | V83: ='Calc - Base'!L114 -> 1809.028116 | W83: ='Calc - Likely, S1'!L114 -> 1021.202029 | X83: ='Calc - Likely, S2'!L114 -> 639.0556432 | Y83: ='Calc - Likely, S3'!L114 -> 61.27325314 | Z83: 93939.98526 | AA83: 99241.69925 | AB83: 83739.5563 | AC83: 895141.8462 | AD83: 0 | AE83: ='B. Contact Tracing Strategies'!$F$12 -> 2021-01-01
T84: 80 | U84: =VLOOKUP(T84, 'Calc - Base'!H115:$I$400, 2) -> 2021-03-22 | V84: ='Calc - Base'!L115 -> 1818.93368 | W84: ='Calc - Likely, S1'!L115 -> 1023.642178 | X84: ='Calc - Likely, S2'!L115 -> 638.0268192 | Y84: ='Calc - Likely, S3'!L115 -> 51.15794629 | Z84: 95758.91894 | AA84: 100265.3414 | AB84: 84377.58312 | AC84: 895193.0041 | AD84: 0 | AE84: ='B. Contact Tracing Strategies'!$F$12 -> 2021-01-01
T85: 81 | U85: =VLOOKUP(T85, 'Calc - Base'!H116:$I$400, 2) -> 2021-03-23 | V85: ='Calc - Base'!L116 -> 1828.318998 | W85: ='Calc - Likely, S1'!L116 -> 1025.915548 | X85: ='Calc - Likely, S2'!L116 -> 636.9335373 | Y85: ='Calc - Likely, S3'!L116 -> 42.71146834 | Z85: 97587.23794 | AA85: 101291.257 | AB85: 85014.51666 | AC85: 895235.7156 | AD85: 0 | AE85: ='B. Contact Tracing Strategies'!$F$12 -> 2021-01-01
T86: 82 | U86: =VLOOKUP(T86, 'Calc - Base'!H117:$I$400, 2) -> 2021-03-24 | V86: ='Calc - Base'!L117 -> 1837.171993 | W86: ='Calc - Likely, S1'!L117 -> 1028.020538 | X86: ='Calc - Likely, S2'!L117 -> 635.7762297 | Y86: ='Calc - Likely, S3'!L117 -> 35.6588156 | Z86: 99424.40993 | AA86: 102319.2775 | AB86: 85650.29289 | AC86: 895271.3744 | AD86: 0 | AE86: ='B. Contact Tracing Strategies'!$F$12 -> 2021-01-01
T87: 83 | U87: =VLOOKUP(T87, 'Calc - Base'!H118:$I$400, 2) -> 2021-03-25 | V87: ='Calc - Base'!L118 -> 1845.481147 | W87: ='Calc - Likely, S1'!L118 -> 1029.955657 | X87: ='Calc - Likely, S2'!L118 -> 634.5553537 | Y87: ='Calc - Likely, S3'!L118 -> 29.77020491 | Z87: 101269.8911 | AA87: 103349.2332 | AB87: 86284.84824 | AC87: 895301.1446 | AD87: 0 | AE87: ='B. Contact Tracing Strategies'!$F$12 -> 2021-01-01
T88: 84 | U88: =VLOOKUP(T88, 'Calc - Base'!H119:$I$400, 2) -> 2021-03-26 | V88: ='Calc - Base'!L119 -> 1853.235523 | W88: ='Calc - Likely, S1'!L119 -> 1031.71952 | X88: ='Calc - Likely, S2'!L119 -> 633.271392 | Y88: ='Calc - Likely, S3'!L119 -> 24.85366693 | Z88: 103123.1266 | AA88: 104380.9527 | AB88: 86918.11964 | AC88: 895325.9983 | AD88: 0 | AE88: ='B. Contact Tracing Strategies'!$F$12 -> 2021-01-01
T89: 85 | U89: =VLOOKUP(T89, 'Calc - Base'!H120:$I$400, 2) -> 2021-03-27 | V89: ='Calc - Base'!L120 -> 1860.424804 | W89: ='Calc - Likely, S1'!L120 -> 1033.310856 | X89: ='Calc - Likely, S2'!L120 -> 631.9248512 | Y89: ='Calc - Likely, S3'!L120 -> 20.74884383 | Z89: 104983.5514 | AA89: 105414.2635 | AB89: 87550.04449 | AC89: 895346.7471 | AD89: 0 | AE89: ='B. Contact Tracing Strategies'!$F$12 -> 2021-01-01
T90: 86 | U90: =VLOOKUP(T90, 'Calc - Base'!H121:$I$400, 2) -> 2021-03-28 | V90: ='Calc - Base'!L121 -> 1867.039314 | W90: ='Calc - Likely, S1'!L121 -> 1034.728505 | X90: ='Calc - Likely, S2'!L121 -> 630.5162625 | Y90: ='Calc - Likely, S3'!L121 -> 17.32179814 | Z90: 106850.5907 | AA90: 106448.9921 | AB90: 88180.56075 | AC90: 895364.0689 | AD90: 0 | AE90: ='B. Contact Tracing Strategies'!$F$12 -> 2021-01-01
T91: 87 | U91: =VLOOKUP(T91, 'Calc - Base'!H122:$I$400, 2) -> 2021-03-29 | V91: ='Calc - Base'!L122 -> 1873.070048 | W91: ='Calc - Likely, S1'!L122 -> 1035.971424 | X91: ='Calc - Likely, S2'!L122 -> 629.0461805 | Y91: ='Calc - Likely, S3'!L122 -> 14.46066978 | Z91: 108723.6608 | AA91: 107484.9635 | AB91: 88809.60693 | AC91: 895378.5296 | AD91: 0 | AE91: ='B. Contact Tracing Strategies'!$F$12 -> 2021-01-01
T92: 88 | U92: =VLOOKUP(T92, 'Calc - Base'!H123:$I$400, 2) -> 2021-03-30 | V92: ='Calc - Base'!L123 -> 1878.508695 | W92: ='Calc - Likely, S1'!L123 -> 1037.038683 | X92: ='Calc - Likely, S2'!L123 -> 627.5151832 | Y92: ='Calc - Likely, S3'!L123 -> 12.072044 | Z92: 110602.1695 | AA92: 108522.0022 | AB92: 89437.12211 | AC92: 895390.6016 | AD92: 0 | AE92: ='B. Contact Tracing Strategies'!$F$12 -> 2021-01-01
T93: 89 | U93: =VLOOKUP(T93, 'Calc - Base'!H124:$I$400, 2) -> 2021-03-31 | V93: ='Calc - Base'!L124 -> 1883.347666 | W93: ='Calc - Likely, S1'!L124 -> 1037.929473 | X93: ='Calc - Likely, S2'!L124 -> 625.9238712 | Y93: ='Calc - Likely, S3'!L124 -> 10.07791464 | Z93: 112485.5171 | AA93: 109559.9316 | AB93: 90063.04598 | AC93: 895400.6795 | AD93: 0 | AE93: ='B. Contact Tracing Strategies'!$F$12 -> 2021-01-01
T94: 90 | U94: =VLOOKUP(T94, 'Calc - Base'!H125:$I$400, 2) -> 2021-04-01 | V94: ='Calc - Base'!L125 -> 1887.580111 | W94: ='Calc - Likely, S1'!L125 -> 1038.643103 | X94: ='Calc - Likely, S2'!L125 -> 624.2728672 | Y94: ='Calc - Likely, S3'!L125 -> 8.413145987 | Z94: 114373.0972 | AA94: 110598.5747 | AB94: 90687.31885 | AC94: 895409.0927 | AD94: 0 | AE94: ='B. Contact Tracing Strategies'!$F$12 -> 2021-01-01
T95: 91 | U95: =VLOOKUP(T95, 'Calc - Base'!H126:$I$400, 2) -> 2021-04-02 | V95: ='Calc - Base'!L126 -> 1891.199939 | W95: ='Calc - Likely, S1'!L126 -> 1039.179001 | X95: ='Calc - Likely, S2'!L126 -> 622.5628159 | Y95: ='Calc - Likely, S3'!L126 -> 7.023351526 | Z95: 116264.2972 | AA95: 111637.7537 | AB95: 91309.88167 | AC95: 895416.116 | AD95: 0 | AE95: ='B. Contact Tracing Strategies'!$F$12 -> 2021-01-01
T96: 92 | U96: =VLOOKUP(T96, 'Calc - Base'!H127:$I$400, 2) -> 2021-04-03 | V96: ='Calc - Base'!L127 -> 1894.201839 | W96: ='Calc - Likely, S1'!L127 -> 1039.536718 | X96: ='Calc - Likely, S2'!L127 -> 620.7943831 | Y96: ='Calc - Likely, S3'!L127 -> 5.863121714 | Z96: 118158.499 | AA96: 112677.2905 | AB96: 91930.67605 | AC96: 895421.9791 | AD96: 0 | AE96: ='B. Contact Tracing Strategies'!$F$12 -> 2021-01-01
T97: 93 | U97: =VLOOKUP(T97, 'Calc - Base'!H128:$I$400, 2) -> 2021-04-04 | V97: ='Calc - Base'!L128 -> 1896.581297 | W97: ='Calc - Likely, S1'!L128 -> 1039.715926 | X97: ='Calc - Likely, S2'!L128 -> 618.968255 | Y97: ='Calc - Likely, S3'!L128 -> 4.894543368 | Z97: 120055.0803 | AA97: 113717.0064 | AB97: 92549.64431 | AC97: 895426.8737 | AD97: 0 | AE97: ='B. Contact Tracing Strategies'!$F$12 -> 2021-01-01
T98: 94 | U98: =VLOOKUP(T98, 'Calc - Base'!H129:$I$400, 2) -> 2021-04-05 | V98: ='Calc - Base'!L129 -> 1898.334602 | W98: ='Calc - Likely, S1'!L129 -> 1039.716419 | X98: ='Calc - Likely, S2'!L129 -> 617.0851381 | Y98: ='Calc - Likely, S3'!L129 -> 4.085962935 | Z98: 121953.4149 | AA98: 114756.7228 | AB98: 93166.72944 | AC98: 895430.9596 | AD98: 0 | AE98: ='B. Contact Tracing Strategies'!$F$12 -> 2021-01-01
T99: 95 | U99: =VLOOKUP(T99, 'Calc - Base'!H130:$I$400, 2) -> 2021-04-06 | V99: ='Calc - Base'!L130 -> 1899.458868 | W99: ='Calc - Likely, S1'!L130 -> 1039.538113 | X99: ='Calc - Likely, S2'!L130 -> 615.1457584 | Y99: ='Calc - Likely, S3'!L130 -> 3.410953553 | Z99: 123852.8738 | AA99: 115796.2609 | AB99: 93781.8752 | AC99: 895434.3706 | AD99: 0 | AE99: ='B. Contact Tracing Strategies'!$F$12 -> 2021-01-01
T100: 96 | U100: =VLOOKUP(T100, 'Calc - Base'!H131:$I$400, 2) -> 2021-04-07 | V100: ='Calc - Base'!L131 -> 1899.952035 | W100: ='Calc - Likely, S1'!L131 -> 1039.18105 | X100: ='Calc - Likely, S2'!L131 -> 613.1508607 | Y100: ='Calc - Likely, S3'!L131 -> 2.847452395 | Z100: 125752.8258 | AA100: 116835.442 | AB100: 94395.02606 | AC100: 895437.2181 | AD100: 0 | AE100: ='B. Contact Tracing Strategies'!$F$12 -> 2021-01-01
T101: 97 | U101: =VLOOKUP(T101, 'Calc - Base'!H132:$I$400, 2) -> 2021-04-08 | V101: ='Calc - Base'!L132 -> 1899.812879 | W101: ='Calc - Likely, S1'!L132 -> 1038.645392 | X101: ='Calc - Likely, S2'!L132 -> 611.1012083 | Y101: ='Calc - Likely, S3'!L132 -> 2.377040277 | Z101: 127652.6387 | AA101: 117874.0874 | AB101: 95006.12727 | AC101: 895439.5951 | AD101: 0 | AE101: ='B. Contact Tracing Strategies'!$F$12 -> 2021-01-01
T102: 98 | U102: =VLOOKUP(T102, 'Calc - Base'!H133:$I$400, 2) -> 2021-04-09 | V102: ='Calc - Base'!L133 -> 1899.04102 | W102: ='Calc - Likely, S1'!L133 -> 1037.931425 | X102: ='Calc - Likely, S2'!L133 -> 608.9975819 | Y102: ='Calc - Likely, S3'!L133 -> 1.984340105 | Z102: 129551.6797 | AA102: 118912.0188 | AB102: 95615.12485 | AC102: 895441.5794 | AD102: 0 | AE102: ='B. Contact Tracing Strategies'!$F$12 -> 2021-01-01
T103: 99 | U103: =VLOOKUP(T103, 'Calc - Base'!H134:$I$400, 2) -> 2021-04-10 | V103: ='Calc - Base'!L134 -> 1897.636918 | W103: ='Calc - Likely, S1'!L134 -> 1037.039558 | X103: ='Calc - Likely, S2'!L134 -> 606.8407795 | Y103: ='Calc - Likely, S3'!L134 -> 1.656514579 | Z103: 131449.3166 | AA103: 119949.0583 | AB103: 96221.96563 | AC103: 895443.2359 | AD103: 0 | AE103: ='B. Contact Tracing Strategies'!$F$12 -> 2021-01-01
T104: 100 | U104: =VLOOKUP(T104, 'Calc - Base'!H135:$I$400, 2) -> 2021-04-11 | V104: ='Calc - Base'!L135 -> 1895.601878 | W104: ='Calc - Likely, S1'!L135 -> 1035.970321 | X104: ='Calc - Likely, S2'!L135 -> 604.6316157 | Y104: ='Calc - Likely, S3'!L135 -> 1.382846795 | Z104: 133344.9185 | AA104: 120985.0287 | AB104: 96826.59725 | AC104: 895444.6188 | AD104: 0 | AE104: ='B. Contact Tracing Strategies'!$F$12 -> 2021-01-01
T105: 101 | U105: =VLOOKUP(T105, 'Calc - Base'!H136:$I$400, 2) -> 2021-04-12 | V105: ='Calc - Base'!L136 -> 1892.938045 | W105: ='Calc - Likely, S1'!L136 -> 1034.724367 | X105: ='Calc - Likely, S2'!L136 -> 602.3709206 | Y105: ='Calc - Likely, S3'!L136 -> 1.154390068 | Z105: 135237.8566 | AA105: 122019.753 | AB105: 97428.96817 | AC105: 895445.7732 | AD105: 0 | AE105: ='B. Contact Tracing Strategies'!$F$12 -> 2021-01-01
T106: 102 | U106: =VLOOKUP(T106, 'Calc - Base'!H137:$I$400, 2) -> 2021-04-13 | V106: ='Calc - Base'!L137 -> 1889.648399 | W106: ='Calc - Likely, S1'!L137 -> 1033.302467 | X106: ='Calc - Likely, S2'!L137 -> 600.0595397 | Y106: ='Calc - Likely, S3'!L137 -> 0.9636755789 | Z106: 137127.505 | AA106: 123053.0555 | AB106: 98029.02771 | AC106: 895446.7369 | AD106: 0 | AE106: ='B. Contact Tracing Strategies'!$F$12 -> 2021-01-01
T107: 103 | U107: =VLOOKUP(T107, 'Calc - Base'!H138:$I$400, 2) -> 2021-04-14 | V107: ='Calc - Base'!L138 -> 1885.73675 | W107: ='Calc - Likely, S1'!L138 -> 1031.705515 | X107: ='Calc - Likely, S2'!L138 -> 597.6983329 | Y107: ='Calc - Likely, S3'!L138 -> 0.8044682761 | Z107: 139013.2417 | AA107: 124084.761 | AB107: 98626.72604 | AC107: 895447.5413 | AD107: 0 | AE107: ='B. Contact Tracing Strategies'!$F$12 -> 2021-01-01
T108: 104 | U108: =VLOOKUP(T108, 'Calc - Base'!H139:$I$400, 2) -> 2021-04-15 | V108: ='Calc - Base'!L139 -> 1881.207726 | W108: ='Calc - Likely, S1'!L139 -> 1029.934519 | X108: ='Calc - Likely, S2'!L139 -> 595.2881742 | Y108: ='Calc - Likely, S3'!L139 -> 0.6715630959 | Z108: 140894.4494 | AA108: 125114.6955 | AB108: 99222.01422 | AC108: 895448.2129 | AD108: 0 | AE108: ='B. Contact Tracing Strategies'!$F$12 -> 2021-01-01
T109: 105 | U109: =VLOOKUP(T109, 'Calc - Base'!H140:$I$400, 2) -> 2021-04-16 | V109: ='Calc - Base'!L140 -> 1876.066764 | W109: ='Calc - Likely, S1'!L140 -> 1027.990608 | X109: ='Calc - Likely, S2'!L140 -> 592.8299505 | Y109: ='Calc - Likely, S3'!L140 -> 0.5606148292 | Z109: 142770.5162 | AA109: 126142.6861 | AB109: 99814.84417 | AC109: 895448.7735 | AD109: 0 | AE109: ='B. Contact Tracing Strategies'!$F$12 -> 2021-01-01
T110: 106 | U110: =VLOOKUP(T110, 'Calc - Base'!H141:$I$400, 2) -> 2021-04-17 | V110: ='Calc - Base'!L141 -> 1870.320092 | W110: ='Calc - Likely, S1'!L141 -> 1025.875024 | X110: ='Calc - Likely, S2'!L141 -> 590.3245614 | Y110: ='Calc - Likely, S3'!L141 -> 0.4679960876 | Z110: 144640.8363 | AA110: 127168.5612 | AB110: 100405.1687 | AC110: 895449.2415 | AD110: 0 | AE110: ='B. Contact Tracing Strategies'!$F$12 -> 2021-01-01
T111: 107 | U111: =VLOOKUP(T111, 'Calc - Base'!H142:$I$400, 2) -> 2021-04-18 | V111: ='Calc - Base'!L142 -> 1863.974716 | W111: ='Calc - Likely, S1'!L142 -> 1023.589123 | X111: ='Calc - Likely, S2'!L142 -> 587.7729184 | Y111: ='Calc - Likely, S3'!L142 -> 0.3906787281 | Z111: 146504.811 | AA111: 128192.1503 | AB111: 100992.9416 | AC111: 895449.6322 | AD111: 0 | AE111: ='B. Contact Tracing Strategies'!$F$12 -> 2021-01-01
T112: 108 | U112: =VLOOKUP(T112, 'Calc - Base'!H143:$I$400, 2) -> 2021-04-19 | V112: ='Calc - Base'!L143 -> 1857.038401 | W112: ='Calc - Likely, S1'!L143 -> 1021.134372 | X112: ='Calc - Likely, S2'!L143 -> 585.1759441 | Y112: ='Calc - Likely, S3'!L143 -> 0.3261348626 | Z112: 148361.8494 | AA112: 129213.2847 | AB112: 101578.1176 | AC112: 895449.9583 | AD112: 0 | AE112: ='B. Contact Tracing Strategies'!$F$12 -> 2021-01-01
T113: 109 | U113: =VLOOKUP(T113, 'Calc - Base'!H144:$I$400, 2) -> 2021-04-20 | V113: ='Calc - Base'!L144 -> 1849.519648 | W113: ='Calc - Likely, S1'!L144 -> 1018.51235 | X113: ='Calc - Likely, S2'!L144 -> 582.5345716 | Y113: ='Calc - Likely, S3'!L144 -> 0.2722542186 | Z113: 150211.3691 | AA113: 130231.797 | AB113: 102160.6522 | AC113: 895450.2306 | AD113: 0 | AE113: ='B. Contact Tracing Strategies'!$F$12 -> 2021-01-01
T114: 110 | U114: =VLOOKUP(T114, 'Calc - Base'!H145:$I$400, 2) -> 2021-04-21 | V114: ='Calc - Base'!L145 -> 1841.427676 | W114: ='Calc - Likely, S1'!L145 -> 1015.724743 | X114: ='Calc - Likely, S2'!L145 -> 579.849744 | Y114: ='Calc - Likely, S3'!L145 -> 0.2272751499 | Z114: 152052.7967 | AA114: 131247.5218 | AB114: 102740.5019 | AC114: 895450.4578 | AD114: 0 | AE114: ='B. Contact Tracing Strategies'!$F$12 -> 2021-01-01
T115: 111 | U115: =VLOOKUP(T115, 'Calc - Base'!H146:$I$400, 2) -> 2021-04-22 | V115: ='Calc - Base'!L146 -> 1832.772395 | W115: ='Calc - Likely, S1'!L146 -> 1012.773339 | X115: ='Calc - Likely, S2'!L146 -> 577.1224134 | Y115: ='Calc - Likely, S3'!L146 -> 0.1897270439 | Z115: 153885.5691 | AA115: 132260.2951 | AB115: 103317.6243 | AC115: 895450.6476 | AD115: 0 | AE115: ='B. Contact Tracing Strategies'!$F$12 -> 2021-01-01
T116: 112 | U116: =VLOOKUP(T116, 'Calc - Base'!H147:$I$400, 2) -> 2021-04-23 | V116: ='Calc - Base'!L147 -> 1823.564382 | W116: ='Calc - Likely, S1'!L147 -> 1009.660034 | X116: ='Calc - Likely, S2'!L147 -> 574.3535405 | Y116: ='Calc - Likely, S3'!L147 -> 0.1583822424 | Z116: 155709.1335 | AA116: 133269.9551 | AB116: 103891.9779 | AC116: 895450.806 | AD116: 0 | AE116: ='B. Contact Tracing Strategies'!$F$12 -> 2021-01-01
T117: 113 | U117: =VLOOKUP(T117, 'Calc - Base'!H148:$I$400, 2) -> 2021-04-24 | V117: ='Calc - Base'!L148 -> 1813.814849 | W117: ='Calc - Likely, S1'!L148 -> 1006.386821 | X117: ='Calc - Likely, S2'!L148 -> 571.5440936 | Y117: ='Calc - Likely, S3'!L148 -> 0.1322159049 | Z117: 157522.9484 | AA117: 134276.3419 | AB117: 104463.522 | AC117: 895450.9382 | AD117: 0 | AE117: ='B. Contact Tracing Strategies'!$F$12 -> 2021-01-01
T118: 114 | U118: =VLOOKUP(T118, 'Calc - Base'!H149:$I$400, 2) -> 2021-04-25 | V118: ='Calc - Base'!L149 -> 1803.535621 | W118: ='Calc - Likely, S1'!L149 -> 1002.955791 | X118: ='Calc - Likely, S2'!L149 -> 568.6950483 | Y118: ='Calc - Likely, S3'!L149 -> 0.1103725021 | Z118: 159326.484 | AA118: 135279.2977 | AB118: 105032.217 | AC118: 895451.0485 | AD118: 0 | AE118: ='B. Contact Tracing Strategies'!$F$12 -> 2021-01-01
T119: 115 | U119: =VLOOKUP(T119, 'Calc - Base'!H150:$I$400, 2) -> 2021-04-26 | V119: ='Calc - Base'!L150 -> 1792.7391 | W119: ='Calc - Likely, S1'!L150 -> 999.3691304 | X119: ='Calc - Likely, S2'!L150 -> 565.8073868 | Y119: ='Calc - Likely, S3'!L150 -> 0.09213784514 | Z119: 161119.2231 | AA119: 136278.6669 | AB119: 105598.0244 | AC119: 895451.1407 | AD119: 0 | AE119: ='B. Contact Tracing Strategies'!$F$12 -> 2021-01-01
T120: 116 | U120: =VLOOKUP(T120, 'Calc - Base'!H151:$I$400, 2) -> 2021-04-27 | V120: ='Calc - Base'!L151 -> 1781.438237 | W120: ='Calc - Likely, S1'!L151 -> 995.6291164 | X120: ='Calc - Likely, S2'!L151 -> 562.8820967 | Y120: ='Calc - Likely, S3'!L151 -> 0.07691573505 | Z120: 162900.6613 | AA120: 137274.296 | AB120: 106160.9065 | AC120: 895451.2176 | AD120: 0 | AE120: ='B. Contact Tracing Strategies'!$F$12 -> 2021-01-01
T121: 117 | U121: =VLOOKUP(T121, 'Calc - Base'!H152:$I$400, 2) -> 2021-04-28 | V121: ='Calc - Base'!L152 -> 1769.646498 | W121: ='Calc - Likely, S1'!L152 -> 991.738116 | X121: ='Calc - Likely, S2'!L152 -> 559.9201712 | Y121: ='Calc - Likely, S3'!L152 -> 0.06420847014 | Z121: 164670.3078 | AA121: 138266.0341 | AB121: 106720.8267 | AC121: 895451.2818 | AD121: 0 | AE121: ='B. Contact Tracing Strategies'!$F$12 -> 2021-01-01
T122: 118 | U122: =VLOOKUP(T122, 'Calc - Base'!H153:$I$400, 2) -> 2021-04-29 | V122: ='Calc - Base'!L153 -> 1757.37783 | W122: ='Calc - Likely, S1'!L153 -> 987.6985812 | X122: ='Calc - Likely, S2'!L153 -> 556.9226074 | Y122: ='Calc - Likely, S3'!L153 -> 0.0536005735 | Z122: 166427.6856 | AA122: 139253.7327 | AB122: 107277.7493 | AC122: 895451.3354 | AD122: 0 | AE122: ='B. Contact Tracing Strategies'!$F$12 -> 2021-01-01
T123: 119 | U123: =VLOOKUP(T123, 'Calc - Base'!H154:$I$400, 2) -> 2021-04-30 | V123: ='Calc - Base'!L154 -> 1744.646626 | W123: ='Calc - Likely, S1'!L154 -> 983.5130465 | X123: ='Calc - Likely, S2'!L154 -> 553.8904068 | Y123: ='Calc - Likely, S3'!L154 -> 0.04474520883 | Z123: 168172.3323 | AA123: 140237.2457 | AB123: 107831.6397 | AC123: 895451.3802 | AD123: 0 | AE123: ='B. Contact Tracing Strategies'!$F$12 -> 2021-01-01
T124: 120 | U124: =VLOOKUP(T124, 'Calc - Base'!H155:$I$400, 2) -> 2021-05-01 | V124: ='Calc - Base'!L155 -> 1731.467693 | W124: ='Calc - Likely, S1'!L155 -> 979.1841252 | X124: ='Calc - Likely, S2'!L155 -> 550.8245737 | Y124: ='Calc - Likely, S3'!L155 -> 0.03735284044 | Z124: 169903.8 | AA124: 141216.4299 | AB124: 108382.4642 | AC124: 895451.4175 | AD124: 0 | AE124: ='B. Contact Tracing Strategies'!$F$12 -> 2021-01-01
T125: 121 | U125: =VLOOKUP(T125, 'Calc - Base'!H156:$I$400, 2) -> 2021-05-02 | V125: ='Calc - Base'!L156 -> 1717.856214 | W125: ='Calc - Likely, S1'!L156 -> 974.7145066 | X125: ='Calc - Likely, S2'!L156 -> 547.726115 | Y125: ='Calc - Likely, S3'!L156 -> 0.03118176673 | Z125: 171621.6562 | AA125: 142191.1444 | AB125: 108930.1904 | AC125: 895451.4487 | AD125: 0 | AE125: ='B. Contact Tracing Strategies'!$F$12 -> 2021-01-01
T126: 122 | U126: =VLOOKUP(T126, 'Calc - Base'!H157:$I$400, 2) -> 2021-05-03 | V126: ='Calc - Base'!L157 -> 1703.827712 | W126: ='Calc - Likely, S1'!L157 -> 970.1069517 | X126: ='Calc - Likely, S2'!L157 -> 544.5960395 | Y126: ='Calc - Likely, S3'!L157 -> 0.02603021752 | Z126: 173325.4839 | AA126: 143161.2513 | AB126: 109474.7864 | AC126: 895451.4747 | AD126: 0 | AE126: ='B. Contact Tracing Strategies'!$F$12 -> 2021-01-01
T127: 123 | U127: =VLOOKUP(T127, 'Calc - Base'!H158:$I$400, 2) -> 2021-05-04 | V127: ='Calc - Base'!L158 -> 1689.398016 | W127: ='Calc - Likely, S1'!L158 -> 965.3642904 | X127: ='Calc - Likely, S2'!L158 -> 541.4353572 | Y127: ='Calc - Likely, S3'!L158 -> 0.02172975706 | Z127: 175014.8819 | AA127: 144126.6156 | AB127: 110016.2218 | AC127: 895451.4964 | AD127: 0 | AE127: ='B. Contact Tracing Strategies'!$F$12 -> 2021-01-01
T128: 124 | U128: =VLOOKUP(T128, 'Calc - Base'!H159:$I$400, 2) -> 2021-05-05 | V128: ='Calc - Base'!L159 -> 1674.583222 | W128: ='Calc - Likely, S1'!L159 -> 960.4894173 | X128: ='Calc - Likely, S2'!L159 -> 538.245079 | Y128: ='Calc - Likely, S3'!L159 -> 0.01813977684 | Z128: 176689.4651 | AA128: 145087.105 | AB128: 110554.4668 | AC128: 895451.5146 | AD128: 0 | AE128: ='B. Contact Tracing Strategies'!$F$12 -> 2021-01-01
T129: 125 | U129: =VLOOKUP(T129, 'Calc - Base'!H160:$I$400, 2) -> 2021-05-06 | V129: ='Calc - Base'!L160 -> 1659.399657 | W129: ='Calc - Likely, S1'!L160 -> 955.4852884 | X129: ='Calc - Likely, S2'!L160 -> 535.0262154 | Y129: ='Calc - Likely, S3'!L160 -> 0.01514289828 | Z129: 178348.8648 | AA129: 146042.5903 | AB129: 111089.4931 | AC129: 895451.5297 | AD129: 0 | AE129: ='B. Contact Tracing Strategies'!$F$12 -> 2021-01-01
T130: 126 | U130: =VLOOKUP(T130, 'Calc - Base'!H161:$I$400, 2) -> 2021-05-07 | V130: ='Calc - Base'!L161 -> 1643.863848 | W130: ='Calc - Likely, S1'!L161 -> 950.3549175 | X130: ='Calc - Likely, S2'!L161 -> 531.7797768 | Y130: ='Calc - Likely, S3'!L161 -> 0.01264113493 | Z130: 179992.7286 | AA130: 146992.9452 | AB130: 111621.2728 | AC130: 895451.5424 | AD130: 0 | AE130: ='B. Contact Tracing Strategies'!$F$12 -> 2021-01-01
T131: 127 | U131: =VLOOKUP(T131, 'Calc - Base'!H162:$I$400, 2) -> 2021-05-08 | V131: ='Calc - Base'!L162 -> 1627.992477 | W131: ='Calc - Likely, S1'!L162 -> 945.1013722 | X131: ='Calc - Likely, S2'!L162 -> 528.506772 | Y131: ='Calc - Likely, S3'!L162 -> 0.01055268869 | Z131: 181620.7211 | AA131: 147938.0466 | AB131: 112149.7796 | AC131: 895451.5529 | AD131: 0 | AE131: ='B. Contact Tracing Strategies'!$F$12 -> 2021-01-01
T132: 128 | U132: =VLOOKUP(T132, 'Calc - Base'!H163:$I$400, 2) -> 2021-05-09 | V132: ='Calc - Base'!L163 -> 1611.802354 | W132: ='Calc - Likely, S1'!L163 -> 939.7277701 | X132: ='Calc - Likely, S2'!L163 -> 525.2082084 | Y132: ='Calc - Likely, S3'!L163 -> 0.008809275324 | Z132: 183232.5235 | AA132: 148877.7744 | AB132: 112674.9878 | AC132: 895451.5617 | AD132: 0 | AE132: ='B. Contact Tracing Strategies'!$F$12 -> 2021-01-01
T133: 129 | U133: =VLOOKUP(T133, 'Calc - Base'!H164:$I$400, 2) -> 2021-05-10 | V133: ='Calc - Base'!L164 -> 1595.310378 | W133: ='Calc - Likely, S1'!L164 -> 934.2372756 | X133: ='Calc - Likely, S2'!L164 -> 521.8850909 | Y133: ='Calc - Likely, S3'!L164 -> 0.007353891854 | Z133: =Z132+V133 -> 184827.8338 | AA133: =AA132+W133 -> 149812.0116 | AB133: =AB132+X133 -> 113196.8729 | AC133: =AC132+Y133 -> 895451.5691 | AD133: =INDEX($T$4:$T$369, MATCH(AE133, $U$4:$U$369, 0)) -> 0 | AE133: ='B. Contact Tracing Strategies'!$F$12 -> 2021-01-01
T134: 130 | U134: =VLOOKUP(T134, 'Calc - Base'!H165:$I$400, 2) -> 2021-05-11 | V134: ='Calc - Base'!L165 -> 1578.533504 | W134: ='Calc - Likely, S1'!L165 -> 928.6330952 | X134: ='Calc - Likely, S2'!L165 -> 518.5384218 | Y134: ='Calc - Likely, S3'!L165 -> 0.006138952777 | Z134: 186406.3673 | AA134: 150740.6447 | AB134: 113715.4113 | AC134: 895451.5752 | AD134: 0 | AE134: ='B. Contact Tracing Strategies'!$F$12 -> 2021-01-01
T135: 131 | U135: =VLOOKUP(T135, 'Calc - Base'!H166:$I$400, 2) -> 2021-05-12 | V135: ='Calc - Base'!L166 -> 1561.488709 | W135: ='Calc - Likely, S1'!L166 -> 922.9184748 | X135: ='Calc - Likely, S2'!L166 -> 515.1691996 | Y135: ='Calc - Likely, S3'!L166 -> 0.005124734199 | Z135: 187967.8561 | AA135: 151663.5632 | AB135: 114230.5805 | AC135: 895451.5804 | AD135: 0 | AE135: ='B. Contact Tracing Strategies'!$F$12 -> 2021-01-01
T136: 132 | U136: =VLOOKUP(T136, 'Calc - Base'!H167:$I$400, 2) -> 2021-05-13 | V136: ='Calc - Base'!L167 -> 1544.19296 | W136: ='Calc - Likely, S1'!L167 -> 917.096695 | X136: ='Calc - Likely, S2'!L167 -> 511.7784192 | Y136: ='Calc - Likely, S3'!L167 -> 0.004278075024 | Z136: 189512.049 | AA136: 152580.6599 | AB136: 114742.3589 | AC136: 895451.5846 | AD136: 0 | AE136: ='B. Contact Tracing Strategies'!$F$12 -> 2021-01-01
T137: 133 | U137: =VLOOKUP(T137, 'Calc - Base'!H168:$I$400, 2) -> 2021-05-14 | V137: ='Calc - Base'!L168 -> 1526.66318 | W137: ='Calc - Likely, S1'!L168 -> 911.1710677 | X137: ='Calc - Likely, S2'!L168 -> 508.3670708 | Y137: ='Calc - Likely, S3'!L168 -> 0.003571292707 | Z137: 191038.7122 | AA137: 153491.831 | AB137: 115250.726 | AC137: 895451.5882 | AD137: 0 | AE137: ='B. Contact Tracing Strategies'!$F$12 -> 2021-01-01
T138: 134 | U138: =VLOOKUP(T138, 'Calc - Base'!H169:$I$400, 2) -> 2021-05-15 | V138: ='Calc - Base'!L169 -> 1508.916221 | W138: ='Calc - Likely, S1'!L169 -> 905.1449325 | X138: ='Calc - Likely, S2'!L169 -> 504.9361399 | Y138: ='Calc - Likely, S3'!L169 -> 0.002981278147 | Z138: 192547.6284 | AA138: 154396.9759 | AB138: 115755.6621 | AC138: 895451.5912 | AD138: 0 | AE138: ='B. Contact Tracing Strategies'!$F$12 -> 2021-01-01
T139: 135 | U139: =VLOOKUP(T139, 'Calc - Base'!H170:$I$400, 2) -> 2021-05-16 | V139: ='Calc - Base'!L170 -> 1490.968833 | W139: ='Calc - Likely, S1'!L170 -> 899.0216528 | X139: ='Calc - Likely, S2'!L170 -> 501.4866063 | Y139: ='Calc - Likely, S3'!L170 -> 0.002488740102 | Z139: 194038.5972 | AA139: 155295.9976 | AB139: 116257.1488 | AC139: 895451.5937 | AD139: 0 | AE139: ='B. Contact Tracing Strategies'!$F$12 -> 2021-01-01
T140: 136 | U140: =VLOOKUP(T140, 'Calc - Base'!H171:$I$400, 2) -> 2021-05-17 | V140: ='Calc - Base'!L171 -> 1472.837632 | W140: ='Calc - Likely, S1'!L171 -> 892.804612 | X140: ='Calc - Likely, S2'!L171 -> 498.019444 | Y140: ='Calc - Likely, S3'!L171 -> 0.002077574443 | Z140: 195511.4349 | AA140: 156188.8022 | AB140: 116755.1682 | AC140: 895451.5957 | AD140: 0 | AE140: ='B. Contact Tracing Strategies'!$F$12 -> 2021-01-01
T141: 137 | U141: =VLOOKUP(T141, 'Calc - Base'!H172:$I$400, 2) -> 2021-05-18 | V141: ='Calc - Base'!L172 -> 1454.53908 | W141: ='Calc - Likely, S1'!L172 -> 886.4972102 | X141: ='Calc - Likely, S2'!L172 -> 494.5356204 | Y141: ='Calc - Likely, S3'!L172 -> 0.001734337611 | Z141: 196965.974 | AA141: 157075.2994 | AB141: 117249.7038 | AC141: 895451.5975 | AD141: 0 | AE141: ='B. Contact Tracing Strategies'!$F$12 -> 2021-01-01
T142: 138 | U142: =VLOOKUP(T142, 'Calc - Base'!H173:$I$400, 2) -> 2021-05-19 | V142: ='Calc - Base'!L173 -> 1436.08945 | W142: ='Calc - Likely, S1'!L173 -> 880.1028602 | X142: ='Calc - Likely, S2'!L173 -> 491.0360963 | Y142: ='Calc - Likely, S3'!L173 -> 0.001447807061 | Z142: 198402.0634 | AA142: 157955.4022 | AB142: 117740.7399 | AC142: 895451.5989 | AD142: 0 | AE142: ='B. Contact Tracing Strategies'!$F$12 -> 2021-01-01
T143: 139 | U143: =VLOOKUP(T143, 'Calc - Base'!H174:$I$400, 2) -> 2021-05-20 | V143: ='Calc - Base'!L174 -> 1417.504811 | W143: ='Calc - Likely, S1'!L174 -> 873.6249841 | X143: ='Calc - Likely, S2'!L174 -> 487.521825 | Y143: ='Calc - Likely, S3'!L174 -> 0.001208614326 | Z143: 199819.5682 | AA143: 158829.0272 | AB143: 118228.2617 | AC143: 895451.6001 | AD143: 0 | AE143: ='B. Contact Tracing Strategies'!$F$12 -> 2021-01-01
T144: 140 | U144: =VLOOKUP(T144, 'Calc - Base'!H175:$I$400, 2) -> 2021-05-21 | V144: ='Calc - Base'!L175 -> 1398.800995 | W144: ='Calc - Likely, S1'!L175 -> 867.0670099 | X144: ='Calc - Likely, S2'!L175 -> 483.9937522 | Y144: ='Calc - Likely, S3'!L175 -> 0.00100893871 | Z144: 201218.3692 | AA144: 159696.0942 | AB144: 118712.2555 | AC144: 895451.6011 | AD144: 0 | AE144: ='B. Contact Tracing Strategies'!$F$12 -> 2021-01-01
T145: 141 | U145: =VLOOKUP(T145, 'Calc - Base'!H176:$I$400, 2) -> 2021-05-22 | V145: ='Calc - Base'!L176 -> 1379.993582 | W145: ='Calc - Likely, S1'!L176 -> 860.4323678 | X145: ='Calc - Likely, S2'!L176 -> 480.4528153 | Y145: ='Calc - Likely, S3'!L176 -> 0.0008422515753 | Z145: 202598.3628 | AA145: 160556.5266 | AB145: 119192.7083 | AC145: 895451.602 | AD145: 0 | AE145: ='B. Contact Tracing Strategies'!$F$12 -> 2021-01-01
T146: 142 | U146: =VLOOKUP(T146, 'Calc - Base'!H177:$I$400, 2) -> 2021-05-23 | V146: ='Calc - Base'!L177 -> 1361.097878 | W146: ='Calc - Likely, S1'!L177 -> 853.724487 | X146: ='Calc - Likely, S2'!L177 -> 476.8999434 | Y146: ='Calc - Likely, S3'!L177 -> 0.0007031028831 | Z146: 203959.4607 | AA146: 161410.2511 | AB146: 119669.6083 | AC146: 895451.6027 | AD146: 0 | AE146: ='B. Contact Tracing Strategies'!$F$12 -> 2021-01-01
T147: 143 | U147: =VLOOKUP(T147, 'Calc - Base'!H178:$I$400, 2) -> 2021-05-24 | V147: ='Calc - Base'!L178 -> 1342.128893 | W147: ='Calc - Likely, S1'!L178 -> 846.9467924 | X147: ='Calc - Likely, S2'!L178 -> 473.3360563 | Y147: ='Calc - Likely, S3'!L178 -> 0.0005869429972 | Z147: 205301.5896 | AA147: 162257.1979 | AB147: 120142.9443 | AC147: 895451.6033 | AD147: 0 | AE147: ='B. Contact Tracing Strategies'!$F$12 -> 2021-01-01
T148: 144 | U148: =VLOOKUP(T148, 'Calc - Base'!H179:$I$400, 2) -> 2021-05-25 | V148: ='Calc - Base'!L179 -> 1323.101325 | W148: ='Calc - Likely, S1'!L179 -> 840.1027012 | X148: ='Calc - Likely, S2'!L179 -> 469.7620649 | Y148: ='Calc - Likely, S3'!L179 -> 0.0004899739287 | Z148: 206624.6909 | AA148: 163097.3006 | AB148: 120612.7064 | AC148: 895451.6038 | AD148: 0 | AE148: ='B. Contact Tracing Strategies'!$F$12 -> 2021-01-01
T149: 145 | U149: =VLOOKUP(T149, 'Calc - Base'!H180:$I$400, 2) -> 2021-05-26 | V149: ='Calc - Base'!L180 -> 1304.029546 | W149: ='Calc - Likely, S1'!L180 -> 833.1956198 | X149: ='Calc - Likely, S2'!L180 -> 466.1788702 | Y149: ='Calc - Likely, S3'!L180 -> 0.0004090251555 | Z149: 207928.7204 | AA149: 163930.4962 | AB149: 121078.8852 | AC149: 895451.6042 | AD149: 0 | AE149: ='B. Contact Tracing Strategies'!$F$12 -> 2021-01-01
T150: 146 | U150: =VLOOKUP(T150, 'Calc - Base'!H181:$I$400, 2) -> 2021-05-27 | V150: ='Calc - Base'!L181 -> 1284.927583 | W150: ='Calc - Likely, S1'!L181 -> 826.2289408 | X150: ='Calc - Likely, S2'!L181 -> 462.5873635 | Y150: ='Calc - Likely, S3'!L181 -> 0.0003414499589 | Z150: 209213.648 | AA150: 164756.7251 | AB150: 121541.4726 | AC150: 895451.6045 | AD150: 0 | AE150: ='B. Contact Tracing Strategies'!$F$12 -> 2021-01-01
T151: 147 | U151: =VLOOKUP(T151, 'Calc - Base'!H182:$I$400, 2) -> 2021-05-28 | V151: ='Calc - Base'!L182 -> 1265.809107 | W151: ='Calc - Likely, S1'!L182 -> 819.2060401 | X151: ='Calc - Likely, S2'!L182 -> 458.9884254 | Y151: ='Calc - Likely, S3'!L182 -> 0.0002850388854 | Z151: 210479.4571 | AA151: 165575.9312 | AB151: 122000.461 | AC151: 895451.6048 | AD151: 0 | AE151: ='B. Contact Tracing Strategies'!$F$12 -> 2021-01-01
T152: 148 | U152: =VLOOKUP(T152, 'Calc - Base'!H183:$I$400, 2) -> 2021-05-29 | V152: ='Calc - Base'!L183 -> 1246.68742 | W152: ='Calc - Likely, S1'!L183 -> 812.1302734 | X152: ='Calc - Likely, S2'!L183 -> 455.3829261 | Y152: ='Calc - Likely, S3'!L183 -> 0.0002379475061 | Z152: 211726.1445 | AA152: 166388.0615 | AB152: 122455.844 | AC152: 895451.605 | AD152: 0 | AE152: ='B. Contact Tracing Strategies'!$F$12 -> 2021-01-01
T153: 149 | U153: =VLOOKUP(T153, 'Calc - Base'!H184:$I$400, 2) -> 2021-05-30 | V153: ='Calc - Base'!L184 -> 1227.575444 | W153: ='Calc - Likely, S1'!L184 -> 805.0049741 | X153: ='Calc - Likely, S2'!L184 -> 451.7717251 | Y153: ='Calc - Likely, S3'!L184 -> 0.0001986361109 | Z153: 212953.72 | AA153: 167193.0664 | AB153: 122907.6157 | AC153: 895451.6052 | AD153: 0 | AE153: ='B. Contact Tracing Strategies'!$F$12 -> 2021-01-01
T154: 150 | U154: =VLOOKUP(T154, 'Calc - Base'!H185:$I$400, 2) -> 2021-05-31 | V154: ='Calc - Base'!L185 -> 1208.485712 | W154: ='Calc - Likely, S1'!L185 -> 797.8334504 | X154: ='Calc - Likely, S2'!L185 -> 448.1556703 | Y154: ='Calc - Likely, S3'!L185 -> 0.0001658193658 | Z154: 214162.2057 | AA154: 167990.8999 | AB154: 123355.7714 | AC154: 895451.6054 | AD154: 0 | AE154: ='B. Contact Tracing Strategies'!$F$12 -> 2021-01-01
T155: 151 | U155: =VLOOKUP(T155, 'Calc - Base'!H186:$I$400, 2) -> 2021-06-01 | V155: ='Calc - Base'!L186 -> 1189.430362 | W155: ='Calc - Likely, S1'!L186 -> 790.6189823 | X155: ='Calc - Likely, S2'!L186 -> 444.5355983 | Y155: ='Calc - Likely, S3'!L186 -> 0.0001384242872 | Z155: 215351.6361 | AA155: 168781.5189 | AB155: 123800.307 | AC155: 895451.6055 | AD155: 0 | AE155: ='B. Contact Tracing Strategies'!$F$12 -> 2021-01-01
T156: 152 | U156: =VLOOKUP(T156, 'Calc - Base'!H187:$I$400, 2) -> 2021-06-02 | V156: ='Calc - Base'!L187 -> 1170.421126 | W156: ='Calc - Likely, S1'!L187 -> 783.3648194 | X156: ='Calc - Likely, S2'!L187 -> 440.9123343 | Y156: ='Calc - Likely, S3'!L187 -> 0.0001155551596 | Z156: 216522.0572 | AA156: 169564.8837 | AB156: 124241.2193 | AC156: 895451.6057 | AD156: 0 | AE156: ='B. Contact Tracing Strategies'!$F$12 -> 2021-01-01
T157: 153 | U157: =VLOOKUP(T157, 'Calc - Base'!H188:$I$400, 2) -> 2021-06-03 | V157: ='Calc - Base'!L188 -> 1151.469327 | W157: ='Calc - Likely, S1'!L188 -> 776.0741784 | X157: ='Calc - Likely, S2'!L188 -> 437.286691 | Y157: ='Calc - Likely, S3'!L188 -> 9.646424908e-05 | Z157: 217673.5265 | AA157: 170340.9579 | AB157: 124678.506 | AC157: 895451.6058 | AD157: 0 | AE157: ='B. Contact Tracing Strategies'!$F$12 -> 2021-01-01
T158: 154 | U158: =VLOOKUP(T158, 'Calc - Base'!H189:$I$400, 2) -> 2021-06-04 | V158: ='Calc - Base'!L189 -> 1132.585873 | W158: ='Calc - Likely, S1'!L189 -> 768.7502409 | X158: ='Calc - Likely, S2'!L189 -> 433.6594695 | Y158: ='Calc - Likely, S3'!L189 -> 8.05273549e-05 | Z158: 218806.1124 | AA158: 171109.7081 | AB158: 125112.1654 | AC158: 895451.6058 | AD158: 0 | AE158: ='B. Contact Tracing Strategies'!$F$12 -> 2021-01-01
T159: 155 | U159: =VLOOKUP(T159, 'Calc - Base'!H190:$I$400, 2) -> 2021-06-05 | V159: ='Calc - Base'!L190 -> 1113.781258 | W159: ='Calc - Likely, S1'!L190 -> 761.3961508 | X159: ='Calc - Likely, S2'!L190 -> 430.0314581 | Y159: ='Calc - Likely, S3'!L190 -> 6.722340088e-05 | Z159: 219919.8937 | AA159: 171871.1043 | AB159: 125542.1969 | AC159: 895451.6059 | AD159: 0 | AE159: ='B. Contact Tracing Strategies'!$F$12 -> 2021-01-01
T160: 156 | U160: =VLOOKUP(T160, 'Calc - Base'!H191:$I$400, 2) -> 2021-06-06 | V160: ='Calc - Base'!L191 -> 1095.065553 | W160: ='Calc - Likely, S1'!L191 -> 754.0150127 | X160: ='Calc - Likely, S2'!L191 -> 426.4034327 | Y160: ='Calc - Likely, S3'!L191 -> 5.611739802e-05 | Z160: 221014.9592 | AA160: 172625.1193 | AB160: 125968.6003 | AC160: 895451.606 | AD160: 0 | AE160: ='B. Contact Tracing Strategies'!$F$12 -> 2021-01-01
T161: 157 | U161: =VLOOKUP(T161, 'Calc - Base'!H192:$I$400, 2) -> 2021-06-07 | V161: ='Calc - Base'!L192 -> 1076.448413 | W161: ='Calc - Likely, S1'!L192 -> 746.6098893 | X161: ='Calc - Likely, S2'!L192 -> 422.7761566 | Y161: ='Calc - Likely, S3'!L192 -> 4.684622198e-05 | Z161: 222091.4076 | AA161: 173371.7292 | AB161: 126391.3765 | AC161: 895451.606 | AD161: 0 | AE161: ='B. Contact Tracing Strategies'!$F$12 -> 2021-01-01
T162: 158 | U162: =VLOOKUP(T162, 'Calc - Base'!H193:$I$400, 2) -> 2021-06-08 | V162: ='Calc - Base'!L193 -> 1057.93907 | W162: ='Calc - Likely, S1'!L193 -> 739.1838001 | X162: ='Calc - Likely, S2'!L193 -> 419.1503799 | Y162: ='Calc - Likely, S3'!L193 -> 3.910674036e-05 | Z162: 223149.3467 | AA162: 174110.913 | AB162: 126810.5269 | AC162: 895451.606 | AD162: 0 | AE162: ='B. Contact Tracing Strategies'!$F$12 -> 2021-01-01
T163: 159 | U163: =VLOOKUP(T163, 'Calc - Base'!H194:$I$400, 2) -> 2021-06-09 | V163: ='Calc - Base'!L194 -> 1039.546336 | W163: ='Calc - Likely, S1'!L194 -> 731.7397192 | X163: ='Calc - Likely, S2'!L194 -> 415.5268399 | Y163: ='Calc - Likely, S3'!L194 -> 3.264590135e-05 | Z163: 224188.893 | AA163: 174842.6527 | AB163: 127226.0537 | AC163: 895451.6061 | AD163: 0 | AE163: ='B. Contact Tracing Strategies'!$F$12 -> 2021-01-01
T164: 160 | U164: =VLOOKUP(T164, 'Calc - Base'!H195:$I$400, 2) -> 2021-06-10 | V164: ='Calc - Base'!L195 -> 1021.278609 | W164: ='Calc - Likely, S1'!L195 -> 724.2805736 | X164: ='Calc - Likely, S2'!L195 -> 411.9062607 | Y164: ='Calc - Likely, S3'!L195 -> 2.725245994e-05 | Z164: 225210.1716 | AA164: 175566.9333 | AB164: 127637.96 | AC164: 895451.6061 | AD164: 0 | AE164: ='B. Contact Tracing Strategies'!$F$12 -> 2021-01-01
T165: 161 | U165: =VLOOKUP(T165, 'Calc - Base'!H196:$I$400, 2) -> 2021-06-11 | V165: ='Calc - Base'!L196 -> 1003.143868 | W165: ='Calc - Likely, S1'!L196 -> 716.8092419 | X165: ='Calc - Likely, S2'!L196 -> 408.2893527 | Y165: ='Calc - Likely, S3'!L196 -> 2.275007097e-05 | Z165: 226213.3155 | AA165: 176283.7425 | AB165: 128046.2493 | AC165: 895451.6061 | AD165: 0 | AE165: ='B. Contact Tracing Strategies'!$F$12 -> 2021-01-01
T166: 162 | U166: =VLOOKUP(T166, 'Calc - Base'!H197:$I$400, 2) -> 2021-06-12 | V166: ='Calc - Base'!L197 -> 985.1496861 | W166: ='Calc - Likely, S1'!L197 -> 709.3285524 | X166: ='Calc - Likely, S2'!L197 -> 404.6768134 | Y166: ='Calc - Likely, S3'!L197 -> 1.899152335e-05 | Z166: 227198.4652 | AA166: 176993.071 | AB166: 128450.9261 | AC166: 895451.6061 | AD166: 0 | AE166: ='B. Contact Tracing Strategies'!$F$12 -> 2021-01-01
T167: 163 | U167: =VLOOKUP(T167, 'Calc - Base'!H198:$I$400, 2) -> 2021-06-13 | V167: ='Calc - Base'!L198 -> 967.3032251 | W167: ='Calc - Likely, S1'!L198 -> 701.8412822 | X167: ='Calc - Likely, S2'!L198 -> 401.0693263 | Y167: ='Calc - Likely, S3'!L198 -> 1.585392677e-05 | Z167: 228165.7684 | AA167: 177694.9123 | AB167: 128851.9955 | AC167: 895451.6062 | AD167: 0 | AE167: ='B. Contact Tracing Strategies'!$F$12 -> 2021-01-01
T168: 164 | U168: =VLOOKUP(T168, 'Calc - Base'!H199:$I$400, 2) -> 2021-06-14 | V168: ='Calc - Base'!L199 -> 949.6112471 | W168: ='Calc - Likely, S1'!L199 -> 694.3501554 | X168: ='Calc - Likely, S2'!L199 -> 397.4675617 | Y168: ='Calc - Likely, S3'!L199 -> 1.323469367e-05 | Z168: 229115.3797 | AA168: 178389.2625 | AB168: 129249.463 | AC168: 895451.6062 | AD168: 0 | AE168: ='B. Contact Tracing Strategies'!$F$12 -> 2021-01-01
T169: 165 | U169: =VLOOKUP(T169, 'Calc - Base'!H200:$I$400, 2) -> 2021-06-15 | V169: ='Calc - Base'!L200 -> 932.080118 | W169: ='Calc - Likely, S1'!L200 -> 686.8578424 | X169: ='Calc - Likely, S2'!L200 -> 393.8721758 | Y169: ='Calc - Likely, S3'!L200 -> 1.104818505e-05 | Z169: 230047.4598 | AA169: 179076.1203 | AB169: 129643.3352 | AC169: 895451.6062 | AD169: 0 | AE169: ='B. Contact Tracing Strategies'!$F$12 -> 2021-01-01
T170: 166 | U170: =VLOOKUP(T170, 'Calc - Base'!H201:$I$400, 2) -> 2021-06-16 | V170: ='Calc - Base'!L201 -> 914.7158135 | W170: ='Calc - Likely, S1'!L201 -> 679.3669585 | X170: ='Calc - Likely, S2'!L201 -> 390.2838113 | Y170: ='Calc - Likely, S3'!L201 -> 9.222910317e-06 | Z170: 230962.1756 | AA170: 179755.4873 | AB170: 130033.619 | AC170: 895451.6062 | AD170: 0 | AE170: ='B. Contact Tracing Strategies'!$F$12 -> 2021-01-01
T171: 167 | U171: =VLOOKUP(T171, 'Calc - Base'!H202:$I$400, 2) -> 2021-06-17 | V171: ='Calc - Base'!L202 -> 897.5239266 | W171: ='Calc - Likely, S1'!L202 -> 671.8800631 | X171: ='Calc - Likely, S2'!L202 -> 386.7030969 | Y171: ='Calc - Likely, S3'!L202 -> 7.699189899e-06 | Z171: 231859.6995 | AA171: 180427.3673 | AB171: 130420.3221 | AC171: 895451.6062 | AD171: 0 | AE171: ='B. Contact Tracing Strategies'!$F$12 -> 2021-01-01
T172: 168 | U172: =VLOOKUP(T172, 'Calc - Base'!H203:$I$400, 2) -> 2021-06-18 | V172: ='Calc - Base'!L203 -> 880.5096746 | W172: ='Calc - Likely, S1'!L203 -> 664.3996587 | X172: ='Calc - Likely, S2'!L203 -> 383.1306476 | Y172: ='Calc - Likely, S3'!L203 -> 6.427203894e-06 | Z172: 232740.2092 | AA172: 181091.767 | AB172: 130803.4528 | AC172: 895451.6062 | AD172: 0 | AE172: ='B. Contact Tracing Strategies'!$F$12 -> 2021-01-01
T173: 169 | U173: =VLOOKUP(T173, 'Calc - Base'!H204:$I$400, 2) -> 2021-06-19 | V173: ='Calc - Base'!L204 -> 863.6779068 | W173: ='Calc - Likely, S1'!L204 -> 656.9281902 | X173: ='Calc - Likely, S2'!L204 -> 379.5670645 | Y173: ='Calc - Likely, S3'!L204 -> 5.365363166e-06 | Z173: 233603.8871 | AA173: 181748.6952 | AB173: 131183.0198 | AC173: 895451.6062 | AD173: 0 | AE173: ='B. Contact Tracing Strategies'!$F$12 -> 2021-01-01
T174: 170 | U174: =VLOOKUP(T174, 'Calc - Base'!H205:$I$400, 2) -> 2021-06-20 | V174: ='Calc - Base'!L205 -> 847.0331128 | W174: ='Calc - Likely, S1'!L205 -> 649.4680442 | X174: ='Calc - Likely, S2'!L205 -> 376.0129348 | Y174: ='Calc - Likely, S3'!L205 -> 4.478949537e-06 | Z174: 234450.9202 | AA174: 182398.1632 | AB174: 131559.0328 | AC174: 895451.6062 | AD174: 0 | AE174: ='B. Contact Tracing Strategies'!$F$12 -> 2021-01-01
T175: 171 | U175: =VLOOKUP(T175, 'Calc - Base'!H206:$I$400, 2) -> 2021-06-21 | V175: ='Calc - Base'!L206 -> 830.5794313 | W175: ='Calc - Likely, S1'!L206 -> 642.0215483 | X175: ='Calc - Likely, S2'!L206 -> 372.4688316 | Y175: ='Calc - Likely, S3'!L206 -> 3.73898063e-06 | Z175: 235281.4996 | AA175: 183040.1848 | AB175: 131931.5016 | AC175: 895451.6062 | AD175: 0 | AE175: ='B. Contact Tracing Strategies'!$F$12 -> 2021-01-01
T176: 172 | U176: =VLOOKUP(T176, 'Calc - Base'!H207:$I$400, 2) -> 2021-06-22 | V176: ='Calc - Base'!L207 -> 814.3206585 | W176: ='Calc - Likely, S1'!L207 -> 634.5909709 | X176: ='Calc - Likely, S2'!L207 -> 368.9353143 | Y176: ='Calc - Likely, S3'!L207 -> 3.12126226e-06 | Z176: 236095.8203 | AA176: 183674.7758 | AB176: 132300.4369 | AC176: 895451.6062 | AD176: 0 | AE176: ='B. Contact Tracing Strategies'!$F$12 -> 2021-01-01
T177: 173 | U177: =VLOOKUP(T177, 'Calc - Base'!H208:$I$400, 2) -> 2021-06-23 | V177: ='Calc - Base'!L208 -> 798.2602574 | W177: ='Calc - Likely, S1'!L208 -> 627.1785204 | X177: ='Calc - Likely, S2'!L208 -> 365.4129283 | Y177: ='Calc - Likely, S3'!L208 -> 2.60559737e-06 | Z177: 236894.0806 | AA177: 184301.9543 | AB177: 132665.8498 | AC177: 895451.6062 | AD177: 0 | AE177: ='B. Contact Tracing Strategies'!$F$12 -> 2021-01-01
T178: 174 | U178: =VLOOKUP(T178, 'Calc - Base'!H209:$I$400, 2) -> 2021-06-24 | V178: ='Calc - Base'!L209 -> 782.4013676 | W178: ='Calc - Likely, S1'!L209 -> 619.7863451 | X178: ='Calc - Likely, S2'!L209 -> 361.9022053 | Y178: ='Calc - Likely, S3'!L209 -> 2.175125667e-06 | Z178: 237676.4819 | AA178: 184921.7406 | AB178: 133027.752 | AC178: 895451.6062 | AD178: 0 | AE178: ='B. Contact Tracing Strategies'!$F$12 -> 2021-01-01
T179: 175 | U179: =VLOOKUP(T179, 'Calc - Base'!H210:$I$400, 2) -> 2021-06-25 | V179: ='Calc - Base'!L210 -> 766.7468141 | W179: ='Calc - Likely, S1'!L210 -> 612.4165327 | X179: ='Calc - Likely, S2'!L210 -> 358.4036629 | Y179: ='Calc - Likely, S3'!L210 -> 1.815772352e-06 | Z179: 238443.2287 | AA179: 185534.1572 | AB179: 133386.1557 | AC179: 895451.6062 | AD179: 0 | AE179: ='B. Contact Tracing Strategies'!$F$12 -> 2021-01-01
T180: 176 | U180: =VLOOKUP(T180, 'Calc - Base'!H211:$I$400, 2) -> 2021-06-26 | V180: ='Calc - Base'!L211 -> 751.2991177 | W180: ='Calc - Likely, S1'!L211 -> 605.0711107 | X180: ='Calc - Likely, S2'!L211 -> 354.917805 | Y180: ='Calc - Likely, S3'!L211 -> 1.515787932e-06 | Z180: 239194.5279 | AA180: 186139.2283 | AB180: 133741.0735 | AC180: 895451.6062 | AD180: 0 | AE180: ='B. Contact Tracing Strategies'!$F$12 -> 2021-01-01
T181: 177 | U181: =VLOOKUP(T181, 'Calc - Base'!H212:$I$400, 2) -> 2021-06-27 | V181: ='Calc - Base'!L212 -> 736.0605045 | W181: ='Calc - Likely, S1'!L212 -> 597.7520455 | X181: ='Calc - Likely, S2'!L212 -> 351.4451218 | Y181: ='Calc - Likely, S3'!L212 -> 1.265364048e-06 | Z181: 239930.5884 | AA181: 186736.9803 | AB181: 134092.5186 | AC181: 895451.6062 | AD181: 0 | AE181: ='B. Contact Tracing Strategies'!$F$12 -> 2021-01-01
T182: 178 | U182: =VLOOKUP(T182, 'Calc - Base'!H213:$I$400, 2) -> 2021-06-28 | V182: ='Calc - Base'!L213 -> 721.0329159 | W182: ='Calc - Likely, S1'!L213 -> 590.4612432 | X182: ='Calc - Likely, S2'!L213 -> 347.9860899 | Y182: ='Calc - Likely, S3'!L213 -> 1.056312786e-06 | Z182: 240651.6213 | AA182: 187327.4416 | AB182: 134440.5047 | AC182: 895451.6062 | AD182: 0 | AE182: ='B. Contact Tracing Strategies'!$F$12 -> 2021-01-01
T183: 179 | U183: =VLOOKUP(T183, 'Calc - Base'!H214:$I$400, 2) -> 2021-06-29 | V183: ='Calc - Base'!L214 -> 706.2180188 | W183: ='Calc - Likely, S1'!L214 -> 583.200549 | X183: ='Calc - Likely, S2'!L214 -> 344.5411719 | Y183: ='Calc - Likely, S3'!L214 -> 8.81798961e-07 | Z183: 241357.8393 | AA183: 187910.6421 | AB183: 134785.0459 | AC183: 895451.6062 | AD183: 0 | AE183: ='B. Contact Tracing Strategies'!$F$12 -> 2021-01-01
T184: 180 | U184: =VLOOKUP(T184, 'Calc - Base'!H215:$I$400, 2) -> 2021-06-30 | V184: ='Calc - Base'!L215 -> 691.6172152 | W184: ='Calc - Likely, S1'!L215 -> 575.9717477 | X184: ='Calc - Likely, S2'!L215 -> 341.1108173 | Y184: ='Calc - Likely, S3'!L215 -> 7.361166292e-07 | Z184: 242049.4565 | AA184: 188486.6139 | AB184: 135126.1567 | AC184: 895451.6062 | AD184: 0 | AE184: ='B. Contact Tracing Strategies'!$F$12 -> 2021-01-01
T185: 181 | U185: =VLOOKUP(T185, 'Calc - Base'!H216:$I$400, 2) -> 2021-07-01 | V185: ='Calc - Base'!L216 -> 677.2316527 | W185: ='Calc - Likely, S1'!L216 -> 568.7765639 | X185: ='Calc - Likely, S2'!L216 -> 337.6954619 | Y185: ='Calc - Likely, S3'!L216 -> 6.145025291e-07 | Z185: 242726.6882 | AA185: 189055.3904 | AB185: 135463.8522 | AC185: 895451.6062 | AD185: 0 | AE185: ='B. Contact Tracing Strategies'!$F$12 -> 2021-01-01
T186: 182 | U186: =VLOOKUP(T186, 'Calc - Base'!H217:$I$400, 2) -> 2021-07-02 | V186: ='Calc - Base'!L217 -> 663.062234 | W186: ='Calc - Likely, S1'!L217 -> 561.6166619 | X186: ='Calc - Likely, S2'!L217 -> 334.295528 | Y186: ='Calc - Likely, S3'!L217 -> 5.129803394e-07 | Z186: 243389.7504 | AA186: 189617.0071 | AB186: 135798.1477 | AC186: 895451.6062 | AD186: 0 | AE186: ='B. Contact Tracing Strategies'!$F$12 -> 2021-01-01
T187: 183 | U187: =VLOOKUP(T187, 'Calc - Base'!H218:$I$400, 2) -> 2021-07-03 | V187: ='Calc - Base'!L218 -> 649.1096272 | W187: ='Calc - Likely, S1'!L218 -> 554.4936464 | X187: ='Calc - Likely, S2'!L218 -> 330.9114249 | Y187: ='Calc - Likely, S3'!L218 -> 4.282306682e-07 | Z187: 244038.86 | AA187: 190171.5007 | AB187: 136129.0591 | AC187: 895451.6062 | AD187: 0 | AE187: ='B. Contact Tracing Strategies'!$F$12 -> 2021-01-01
T188: 184 | U188: =VLOOKUP(T188, 'Calc - Base'!H219:$I$400, 2) -> 2021-07-04 | V188: ='Calc - Base'!L219 -> 635.3742757 | W188: ='Calc - Likely, S1'!L219 -> 547.409063 | X188: ='Calc - Likely, S2'!L219 -> 327.5435484 | Y188: ='Calc - Likely, S3'!L219 -> 3.574825214e-07 | Z188: 244674.2343 | AA188: 190718.9098 | AB188: 136456.6027 | AC188: 895451.6062 | AD188: 0 | AE188: ='B. Contact Tracing Strategies'!$F$12 -> 2021-01-01
T189: 185 | U189: =VLOOKUP(T189, 'Calc - Base'!H220:$I$400, 2) -> 2021-07-05 | V189: ='Calc - Base'!L220 -> 621.8564076 | W189: ='Calc - Likely, S1'!L220 -> 540.3643979 | X189: ='Calc - Likely, S2'!L220 -> 324.1922816 | Y189: ='Calc - Likely, S3'!L220 -> 2.984227021e-07 | Z189: 245296.0907 | AA189: 191259.2742 | AB189: 136780.795 | AC189: 895451.6062 | AD189: 0 | AE189: ='B. Contact Tracing Strategies'!$F$12 -> 2021-01-01
T190: 186 | U190: =VLOOKUP(T190, 'Calc - Base'!H221:$I$400, 2) -> 2021-07-06 | V190: ='Calc - Base'!L221 -> 608.5560458 | W190: ='Calc - Likely, S1'!L221 -> 533.3610793 | X190: ='Calc - Likely, S2'!L221 -> 320.8579943 | Y190: ='Calc - Likely, S3'!L221 -> 2.491201773e-07 | Z190: 245904.6468 | AA190: 191792.6353 | AB190: 137101.6529 | AC190: 895451.6062 | AD190: 0 | AE190: ='B. Contact Tracing Strategies'!$F$12 -> 2021-01-01
T191: 187 | U191: =VLOOKUP(T191, 'Calc - Base'!H222:$I$400, 2) -> 2021-07-07 | V191: ='Calc - Base'!L222 -> 595.4730173 | W191: ='Calc - Likely, S1'!L222 -> 526.4004773 | X191: ='Calc - Likely, S2'!L222 -> 317.5410436 | Y191: ='Calc - Likely, S3'!L222 -> 2.079629408e-07 | Z191: 246500.1198 | AA191: 192319.0357 | AB191: 137419.194 | AC191: 895451.6062 | AD191: 0 | AE191: ='B. Contact Tracing Strategies'!$F$12 -> 2021-01-01
T192: 188 | U192: =VLOOKUP(T192, 'Calc - Base'!H223:$I$400, 2) -> 2021-07-08 | V192: ='Calc - Base'!L223 -> 582.6069624 | W192: ='Calc - Likely, S1'!L223 -> 519.4839048 | X192: ='Calc - Likely, S2'!L223 -> 314.2417738 | Y192: ='Calc - Likely, S3'!L223 -> 1.736053066e-07 | Z192: 247082.7267 | AA192: 192838.5196 | AB192: 137733.4358 | AC192: 895451.6062 | AD192: 0 | AE192: ='B. Contact Tracing Strategies'!$F$12 -> 2021-01-01
T193: 189 | U193: =VLOOKUP(T193, 'Calc - Base'!H224:$I$400, 2) -> 2021-07-09 | V193: ='Calc - Base'!L224 -> 569.9573445 | W193: ='Calc - Likely, S1'!L224 -> 512.6126181 | X193: ='Calc - Likely, S2'!L224 -> 310.9605168 | Y193: ='Calc - Likely, S3'!L224 -> 1.449239098e-07 | Z193: 247652.6841 | AA193: 193351.1323 | AB193: 138044.3963 | AC193: 895451.6062 | AD193: 0 | AE193: ='B. Contact Tracing Strategies'!$F$12 -> 2021-01-01
T194: 190 | U194: =VLOOKUP(T194, 'Calc - Base'!H225:$I$400, 2) -> 2021-07-10 | V194: ='Calc - Base'!L225 -> 557.5234583 | W194: ='Calc - Likely, S1'!L225 -> 505.7878172 | X194: ='Calc - Likely, S2'!L225 -> 307.697592 | Y194: ='Calc - Likely, S3'!L225 -> 1.209809772e-07 | Z194: 248210.2075 | AA194: 193856.9201 | AB194: 138352.0939 | AC194: 895451.6062 | AD194: 0 | AE194: ='B. Contact Tracing Strategies'!$F$12 -> 2021-01-01
T195: 191 | U195: =VLOOKUP(T195, 'Calc - Base'!H226:$I$400, 2) -> 2021-07-11 | V195: ='Calc - Base'!L226 -> 545.3044395 | W195: ='Calc - Likely, S1'!L226 -> 499.0106472 | X195: ='Calc - Likely, S2'!L226 -> 304.4533063 | Y195: ='Calc - Likely, S3'!L226 -> 1.009936653e-07 | Z195: 248755.512 | AA195: 194355.9307 | AB195: 138656.5472 | AC195: 895451.6062 | AD195: 0 | AE195: ='B. Contact Tracing Strategies'!$F$12 -> 2021-01-01
T196: 192 | U196: =VLOOKUP(T196, 'Calc - Base'!H227:$I$400, 2) -> 2021-07-12 | V196: ='Calc - Base'!L227 -> 533.299273 | W196: ='Calc - Likely, S1'!L227 -> 492.2821984 | X196: ='Calc - Likely, S2'!L227 -> 301.2279546 | Y196: ='Calc - Likely, S3'!L227 -> 8.430846456e-08 | Z196: 249288.8113 | AA196: 194848.2129 | AB196: 138957.7751 | AC196: 895451.6062 | AD196: 0 | AE196: ='B. Contact Tracing Strategies'!$F$12 -> 2021-01-01
T197: 193 | U197: =VLOOKUP(T197, 'Calc - Base'!H228:$I$400, 2) -> 2021-07-13 | V197: ='Calc - Base'!L228 -> 521.5068014 | W197: ='Calc - Likely, S1'!L228 -> 485.6035076 | X197: ='Calc - Likely, S2'!L228 -> 298.0218199 | Y197: ='Calc - Likely, S3'!L228 -> 7.0379832e-08 | Z197: =Z196+V197 -> 249810.3181 | AA197: =AA196+W197 -> 195333.8164 | AB197: =AB196+X197 -> 139255.797 | AC197: =AC196+Y197 -> 895451.6062 | AD197: =INDEX($T$4:$T$369, MATCH(AE197, $U$4:$U$369, 0)) -> 0 | AE197: ='B. Contact Tracing Strategies'!$F$12 -> 2021-01-01
T198: 194 | U198: =VLOOKUP(T198, 'Calc - Base'!H229:$I$400, 2) -> 2021-07-14 | V198: ='Calc - Base'!L229 -> 509.9257335 | W198: ='Calc - Likely, S1'!L229 -> 478.9755586 | X198: ='Calc - Likely, S2'!L229 -> 294.8351731 | Y198: ='Calc - Likely, S3'!L229 -> 5.875235398e-08 | Z198: 250320.2438 | AA198: 195812.792 | AB198: 139550.6321 | AC198: 895451.6062 | AD198: 0 | AE198: ='B. Contact Tracing Strategies'!$F$12 -> 2021-01-01
T199: 195 | U199: =VLOOKUP(T199, 'Calc - Base'!H230:$I$400, 2) -> 2021-07-15 | V199: ='Calc - Base'!L230 -> 498.5546519 | W199: ='Calc - Likely, S1'!L230 -> 472.399283 | X199: ='Calc - Likely, S2'!L230 -> 291.6682736 | Y199: ='Calc - Likely, S3'!L230 -> 4.904585589e-08 | Z199: 250818.7984 | AA199: 196285.1913 | AB199: 139842.3004 | AC199: 895451.6062 | AD199: 0 | AE199: ='B. Contact Tracing Strategies'!$F$12 -> 2021-01-01
T200: 196 | U200: =VLOOKUP(T200, 'Calc - Base'!H231:$I$400, 2) -> 2021-07-16 | V200: ='Calc - Base'!L231 -> 487.3920214 | W200: ='Calc - Likely, S1'!L231 -> 465.8755612 | X200: ='Calc - Likely, S2'!L231 -> 288.5213691 | Y200: ='Calc - Likely, S3'!L231 -> 4.094297193e-08 | Z200: 251306.1905 | AA200: 196751.0668 | AB200: 140130.8218 | AC200: 895451.6062 | AD200: 0 | AE200: ='B. Contact Tracing Strategies'!$F$12 -> 2021-01-01
... 169 more rows

Sheet A. Outbreak Details
BE5: Yes | BF5: Daily case counts are rapidly increasing
BE6: No | BF6: Daily case counts are slowly increasing
BF7: Daily case counts have plateaued
BF8: Daily case counts are slowly decreasing
B9: Step 1: | C9: Enter the population of your jurisdiction | BF9: Daily case counts are rapidly decreasing
C10: Total Population | F10: 1000000 | G10: persons | BF10: Manually enter % effectiveness
B12: Step 2: | C12: Enter information about case counts in your jurisdiction
C13: Start Date | F13: 2021-01-01 | H13: =F13-1 -> 2020-12-31 | I13: =F13-14 -> 2020-12-18
C14: ="Total Cases as of " &TEXT(MONTH(H13),"##") & "/" &TEXT(DAY(H13),"##") & "/" &TEXT(YEAR(H13),"####") -> Total Cases as of 12/31/2020 | F14: 35000 | G14: cases
C15: ="Cases in the last 14 days (from " &TEXT(MONTH(I13),"##") & "/" &TEXT(DAY(I13),"##") & "/" &TEXT(YEAR(I13),"####") & " to " &TEXT(MONTH(H13),"##") & "/" &TEXT(DAY(H13),"##") & "/" &TEXT(YEAR(H13),"####") & ")" -> Cases in the last 14 days (from 12/18/2020 to 12/31/2020) | F15: 5000 | G15: cases
C16: Note: These data inputs will only create curves for the purpose of calculating resources needs. They are not intended as, nor should be intepreted as, forecasts of future cases
B18: Step3: | C18: Enter estimates about the effectiveness of community interventions implemented through the present date
C19: Are community interventions currently in place? | F19: Yes
C20: Will community interventions begin before initiating contact tracing? | F20: Yes
C21: Date community interventions will begin in jurisdiction | F21: 2020-10-10 | G21: =IF(F19="Yes", $F$13, IF(F20="No", 'B. Contact Tracing Strategies'!$F$12, F21)) -> 2021-01-01
C22: Pattern of change in daily case counts over the last 14 days | F22: Daily case counts are slowly increasing | G22: 0 | H22: =IF(F22=BF10, G22, IF(F22=BF5, 'Initial Case Distribution'!H70, IF(F22=BF6, 'Initial Case Distribution'!H71, IF(F22=BF7, 'Initial Case Distribution'!H72, IF(F22=BF8, 'Initial Case Distribution'!H73, 'Initial Case Distribution'!H74))))) -> 0.52
B24: Step 4: | C24: (OPTIONAL/ADVANCED) Epidemiologic Parameters
C25: ^It is recommended that the default parameters be used, however, if the user understands the implications for results, changes can be made below.
E26: Allows the user to modify the parameters that inform the modeled estimates of future cases.

Sheet Data (hidden)
A1: Duration: | B1: 1 | C1: 6 | D1: 0.15
A2: Attack rate: | B2: 1 | C2: 8 | D2: 0.25
C3: 12 | D3: 0.35

Sheet B. Contact Tracing Strategies
BC5: Low Estimate: Initial R0 | BF5: Manual
BC6: High Estimate: Initial R0 | BF6: Days past Peak | BH6: Modified Infectivity Distributions
BC7: Low Estimate: Initial R0 | BI7: Base | BJ7: S1 | BK7: S2 | BL7: S3
B8: Step 1: | C8: Enter the date on which contact tracing interventions will begin | BF8: Symptoms | BH8: 1 | BI8: ='D. Epi Parameters'!D14 -> 0 | BJ8: =IF($BH8<F$17, $BI8, 0) -> 0 | BK8: =IF($BH8<G$17, $BI8, 0) -> 0 | BL8: 0
C9: Choose entry method | F9: Manual | BF9: Contact ID | BH9: 2 | BI9: ='D. Epi Parameters'!D15 -> 0 | BJ9: =IF($BH9<F$17, $BI9, 0) -> 0 | BK9: =IF($BH9<G$17, $BI9, 0) -> 0 | BL9: =IF($BH9<H$17, $BI9, 0) -> 0
C10: Days past epidemic peak | G10: 10 | BH10: 3 | BI10: ='D. Epi Parameters'!D16 -> 0 | BJ10: 0 | BK10: 0 | BL10: 0
C11: Date contact tracing begins (no ramp-up) | F11: ='A. Outbreak Details'!F13 -> 2021-01-01 | G11: Hit refresh - I schange | BF11: Yes | BH11: 4 | BI11: ='D. Epi Parameters'!D17 -> 0.1677720969 | BJ11: 0.1677720969 | BK11: 0.1677720969 | BL11: 0
C12: Date chosen | F12: =IF($F$9=$BF$5, $F$11, $G$11) -> 2021-01-01 | G12: =IF($F$9=$BF$6,_xlfn.CONCAT("(Peak + ",$G$10," days)"), "") ->  | BF12: No | BH12: 5 | BI12: ='D. Epi Parameters'!D18 -> 0.1802607219 | BJ12: 0.1802607219 | BK12: 0.1802607219 | BL12: 0
BH13: 6 | BI13: ='D. Epi Parameters'!D19 -> 0.1707119341 | BJ13: 0.1707119341 | BK13: 0.1707119341 | BL13: 0
B14: Step 2: | C14: Set up the scenarios for contact tracing strategies | K14: Timing of Case Isolation | BH14: 7 | BI14: ='D. Epi Parameters'!D20 -> 0.1451776603 | BJ14: 0.1451776603 | BK14: 0.1451776603 | BL14: 0
K15: Day | L15: =F16 -> No Contact Tracing | M15: =G16 -> Continued Contact Tracing | N15: =H16 -> Strategy 3 (Optional) | BH15: 8 | BI15: ='D. Epi Parameters'!D21 -> 0.112677035 | BJ15: 0.112677035 | BK15: 0.112677035 | BL15: 0
F16: No Contact Tracing | G16: Continued Contact Tracing | H16: Strategy 3 (Optional) | K16: 1 | L16: =BJ8 -> 0 | M16: =BK8 -> 0 | N16: =BL8 -> 0 | BH16: 9 | BI16: ='D. Epi Parameters'!D22 -> 0.08101811276 | BJ16: 0.08101811276 | BK16: 0 | BL16: 0
C17: Number of days after infection that case is isolated | F17: 15 | G17: 9 | K17: 2 | L17: 0 | M17: 0 | N17: 0 | BH17: 10 | BI17: ='D. Epi Parameters'!D23 -> 0.05481117246 | BJ17: 0.05481117246 | BK17: 0 | BL17: 0
C18: % of all cases successfully isolated and contacts traced and monitored | F18: 0 | G18: 0.2 | K18: 3 | L18: 0 | M18: 0 | N18: 0 | BH18: 11 | BI18: ='D. Epi Parameters'!D24 -> 0.03553690464 | BJ18: 0.03553690464 | BK18: 0 | BL18: 0
C19: Strategy Trigger | F19: Symptoms | G19: Contact ID | K19: 4 | L19: 0.1677720969 | M19: 0.1677720969 | N19: 0 | BH19: 12 | BI19: ='D. Epi Parameters'!D25 -> 0.02262657797 | BJ19: 0.02262657797 | BK19: 0 | BL19: 0
C20: Contacts are identified and listed? | F20: No | G20: Yes | K20: 5 | L20: 0.1802607219 | M20: 0.1802607219 | N20: 0 | BH20: 13 | BI20: ='D. Epi Parameters'!D26 -> 0.01462363492 | BJ20: 0.01462363492 | BK20: 0 | BL20: 0
C21: Contacts follow-up occurs? | F21: No | G21: Yes | K21: 6 | L21: 0.1707119341 | M21: 0.1707119341 | N21: 0 | BH21: 14 | BI21: ='D. Epi Parameters'!D27 -> 0.01478414908 | BJ21: 0.01478414908 | BK21: 0 | BL21: 0
C22: *Successfully traced = the strategy worked as assumed and transmission to the next generation was prevented | K22: 7 | L22: 0.1451776603 | M22: 0.1451776603 | N22: 0
K23: 8 | L23: 0.112677035 | M23: 0.112677035 | N23: 0
B24: Step 3: | C24: Account for additional effects of continued community interventions (e.g., facemask use, social distancing measures, school/business closures etc.) | K24: 9 | L24: 0.08101811276 | M24: 0 | N24: 0
K25: 10 | L25: 0.05481117246 | M25: 0 | N25: 0
F26: =F16 -> No Contact Tracing | G26: =G16 -> Continued Contact Tracing | H26: =H16 -> Strategy 3 (Optional) | K26: 11 | L26: 0.03553690464 | M26: 0 | N26: 0 | P26: Legend
C27: Will community-level interventions continue? | F27: Yes | G27: Yes | K27: 12 | L27: 0.02262657797 | M27: 0 | N27: 0 | O27: Infected, not yet infectious
C28: Estimated % reduction in transmission due to continued community interventions | F28: =G28 -> 0.5469017926 | G28: 0.5469017926 | K28: 13 | L28: 0.01462363492 | M28: 0 | N28: 0 | O28: Infectious, pre-symptomatic
C29: Combined % reduction in transmission from contact tracing + continued community interventions, if applicable | F29: =IF(F27=$BF$12, 'Calc - Likely, S1'!$B$39, MIN(1, SUM(F28, 'Calc - Likely, S1'!$B$39))) -> 0.5469017926 | G29: =G28+'Calc - Likely, S2'!B39-G28*'Calc - Likely, S2'!B39 -> 0.5671462705 | K29: 14 | L29: 0.01478414908 | M29: 0 | N29: 0 | O29: Infectious & symptomatic
K32: Mean Squared Error (60 days) | O32: =AVERAGE('Case Counts'!AL4:AL63) -> 1185108.622
B46: *These figures show the reduction in cases that may occur compared to the base case if contact tracing were initiated on the chosen date, given all of the provided assumptions. The red dotted line shows when contact tracing strategies were initiated.

Sheet Results - Cases Averted
AY5: 1
AY6: 2
C8: Transmission Fraction
C9: Transmission Reduction from Contact Tracing | D9: ='B. Contact Tracing Strategies'!G29-'B. Contact Tracing Strategies'!G28 -> 0.02024447792
C10: Transmission Reduction from All Other Interventions | D10: ='B. Contact Tracing Strategies'!G28 -> 0.5469017926
C11: Remaining Transmission | D11: =1-D9-D10 -> 0.4328537295
C13: Cases Averted, 60 days
C14: Cases Averted by Contact Tracing | D14: =RESULTS_Costs!AF19 -> 8937.19298
C15: Cases Averted per 100,000 population | D15: =D14/'A. Outbreak Details'!F10*100000 -> 893.719298
C16: % of Additional Cases Averted by Contact Tracing* | D16: =RESULTS_Costs!AF20 -> 0.1967065816
C17: *Additional cases averted by contact tracing out of every 100 remaining cases after accounting for the impact of all other interventions (e.g., vaccination, facemask policies, social distancing).
C19: Hospitalizations Averted, 60 days
C20: Hospitalizations Averted by Contact Tracing | D20: =RESULTS_Costs!AL19 -> 219.6130641
C21: Hospitalizations averted per 100,000 population | D21: =D20/'A. Outbreak Details'!F10*100000 -> 21.96130641
C22: % of Additional Hospitalizations Averted by Contact Tracing** | D22: =RESULTS_Costs!AL20 -> 0.1967065816
C23: **Additional hospitalizations averted by contact tracing out of every 100 remaining hospitalizations after accounting for the impact of all other interventions.

Sheet Calc-Navigation
E9: Worksheet Name (Clickable Link) | F9: Brief Description
E10: Default Values | F10: Contains a static list of all default values used in the model together with sources supporting these values
E11: Case Counts | F11: Intermediate sheet used to aggregate relevant case count results for subsequent graphical / tabular display on final results sheets
E12: Person Hours | F12: Intermediate sheet used to aggregate relevant person hour results for subsequent graphical / tabular display on final results sheets
E13: Staff Needed | F13: Intermediate sheet used to aggregate relevant staff needed results for subsequent graphical / tabular display on final results sheets
E14: Table Templates | F14: Template sheet used to provide user with one-stop location for all model input parameters as currently entered in the sheet
E15: Calc - Base | F15: Calculation sheets where all primary calculations are performed. One sheet exists for each scenario (e.g., "No Intervention, Low Estimate")
E16: Calc - Likely, S1
E17: Calc - Likely, S2
E18: Calc - Likely, S3
E19: Calc - SA_Case Counts
E20: Calc - SA_Resources
E21: Calc - SA_Staffing_Low
E22: Calc - SA_Staffing_High
E23: Calculation Template | F23: Template sheet used to provide consistency across all scenario calculation sheets
E24: Initial Case Distribution | F24: Contains functionality allowing the user to choose one of several methods for distributing initial cases over the last 14 days

Sheet C. Tracing Resources
BA5: 1
BA6: 2
B8: Step 1: | C8: Enter the estimated number of contacts per case | D8: Lower | E8: Upper
C9: Contacts per case | D9: 5 | E9: 20 | F9: contacts per case
C10: False Alerts per case | D10: 0 | E10: 0 | F10: alerts per case
C11: Number of days contacts are monitored | D11: 14 | E11: 14 | F11: days
B13: Step 2: | C13: Enter the daily work hours and overhead hours | D13: Lower | E13: Upper
C14: Daily shift length (hours) | D14: 8 | E14: 12 | F14: hours per day
C15: Overhead hours (e.g., prep time, supervisory time, support staff) | D15: 0.05 | E15: 0.05 | F15: of total hours needed
B17: Step 3: | C17: Enter the estimated time needed to interview and monitor cases and contacts
D18: Staff Group | E18: Lower | F18: Upper
C19: Initial case interviews | D19: 1 | E19: 1 | F19: 2 | G19: hours per case
C20: Initial case interviews (false case alerts) | D20: 1 | E20: 2 | F20: 4 | G20: hours per alert
C21: Initial contact interviews | D21: 1 | E21: 0.5 | F21: 1 | G21: hours per contact
C22: Case/contact monitoring & follow-up | D22: 2 | E22: 0.25 | F22: 1 | G22: hours per day
C23: †For each case, there are a number of associated contacts (see Step 1). The time entered here represents the daily hours per case/contact required to monitor both the cases and associated contacts. If the number of assumed contacts-per-case are notably changed (in Step 1), users are advised to concurrently alter the monitoring time.

Sheet D. Epi Parameters
BA5: New Daily Cases
BA6: Cumulative Cases | BG6: Disease Stage Text | BP6: Day | BQ6: % | BR6: Cumulative
BG7: =K17 -> 3 | BH7: =H17 -> Infected, not yet infectious | BI7: 1 | BJ7: =IFERROR(INDEX($BH$7:$BH$10, MATCH(BI7, $BG$7:$BG$10, 0)), "") ->  | BP7: =C14 -> 1 | BQ7: =D14 -> 0 | BR7: =BQ7 -> 0
BA8: Chart Titles | BB8: Y-Limits | BC8: X-Limits | BG8: =BG7+K18 -> 5 | BH8: =H18 -> Infectious, pre-symptomatic | BI8: 2 | BP8: 2 | BQ8: 0 | BR8: =BQ8+BR7 -> 0
B9: Step 1: | C9: Enter information about how quickly the disease spreads without mitigation | BA9: =_xlfn.CONCAT(BA5, "(R0 = ", TEXT($F$10, "0.00"), ")") -> New Daily Cases (R0 = 2.50) | BB9: 0 | BC9: ='A. Outbreak Details'!F13-10 -> 2020-12-22 | BG9: =BG8+K19 -> 14 | BH9: Infectious & symptomatic | BI9: 3 | BJ9: =IFERROR(INDEX($BH$7:$BH$10, MATCH(BI9, $BG$7:$BG$10, 0)), "") -> Infected, not yet infectious | BP9: 3 | BQ9: 0 | BR9: =BQ9+BR8 -> 0
C10: New Infections per Case (R0) | F10: 2.5 | G10: infections | BA10: =_xlfn.CONCAT(BA6, "(R0 = ", TEXT($F$10, "0.00"), ")") -> Cumulative Cases (R0 = 2.50) | BB10: ='A. Outbreak Details'!F10*0.9 -> 900000 | BC10: =BC9+385 -> 2022-01-11 | BG10: =BG9+K20 -> 14 | BH10: Recovering, no longer infectious | BI10: 4 | BJ10: =IFERROR(INDEX($BH$7:$BH$10, MATCH(BI10, $BG$7:$BG$10, 0)), "") ->  | BP10: 4 | BQ10: 0.1677720969 | BR10: 0.1677720969
BI11: 5 | BJ11: Infectious, pre-symptomatic | BP11: 5 | BQ11: 0.1802607219 | BR11: 0.3480328188
B12: Step 2: | C12: Enter information about how the disease transmission occurs over the duration of illness (without mitigation) | BI12: 6 | BP12: 6 | BQ12: 0.1707119341 | BR12: 0.5187447529
C13: Day | BI13: 7 | BP13: 7 | BQ13: 0.1451776603 | BR13: 0.6639224132
C14: 1 | D14: 0 | E14: =BJ7 ->  | BI14: 8 | BP14: 8 | BQ14: 0.112677035 | BR14: 0.7765994482
C15: 2 | D15: 0 | E15: =BJ8 ->  | BI15: 9 | BP15: 9 | BQ15: 0.08101811276 | BR15: 0.8576175609
C16: 3 | D16: 0 | E16: Infected, not yet infectious | H16: Disease Stage (with Color Legend) | BI16: 10 | BP16: 10 | BQ16: 0.05481117246 | BR16: 0.9124287334
C17: 4 | D17: 0.1677720969 | H17: Infected, not yet infectious | K17: 3 | L17: days | BI17: 11 | BP17: 11 | BQ17: 0.03553690464 | BR17: 0.947965638
C18: 5 | D18: 0.1802607219 | E18: Infectious, pre-symptomatic | H18: Infectious, pre-symptomatic | K18: 2 | L18: days | BI18: 12 | BP18: 12 | BQ18: 0.02262657797 | BR18: 0.970592216
C19: 6 | D19: 0.1707119341 | H19: Infectious & symptomatic | K19: 9 | L19: days | BI19: 13 | BP19: 13 | BQ19: 0.01462363492 | BR19: 0.9852158509
C20: 7 | D20: 0.1451776603 | H20: Recovering, no longer infectious | K20: =14-SUM($K$17:$K$19) -> 0 | L20: days | BI20: 14 | BJ20: Infectious & symptomatic | BP20: 14 | BQ20: 0.01478414908 | BR20: =BQ20+BR19 -> 1
C21: 8 | D21: 0.112677035 | H21: Total Duration of Infection/Illness | K21: =SUM(K17:K20) -> 14 | L21: days | CA21: Step 3: | CB21: Enter information about how deadly the illness is
C22: 9 | D22: 0.08101811276 | CB22: Estimated Case Fatality Rate | CE22: 0.0109
C23: 10 | D23: 0.05481117246 | CB23: % Increase in Case Fatality Rate if Hospitals Overloaded | CE23: 0.0102
C24: 11 | D24: 0.03553690464
C25: 12 | D25: 0.02262657797
C26: 13 | D26: 0.01462363492
C27: 14 | D27: 0.01478414908 | E27: Infectious & symptomatic
D28: =SUM(D14:D27) -> 1 | E28: (Must equal 100%)
B30: Step 3: | C30: Enter information about asymptomatic cases
C31: % of cases that are asymptomatic | F31: 0.4 | G31: of cases
C32: Infectiousness of Asymptomatic Cases (Relative to Symptomatic Cases) | F32: 0.75 | N32: *These figures show the cases that may occur if current social distancing interventions were to continue unchanged into the future (Base case for the model).
C48: *Default infectivity profile based on He et al 2020 and Ferreti et al 2020.

Sheet E.1. Hospitalization Inputs
BA5: Outbreak start
BA6: Model start | BB6: Model end | BD6: Percentages
BA7: Custom date | BB7: Custom date | BD7: Case Numbers | BJ7: =IFERROR(INDEX($BH$7:$BH$10, MATCH(BI7, $BG$7:$BG$10, 0)), "") -> 
B9: Step 1: | C9: Enter information about the time horizon | BA9: Start Date | BB9: End Date | BD9: % of All Cases Admitted for Hospital Care | BE9: % of Admitted Cases Requiring ICU Care | BF9: % of ICU Cases That Will Require Mechanical Ventilation
C10: Choose a starting date | F10: Custom date | G10: ='A. Outbreak Details'!F13 -> 2021-01-01 | BA10: =IF(F12="N/A", 'Case Counts'!U4, F12) -> 2021-01-01 | BB10: =G12 -> 2021-03-02 | BD10: # of Cases Admitted for Hospital Care | BE10: # of Admitted Cases Requiring ICU Care | BF10: # of ICU Cases That Will Require Mechanical Ventilation
C11: Choose an ending date | F11: Custom date | G11: =G10+60 -> 2021-03-02
C12: Chosen date range (start, end) | F12: =IF($F$10=$BA$7, G10, 'Case Counts'!$U$4) -> 2021-01-01 | G12: =IF($F$11=$BB$7, G11, 'Case Counts'!$U$369) -> 2021-03-02 | BA12: Age Groups
BA13: ='F. Impact of Interventions'!BA7 -> 0 to 17
C14: Total Cases in Chosen Date Range | BA14: ='F. Impact of Interventions'!BA8 -> 18 to 64
C15: Base Case | D15: Strategy 1 | E15: Strategy 2 | F15: Strategy 3 | BA15: ='F. Impact of Interventions'!BA9 -> 65+
C16: =SUMIFS('Case Counts'!V4:V369,'Case Counts'!$U$4:$U$369,">="&$BA$10,'Case Counts'!$U$4:$U$369,"<="&$BB$10) -> 61771.81405 | D16: =SUMIFS('Case Counts'!W4:W369,'Case Counts'!$U$4:$U$369,">="&$BA$10,'Case Counts'!$U$4:$U$369,"<="&$BB$10) -> 45434.13295 | E16: =SUMIFS('Case Counts'!X4:X369,'Case Counts'!$U$4:$U$369,">="&$BA$10,'Case Counts'!$U$4:$U$369,"<="&$BB$10) -> 36496.93997 | F16: =SUMIFS('Case Counts'!Y4:Y369,'Case Counts'!$U$4:$U$369,">="&$BA$10,'Case Counts'!$U$4:$U$369,"<="&$BB$10) -> 850995.1194
B18: Step 2: | C18: Enter information about the risk of hospitalization by age group
C19: I wish to enter data based on | F19: Percentages | G19: (% sign not shown in data table; enter 45% as 45)
C21: Hospitalized Cases
C22: Age (year) | D22: =IF($F$19=$BD$6, BD9, BD10) -> % of All Cases Admitted for Hospital Care | E22: =IF($F$19=$BD$6, BE9, BE10) -> % of Admitted Cases Requiring ICU Care | F22: =IF($F$19=$BD$6, BF9, BF10) -> % of ICU Cases That Will Require Mechanical Ventilation
C23: =$BA$13 -> 0 to 17 | D23: 0.205 | E23: 33.2 | F23: 17.39130435 | H23: CHR | I23: =(D23*D30+D24*D31+D25*D32)/100 -> 0.02457293522
C24: =$BA$14 -> 18 to 64 | D24: 2.165335893 | E24: 29.9 | F24: 16.23602661
C25: =$BA$15 -> 65+ | D25: 4.118695937 | E25: 35 | F25: 21.1
B27: Step 3: | C27: Enter information about the percentage of all cases in your jurisdiction that belong to each age group
C28: Cases by Age Group
C29: Age (year) | D29: % of Total Cases
C30: =$BA$13 -> 0 to 17 | D30: 0.15
C31: =$BA$14 -> 18 to 64 | D31: 0.55
C32: =$BA$15 -> 65+ | D32: 0.3
D33: =SUM(D30:D32) -> 1 | E33: (must equal 100%)

Sheet E.2. Costing Inputs
BA6: Ward Types
BA7: Hospitalized, non-ICU | BJ7: =IFERROR(INDEX($BH$7:$BH$10, MATCH(BI7, $BG$7:$BG$10, 0)), "") -> 
BA8: ICU (No Ventilator)
B9: Step 1: | C9: Enter information about the proportion of patients covered by Medicaid | BA9: ICU + Ventilator
C10: % of Hospitalized Patients Covered by Medicaid
C11: Age (year) | D11: % Medicaid | E11: % Other Insurance* | F11: Total
C12: ='F. Impact of Interventions'!$BA$7 -> 0 to 17 | D12: 0.18 | E12: =1-D12 -> 0.82 | F12: =SUM(D12:E12) -> 1
C13: ='F. Impact of Interventions'!$BA$8 -> 18 to 64 | D13: 0.18 | E13: =1-D13 -> 0.82 | F13: =SUM(D13:E13) -> 1
C14: ='F. Impact of Interventions'!$BA$9 -> 65+ | D14: 0.18 | E14: 0.82 | F14: 1
B17: Step 2: | C17: Enter information about treatment charges per day & median length of stay (LOS) for hospitalized patients covered by OTHER INSURANCE*.
C18: Direct Medical Charges (Hospitalized Cases using Other Insurance*)
C19: Age (year) | D19: Per case ($)/day | G19: Median Length of Stay (days)
D20: =$BA$7 -> Hospitalized, non-ICU | E20: =$BA$8 -> ICU (No Ventilator) | F20: =$BA$9 -> ICU + Ventilator | G20: =$D$20 -> Hospitalized, non-ICU | H20: =$E$20 -> ICU (No Ventilator) | I20: =$F$20 -> ICU + Ventilator
C21: ='F. Impact of Interventions'!$BA$7 -> 0 to 17 | D21: 2340.35 | E21: 3374.66 | F21: 5685.9 | G21: 2 | H21: 5 | I21: 13
C22: ='F. Impact of Interventions'!$BA$8 -> 18 to 64 | D22: 2117.4 | E22: 2080.47 | F22: 3669.9 | G22: 4 | H22: 5 | I22: 14
C23: ='F. Impact of Interventions'!$BA$9 -> 65+ | D23: 2061.42 | E23: 2078.49 | F23: 3596.81 | G23: 5 | H23: 6 | I23: 12
C24: *Note: Other insurance includes private insurance and Medicare
B26: Step 3: | C26: Enter information about treatment charges per day & median length of stay (LOS) for hospitalized patients covered by MEDICAID.
C27: Direct Medical Charges (Hospitalized Cases using Medicaid)
C28: Age (year) | D28: Per case ($)/day | G28: Median Length of Stay (days)
D29: =$BA$7 -> Hospitalized, non-ICU | E29: =$BA$8 -> ICU (No Ventilator) | F29: =$BA$9 -> ICU + Ventilator | G29: =$D$20 -> Hospitalized, non-ICU | H29: =$E$20 -> ICU (No Ventilator) | I29: =$F$20 -> ICU + Ventilator
C30: ='F. Impact of Interventions'!$BA$7 -> 0 to 17 | D30: 2317.91 | E30: 3199.21 | F30: 4494.69 | G30: 2 | H30: 4 | I30: 10
C31: ='F. Impact of Interventions'!$BA$8 -> 18 to 64 | D31: 2294.66 | E31: 2231.616 | F31: 3919.1 | G31: 3 | H31: 5 | I31: 14
C32: ='F. Impact of Interventions'!$BA$9 -> 65+ | D32: 2489.28 | E32: 2179.42 | F32: 3912.36 | G32: 5 | H32: 7 | I32: 13
C33: Source: Premier Healthcare Database (hospitalization charges and LOS); Note: charges are higher than costs for both "Other insurance" and Medicaid.
B35: Step 4: | C35: Enter Cost to Charge ratio
C36: Cost to Charge Ratio
C37: Other Insurance* | D37: 1
C38: Medicaid | D38: 1
C39: Source: Centers for Medicare and Medicaid Services
C40: *Note: Cost to charge ratios for private insurance are difficult to find, and vary across insurers and plans. This estimate of 80% is an assumed value and users may wish to alter this number.

Sheet F. Impact of Interventions
BA6: Age groups
BA7: =IF($F$10=Population!$A$58, E14, C14) -> 0 to 17 | BJ7: =IFERROR(INDEX($BH$7:$BH$10, MATCH(BI7, $BG$7:$BG$10, 0)), "") -> 
BA8: =IF($F$10=Population!$A$58, E15, C15) -> 18 to 64
B9: Step 1: | C9: Enter information about the age stratification in your jurisdiction or use one of the presets provided in the dropdown menu: | BA9: =IF($F$10=Population!$A$58, E16, C16) -> 65+
C10: Choose your jurisdiction | F10: United States
C12: Demographics
C13: Age (year) | D13: % Population | E13: Age (year) | F13: Enter % Population | G13: Pop (N)
C14: 0 to 17 | D14: =IFERROR(INDEX(Population!$B$5:$D$57,MATCH($F$10,Population!$A$5:$A$57,0),1), "") -> 0.2332213422 | E14: 5-10 | F14: 0.15 | G14: =IF($F$10=Population!$A$58, F14, D14) * 'A. Outbreak Details'!$F$10 -> 233221.3422
C15: 18 to 64 | D15: =IFERROR(INDEX(Population!$B$5:$D$57,MATCH($F$10,Population!$A$5:$A$57,0),2), "") -> 0.6035962655 | E15: 11-13 | F15: 0.67 | G15: =IF($F$10=Population!$A$58, F15, D15) * 'A. Outbreak Details'!$F$10 -> 603596.2655
C16: 65+ | D16: =IFERROR(INDEX(Population!$B$5:$D$57,MATCH($F$10,Population!$A$5:$A$57,0),3), "") -> 0.1631823923 | E16: 14-18 | F16: 0.18 | G16: =IF($F$10=Population!$A$58, F16, D16) * 'A. Outbreak Details'!$F$10 -> 163182.3923
D17: =SUM(D14:D16) -> 1 | F17: =SUM(F14:F16) -> 1 | G17: =SUM(G14:G16) -> 1000000
B19: Step 2: | C19: For a single community intervention, enter the estimated impact and adherence for each age group:
C20: Age-Stratified Impact of a Single Community Intervention
C21: Age (years) | D21: % Reduction in Transmission | E21: % Adherence | F21: Net Reduction (%)
C22: =BA7 -> 0 to 17 | D22: 0.6 | E22: 0.2 | F22: =D22*E22 -> 0.12
C23: =BA8 -> 18 to 64 | D23: 0.6 | E23: 0.4 | F23: =D23*E23 -> 0.24
C24: =BA9 -> 65+ | D24: 0.6 | E24: 0.8 | F24: 0.48
C26: Aggregate Reduction in Transmission (Single Community Intervention) | E26: =SUMPRODUCT(F14:F16, F22:F24) -> 0.2652
B29: Step 3: | C29: Enter the aggregate reduction in transmission for each community intervention of interest
C30: Aggregate Impact of Community Interventions
C31: Intervention Name | E31: Aggregate Reduction in Transmission (from green box above)
C32: Masking in public spaces | E32: 0.2652 | G32: add in text box to explain how to use this
C33: Ban on large gatherings | E33: 0.02
C34: <type intervention name> | E34: 0
C35: <type intervention name> | E35: 0
C36: <type intervention name> | E36: 0
C38: Age-Weighted (Average) Reduction in Transmission | E38: =SUM(E32:F36) -> 0.2852 | G38: This assumes the impact of each intervention is independent from the others listed.
G39: User should enter this number on Tab B under the intended strategy.

Sheet RESULTS
B5: Results: Potential impact of Contact Tracing on COVID-19 cases and resources needed | BA5: Chart Text
BA6: Maximum daily staff needed by strategy | BD6: Staffing Needs by Group
BA7: Maximum staff needed per day
B8: Result 1: Potential Impact of Contact Tracing Strategies on Future Epidemic Trajectory | BA8: New cases per day by strategy
BA9: Cumulative cases by strategy
BA10: Contact Tracing Starts | BB10: =TEXT($S$13, "[$-en-US]d-mmm-yyyy;@") -> 1-Jan-2021
BA11: Chart Titles
N12: Table 1: Outbreak duration and total cases by type of intervention | BA12: =IFERROR(_xlfn.CONCAT(BA6, "(", $BA$10, " ", $BB$10, ")"), CONCATENATE(BA6, "(", $BA$10, " ", $BB$10, ")")) -> Maximum daily staff needed by strategy (Contact Tracing Starts 1-Jan-2021)
R13: contact tracing start date: | S13: ='B. Contact Tracing Strategies'!$F$12 -> 2021-01-01 | BA13: =IFERROR(_xlfn.CONCAT(BA8, "(", $BA$10, " ", $BB$10, ")"), CONCATENATE(BA8, "(", $BA$10, " ", $BB$10, ")")) -> New cases per day by strategy (Contact Tracing Starts 1-Jan-2021)
P14: Type of contact tracing | BA14: =IFERROR(_xlfn.CONCAT(BA9, "(", $BA$10, " ", $BB$10, ")"), CONCATENATE(BA9, "(", $BA$10, " ", $BB$10, ")")) -> Cumulative cases by strategy (Contact Tracing Starts 1-Jan-2021)
P15: Base Case | Q15: ='B. Contact Tracing Strategies'!F16 -> No Contact Tracing | R15: ='B. Contact Tracing Strategies'!G16 -> Continued Contact Tracing | S15: ='B. Contact Tracing Strategies'!H16 -> Strategy 3 (Optional) | BA15: Y-axis labels | BB15: X-axis labels
N16: Duration (days) | P16: =IF('Case Counts'!V369>=1,"> 365",SUM(COUNTIF('Case Counts'!V5:V369,">=1"))) -> > 365 | Q16: =IF('Case Counts'!W369>=1,"> 365",SUM(COUNTIF('Case Counts'!W5:W369,">=1"))) -> > 365 | R16: =IF('Case Counts'!X369>=1,"> 365",SUM(COUNTIF('Case Counts'!X5:X369,">=1"))) -> > 365 | S16: =IF('Case Counts'!Y369>=1,"> 365",SUM(COUNTIF('Case Counts'!Y5:Y369,">=1"))) -> 101 | BA16: Cases | BB16: Days
N17: Date of Peak | P17: =INDEX('Case Counts'!$U$4:$U$369, MATCH('Calc - Base'!S5, 'Case Counts'!$T$4:$T$369, 0)) -> 2021-04-07 | Q17: =INDEX('Case Counts'!$U$4:$U$369, MATCH('Calc - Likely, S1'!S5, 'Case Counts'!$T$4:$T$369, 0)) -> 2021-04-05 | R17: =INDEX('Case Counts'!$U$4:$U$369, MATCH('Calc - Likely, S2'!S5, 'Case Counts'!$T$4:$T$369, 0)) -> 2021-03-06 | S17: =INDEX('Case Counts'!$U$4:$U$369, MATCH('Calc - Likely, S3'!S5, 'Case Counts'!$T$4:$T$369, 0)) -> 2021-02-06 | BA17: Staff
N18: Cases on Peak Day | P18: ='Calc - Base'!S4 -> 1899.952035 | Q18: ='Calc - Likely, S1'!S4 -> 1039.716419 | R18: ='Calc - Likely, S2'!S4 -> 646.540364 | S18: ='Calc - Likely, S3'!S4 -> 34117.62604
N19: Total number of cases | P19: =MAX('Case Counts'!Z59:Z424) -> 270681.4198 | Q19: =MAX('Case Counts'!AA52:AA417) -> 223606.9928 | R19: =MAX('Case Counts'!AB52:AB417) -> 160456.2933 | S19: =MAX('Case Counts'!AC52:AC417) -> 895451.6062
BB24: Lower | BC24: Upper
B25: Result 2: Estimated Staffing Needs | BA25: =J30 -> No Contact Tracing | BB25: =J32 -> 90.97518665 | BC25: =K32 -> 272.9255599
BA26: =L30 -> Continued Contact Tracing | BB26: =L32 -> 395.61725 | BC26: =M32 -> 3052.268647
I27: Table 2: Contact tracing resource needs | BA27: =N30 -> Strategy 3 (Optional) | BB27: =N32 -> 2985.292278 | BC27: =O32 -> 8955.876835
N28: contact tracing start date: | O28: ='B. Contact Tracing Strategies'!$F$12 -> 2021-01-01
J29: Type of contact tracing | BB29: Lower | BC29: Upper
J30: =Q15 -> No Contact Tracing | L30: =R15 -> Continued Contact Tracing | N30: =S15 -> Strategy 3 (Optional) | BA30: =J30 -> No Contact Tracing | BB30: =J35 -> 198037.3425 | BC30: =K35 -> 396074.685
J31: Lower | K31: Upper | L31: Lower | M31: Upper | N31: Lower | O31: Upper | BA31: =L30 -> Continued Contact Tracing | BB31: =L35 -> 932689.1855 | BC31: =M35 -> 4784589.606
I32: Max daily staff needs | J32: =MAX('Staff Needed'!V5:V370) -> 90.97518665 | K32: =MAX('Staff Needed'!W5:W370) -> 272.9255599 | L32: =MAX('Staff Needed'!X5:X370) -> 395.61725 | M32: =MAX('Staff Needed'!Y5:Y370) -> 3052.268647 | N32: =MAX('Staff Needed'!Z5:Z370) -> 2985.292278 | O32: =MAX('Staff Needed'!AA5:AA370) -> 8955.876835 | BA32: =N30 -> Strategy 3 (Optional) | BB32: =N35 -> 903474.1866 | BC32: =O35 -> 1806948.373
I33: Group 1 | J33: =MAX('Staff Needed'!AB5:AB370) -> 90.97518665 | K33: =MAX('Staff Needed'!AC5:AC370) -> 272.9255599 | L33: =MAX('Staff Needed'!AD5:AD370) -> 198.0029865 | M33: =MAX('Staff Needed'!AE5:AE370) -> 1866.885301 | N33: =MAX('Staff Needed'!AF5:AF370) -> 2985.292278 | O33: =MAX('Staff Needed'!AG5:AG370) -> 8955.876835
I34: Group 2 | J34: =MAX('Staff Needed'!AH5:AH370) -> 0 | K34: =MAX('Staff Needed'!AI5:AI370) -> 0 | L34: =MAX('Staff Needed'!AJ5:AJ370) -> 197.8329461 | M34: =MAX('Staff Needed'!AK5:AK370) -> 1186.997677 | N34: =MAX('Staff Needed'!AL5:AL370) -> 0 | O34: =MAX('Staff Needed'!AM5:AM370) -> 0 | BB34: Strategy 1 | BD34: Strategy 2 | BF34: Strategy 3
I35: Total hours needed | J35: =SUM('Person Hours'!V5:V370) -> 198037.3425 | K35: =SUM('Person Hours'!W5:W370) -> 396074.685 | L35: =SUM('Person Hours'!X5:X370) -> 932689.1855 | M35: =SUM('Person Hours'!Y5:Y370) -> 4784589.606 | N35: =SUM('Person Hours'!Z5:Z370) -> 903474.1866 | O35: =SUM('Person Hours'!AA5:AA370) -> 1806948.373 | BB35: Lower | BC35: Upper | BD35: Lower | BE35: Upper | BF35: Lower | BG35: Upper
I36: =I33 -> Group 1 | J36: =SUM('Person Hours'!AB5:AB370) -> 198037.3425 | K36: =SUM('Person Hours'!AC5:AC370) -> 396074.685 | L36: =SUM('Person Hours'!AD5:AD370) -> 461051.878 | M36: =SUM('Person Hours'!AE5:AE370) -> 2898040.376 | N36: =SUM('Person Hours'!AF5:AF370) -> 903474.1866 | O36: =SUM('Person Hours'!AG5:AG370) -> 1806948.373 | BA36: Group 1 | BB36: =J36/SUM(J36:J37) -> 1 | BC36: 1 | BD36: 0.4943253178 | BE36: 0.6057030205 | BF36: 1 | BG36: 1
I37: =I34 -> Group 2 | J37: =SUM('Person Hours'!AH5:AH370) -> 0 | K37: =SUM('Person Hours'!AI5:AI370) -> 0 | L37: =SUM('Person Hours'!AJ5:AJ370) -> 471637.3075 | M37: =SUM('Person Hours'!AK5:AK370) -> 1886549.23 | N37: =SUM('Person Hours'!AL5:AL370) -> 0 | O37: =SUM('Person Hours'!AM5:AM370) -> 0 | BA37: Group 2 | BB37: =J37/SUM(J36:J37) -> 0 | BC37: 0 | BD37: 0.5056746822 | BE37: 0.3942969795 | BF37: 0 | BG37: 0

Sheet RESULTS_Costs
B5: Results: Estimated Hospitalizations Averted
AB8: 1 | AC8: Total Cases by age group | AL8: Age Groups | AN8: Ward Types | AR8: Hospitalization Risk entered in: | AS8: ='E.1. Hospitalization Inputs'!F19 -> Percentages
AB9: 2 | AC9: Total Hospitalizations (+ Hospitalizations Averted) by age group and severity | AL9: ='F. Impact of Interventions'!BA7 -> 0 to 17 | AN9: ='E.2. Costing Inputs'!BA7 -> Hospitalized, non-ICU
AB10: 3 | AC10: Total Direct Medical Costs (+ Averted) by age group and severity | AL10: ='F. Impact of Interventions'!BA8 -> 18 to 64 | AN10: ='E.2. Costing Inputs'!BA8 -> ICU (No Ventilator)
AB11: 4 | AC11: Total Medicaid Expenditures by age group | AL11: ='F. Impact of Interventions'!BA9 -> 65+ | AN11: ='E.2. Costing Inputs'!BA9 -> ICU + Ventilator
AG12: *Data are summarized over user-defined time horizon entered on Tab E.1. Hospitalization Inputs
AC13: Total Cases (by Age Group)* | AI13: Total Hospitalized Cases (All Ward Types, by Age Group)* | AO13: Total Cases Admitted to ICU (Vent + no Vent, by Age Group)*
AC14: Age | AD14: Base Case | AE14: ='B. Contact Tracing Strategies'!F16 -> No Contact Tracing | AF14: ='B. Contact Tracing Strategies'!G16 -> Continued Contact Tracing | AG14: ='B. Contact Tracing Strategies'!H16 -> Strategy 3 (Optional) | AI14: Age | AJ14: Base Case | AK14: =AE14 -> No Contact Tracing | AL14: =AF14 -> Continued Contact Tracing | AM14: =AG14 -> Strategy 3 (Optional) | AO14: Age | AP14: Base Case | AQ14: =AE14 -> No Contact Tracing | AR14: =AF14 -> Continued Contact Tracing | AS14: =AG14 -> Strategy 3 (Optional)
AC15: =$AL$9 -> 0 to 17 | AD15: ='E.1. Hospitalization Inputs'!C$16*'E.1. Hospitalization Inputs'!$D30 -> 9265.772107 | AE15: ='E.1. Hospitalization Inputs'!D$16*'E.1. Hospitalization Inputs'!$D30 -> 6815.119943 | AF15: ='E.1. Hospitalization Inputs'!E$16*'E.1. Hospitalization Inputs'!$D30 -> 5474.540996 | AG15: ='E.1. Hospitalization Inputs'!F$16*'E.1. Hospitalization Inputs'!$D30 -> 127649.2679 | AI15: =$AL$9 -> 0 to 17 | AJ15: =IF($AS$8='E.1. Hospitalization Inputs'!$BD$6, AD15*'E.1. Hospitalization Inputs'!$D23/100, FALSE) -> 18.99483282 | AK15: =IF($AS$8='E.1. Hospitalization Inputs'!$BD$6, AE15*'E.1. Hospitalization Inputs'!$D23/100, FALSE) -> 13.97099588 | AL15: =IF($AS$8='E.1. Hospitalization Inputs'!$BD$6, AF15*'E.1. Hospitalization Inputs'!$D23/100, FALSE) -> 11.22280904 | AM15: =IF($AS$8='E.1. Hospitalization Inputs'!$BD$6, AG15*'E.1. Hospitalization Inputs'!$D23/100, FALSE) -> 261.6809992 | AO15: =$AL$9 -> 0 to 17 | AP15: =IF($AS$8='E.1. Hospitalization Inputs'!$BD$6, AJ15*'E.1. Hospitalization Inputs'!$E23/100, FALSE) -> 6.306284496 | AQ15: =IF($AS$8='E.1. Hospitalization Inputs'!$BD$6, AK15*'E.1. Hospitalization Inputs'!$E23/100, FALSE) -> 4.638370633 | AR15: =IF($AS$8='E.1. Hospitalization Inputs'!$BD$6, AL15*'E.1. Hospitalization Inputs'!$E23/100, FALSE) -> 3.725972602 | AS15: =IF($AS$8='E.1. Hospitalization Inputs'!$BD$6, AM15*'E.1. Hospitalization Inputs'!$E23/100, FALSE) -> 86.87809174
AC16: =$AL$10 -> 18 to 64 | AD16: ='E.1. Hospitalization Inputs'!C$16*'E.1. Hospitalization Inputs'!$D31 -> 33974.49773 | AE16: ='E.1. Hospitalization Inputs'!D$16*'E.1. Hospitalization Inputs'!$D31 -> 24988.77312 | AF16: ='E.1. Hospitalization Inputs'!E$16*'E.1. Hospitalization Inputs'!$D31 -> 20073.31699 | AG16: ='E.1. Hospitalization Inputs'!F$16*'E.1. Hospitalization Inputs'!$D31 -> 468047.3157 | AI16: =$AL$10 -> 18 to 64 | AJ16: =IF($AS$8='E.1. Hospitalization Inputs'!$BD$6, AD16*'E.1. Hospitalization Inputs'!$D24/100, FALSE) -> 735.6619936 | AK16: =IF($AS$8='E.1. Hospitalization Inputs'!$BD$6, AE16*'E.1. Hospitalization Inputs'!$D24/100, FALSE) -> 541.0908736 | AL16: =IF($AS$8='E.1. Hospitalization Inputs'!$BD$6, AF16*'E.1. Hospitalization Inputs'!$D24/100, FALSE) -> 434.6547375 | AM16: =IF($AS$8='E.1. Hospitalization Inputs'!$BD$6, AG16*'E.1. Hospitalization Inputs'!$D24/100, FALSE) -> 10134.79652 | AO16: =$AL$10 -> 18 to 64 | AP16: =IF($AS$8='E.1. Hospitalization Inputs'!$BD$6, AJ16*'E.1. Hospitalization Inputs'!$E24/100, FALSE) -> 219.9629361 | AQ16: =IF($AS$8='E.1. Hospitalization Inputs'!$BD$6, AK16*'E.1. Hospitalization Inputs'!$E24/100, FALSE) -> 161.7861712 | AR16: =IF($AS$8='E.1. Hospitalization Inputs'!$BD$6, AL16*'E.1. Hospitalization Inputs'!$E24/100, FALSE) -> 129.9617665 | AS16: =IF($AS$8='E.1. Hospitalization Inputs'!$BD$6, AM16*'E.1. Hospitalization Inputs'!$E24/100, FALSE) -> 3030.30416
AC17: =$AL$11 -> 65+ | AD17: ='E.1. Hospitalization Inputs'!C$16*'E.1. Hospitalization Inputs'!$D32 -> 18531.54421 | AE17: ='E.1. Hospitalization Inputs'!D$16*'E.1. Hospitalization Inputs'!$D32 -> 13630.23989 | AF17: ='E.1. Hospitalization Inputs'!E$16*'E.1. Hospitalization Inputs'!$D32 -> 10949.08199 | AG17: ='E.1. Hospitalization Inputs'!F$16*'E.1. Hospitalization Inputs'!$D32 -> 255298.5358 | AI17: =$AL$11 -> 65+ | AJ17: =IF($AS$8='E.1. Hospitalization Inputs'!$BD$6, AD17*'E.1. Hospitalization Inputs'!$D25/100, FALSE) -> 763.2579587 | AK17: =IF($AS$8='E.1. Hospitalization Inputs'!$BD$6, AE17*'E.1. Hospitalization Inputs'!$D25/100, FALSE) -> 561.3881364 | AL17: =IF($AS$8='E.1. Hospitalization Inputs'!$BD$6, AF17*'E.1. Hospitalization Inputs'!$D25/100, FALSE) -> 450.9593952 | AM17: =IF($AS$8='E.1. Hospitalization Inputs'!$BD$6, AG17*'E.1. Hospitalization Inputs'!$D25/100, FALSE) -> 10514.97042 | AO17: =$AL$11 -> 65+ | AP17: =IF($AS$8='E.1. Hospitalization Inputs'!$BD$6, AJ17*'E.1. Hospitalization Inputs'!$E25/100, FALSE) -> 267.1402855 | AQ17: =IF($AS$8='E.1. Hospitalization Inputs'!$BD$6, AK17*'E.1. Hospitalization Inputs'!$E25/100, FALSE) -> 196.4858477 | AR17: =IF($AS$8='E.1. Hospitalization Inputs'!$BD$6, AL17*'E.1. Hospitalization Inputs'!$E25/100, FALSE) -> 157.8357883 | AS17: =IF($AS$8='E.1. Hospitalization Inputs'!$BD$6, AM17*'E.1. Hospitalization Inputs'!$E25/100, FALSE) -> 3680.239648
AC18: Total | AD18: =SUM(AD15:AD17) -> 61771.81405 | AE18: =SUM(AE15:AE17) -> 45434.13295 | AF18: 36496.93997 | AG18: 850995.1194 | AI18: Total | AJ18: =SUM(AJ15:AJ17) -> 1517.914785 | AK18: =SUM(AK15:AK17) -> 1116.450006 | AL18: 896.8369417 | AM18: 20911.44794 | AO18: Total | AP18: =SUM(AP15:AP17) -> 493.4095061 | AQ18: =SUM(AQ15:AQ17) -> 362.9103896 | AR18: 291.5235274 | AS18: 6797.421899
AF19: =AE18-AF18 -> 8937.19298 | AL19: =AK18-AL18 -> 219.6130641
AF20: =AF19/AE18 -> 0.1967065816 | AL20: =AL19/AK18 -> 0.1967065816 | AQ20: Hospitalizations Averted Relative to Base Case (by Age Group and Ward Type)*
AC21: Total Hospitalizations (by Age Group and Ward Type)*
AD22: Base Case | AG22: =AE14 -> No Contact Tracing | AJ22: =AF14 -> Continued Contact Tracing | AM22: =AG14 -> Strategy 3 (Optional) | AR22: =AE14 -> No Contact Tracing | AU22: =AF14 -> Continued Contact Tracing | AX22: =AG14 -> Strategy 3 (Optional)
AC23: Age | AD23: =$AN$9 -> Hospitalized, non-ICU | AE23: =$AN$10 -> ICU (No Ventilator) | AF23: =$AN$11 -> ICU + Ventilator | AG23: =$AN$9 -> Hospitalized, non-ICU | AH23: =$AN$10 -> ICU (No Ventilator) | AI23: =$AN$11 -> ICU + Ventilator | AJ23: =$AN$9 -> Hospitalized, non-ICU | AK23: =$AN$10 -> ICU (No Ventilator) | AL23: =$AN$11 -> ICU + Ventilator | AM23: =$AN$9 -> Hospitalized, non-ICU | AN23: =$AN$10 -> ICU (No Ventilator) | AO23: =$AN$11 -> ICU + Ventilator | AQ23: Age | AR23: =$AN$9 -> Hospitalized, non-ICU | AS23: =$AN$10 -> ICU (No Ventilator) | AT23: =$AN$11 -> ICU + Ventilator | AU23: =$AN$9 -> Hospitalized, non-ICU | AV23: =$AN$10 -> ICU (No Ventilator) | AW23: =$AN$11 -> ICU + Ventilator | AX23: =$AN$9 -> Hospitalized, non-ICU | AY23: =$AN$10 -> ICU (No Ventilator) | AZ23: =$AN$11 -> ICU + Ventilator
AC24: =$AL$9 -> 0 to 17 | AD24: =AJ15-AP15 -> 12.68854832 | AE24: =AP15-AF24 -> 5.209539367 | AF24: =IF($AS$8='E.1. Hospitalization Inputs'!$BD$6, $AP15*'E.1. Hospitalization Inputs'!$F23/100, FALSE) -> 1.09674513 | AG24: =AK15-AQ15 -> 9.33262525 | AH24: =AQ15-AI24 -> 3.83169748 | AI24: =IF($AS$8='E.1. Hospitalization Inputs'!$BD$6, $AQ15*'E.1. Hospitalization Inputs'!$F23/100, FALSE) -> 0.8066731536 | AJ24: =AL15-AR15 -> 7.49683644 | AK24: =AR15-AL24 -> 3.077977367 | AL24: =IF($AS$8='E.1. Hospitalization Inputs'!$BD$6, $AR15*'E.1. Hospitalization Inputs'!$F23/100, FALSE) -> 0.6479952351 | AM24: =AM15-AS15 -> 174.8029075 | AN24: =AS15-AO24 -> 71.7688584 | AO24: =IF($AS$8='E.1. Hospitalization Inputs'!$BD$6, $AS15*'E.1. Hospitalization Inputs'!$F23/100, FALSE) -> 15.10923335 | AQ24: =$AL$9 -> 0 to 17 | AR24: =AD24-AG24 -> 3.355923074 | AS24: =AE24-AH24 -> 1.377841887 | AT24: 0.2900719762 | AU24: =AD24-AJ24 -> 5.191711884 | AV24: =AE24-AK24 -> 2.131562 | AW24: 0.4487498947 | AX24: =AD24-AM24 -> -162.1143592 | AY24: =AE24-AN24 -> -66.55931903 | AZ24: -14.01248822
AC25: =$AL$10 -> 18 to 64 | AD25: =AJ16-AP16 -> 515.6990575 | AE25: =AP16-AF25 -> 184.2496953 | AF25: =IF($AS$8='E.1. Hospitalization Inputs'!$BD$6, $AP16*'E.1. Hospitalization Inputs'!$F24/100, FALSE) -> 35.71324083 | AG25: =AK16-AQ16 -> 379.3047024 | AH25: =AQ16-AI25 -> 135.5185254 | AI25: =IF($AS$8='E.1. Hospitalization Inputs'!$BD$6, $AQ16*'E.1. Hospitalization Inputs'!$F24/100, FALSE) -> 26.2676458 | AJ25: =AL16-AR16 -> 304.692971 | AK25: =AR16-AL25 -> 108.8611395 | AL25: =IF($AS$8='E.1. Hospitalization Inputs'!$BD$6, $AR16*'E.1. Hospitalization Inputs'!$F24/100, FALSE) -> 21.10062699 | AM25: =AM16-AS16 -> 7104.492361 | AN25: =AS16-AO25 -> 2538.30317 | AO25: =IF($AS$8='E.1. Hospitalization Inputs'!$BD$6, $AS16*'E.1. Hospitalization Inputs'!$F24/100, FALSE) -> 492.0009897 | AQ25: =$AL$10 -> 18 to 64 | AR25: =AD25-AG25 -> 136.3943551 | AS25: 48.73116986 | AT25: 9.445595027 | AU25: =AD25-AJ25 -> 211.0060865 | AV25: 75.38855573 | AW25: 14.61261384 | AX25: =AD25-AM25 -> -6588.793303 | AY25: -2354.053475 | AZ25: -456.2877488
AC26: =$AL$11 -> 65+ | AD26: 496.1176731 | AE26: 210.7736853 | AF26: =IF($AS$8='E.1. Hospitalization Inputs'!$BD$6, $AP17*'E.1. Hospitalization Inputs'!$F25/100, FALSE) -> 56.36660025 | AG26: 364.9022887 | AH26: 155.0273339 | AI26: =IF($AS$8='E.1. Hospitalization Inputs'!$BD$6, $AQ17*'E.1. Hospitalization Inputs'!$F25/100, FALSE) -> 41.45851387 | AJ26: 293.1236069 | AK26: 124.532437 | AL26: =IF($AS$8='E.1. Hospitalization Inputs'!$BD$6, $AR17*'E.1. Hospitalization Inputs'!$F25/100, FALSE) -> 33.30335133 | AM26: 6834.730775 | AN26: 2903.709082 | AO26: =IF($AS$8='E.1. Hospitalization Inputs'!$BD$6, $AS17*'E.1. Hospitalization Inputs'!$F25/100, FALSE) -> 776.5305657 | AQ26: =$AL$11 -> 65+ | AR26: 131.2153845 | AS26: 55.74635141 | AT26: 14.90808637 | AU26: 202.9940663 | AV26: 86.24124831 | AW26: 23.06324891 | AX26: -6338.613102 | AY26: -2692.935397 | AZ26: -720.1639655
AC27: Total | AD27: =SUM(AD24:AD26) -> 1024.505279 | AE27: =SUM(AE24:AE26) -> 400.2329199 | AF27: 93.17658621 | AG27: 753.5396163 | AH27: 294.3775567 | AI27: 68.53283283 | AJ27: 605.3134143 | AK27: 236.4715539 | AL27: 55.05197356 | AM27: 14114.02604 | AN27: 5513.781111 | AO27: 1283.640789 | AQ27: Total | AR27: =SUM(AR24:AR26) -> 270.9656627 | AS27: 105.8553632 | AT27: 24.64375338 | AU27: 419.1918647 | AV27: 163.761366 | AW27: 38.12461265 | AX27: -13089.52076 | AY27: -5113.548191 | AZ27: -1190.464203
AD28: =SUM(AD27:AF27) -> 1517.914785 | AG28: =SUM(AG27:AI27) -> 1116.450006 | AJ28: =SUM(AJ27:AL27) -> 896.8369417 | AM28: =SUM(AM27:AO27) -> 20911.44794
B34: =AG12 -> *Data are summarized over user-defined time horizon entered on Tab E.1. Hospitalization Inputs
B36: Total Hospitalizations Averted
C37: Strategy 1 | G37: Strategy 2 | K37: Strategy 3
B38: Age (year) | C38: Non-ICU | D38: ICU | E38: ICU + Ventilator | F38: Total | G38: Non-ICU | H38: ICU | I38: ICU + Ventilator | J38: Total | K38: Non-ICU | L38: ICU | M38: ICU + Ventilator | N38: Total
B39: =AL9 -> 0 to 17 | C39: =AR24 -> 3.355923074 | D39: 1.377841887 | E39: 0.2900719762 | F39: =SUM(C39:E39) -> 5.023836937 | G39: =AU24 -> 5.191711884 | H39: 2.131562 | I39: 0.4487498947 | J39: =SUM(G39:I39) -> 7.772023778 | K39: =AX24 -> -162.1143592 | L39: -66.55931903 | M39: -14.01248822 | N39: =SUM(K39:M39) -> -242.6861664
B40: =AL10 -> 18 to 64 | C40: 136.3943551 | D40: 48.73116986 | E40: 9.445595027 | F40: =SUM(C40:E40) -> 194.57112 | G40: 211.0060865 | H40: 75.38855573 | I40: 14.61261384 | J40: =SUM(G40:I40) -> 301.0072561 | K40: -6588.793303 | L40: -2354.053475 | M40: -456.2877488 | N40: =SUM(K40:M40) -> -9399.134527
B41: 65+ | C41: 131.2153845 | D41: 55.74635141 | E41: 14.90808637 | F41: 201.8698223 | G41: 202.9940663 | H41: 86.24124831 | I41: 23.06324891 | J41: 312.2985635 | K41: -6338.613102 | L41: -2692.935397 | M41: -720.1639655 | N41: -9751.712464
B42: Total | C42: =SUM(C39:C41) -> 270.9656627 | D42: =SUM(D39:D41) -> 105.8553632 | E42: 24.64375338 | F42: 401.4647792 | G42: =SUM(G39:G41) -> 419.1918647 | H42: =SUM(H39:H41) -> 163.761366 | I42: 38.12461265 | J42: 621.0778434 | K42: =SUM(K39:K41) -> -13089.52076 | L42: =SUM(L39:L41) -> -5113.548191 | M42: -1190.464203 | N42: -19393.53316

Sheet RESULTS_Costs_2
B5: Results: Estimated Direct Medical Costs* Averted | BA5: Chart Text
BA6: Maximum daily staff needed by strategy | BD6: Staffing Needs by Group
BA7: Maximum staff needed per day
AB8: 1 | AC8: Total Cases by age group | AL8: Age Groups | AN8: Ward Types | AR8: Hospitalization Risk entered in: | AS8: ='E.1. Hospitalization Inputs'!F19 -> Percentages
AB9: 2 | AC9: Total Hospitalizations (+ Hospitalizations Averted) by age group and severity | AL9: ='F. Impact of Interventions'!BA7 -> 0 to 17 | AN9: ='E.2. Costing Inputs'!BA7 -> Hospitalized, non-ICU
AB10: 3 | AC10: Total Direct Medical Costs (+ Averted) by age group and severity | AL10: ='F. Impact of Interventions'!BA8 -> 18 to 64 | AN10: ='E.2. Costing Inputs'!BA8 -> ICU (No Ventilator)
AB11: 4 | AC11: Total Medicaid Expenditures by age group | AL11: ='F. Impact of Interventions'!BA9 -> 65+ | AN11: ='E.2. Costing Inputs'!BA9 -> ICU + Ventilator
AK13: *Data is summarized over user-defined time horizon from Tab E. Costing Inputs
AQ20: Hospitalizations Averted Relative to Base Case (by Age Group and Ward Type)*
AC21: Total Hospitalizations (by Age Group and Ward Type)*
AD22: Base Case | AG22: Strategy 1 | AJ22: Strategy 2 | AM22: Strategy 3 | AR22: Strategy 1 | AU22: Strategy 2 | AX22: Strategy 3
AC23: Age | AD23: =$AN$9 -> Hospitalized, non-ICU | AE23: =$AN$10 -> ICU (No Ventilator) | AF23: =$AN$11 -> ICU + Ventilator | AG23: =$AN$9 -> Hospitalized, non-ICU | AH23: =$AN$10 -> ICU (No Ventilator) | AI23: =$AN$11 -> ICU + Ventilator | AJ23: =$AN$9 -> Hospitalized, non-ICU | AK23: =$AN$10 -> ICU (No Ventilator) | AL23: =$AN$11 -> ICU + Ventilator | AM23: =$AN$9 -> Hospitalized, non-ICU | AN23: =$AN$10 -> ICU (No Ventilator) | AO23: =$AN$11 -> ICU + Ventilator | AQ23: Age | AR23: =$AN$9 -> Hospitalized, non-ICU | AS23: =$AN$10 -> ICU (No Ventilator) | AT23: =$AN$11 -> ICU + Ventilator | AU23: =$AN$9 -> Hospitalized, non-ICU | AV23: =$AN$10 -> ICU (No Ventilator) | AW23: =$AN$11 -> ICU + Ventilator | AX23: =$AN$9 -> Hospitalized, non-ICU | AY23: =$AN$10 -> ICU (No Ventilator) | AZ23: =$AN$11 -> ICU + Ventilator
AC24: =$AL$9 -> 0 to 17 | AD24: =RESULTS_Costs!AD24 -> 12.68854832 | AE24: =RESULTS_Costs!AE24 -> 5.209539367 | AF24: =RESULTS_Costs!AF24 -> 1.09674513 | AG24: =RESULTS_Costs!AG24 -> 9.33262525 | AH24: =RESULTS_Costs!AH24 -> 3.83169748 | AI24: =RESULTS_Costs!AI24 -> 0.8066731536 | AJ24: =RESULTS_Costs!AJ24 -> 7.49683644 | AK24: =RESULTS_Costs!AK24 -> 3.077977367 | AL24: =RESULTS_Costs!AL24 -> 0.6479952351 | AM24: =RESULTS_Costs!AM24 -> 174.8029075 | AN24: =RESULTS_Costs!AN24 -> 71.7688584 | AO24: =RESULTS_Costs!AO24 -> 15.10923335 | AQ24: =$AL$9 -> 0 to 17 | AR24: =AD24-AG24 -> 3.355923074 | AS24: =AE24-AH24 -> 1.377841887 | AT24: 0.2900719762 | AU24: =AD24-AJ24 -> 5.191711884 | AV24: =AE24-AK24 -> 2.131562 | AW24: 0.4487498947 | AX24: =AD24-AM24 -> -162.1143592 | AY24: =AE24-AN24 -> -66.55931903 | AZ24: -14.01248822
AC25: =$AL$10 -> 18 to 64 | AD25: =RESULTS_Costs!AD25 -> 515.6990575 | AE25: =RESULTS_Costs!AE25 -> 184.2496953 | AF25: =RESULTS_Costs!AF25 -> 35.71324083 | AG25: =RESULTS_Costs!AG25 -> 379.3047024 | AH25: =RESULTS_Costs!AH25 -> 135.5185254 | AI25: =RESULTS_Costs!AI25 -> 26.2676458 | AJ25: =RESULTS_Costs!AJ25 -> 304.692971 | AK25: =RESULTS_Costs!AK25 -> 108.8611395 | AL25: =RESULTS_Costs!AL25 -> 21.10062699 | AM25: =RESULTS_Costs!AM25 -> 7104.492361 | AN25: =RESULTS_Costs!AN25 -> 2538.30317 | AO25: =RESULTS_Costs!AO25 -> 492.0009897 | AQ25: =$AL$10 -> 18 to 64 | AR25: =AD25-AG25 -> 136.3943551 | AS25: =AE25-AH25 -> 48.73116986 | AT25: =AF25-AI25 -> 9.445595027 | AU25: =AD25-AJ25 -> 211.0060865 | AV25: =AE25-AK25 -> 75.38855573 | AW25: =AF25-AL25 -> 14.61261384 | AX25: =AD25-AM25 -> -6588.793303 | AY25: =AE25-AN25 -> -2354.053475 | AZ25: =AF25-AO25 -> -456.2877488
AC26: =$AL$11 -> 65+ | AD26: =RESULTS_Costs!AD26 -> 496.1176731 | AE26: =RESULTS_Costs!AE26 -> 210.7736853 | AF26: =RESULTS_Costs!AF26 -> 56.36660025 | AG26: =RESULTS_Costs!AG26 -> 364.9022887 | AH26: =RESULTS_Costs!AH26 -> 155.0273339 | AI26: =RESULTS_Costs!AI26 -> 41.45851387 | AJ26: =RESULTS_Costs!AJ26 -> 293.1236069 | AK26: =RESULTS_Costs!AK26 -> 124.532437 | AL26: =RESULTS_Costs!AL26 -> 33.30335133 | AM26: =RESULTS_Costs!AM26 -> 6834.730775 | AN26: =RESULTS_Costs!AN26 -> 2903.709082 | AO26: =RESULTS_Costs!AO26 -> 776.5305657 | AQ26: =$AL$11 -> 65+ | AR26: 131.2153845 | AS26: 55.74635141 | AT26: 14.90808637 | AU26: 202.9940663 | AV26: 86.24124831 | AW26: 23.06324891 | AX26: -6338.613102 | AY26: -2692.935397 | AZ26: -720.1639655
AC27: Total | AD27: =SUM(AD24:AD26) -> 1024.505279 | AE27: =SUM(AE24:AE26) -> 400.2329199 | AF27: 93.17658621 | AG27: 753.5396163 | AH27: 294.3775567 | AI27: 68.53283283 | AJ27: 605.3134143 | AK27: 236.4715539 | AL27: 55.05197356 | AM27: 14114.02604 | AN27: 5513.781111 | AO27: 1283.640789 | AQ27: Total | AR27: =SUM(AR24:AR26) -> 270.9656627 | AS27: =SUM(AS24:AS26) -> 105.8553632 | AT27: =SUM(AT24:AT26) -> 24.64375338 | AU27: =SUM(AU24:AU26) -> 419.1918647 | AV27: =SUM(AV24:AV26) -> 163.761366 | AW27: =SUM(AW24:AW26) -> 38.12461265 | AX27: =SUM(AX24:AX26) -> -13089.52076 | AY27: =SUM(AY24:AY26) -> -5113.548191 | AZ27: =SUM(AZ24:AZ26) -> -1190.464203
AQ29: Direct Medical Costs Averted for Other Insurance Relative to Base Case (by Age Group and Ward Type)*
AC30: Estimated Direct Medical Costs Incurred to Other Insurance (by Age Group and Ward Type)*
AD31: Base Case | AG31: Strategy 1 | AJ31: Strategy 2 | AM31: Strategy 3 | AR31: Strategy 1 | AU31: Strategy 2 | AX31: Strategy 3
AC32: Age | AD32: =$AN$9 -> Hospitalized, non-ICU | AE32: =$AN$10 -> ICU (No Ventilator) | AF32: =$AN$11 -> ICU + Ventilator | AG32: =$AN$9 -> Hospitalized, non-ICU | AH32: =$AN$10 -> ICU (No Ventilator) | AI32: =$AN$11 -> ICU + Ventilator | AJ32: =$AN$9 -> Hospitalized, non-ICU | AK32: =$AN$10 -> ICU (No Ventilator) | AL32: =$AN$11 -> ICU + Ventilator | AM32: =$AN$9 -> Hospitalized, non-ICU | AN32: =$AN$10 -> ICU (No Ventilator) | AO32: =$AN$11 -> ICU + Ventilator | AQ32: Age | AR32: =$AN$9 -> Hospitalized, non-ICU | AS32: =$AN$10 -> ICU (No Ventilator) | AT32: =$AN$11 -> ICU + Ventilator | AU32: =$AN$9 -> Hospitalized, non-ICU | AV32: =$AN$10 -> ICU (No Ventilator) | AW32: =$AN$11 -> ICU + Ventilator | AX32: =$AN$9 -> Hospitalized, non-ICU | AY32: =$AN$10 -> ICU (No Ventilator) | AZ32: =$AN$11 -> ICU + Ventilator
AC33: =$AL$9 -> 0 to 17 | AD33: =AD24*'E.2. Costing Inputs'!$E12*'E.2. Costing Inputs'!D21*'E.2. Costing Inputs'!G21*'E.2. Costing Inputs'!$D$37 -> 48700.85627 | AE33: =AE24*'E.2. Costing Inputs'!$E12*'E.2. Costing Inputs'!E21*'E.2. Costing Inputs'!H21*'E.2. Costing Inputs'!$D$37 -> 72079.73889 | AF33: =AF24*'E.2. Costing Inputs'!$E12*'E.2. Costing Inputs'!F21*'E.2. Costing Inputs'!I21*'E.2. Costing Inputs'!$D$37 -> 66475.5802 | AG33: =AG24*'E.2. Costing Inputs'!$E12*'E.2. Costing Inputs'!D21*'E.2. Costing Inputs'!G21*'E.2. Costing Inputs'!$D$37 -> 35820.23959 | AH33: =AH24*'E.2. Costing Inputs'!$E12*'E.2. Costing Inputs'!E21*'E.2. Costing Inputs'!H21*'E.2. Costing Inputs'!$D$37 -> 53015.77249 | AI33: =AI24*'E.2. Costing Inputs'!$E12*'E.2. Costing Inputs'!F21*'E.2. Costing Inputs'!I21*'E.2. Costing Inputs'!$D$37 -> 48893.82634 | AJ33: =AJ24*'E.2. Costing Inputs'!$E12*'E.2. Costing Inputs'!D21*'E.2. Costing Inputs'!G21*'E.2. Costing Inputs'!$D$37 -> 28774.16271 | AK33: =AK24*'E.2. Costing Inputs'!$E12*'E.2. Costing Inputs'!E21*'E.2. Costing Inputs'!H21*'E.2. Costing Inputs'!$D$37 -> 42587.22111 | AL33: =AL24*'E.2. Costing Inputs'!$E12*'E.2. Costing Inputs'!F21*'E.2. Costing Inputs'!I21*'E.2. Costing Inputs'!$D$37 -> 39276.0889 | AM33: =AM24*'E.2. Costing Inputs'!$E12*'E.2. Costing Inputs'!D21*'E.2. Costing Inputs'!G21*'E.2. Costing Inputs'!$D$37 -> 670923.9746 | AN33: =AN24*'E.2. Costing Inputs'!$E12*'E.2. Costing Inputs'!E21*'E.2. Costing Inputs'!H21*'E.2. Costing Inputs'!$D$37 -> 993001.5323 | AO33: =AO24*'E.2. Costing Inputs'!$E12*'E.2. Costing Inputs'!F21*'E.2. Costing Inputs'!I21*'E.2. Costing Inputs'!$D$37 -> 915796.2282 | AQ33: =$AL$9 -> 0 to 17 | AR33: =AD33-AG33 -> 12880.61669 | AS33: =AE33-AH33 -> 19063.9664 | AT33: =AF33-AI33 -> 17581.75386 | AU33: =AD33-AJ33 -> 19926.69357 | AV33: =AE33-AK33 -> 29492.51777 | AW33: =AF33-AL33 -> 27199.4913 | AX33: =AD33-AM33 -> -622223.1183 | AY33: =AE33-AN33 -> -920921.7934 | AZ33: =AF33-AO33 -> -849320.648
B34: =RESULTS_Costs!AG12 -> *Data are summarized over user-defined time horizon entered on Tab E.1. Hospitalization Inputs | AC34: =$AL$10 -> 18 to 64 | AD34: =AD25*'E.2. Costing Inputs'!$E13*'E.2. Costing Inputs'!D22*'E.2. Costing Inputs'!G22*'E.2. Costing Inputs'!$D$37 -> 3581567.085 | AE34: =AE25*'E.2. Costing Inputs'!$E13*'E.2. Costing Inputs'!E22*'E.2. Costing Inputs'!H22*'E.2. Costing Inputs'!$D$37 -> 1571636.45 | AF34: =AF25*'E.2. Costing Inputs'!$E13*'E.2. Costing Inputs'!F22*'E.2. Costing Inputs'!I22*'E.2. Costing Inputs'!$D$37 -> 1504614.979 | AG34: =AG25*'E.2. Costing Inputs'!$E13*'E.2. Costing Inputs'!D22*'E.2. Costing Inputs'!G22*'E.2. Costing Inputs'!$D$37 -> 2634298.468 | AH34: =AH25*'E.2. Costing Inputs'!$E13*'E.2. Costing Inputs'!E22*'E.2. Costing Inputs'!H22*'E.2. Costing Inputs'!$D$37 -> 1155963.129 | AI34: =AI25*'E.2. Costing Inputs'!$E13*'E.2. Costing Inputs'!F22*'E.2. Costing Inputs'!I22*'E.2. Costing Inputs'!$D$37 -> 1106667.791 | AJ34: =AJ25*'E.2. Costing Inputs'!$E13*'E.2. Costing Inputs'!D22*'E.2. Costing Inputs'!G22*'E.2. Costing Inputs'!$D$37 -> 2116114.621 | AK34: =AK25*'E.2. Costing Inputs'!$E13*'E.2. Costing Inputs'!E22*'E.2. Costing Inputs'!H22*'E.2. Costing Inputs'!$D$37 -> 928577.5733 | AL34: =AL25*'E.2. Costing Inputs'!$E13*'E.2. Costing Inputs'!F22*'E.2. Costing Inputs'!I22*'E.2. Costing Inputs'!$D$37 -> 888978.9527 | AM34: =AM25*'E.2. Costing Inputs'!$E13*'E.2. Costing Inputs'!D22*'E.2. Costing Inputs'!G22*'E.2. Costing Inputs'!$D$37 -> 49341210.97 | AN34: =AN25*'E.2. Costing Inputs'!$E13*'E.2. Costing Inputs'!E22*'E.2. Costing Inputs'!H22*'E.2. Costing Inputs'!$D$37 -> 21651540.74 | AO34: =AO25*'E.2. Costing Inputs'!$E13*'E.2. Costing Inputs'!F22*'E.2. Costing Inputs'!I22*'E.2. Costing Inputs'!$D$37 -> 20728224.08 | AQ34: =$AL$10 -> 18 to 64 | AR34: =AD34-AG34 -> 947268.6168 | AS34: 415673.3215 | AT34: 397947.1879 | AU34: =AD34-AJ34 -> 1465452.463 | AV34: 643058.877 | AW34: 615636.0259 | AX34: =AD34-AM34 -> -45759643.88 | AY34: -20079904.29 | AZ34: -19223609.1
AC35: =$AL$11 -> 65+ | AD35: =AD26*'E.2. Costing Inputs'!$E14*'E.2. Costing Inputs'!D23*'E.2. Costing Inputs'!G23*'E.2. Costing Inputs'!$D$37 -> 4193098.264 | AE35: =AE26*'E.2. Costing Inputs'!$E14*'E.2. Costing Inputs'!E23*'E.2. Costing Inputs'!H23*'E.2. Costing Inputs'!$D$37 -> 2155407.706 | AF35: =AF26*'E.2. Costing Inputs'!$E14*'E.2. Costing Inputs'!F23*'E.2. Costing Inputs'!I23*'E.2. Costing Inputs'!$D$37 -> 1994961.122 | AG35: =AG26*'E.2. Costing Inputs'!$E14*'E.2. Costing Inputs'!D23*'E.2. Costing Inputs'!G23*'E.2. Costing Inputs'!$D$37 -> 3084089.191 | AH35: =AH26*'E.2. Costing Inputs'!$E14*'E.2. Costing Inputs'!E23*'E.2. Costing Inputs'!H23*'E.2. Costing Inputs'!$D$37 -> 1585335.995 | AI35: =AI26*'E.2. Costing Inputs'!$E14*'E.2. Costing Inputs'!F23*'E.2. Costing Inputs'!I23*'E.2. Costing Inputs'!$D$37 -> 1467325.029 | AJ35: =AJ26*'E.2. Costing Inputs'!$E14*'E.2. Costing Inputs'!D23*'E.2. Costing Inputs'!G23*'E.2. Costing Inputs'!$D$37 -> 2477428.549 | AK35: =AK26*'E.2. Costing Inputs'!$E14*'E.2. Costing Inputs'!E23*'E.2. Costing Inputs'!H23*'E.2. Costing Inputs'!$D$37 -> 1273489.971 | AL35: =AL26*'E.2. Costing Inputs'!$E14*'E.2. Costing Inputs'!F23*'E.2. Costing Inputs'!I23*'E.2. Costing Inputs'!$D$37 -> 1178692.539 | AM35: =AM26*'E.2. Costing Inputs'!$E14*'E.2. Costing Inputs'!D23*'E.2. Costing Inputs'!G23*'E.2. Costing Inputs'!$D$37 -> 57765927.93 | AN35: =AN26*'E.2. Costing Inputs'!$E14*'E.2. Costing Inputs'!E23*'E.2. Costing Inputs'!H23*'E.2. Costing Inputs'!$D$37 -> 29693825.03 | AO35: =AO26*'E.2. Costing Inputs'!$E14*'E.2. Costing Inputs'!F23*'E.2. Costing Inputs'!I23*'E.2. Costing Inputs'!$D$37 -> 27483443.78 | AQ35: =$AL$11 -> 65+ | AR35: 1109009.073 | AS35: 570071.711 | AT35: 527636.0928 | AU35: 1715669.715 | AV35: 881917.7352 | AW35: 816268.5834 | AX35: -53572829.66 | AY35: -27538417.32 | AZ35: -25488482.65
B36: Total Direct Medical Costs Averted Relative to Base Case | AC36: Total | AD36: =SUM(AD33:AD35) -> 7823366.205 | AE36: =SUM(AE33:AE35) -> 3799123.895 | AF36: =SUM(AF33:AF35) -> 3566051.681 | AG36: =SUM(AG33:AG35) -> 5754207.899 | AH36: =SUM(AH33:AH35) -> 2794314.896 | AI36: =SUM(AI33:AI35) -> 2622886.646 | AJ36: =SUM(AJ33:AJ35) -> 4622317.333 | AK36: =SUM(AK33:AK35) -> 2244654.765 | AL36: =SUM(AL33:AL35) -> 2106947.58 | AM36: =SUM(AM33:AM35) -> 107778062.9 | AN36: =SUM(AN33:AN35) -> 52338367.3 | AO36: =SUM(AO33:AO35) -> 49127464.08 | AQ36: Total | AR36: =SUM(AR33:AR35) -> 2069158.307 | AS36: =SUM(AS33:AS35) -> 1004808.999 | AT36: =SUM(AT33:AT35) -> 943165.0346 | AU36: =SUM(AU33:AU35) -> 3201048.872 | AV36: =SUM(AV33:AV35) -> 1554469.13 | AW36: =SUM(AW33:AW35) -> 1459104.101 | AX36: =SUM(AX33:AX35) -> -99954696.66 | AY36: =SUM(AY33:AY35) -> -48539243.41 | AZ36: =SUM(AZ33:AZ35) -> -45561412.4
C37: =RESULTS_Costs!$C$37 -> Strategy 1 | G37: =RESULTS_Costs!$G$37 -> Strategy 2 | K37: =RESULTS_Costs!$K$37 -> Strategy 3
B38: Age (year) | C38: =$AN$9 -> Hospitalized, non-ICU | D38: =$AN$10 -> ICU (No Ventilator) | E38: =$AN$11 -> ICU + Ventilator | F38: Total | G38: =$AN$9 -> Hospitalized, non-ICU | H38: =$AN$10 -> ICU (No Ventilator) | I38: =$AN$11 -> ICU + Ventilator | J38: Total | K38: =$AN$9 -> Hospitalized, non-ICU | L38: =$AN$10 -> ICU (No Ventilator) | M38: =$AN$11 -> ICU + Ventilator | N38: Total | AQ38: Direct Medical Costs Averted for Medicaid Relative to Base Case (by Age Group and Ward Type)*
B39: =$AL$9 -> 0 to 17 | C39: =AR51 -> 15680.95864 | D39: =AS51 -> 22237.73039 | E39: 19928.56436 | F39: =SUM(C39:E39) -> 57847.25339 | G39: =AU51 -> 24258.90509 | H39: =AV51 -> 34402.42419 | I39: 30830.07629 | J39: =SUM(G39:I39) -> 89491.40557 | K39: =AX51 -> -757499.0563 | L39: =AY51 -> -1074236.605 | M39: -962687.8712 | N39: =SUM(K39:M39) -> -2794423.533 | AC39: Estimated Direct Medical Costs Incurred to Medicaid (by Age Group and Ward Type)*
B40: =$AL$10 -> 18 to 64 | C40: =AR52 -> 1116277.099 | D40: =AS52 -> 513547.6541 | E40: =AT52 -> 491233.1312 | F40: =SUM(C40:E40) -> 2121057.884 | G40: =AU52 -> 1726913.566 | H40: =AV52 -> 794473.3535 | I40: =AW52 -> 759952.1291 | J40: =SUM(G40:I40) -> 3281339.048 | K40: =AX52 -> -53923925.72 | L40: =AY52 -> -24807913.35 | M40: =AZ52 -> -23729967.14 | N40: =SUM(K40:M40) -> -102461806.2 | AD40: Base Case | AG40: Strategy 1 | AJ40: Strategy 2 | AM40: Strategy 3 | AR40: Strategy 1 | AU40: Strategy 2 | AX40: Strategy 3
B41: =$AL$11 -> 65+ | C41: 1402977.722 | D41: 723155.0497 | E41: 664118.4667 | F41: 2790251.239 | G41: 2170447.878 | H41: 1118742.171 | I41: 1027410.837 | J41: 4316600.886 | K41: -67773554.2 | L41: -34933404.27 | M41: -32081527.87 | N41: -134788486.3 | AC41: Age | AD41: =$AN$9 -> Hospitalized, non-ICU | AE41: =$AN$10 -> ICU (No Ventilator) | AF41: =$AN$11 -> ICU + Ventilator | AG41: =$AN$9 -> Hospitalized, non-ICU | AH41: =$AN$10 -> ICU (No Ventilator) | AI41: =$AN$11 -> ICU + Ventilator | AJ41: =$AN$9 -> Hospitalized, non-ICU | AK41: =$AN$10 -> ICU (No Ventilator) | AL41: =$AN$11 -> ICU + Ventilator | AM41: =$AN$9 -> Hospitalized, non-ICU | AN41: =$AN$10 -> ICU (No Ventilator) | AO41: =$AN$11 -> ICU + Ventilator | AQ41: Age | AR41: =$AN$9 -> Hospitalized, non-ICU | AS41: =$AN$10 -> ICU (No Ventilator) | AT41: =$AN$11 -> ICU + Ventilator | AU41: =$AN$9 -> Hospitalized, non-ICU | AV41: =$AN$10 -> ICU (No Ventilator) | AW41: =$AN$11 -> ICU + Ventilator | AX41: =$AN$9 -> Hospitalized, non-ICU | AY41: =$AN$10 -> ICU (No Ventilator) | AZ41: =$AN$11 -> ICU + Ventilator
C42: =SUM(C39:C41) -> 2534935.78 | D42: =SUM(D39:D41) -> 1258940.434 | E42: =SUM(E39:E41) -> 1175280.162 | F42: 4969156.376 | G42: =SUM(G39:G41) -> 3921620.348 | H42: =SUM(H39:H41) -> 1947617.949 | I42: =SUM(I39:I41) -> 1818193.043 | J42: 7687431.34 | K42: =SUM(K39:K41) -> -122454979 | L42: =SUM(L39:L41) -> -60815554.23 | M42: =SUM(M39:M41) -> -56774182.88 | N42: -240044716.1 | AC42: =$AL$9 -> 0 to 17 | AD42: =AD24*'E.2. Costing Inputs'!$D12*'E.2. Costing Inputs'!D30*'E.2. Costing Inputs'!G30*'E.2. Costing Inputs'!$D$38 -> 10587.9287 | AE42: =AE24*'E.2. Costing Inputs'!$D12*'E.2. Costing Inputs'!E30*'E.2. Costing Inputs'!H30*'E.2. Costing Inputs'!$D$38 -> 11999.81551 | AF42: =AF24*'E.2. Costing Inputs'!$D12*'E.2. Costing Inputs'!F30*'E.2. Costing Inputs'!I30*'E.2. Costing Inputs'!$D$38 -> 8873.152861 | AG42: =AG24*'E.2. Costing Inputs'!$D12*'E.2. Costing Inputs'!D30*'E.2. Costing Inputs'!G30*'E.2. Costing Inputs'!$D$38 -> 7787.586742 | AH42: =AH24*'E.2. Costing Inputs'!$D12*'E.2. Costing Inputs'!E30*'E.2. Costing Inputs'!H30*'E.2. Costing Inputs'!$D$38 -> 8826.051524 | AI42: =AI24*'E.2. Costing Inputs'!$D12*'E.2. Costing Inputs'!F30*'E.2. Costing Inputs'!I30*'E.2. Costing Inputs'!$D$38 -> 6526.342362 | AJ42: =AJ24*'E.2. Costing Inputs'!$D12*'E.2. Costing Inputs'!D30*'E.2. Costing Inputs'!G30*'E.2. Costing Inputs'!$D$38 -> 6255.717175 | AK42: =AK24*'E.2. Costing Inputs'!$D12*'E.2. Costing Inputs'!E30*'E.2. Costing Inputs'!H30*'E.2. Costing Inputs'!$D$38 -> 7089.9091 | AL42: =AL24*'E.2. Costing Inputs'!$D12*'E.2. Costing Inputs'!F30*'E.2. Costing Inputs'!I30*'E.2. Costing Inputs'!$D$38 -> 5242.567866 | AM42: =AM24*'E.2. Costing Inputs'!$D12*'E.2. Costing Inputs'!D30*'E.2. Costing Inputs'!G30*'E.2. Costing Inputs'!$D$38 -> 145863.8666 | AN42: =AN24*'E.2. Costing Inputs'!$D12*'E.2. Costing Inputs'!E30*'E.2. Costing Inputs'!H30*'E.2. Costing Inputs'!$D$38 -> 165314.6276 | AO42: =AO24*'E.2. Costing Inputs'!$D12*'E.2. Costing Inputs'!F30*'E.2. Costing Inputs'!I30*'E.2. Costing Inputs'!$D$38 -> 122240.3761 | AQ42: =$AL$9 -> 0 to 17 | AR42: =AD42-AG42 -> 2800.341955 | AS42: =AE42-AH42 -> 3173.763991 | AT42: =AF42-AI42 -> 2346.810499 | AU42: =AD42-AJ42 -> 4332.211521 | AV42: =AE42-AK42 -> 4909.906415 | AW42: =AF42-AL42 -> 3630.584995 | AX42: =AD42-AM42 -> -135275.9379 | AY42: =AE42-AN42 -> -153314.8121 | AZ42: =AF42-AO42 -> -113367.2232
AC43: =$AL$10 -> 18 to 64 | AD43: =AD25*'E.2. Costing Inputs'!$D13*'E.2. Costing Inputs'!D31*'E.2. Costing Inputs'!G31*'E.2. Costing Inputs'!$D$38 -> 639011.1596 | AE43: =AE25*'E.2. Costing Inputs'!$D13*'E.2. Costing Inputs'!E31*'E.2. Costing Inputs'!H31*'E.2. Costing Inputs'!$D$38 -> 370057.1111 | AF43: =AF25*'E.2. Costing Inputs'!$D13*'E.2. Costing Inputs'!F31*'E.2. Costing Inputs'!I31*'E.2. Costing Inputs'!$D$38 -> 352708.6806 | AG43: =AG25*'E.2. Costing Inputs'!$D13*'E.2. Costing Inputs'!D31*'E.2. Costing Inputs'!G31*'E.2. Costing Inputs'!$D$38 -> 470002.6773 | AH43: =AH25*'E.2. Costing Inputs'!$D13*'E.2. Costing Inputs'!E31*'E.2. Costing Inputs'!H31*'E.2. Costing Inputs'!$D$38 -> 272182.7786 | AI43: =AI25*'E.2. Costing Inputs'!$D13*'E.2. Costing Inputs'!F31*'E.2. Costing Inputs'!I31*'E.2. Costing Inputs'!$D$38 -> 259422.7373 | AJ43: =AJ25*'E.2. Costing Inputs'!$D13*'E.2. Costing Inputs'!D31*'E.2. Costing Inputs'!G31*'E.2. Costing Inputs'!$D$38 -> 377550.0573 | AK43: =AK25*'E.2. Costing Inputs'!$D13*'E.2. Costing Inputs'!E31*'E.2. Costing Inputs'!H31*'E.2. Costing Inputs'!$D$38 -> 218642.6347 | AL43: =AL25*'E.2. Costing Inputs'!$D13*'E.2. Costing Inputs'!F31*'E.2. Costing Inputs'!I31*'E.2. Costing Inputs'!$D$38 -> 208392.5775 | AM43: =AM25*'E.2. Costing Inputs'!$D13*'E.2. Costing Inputs'!D31*'E.2. Costing Inputs'!G31*'E.2. Costing Inputs'!$D$38 -> 8803292.998 | AN43: =AN25*'E.2. Costing Inputs'!$D13*'E.2. Costing Inputs'!E31*'E.2. Costing Inputs'!H31*'E.2. Costing Inputs'!$D$38 -> 5098066.17 | AO43: =AO25*'E.2. Costing Inputs'!$D13*'E.2. Costing Inputs'!F31*'E.2. Costing Inputs'!I31*'E.2. Costing Inputs'!$D$38 -> 4859066.718 | AQ43: =$AL$10 -> 18 to 64 | AR43: =AD43-AG43 -> 169008.4823 | AS43: 97874.33252 | AT43: 93285.94331 | AU43: =AD43-AJ43 -> 261461.1023 | AV43: 151414.4765 | AW43: 144316.1031 | AX43: =AD43-AM43 -> -8164281.838 | AY43: -4728009.059 | AZ43: -4506358.038
B44: Total Medicaid Expenditures Averted Relative to Base Case | AC44: =$AL$11 -> 65+ | AD44: =AD26*'E.2. Costing Inputs'!$D14*'E.2. Costing Inputs'!D32*'E.2. Costing Inputs'!G32*'E.2. Costing Inputs'!$D$38 -> 1111478.221 | AE44: =AE26*'E.2. Costing Inputs'!$D14*'E.2. Costing Inputs'!E32*'E.2. Costing Inputs'!H32*'E.2. Costing Inputs'!$D$38 -> 578799.1253 | AF44: =AF26*'E.2. Costing Inputs'!$D14*'E.2. Costing Inputs'!F32*'E.2. Costing Inputs'!I32*'E.2. Costing Inputs'!$D$38 -> 516031.8512 | AG44: =AG26*'E.2. Costing Inputs'!$D14*'E.2. Costing Inputs'!D32*'E.2. Costing Inputs'!G32*'E.2. Costing Inputs'!$D$38 -> 817509.5722 | AH44: =AH26*'E.2. Costing Inputs'!$D14*'E.2. Costing Inputs'!E32*'E.2. Costing Inputs'!H32*'E.2. Costing Inputs'!$D$38 -> 425715.7867 | AI44: =AI26*'E.2. Costing Inputs'!$D14*'E.2. Costing Inputs'!F32*'E.2. Costing Inputs'!I32*'E.2. Costing Inputs'!$D$38 -> 379549.4773 | AJ44: =AJ26*'E.2. Costing Inputs'!$D14*'E.2. Costing Inputs'!D32*'E.2. Costing Inputs'!G32*'E.2. Costing Inputs'!$D$38 -> 656700.0589 | AK44: =AK26*'E.2. Costing Inputs'!$D14*'E.2. Costing Inputs'!E32*'E.2. Costing Inputs'!H32*'E.2. Costing Inputs'!$D$38 -> 341974.6896 | AL44: =AL26*'E.2. Costing Inputs'!$D14*'E.2. Costing Inputs'!F32*'E.2. Costing Inputs'!I32*'E.2. Costing Inputs'!$D$38 -> 304889.5971 | AM44: =AM26*'E.2. Costing Inputs'!$D14*'E.2. Costing Inputs'!D32*'E.2. Costing Inputs'!G32*'E.2. Costing Inputs'!$D$38 -> 15312202.76 | AN44: =AN26*'E.2. Costing Inputs'!$D14*'E.2. Costing Inputs'!E32*'E.2. Costing Inputs'!H32*'E.2. Costing Inputs'!$D$38 -> 7973786.076 | AO44: =AO26*'E.2. Costing Inputs'!$D14*'E.2. Costing Inputs'!F32*'E.2. Costing Inputs'!I32*'E.2. Costing Inputs'!$D$38 -> 7109077.07 | AQ44: =$AL$11 -> 65+ | AR44: 293968.649 | AS44: 153083.3386 | AT44: 136482.3739 | AU44: 454778.1624 | AV44: 236824.4358 | AW44: 211142.2541 | AX44: -14200724.54 | AY44: -7394986.951 | AZ44: -6593045.219
C45: =RESULTS_Costs!$C$37 -> Strategy 1 | G45: =RESULTS_Costs!$G$37 -> Strategy 2 | K45: =RESULTS_Costs!$K$37 -> Strategy 3 | AC45: Total | AD45: =SUM(AD42:AD44) -> 1761077.31 | AE45: =SUM(AE42:AE44) -> 960856.052 | AF45: =SUM(AF42:AF44) -> 877613.6847 | AG45: =SUM(AG42:AG44) -> 1295299.836 | AH45: =SUM(AH42:AH44) -> 706724.6168 | AI45: =SUM(AI42:AI44) -> 645498.557 | AJ45: =SUM(AJ42:AJ44) -> 1040505.833 | AK45: =SUM(AK42:AK44) -> 567707.2333 | AL45: =SUM(AL42:AL44) -> 518524.7424 | AM45: =SUM(AM42:AM44) -> 24261359.63 | AN45: =SUM(AN42:AN44) -> 13237166.87 | AO45: =SUM(AO42:AO44) -> 12090384.16 | AQ45: Total | AR45: =SUM(AR42:AR44) -> 465777.4733 | AS45: =SUM(AS42:AS44) -> 254131.4351 | AT45: =SUM(AT42:AT44) -> 232115.1277 | AU45: =SUM(AU42:AU44) -> 720571.4762 | AV45: =SUM(AV42:AV44) -> 393148.8186 | AW45: =SUM(AW42:AW44) -> 359088.9422 | AX45: =SUM(AX42:AX44) -> -22500282.32 | AY45: =SUM(AY42:AY44) -> -12276310.82 | AZ45: =SUM(AZ42:AZ44) -> -11212770.48
B46: Age (year) | C46: =$AN$9 -> Hospitalized, non-ICU | D46: =$AN$10 -> ICU (No Ventilator) | E46: =$AN$11 -> ICU + Ventilator | F46: Total | G46: =$AN$9 -> Hospitalized, non-ICU | H46: =$AN$10 -> ICU (No Ventilator) | I46: =$AN$11 -> ICU + Ventilator | J46: Total | K46: =$AN$9 -> Hospitalized, non-ICU | L46: =$AN$10 -> ICU (No Ventilator) | M46: =$AN$11 -> ICU + Ventilator | N46: Total
B47: =$AL$9 -> 0 to 17 | C47: =AR42 -> 2800.341955 | D47: 3173.763991 | E47: 2346.810499 | F47: =SUM(C47:E47) -> 8320.916445 | G47: =AU42 -> 4332.211521 | H47: 4909.906415 | I47: 3630.584995 | J47: =SUM(G47:I47) -> 12872.70293 | K47: =AX42 -> -135275.9379 | L47: -153314.8121 | M47: -113367.2232 | N47: =SUM(K47:M47) -> -401957.9732 | AQ47: Total Direct Medical Costs Averted Relative to Base Case (by Age Group and Ward Type)*
B48: =$AL$10 -> 18 to 64 | C48: 169008.4823 | D48: 97874.33252 | E48: 93285.94331 | F48: =SUM(C48:E48) -> 360168.7581 | G48: 261461.1023 | H48: 151414.4765 | I48: 144316.1031 | J48: =SUM(G48:I48) -> 557191.6819 | K48: -8164281.838 | L48: -4728009.059 | M48: -4506358.038 | N48: =SUM(K48:M48) -> -17398648.94 | AC48: Estimated Total Direct Medical Costs (by Age Group and Ward Type)*
B49: =$AL$11 -> 65+ | C49: 293968.649 | D49: 153083.3386 | E49: 136482.3739 | F49: 583534.3615 | G49: 454778.1624 | H49: 236824.4358 | I49: 211142.2541 | J49: 902744.8522 | K49: -14200724.54 | L49: -7394986.951 | M49: -6593045.219 | N49: -28188756.71 | AD49: Base Case | AG49: Strategy 1 | AJ49: Strategy 2 | AM49: Strategy 3 | AR49: Strategy 1 | AU49: Strategy 2 | AX49: Strategy 3
C50: =SUM(C47:C49) -> 465777.4733 | D50: =SUM(D47:D49) -> 254131.4351 | E50: =SUM(E47:E49) -> 232115.1277 | F50: 952024.0361 | G50: =SUM(G47:G49) -> 720571.4762 | H50: =SUM(H47:H49) -> 393148.8186 | I50: =SUM(I47:I49) -> 359088.9422 | J50: 1472809.237 | K50: =SUM(K47:K49) -> -22500282.32 | L50: =SUM(L47:L49) -> -12276310.82 | M50: =SUM(M47:M49) -> -11212770.48 | N50: -45989363.62 | AC50: Age | AD50: =$AN$9 -> Hospitalized, non-ICU | AE50: =$AN$10 -> ICU (No Ventilator) | AF50: =$AN$11 -> ICU + Ventilator | AG50: =$AN$9 -> Hospitalized, non-ICU | AH50: =$AN$10 -> ICU (No Ventilator) | AI50: =$AN$11 -> ICU + Ventilator | AJ50: =$AN$9 -> Hospitalized, non-ICU | AK50: =$AN$10 -> ICU (No Ventilator) | AL50: =$AN$11 -> ICU + Ventilator | AM50: =$AN$9 -> Hospitalized, non-ICU | AN50: =$AN$10 -> ICU (No Ventilator) | AO50: =$AN$11 -> ICU + Ventilator | AQ50: Age | AR50: =$AN$9 -> Hospitalized, non-ICU | AS50: =$AN$10 -> ICU (No Ventilator) | AT50: =$AN$11 -> ICU + Ventilator | AU50: =$AN$9 -> Hospitalized, non-ICU | AV50: =$AN$10 -> ICU (No Ventilator) | AW50: =$AN$11 -> ICU + Ventilator | AX50: =$AN$9 -> Hospitalized, non-ICU | AY50: =$AN$10 -> ICU (No Ventilator) | AZ50: =$AN$11 -> ICU + Ventilator
AC51: =$AL$9 -> 0 to 17 | AD51: =SUM(AD33,AD42) -> 59288.78497 | AE51: =SUM(AE33,AE42) -> 84079.5544 | AF51: 75348.73306 | AG51: 43607.82633 | AH51: 61841.82401 | AI51: 55420.16871 | AJ51: 35029.87988 | AK51: 49677.13021 | AL51: 44518.65677 | AM51: 816787.8412 | AN51: 1158316.16 | AO51: 1038036.604 | AQ51: =$AL$9 -> 0 to 17 | AR51: =AD51-AG51 -> 15680.95864 | AS51: =AE51-AH51 -> 22237.73039 | AT51: =AF51-AI51 -> 19928.56436 | AU51: =AD51-AJ51 -> 24258.90509 | AV51: =AE51-AK51 -> 34402.42419 | AW51: =AF51-AL51 -> 30830.07629 | AX51: =AD51-AM51 -> -757499.0563 | AY51: =AE51-AN51 -> -1074236.605 | AZ51: =AF51-AO51 -> -962687.8712
B52: *Note: Costs are calculated using this formula: Cost = Charges per day * LOS (days) * Cost to charge ratio | AC52: =$AL$10 -> 18 to 64 | AD52: =SUM(AD34,AD43) -> 4220578.244 | AE52: 1941693.561 | AF52: 1857323.659 | AG52: 3104301.145 | AH52: 1428145.907 | AI52: 1366090.528 | AJ52: 2493664.679 | AK52: 1147220.208 | AL52: 1097371.53 | AM52: 58144503.97 | AN52: 26749606.91 | AO52: 25587290.8 | AQ52: =$AL$10 -> 18 to 64 | AR52: =AD52-AG52 -> 1116277.099 | AS52: 513547.6541 | AT52: 491233.1312 | AU52: =AD52-AJ52 -> 1726913.566 | AV52: 794473.3535 | AW52: 759952.1291 | AX52: =AD52-AM52 -> -53923925.72 | AY52: -24807913.35 | AZ52: -23729967.14
AC53: =$AL$11 -> 65+ | AD53: =SUM(AD35,AD44) -> 5304576.486 | AE53: 2734206.831 | AF53: 2510992.973 | AG53: 3901598.763 | AH53: 2011051.782 | AI53: 1846874.507 | AJ53: 3134128.608 | AK53: 1615464.66 | AL53: 1483582.136 | AM53: 73078130.69 | AN53: 37667611.1 | AO53: 34592520.85 | AQ53: =$AL$11 -> 65+ | AR53: 1402977.722 | AS53: 723155.0497 | AT53: 664118.4667 | AU53: 2170447.878 | AV53: 1118742.171 | AW53: 1027410.837 | AX53: -67773554.2 | AY53: -34933404.27 | AZ53: -32081527.87
AC54: Total | AD54: =SUM(AD51:AD53) -> 9584443.515 | AE54: =SUM(AE51:AE53) -> 4759979.947 | AF54: 4443665.366 | AG54: 7049507.735 | AH54: 3501039.513 | AI54: 3268385.203 | AJ54: 5662823.167 | AK54: 2812361.998 | AL54: 2625472.323 | AM54: 132039422.5 | AN54: 65575534.18 | AO54: 61217848.25 | AQ54: Total | AR54: =SUM(AR51:AR53) -> 2534935.78 | AS54: 1258940.434 | AT54: 1175280.162 | AU54: 3921620.348 | AV54: 1947617.949 | AW54: 1818193.043 | AX54: -122454979 | AY54: -60815554.23 | AZ54: -56774182.88
AC56: *Note: Other insurance includes private insurance and Medicare

Sheet SA_Case Counts
B5: "What-If" Sensitivity Analysis: Potential Impact of Contact Tracing on Future Case Counts | BA5: Chart Text | BF5: Scenario Options | BJ5: Chosen Scenario | BK5: =$E$9 -> Strategy 3 | BL5: =IF($BK$5 = $BF$6, 'B. Contact Tracing Strategies'!$F$19, IF($BK$5 = $BF$7, 'B. Contact Tracing Strategies'!$G$19, 'B. Contact Tracing Strategies'!$H$19)) -> 0 | BR5: R0 | BS5: Date CT Begins | BT5: Isolation Day | BU5: % Adherence | BW5: Modified Infectivity Distributions
BA6: Maximum daily staff needed by strategy | BF6: =TRIM('B. Contact Tracing Strategies'!F16) -> No Contact Tracing | BL6: New Cases By Day | BN6: Cumulative Cases | BQ6: =BF6 -> No Contact Tracing | BR6: ='D. Epi Parameters'!$F$10 -> 2.5 | BS6: ='B. Contact Tracing Strategies'!$F$12 -> 2021-01-01 | BT6: ='B. Contact Tracing Strategies'!F17 -> 15 | BU6: ='B. Contact Tracing Strategies'!F18 -> 0 | BX6: Base | BY6: What-If
BA7: Maximum staff needed per day | BF7: =TRIM('B. Contact Tracing Strategies'!G16) -> Continued Contact Tracing | BL7: Chosen Scenario | BM7: What-If | BN7: Chosen Scenario | BO7: What-If | BQ7: =BF7 -> Continued Contact Tracing | BR7: ='D. Epi Parameters'!$F$10 -> 2.5 | BS7: ='B. Contact Tracing Strategies'!$F$12 -> 2021-01-01 | BT7: ='B. Contact Tracing Strategies'!G17 -> 9 | BU7: ='B. Contact Tracing Strategies'!G18 -> 0.2 | BW7: 1 | BX7: ='D. Epi Parameters'!D14 -> 0 | BY7: =IF($BW7<$F$15, $BX7, 0) -> 0
BA8: New daily cases by strategy | BF8: =TRIM('B. Contact Tracing Strategies'!H16) -> Strategy 3 (Optional) | BJ8: Day | BK8: Date | BQ8: =BF8 -> Strategy 3 (Optional) | BR8: ='D. Epi Parameters'!$F$10 -> 2.5 | BS8: ='B. Contact Tracing Strategies'!$F$12 -> 2021-01-01 | BT8: ='B. Contact Tracing Strategies'!H17 -> 0 | BU8: ='B. Contact Tracing Strategies'!H18 -> 0 | BW8: 2 | BX8: ='D. Epi Parameters'!D15 -> 0 | BY8: 0
B9: Step 1: | C9: Choose A Contact Tracing Strategy | E9: Strategy 3 | I9: Your "what-if" scenario would change the estimated outbreak trajectory as follows: | P9: Staffing needs would change like this: | BA9: Cumulative cases by strategy | BJ9: 0 | BK9: =VLOOKUP(BJ9, 'Calc - Base'!$H$35:$I$400, 2) -> 2021-01-01 | BL9: =IF($BK$5 = $BF$6, 'Case Counts'!W4, IF($BK$5 = $BF$7, 'Case Counts'!X4, 'Case Counts'!Y4)) -> 936.1524197 | BM9: ='Calc - SA_Case Counts'!L35 ->  | BN9: =IF($BK$5 = $BF$6, 'Case Counts'!AA4, IF($BK$5 = $BF$7, 'Case Counts'!AB4, 'Case Counts'!AC4)) -> 35936.15242 | BO9: =BM9 ->  | BW9: 3 | BX9: ='D. Epi Parameters'!D16 -> 0 | BY9: 0
BA10: Contact Tracing Starts | BB10: =TEXT($S$13, "[$-en-US]d-mmm-yyyy;@") -> 0-Jan-1900 | BJ10: 1 | BK10: =VLOOKUP(BJ10, 'Calc - Base'!$H$35:$I$400, 2) -> 2021-01-02 | BL10: =IF($BK$5 = $BF$6, 'Case Counts'!W5, IF($BK$5 = $BF$7, 'Case Counts'!X5, 'Case Counts'!Y5)) -> 1050.013758 | BM10: ='Calc - SA_Case Counts'!L36 ->  | BN10: =IF($BK$5 = $BF$6, 'Case Counts'!AA5, IF($BK$5 = $BF$7, 'Case Counts'!AB5, 'Case Counts'!AC5)) -> 36986.16618 | BO10: =BO9+BM10 ->  | BW10: 4 | BX10: ='D. Epi Parameters'!D17 -> 0.1677720969 | BY10: 0.1677720969
B11: Step 2: | C11: Set your "What-If" Scenario | BA11: Chart Titles | BJ11: 2 | BK11: =VLOOKUP(BJ11, 'Calc - Base'!$H$35:$I$400, 2) -> 2021-01-03 | BL11: =IF($BK$5 = $BF$6, 'Case Counts'!W6, IF($BK$5 = $BF$7, 'Case Counts'!X6, 'Case Counts'!Y6)) -> 1163.514636 | BM11: ='Calc - SA_Case Counts'!L37 ->  | BN11: =IF($BK$5 = $BF$6, 'Case Counts'!AA6, IF($BK$5 = $BF$7, 'Case Counts'!AB6, 'Case Counts'!AC6)) -> 38149.68081 | BO11: =BO10+BM11 ->  | BQ11: Ranges | BW11: 5 | BX11: ='D. Epi Parameters'!D18 -> 0.1802607219 | BY11: 0.1802607219
E12: Original Scenario | F12: What-If | BA12: Maximum staff needed per day | BJ12: 3 | BK12: =VLOOKUP(BJ12, 'Calc - Base'!$H$35:$I$400, 2) -> 2021-01-04 | BL12: =IF($BK$5 = $BF$6, 'Case Counts'!W7, IF($BK$5 = $BF$7, 'Case Counts'!X7, 'Case Counts'!Y7)) -> 1276.614866 | BM12: ='Calc - SA_Case Counts'!L38 ->  | BN12: =IF($BK$5 = $BF$6, 'Case Counts'!AA7, IF($BK$5 = $BF$7, 'Case Counts'!AB7, 'Case Counts'!AC7)) -> 39426.29568 | BQ12: 0 | BR12: 0 | BW12: 6 | BX12: ='D. Epi Parameters'!D19 -> 0.1707119341 | BY12: 0
C13: R0 | E13: =IF($BK$5 = $BF$6, BR6, IF($BK$5 = $BF$7, BR7, BR8)) -> 2.5 | F13: 2 | BA13: New cases, daily | BJ13: 4 | BK13: =VLOOKUP(BJ13, 'Calc - Base'!$H$35:$I$400, 2) -> 2021-01-05 | BL13: =IF($BK$5 = $BF$6, 'Case Counts'!W8, IF($BK$5 = $BF$7, 'Case Counts'!X8, 'Case Counts'!Y8)) -> 1478.663182 | BM13: ='Calc - SA_Case Counts'!L39 ->  | BN13: =IF($BK$5 = $BF$6, 'Case Counts'!AA8, IF($BK$5 = $BF$7, 'Case Counts'!AB8, 'Case Counts'!AC8)) -> 40904.95886 | BQ13: =ROUNDUP(MAX(BL9:BM374), -2) ->  | BR13: =ROUNDUP(MAX(BN9:BO374), -2) ->  | BW13: 7 | BX13: ='D. Epi Parameters'!D20 -> 0.1451776603 | BY13: 0
C14: Date Contact Tracing Begins | E14: =IF($BK$5 = $BF$6, BS6, IF($BK$5 = $BF$7, BS7, BS8)) -> 2021-01-01 | F14: 2020-10-30 | BA14: =IFERROR(_xlfn.CONCAT(BA9, "(", $BA$10, " ", $BB$10, ")"), CONCATENATE(BA9, "(", $BA$10, " ", $BB$10, ")")) -> Cumulative cases by strategy (Contact Tracing Starts 0-Jan-1900) | BJ14: 5 | BK14: =VLOOKUP(BJ14, 'Calc - Base'!$H$35:$I$400, 2) -> 2021-01-06 | BL14: =IF($BK$5 = $BF$6, 'Case Counts'!W9, IF($BK$5 = $BF$7, 'Case Counts'!X9, 'Case Counts'!Y9)) -> 1713.107257 | BM14: ='Calc - SA_Case Counts'!L40 ->  | BN14: =IF($BK$5 = $BF$6, 'Case Counts'!AA9, IF($BK$5 = $BF$7, 'Case Counts'!AB9, 'Case Counts'!AC9)) -> 42618.06612 | BQ14: Contact Tracing Begins | BW14: 8 | BX14: ='D. Epi Parameters'!D21 -> 0.112677035 | BY14: 0
C15: Days after infection that isolation starts | E15: =IF($BK$5 = $BF$6, BT6, IF($BK$5 = $BF$7, BT7, BT8)) -> 0 | F15: 6 | BA15: Y-axis labels | BB15: X-axis labels | BJ15: 6 | BK15: =VLOOKUP(BJ15, 'Calc - Base'!$H$35:$I$400, 2) -> 2021-01-07 | BL15: =IF($BK$5 = $BF$6, 'Case Counts'!W10, IF($BK$5 = $BF$7, 'Case Counts'!X10, 'Case Counts'!Y10)) -> 1969.70934 | BM15: ='Calc - SA_Case Counts'!L41 ->  | BN15: =IF($BK$5 = $BF$6, 'Case Counts'!AA10, IF($BK$5 = $BF$7, 'Case Counts'!AB10, 'Case Counts'!AC10)) -> 44587.77546 | BQ15: Date | BR15: Day | BW15: 9 | BX15: ='D. Epi Parameters'!D22 -> 0.08101811276 | BY15: 0
C16: % CT adherence | E16: =IF($BK$5 = $BF$6, BU6, IF($BK$5 = $BF$7, BU7, BU8)) -> 0 | F16: 0.85 | BA16: Cases | BB16: Days | BJ16: 7 | BK16: =VLOOKUP(BJ16, 'Calc - Base'!$H$35:$I$400, 2) -> 2021-01-08 | BL16: =IF($BK$5 = $BF$6, 'Case Counts'!W11, IF($BK$5 = $BF$7, 'Case Counts'!X11, 'Case Counts'!Y11)) -> 2237.947708 | BM16: ='Calc - SA_Case Counts'!L42 ->  | BN16: =IF($BK$5 = $BF$6, 'Case Counts'!AA11, IF($BK$5 = $BF$7, 'Case Counts'!AB11, 'Case Counts'!AC11)) -> 46825.72317 | BP16: Base | BQ16: =E14 -> 2021-01-01 | BR16: =INDEX($BJ$9:$BJ$374, MATCH(BQ16, $BK$9:$BK$374, 0)) -> 0 | BW16: 10 | BX16: ='D. Epi Parameters'!D23 -> 0.05481117246 | BY16: 0
BA17: Staff | BJ17: 8 | BK17: =VLOOKUP(BJ17, 'Calc - Base'!$H$35:$I$400, 2) -> 2021-01-09 | BL17: =IF($BK$5 = $BF$6, 'Case Counts'!W12, IF($BK$5 = $BF$7, 'Case Counts'!X12, 'Case Counts'!Y12)) -> 2545.333984 | BM17: ='Calc - SA_Case Counts'!L43 ->  | BN17: =IF($BK$5 = $BF$6, 'Case Counts'!AA12, IF($BK$5 = $BF$7, 'Case Counts'!AB12, 'Case Counts'!AC12)) -> 49371.05715 | BP17: What-If | BQ17: =F14 -> 2020-10-30 | BR17: =INDEX($BJ$9:$BJ$374, MATCH(BQ17, $BK$9:$BK$374, 0)) ->  | BW17: 11 | BX17: ='D. Epi Parameters'!D24 -> 0.03553690464 | BY17: 0
BJ18: 9 | BK18: =VLOOKUP(BJ18, 'Calc - Base'!$H$35:$I$400, 2) -> 2021-01-10 | BL18: =IF($BK$5 = $BF$6, 'Case Counts'!W13, IF($BK$5 = $BF$7, 'Case Counts'!X13, 'Case Counts'!Y13)) -> 2902.111681 | BM18: ='Calc - SA_Case Counts'!L44 ->  | BN18: =IF($BK$5 = $BF$6, 'Case Counts'!AA13, IF($BK$5 = $BF$7, 'Case Counts'!AB13, 'Case Counts'!AC13)) -> 52273.16883 | BW18: 12 | BX18: ='D. Epi Parameters'!D25 -> 0.02262657797 | BY18: 0
BJ19: 10 | BK19: =VLOOKUP(BJ19, 'Calc - Base'!$H$35:$I$400, 2) -> 2021-01-11 | BL19: =IF($BK$5 = $BF$6, 'Case Counts'!W14, IF($BK$5 = $BF$7, 'Case Counts'!X14, 'Case Counts'!Y14)) -> 3313.043061 | BM19: ='Calc - SA_Case Counts'!L45 ->  | BN19: =IF($BK$5 = $BF$6, 'Case Counts'!AA14, IF($BK$5 = $BF$7, 'Case Counts'!AB14, 'Case Counts'!AC14)) -> 55586.21189 | BW19: 13 | BX19: ='D. Epi Parameters'!D26 -> 0.01462363492 | BY19: 0
BJ20: 11 | BK20: =VLOOKUP(BJ20, 'Calc - Base'!$H$35:$I$400, 2) -> 2021-01-12 | BL20: =IF($BK$5 = $BF$6, 'Case Counts'!W15, IF($BK$5 = $BF$7, 'Case Counts'!X15, 'Case Counts'!Y15)) -> 3775.671177 | BM20: ='Calc - SA_Case Counts'!L46 ->  | BN20: =IF($BK$5 = $BF$6, 'Case Counts'!AA15, IF($BK$5 = $BF$7, 'Case Counts'!AB15, 'Case Counts'!AC15)) -> 59361.88307 | BQ20: Lower | BR20: Upper | BW20: 14 | BX20: ='D. Epi Parameters'!D27 -> 0.01478414908 | BY20: 0
BJ21: 12 | BK21: =VLOOKUP(BJ21, 'Calc - Base'!$H$35:$I$400, 2) -> 2021-01-13 | BL21: =IF($BK$5 = $BF$6, 'Case Counts'!W16, IF($BK$5 = $BF$7, 'Case Counts'!X16, 'Case Counts'!Y16)) -> 4295.468975 | BM21: ='Calc - SA_Case Counts'!L47 ->  | BN21: =IF($BK$5 = $BF$6, 'Case Counts'!AA16, IF($BK$5 = $BF$7, 'Case Counts'!AB16, 'Case Counts'!AC16)) -> 63657.35204 | BP21: =BF6 -> No Contact Tracing | BQ21: =MAX('Staff Needed'!V5:V370) -> 90.97518665 | BR21: =MAX('Staff Needed'!W5:W370) -> 272.9255599
BJ22: 13 | BK22: =VLOOKUP(BJ22, 'Calc - Base'!$H$35:$I$400, 2) -> 2021-01-14 | BL22: =IF($BK$5 = $BF$6, 'Case Counts'!W17, IF($BK$5 = $BF$7, 'Case Counts'!X17, 'Case Counts'!Y17)) -> 4881.084841 | BM22: ='Calc - SA_Case Counts'!L48 ->  | BN22: =IF($BK$5 = $BF$6, 'Case Counts'!AA17, IF($BK$5 = $BF$7, 'Case Counts'!AB17, 'Case Counts'!AC17)) -> 68538.43689 | BP22: =BF7 -> Continued Contact Tracing | BQ22: =MAX('Staff Needed'!X5:X370) -> 395.61725 | BR22: =MAX('Staff Needed'!Y5:Y370) -> 3052.268647
BJ23: 14 | BK23: =VLOOKUP(BJ23, 'Calc - Base'!$H$35:$I$400, 2) -> 2021-01-15 | BL23: =IF($BK$5 = $BF$6, 'Case Counts'!W18, IF($BK$5 = $BF$7, 'Case Counts'!X18, 'Case Counts'!Y18)) -> 5544.667807 | BM23: ='Calc - SA_Case Counts'!L49 ->  | BN23: =IF($BK$5 = $BF$6, 'Case Counts'!AA18, IF($BK$5 = $BF$7, 'Case Counts'!AB18, 'Case Counts'!AC18)) -> 74083.10469 | BP23: =BF8 -> Strategy 3 (Optional) | BQ23: =MAX('Staff Needed'!Z5:Z370) -> 2985.292278 | BR23: =MAX('Staff Needed'!AA5:AA370) -> 8955.876835
BJ24: 15 | BK24: =VLOOKUP(BJ24, 'Calc - Base'!$H$35:$I$400, 2) -> 2021-01-16 | BL24: =IF($BK$5 = $BF$6, 'Case Counts'!W19, IF($BK$5 = $BF$7, 'Case Counts'!X19, 'Case Counts'!Y19)) -> 6285.194045 | BM24: ='Calc - SA_Case Counts'!L50 ->  | BN24: =IF($BK$5 = $BF$6, 'Case Counts'!AA19, IF($BK$5 = $BF$7, 'Case Counts'!AB19, 'Case Counts'!AC19)) -> 80368.29874
BJ25: 16 | BK25: =VLOOKUP(BJ25, 'Calc - Base'!$H$35:$I$400, 2) -> 2021-01-17 | BL25: =IF($BK$5 = $BF$6, 'Case Counts'!W20, IF($BK$5 = $BF$7, 'Case Counts'!X20, 'Case Counts'!Y20)) -> 7114.3762 | BM25: ='Calc - SA_Case Counts'!L51 ->  | BN25: =IF($BK$5 = $BF$6, 'Case Counts'!AA20, IF($BK$5 = $BF$7, 'Case Counts'!AB20, 'Case Counts'!AC20)) -> 87482.67494 | BQ25: Lower | BR25: Upper
BJ26: 17 | BK26: =VLOOKUP(BJ26, 'Calc - Base'!$H$35:$I$400, 2) -> 2021-01-18 | BL26: =IF($BK$5 = $BF$6, 'Case Counts'!W21, IF($BK$5 = $BF$7, 'Case Counts'!X21, 'Case Counts'!Y21)) -> 8039.018484 | BM26: ='Calc - SA_Case Counts'!L52 ->  | BN26: =IF($BK$5 = $BF$6, 'Case Counts'!AA21, IF($BK$5 = $BF$7, 'Case Counts'!AB21, 'Case Counts'!AC21)) -> 95521.69342 | BP26: =K30 -> Original Scenario | BQ26: =IF($BK$5 = $BF$6, BQ21, IF($BK$5=$BF$7, BQ22,BQ23)) -> 2985.292278 | BR26: =IF($BK$5 = $BF$6, BR21, IF($BK$5=$BF$7, BR22,BR23)) -> 8955.876835
BJ27: 18 | BK27: =VLOOKUP(BJ27, 'Calc - Base'!$H$35:$I$400, 2) -> 2021-01-19 | BL27: =IF($BK$5 = $BF$6, 'Case Counts'!W22, IF($BK$5 = $BF$7, 'Case Counts'!X22, 'Case Counts'!Y22)) -> 9068.502363 | BM27: ='Calc - SA_Case Counts'!L53 ->  | BN27: =IF($BK$5 = $BF$6, 'Case Counts'!AA22, IF($BK$5 = $BF$7, 'Case Counts'!AB22, 'Case Counts'!AC22)) -> 104590.1958 | BP27: =L30 -> What-If | BQ27: =MAX('Calc - SA_Case Counts'!AT40:AT405) ->  | BR27: =MAX('Calc - SA_Case Counts'!AU40:AU405) -> 
BJ28: 19 | BK28: =VLOOKUP(BJ28, 'Calc - Base'!$H$35:$I$400, 2) -> 2021-01-20 | BL28: =IF($BK$5 = $BF$6, 'Case Counts'!W23, IF($BK$5 = $BF$7, 'Case Counts'!X23, 'Case Counts'!Y23)) -> 10205.36426 | BM28: ='Calc - SA_Case Counts'!L54 ->  | BN28: =IF($BK$5 = $BF$6, 'Case Counts'!AA23, IF($BK$5 = $BF$7, 'Case Counts'!AB23, 'Case Counts'!AC23)) -> 114795.56
BJ29: 20 | BK29: =VLOOKUP(BJ29, 'Calc - Base'!$H$35:$I$400, 2) -> 2021-01-21 | BL29: =IF($BK$5 = $BF$6, 'Case Counts'!W24, IF($BK$5 = $BF$7, 'Case Counts'!X24, 'Case Counts'!Y24)) -> 11454.09129 | BM29: ='Calc - SA_Case Counts'!L55 ->  | BN29: =IF($BK$5 = $BF$6, 'Case Counts'!AA24, IF($BK$5 = $BF$7, 'Case Counts'!AB24, 'Case Counts'!AC24)) -> 126249.6513 | BQ29: Base | BR29: What-If
K30: =E12 -> Original Scenario | L30: =F12 -> What-If | M30: Difference | BJ30: 21 | BK30: =VLOOKUP(BJ30, 'Calc - Base'!$H$35:$I$400, 2) -> 2021-01-22 | BL30: =IF($BK$5 = $BF$6, 'Case Counts'!W25, IF($BK$5 = $BF$7, 'Case Counts'!X25, 'Case Counts'!Y25)) -> 12817.3483 | BM30: ='Calc - SA_Case Counts'!L56 ->  | BN30: =IF($BK$5 = $BF$6, 'Case Counts'!AA25, IF($BK$5 = $BF$7, 'Case Counts'!AB25, 'Case Counts'!AC25)) -> 139066.9996 | BP30: Day of Peak | BQ30: =INDEX(BJ9:BJ374, MATCH($BQ$32, BL9:BL374, 0)) -> 36 | BR30: =INDEX(BJ9:BJ374, MATCH($BR$32, BM9:BM374, 0)) -> 
I31: Duration (days) | K31: =IF($BL$374>=1,"> 365", SUM(COUNTIF($BL$9:$BL$374,">=1"))) -> 102 | L31: =IF($BM$374>=1,"> 365", SUM(COUNTIF($BM$9:$BM$374,">=1"))) ->  | M31: =IFERROR(L31-K31, "N/A") -> N/A | BJ31: 22 | BK31: =VLOOKUP(BJ31, 'Calc - Base'!$H$35:$I$400, 2) -> 2021-01-23 | BL31: =IF($BK$5 = $BF$6, 'Case Counts'!W26, IF($BK$5 = $BF$7, 'Case Counts'!X26, 'Case Counts'!Y26)) -> 14296.6552 | BM31: ='Calc - SA_Case Counts'!L57 ->  | BN31: =IF($BK$5 = $BF$6, 'Case Counts'!AA26, IF($BK$5 = $BF$7, 'Case Counts'!AB26, 'Case Counts'!AC26)) -> 153363.6548 | BP31: Date of Peak | BQ31: =INDEX(BK9:BK374, MATCH($BQ$32, BL9:BL374, 0)) -> 2021-02-06 | BR31: =INDEX(BK9:BK374, MATCH($BR$32, BM9:BM374, 0)) -> 
I32: Day of Peak | K32: =BQ31 -> 2021-02-06 | L32: =BR31 ->  | M32: =IFERROR(L32-K32, "N/A") -> N/A | BJ32: 23 | BK32: =VLOOKUP(BJ32, 'Calc - Base'!$H$35:$I$400, 2) -> 2021-01-24 | BL32: =IF($BK$5 = $BF$6, 'Case Counts'!W27, IF($BK$5 = $BF$7, 'Case Counts'!X27, 'Case Counts'!Y27)) -> 15888.10621 | BM32: ='Calc - SA_Case Counts'!L58 ->  | BN32: =IF($BK$5 = $BF$6, 'Case Counts'!AA27, IF($BK$5 = $BF$7, 'Case Counts'!AB27, 'Case Counts'!AC27)) -> 169251.761 | BP32: Cases @ Peak | BQ32: =MAX(BL9:BL374) -> 34117.62604 | BR32: =MAX(BM9:BM374) -> 
I33: Cases @ Peak | K33: =BQ32 -> 34117.62604 | L33: =BR32 ->  | M33: N/A | BJ33: 24 | BK33: =VLOOKUP(BJ33, 'Calc - Base'!$H$35:$I$400, 2) -> 2021-01-25 | BL33: =IF($BK$5 = $BF$6, 'Case Counts'!W28, IF($BK$5 = $BF$7, 'Case Counts'!X28, 'Case Counts'!Y28)) -> 17582.96676 | BM33: ='Calc - SA_Case Counts'!L59 ->  | BN33: =IF($BK$5 = $BF$6, 'Case Counts'!AA28, IF($BK$5 = $BF$7, 'Case Counts'!AB28, 'Case Counts'!AC28)) -> 186834.7278
I34: Total number of cases | K34: =MAX(BN9:BN374) -> 895451.6062 | L34: =MAX(BO9:BO374) ->  | M34: =L34-K34 ->  | BJ34: 25 | BK34: =VLOOKUP(BJ34, 'Calc - Base'!$H$35:$I$400, 2) -> 2021-01-26 | BL34: =IF($BK$5 = $BF$6, 'Case Counts'!W29, IF($BK$5 = $BF$7, 'Case Counts'!X29, 'Case Counts'!Y29)) -> 19366.87386 | BM34: ='Calc - SA_Case Counts'!L60 ->  | BN34: =IF($BK$5 = $BF$6, 'Case Counts'!AA29, IF($BK$5 = $BF$7, 'Case Counts'!AB29, 'Case Counts'!AC29)) -> 206201.6016
BJ35: 26 | BK35: =VLOOKUP(BJ35, 'Calc - Base'!$H$35:$I$400, 2) -> 2021-01-27 | BL35: =IF($BK$5 = $BF$6, 'Case Counts'!W30, IF($BK$5 = $BF$7, 'Case Counts'!X30, 'Case Counts'!Y30)) -> 21219.71536 | BM35: ='Calc - SA_Case Counts'!L61 ->  | BN35: =IF($BK$5 = $BF$6, 'Case Counts'!AA30, IF($BK$5 = $BF$7, 'Case Counts'!AB30, 'Case Counts'!AC30)) -> 227421.317
BJ36: 27 | BK36: =VLOOKUP(BJ36, 'Calc - Base'!$H$35:$I$400, 2) -> 2021-01-28 | BL36: =IF($BK$5 = $BF$6, 'Case Counts'!W31, IF($BK$5 = $BF$7, 'Case Counts'!X31, 'Case Counts'!Y31)) -> 23113.99196 | BM36: ='Calc - SA_Case Counts'!L62 ->  | BN36: =IF($BK$5 = $BF$6, 'Case Counts'!AA31, IF($BK$5 = $BF$7, 'Case Counts'!AB31, 'Case Counts'!AC31)) -> 250535.309
BJ37: 28 | BK37: =VLOOKUP(BJ37, 'Calc - Base'!$H$35:$I$400, 2) -> 2021-01-29 | BL37: =IF($BK$5 = $BF$6, 'Case Counts'!W32, IF($BK$5 = $BF$7, 'Case Counts'!X32, 'Case Counts'!Y32)) -> 25014.06615 | BM37: ='Calc - SA_Case Counts'!L63 ->  | BN37: =IF($BK$5 = $BF$6, 'Case Counts'!AA32, IF($BK$5 = $BF$7, 'Case Counts'!AB32, 'Case Counts'!AC32)) -> 275549.3751
BJ38: 29 | BK38: =VLOOKUP(BJ38, 'Calc - Base'!$H$35:$I$400, 2) -> 2021-01-30 | BL38: =IF($BK$5 = $BF$6, 'Case Counts'!W33, IF($BK$5 = $BF$7, 'Case Counts'!X33, 'Case Counts'!Y33)) -> 26875.81874 | BM38: ='Calc - SA_Case Counts'!L64 ->  | BN38: =IF($BK$5 = $BF$6, 'Case Counts'!AA33, IF($BK$5 = $BF$7, 'Case Counts'!AB33, 'Case Counts'!AC33)) -> 302425.1939
BJ39: 30 | BK39: =VLOOKUP(BJ39, 'Calc - Base'!$H$35:$I$400, 2) -> 2021-01-31 | BL39: =IF($BK$5 = $BF$6, 'Case Counts'!W34, IF($BK$5 = $BF$7, 'Case Counts'!X34, 'Case Counts'!Y34)) -> 28647.88584 | BM39: ='Calc - SA_Case Counts'!L65 ->  | BN39: =IF($BK$5 = $BF$6, 'Case Counts'!AA34, IF($BK$5 = $BF$7, 'Case Counts'!AB34, 'Case Counts'!AC34)) -> 331073.0797
BJ40: 31 | BK40: =VLOOKUP(BJ40, 'Calc - Base'!$H$35:$I$400, 2) -> 2021-02-01 | BL40: =IF($BK$5 = $BF$6, 'Case Counts'!W35, IF($BK$5 = $BF$7, 'Case Counts'!X35, 'Case Counts'!Y35)) -> 30272.69101 | BM40: ='Calc - SA_Case Counts'!L66 ->  | BN40: =IF($BK$5 = $BF$6, 'Case Counts'!AA35, IF($BK$5 = $BF$7, 'Case Counts'!AB35, 'Case Counts'!AC35)) -> 361345.7707
BJ41: 32 | BK41: =VLOOKUP(BJ41, 'Calc - Base'!$H$35:$I$400, 2) -> 2021-02-02 | BL41: =IF($BK$5 = $BF$6, 'Case Counts'!W36, IF($BK$5 = $BF$7, 'Case Counts'!X36, 'Case Counts'!Y36)) -> 31688.91487 | BM41: ='Calc - SA_Case Counts'!L67 ->  | BN41: =IF($BK$5 = $BF$6, 'Case Counts'!AA36, IF($BK$5 = $BF$7, 'Case Counts'!AB36, 'Case Counts'!AC36)) -> 393034.6856
BJ42: 33 | BK42: =VLOOKUP(BJ42, 'Calc - Base'!$H$35:$I$400, 2) -> 2021-02-03 | BL42: =IF($BK$5 = $BF$6, 'Case Counts'!W37, IF($BK$5 = $BF$7, 'Case Counts'!X37, 'Case Counts'!Y37)) -> 32834.64618 | BM42: ='Calc - SA_Case Counts'!L68 ->  | BN42: =IF($BK$5 = $BF$6, 'Case Counts'!AA37, IF($BK$5 = $BF$7, 'Case Counts'!AB37, 'Case Counts'!AC37)) -> 425869.3318
BJ43: 34 | BK43: =VLOOKUP(BJ43, 'Calc - Base'!$H$35:$I$400, 2) -> 2021-02-04 | BL43: =IF($BK$5 = $BF$6, 'Case Counts'!W38, IF($BK$5 = $BF$7, 'Case Counts'!X38, 'Case Counts'!Y38)) -> 33651.90003 | BM43: ='Calc - SA_Case Counts'!L69 ->  | BN43: =IF($BK$5 = $BF$6, 'Case Counts'!AA38, IF($BK$5 = $BF$7, 'Case Counts'!AB38, 'Case Counts'!AC38)) -> 459521.2318
BJ44: 35 | BK44: =VLOOKUP(BJ44, 'Calc - Base'!$H$35:$I$400, 2) -> 2021-02-05 | BL44: =IF($BK$5 = $BF$6, 'Case Counts'!W39, IF($BK$5 = $BF$7, 'Case Counts'!X39, 'Case Counts'!Y39)) -> 34091.41012 | BM44: ='Calc - SA_Case Counts'!L70 ->  | BN44: =IF($BK$5 = $BF$6, 'Case Counts'!AA39, IF($BK$5 = $BF$7, 'Case Counts'!AB39, 'Case Counts'!AC39)) -> 493612.6419
BJ45: 36 | BK45: =VLOOKUP(BJ45, 'Calc - Base'!$H$35:$I$400, 2) -> 2021-02-06 | BL45: =IF($BK$5 = $BF$6, 'Case Counts'!W40, IF($BK$5 = $BF$7, 'Case Counts'!X40, 'Case Counts'!Y40)) -> 34117.62604 | BM45: ='Calc - SA_Case Counts'!L71 ->  | BN45: =IF($BK$5 = $BF$6, 'Case Counts'!AA40, IF($BK$5 = $BF$7, 'Case Counts'!AB40, 'Case Counts'!AC40)) -> 527730.2679
BJ46: 37 | BK46: =VLOOKUP(BJ46, 'Calc - Base'!$H$35:$I$400, 2) -> 2021-02-07 | BL46: =IF($BK$5 = $BF$6, 'Case Counts'!W41, IF($BK$5 = $BF$7, 'Case Counts'!X41, 'Case Counts'!Y41)) -> 33713.02191 | BM46: ='Calc - SA_Case Counts'!L72 ->  | BN46: =IF($BK$5 = $BF$6, 'Case Counts'!AA41, IF($BK$5 = $BF$7, 'Case Counts'!AB41, 'Case Counts'!AC41)) -> 561443.2898
BJ47: 38 | BK47: =VLOOKUP(BJ47, 'Calc - Base'!$H$35:$I$400, 2) -> 2021-02-08 | BL47: =IF($BK$5 = $BF$6, 'Case Counts'!W42, IF($BK$5 = $BF$7, 'Case Counts'!X42, 'Case Counts'!Y42)) -> 32881.19617 | BM47: ='Calc - SA_Case Counts'!L73 ->  | BN47: =IF($BK$5 = $BF$6, 'Case Counts'!AA42, IF($BK$5 = $BF$7, 'Case Counts'!AB42, 'Case Counts'!AC42)) -> 594324.486
BJ48: 39 | BK48: =VLOOKUP(BJ48, 'Calc - Base'!$H$35:$I$400, 2) -> 2021-02-09 | BL48: =IF($BK$5 = $BF$6, 'Case Counts'!W43, IF($BK$5 = $BF$7, 'Case Counts'!X43, 'Case Counts'!Y43)) -> 31647.93002 | BM48: ='Calc - SA_Case Counts'!L74 ->  | BN48: =IF($BK$5 = $BF$6, 'Case Counts'!AA43, IF($BK$5 = $BF$7, 'Case Counts'!AB43, 'Case Counts'!AC43)) -> 625972.416
BJ49: 40 | BK49: =VLOOKUP(BJ49, 'Calc - Base'!$H$35:$I$400, 2) -> 2021-02-10 | BL49: =IF($BK$5 = $BF$6, 'Case Counts'!W44, IF($BK$5 = $BF$7, 'Case Counts'!X44, 'Case Counts'!Y44)) -> 30059.87834 | BM49: ='Calc - SA_Case Counts'!L75 ->  | BN49: =IF($BK$5 = $BF$6, 'Case Counts'!AA44, IF($BK$5 = $BF$7, 'Case Counts'!AB44, 'Case Counts'!AC44)) -> 656032.2944
BJ50: 41 | BK50: =VLOOKUP(BJ50, 'Calc - Base'!$H$35:$I$400, 2) -> 2021-02-11 | BL50: =IF($BK$5 = $BF$6, 'Case Counts'!W45, IF($BK$5 = $BF$7, 'Case Counts'!X45, 'Case Counts'!Y45)) -> 28180.87646 | BM50: ='Calc - SA_Case Counts'!L76 ->  | BN50: =IF($BK$5 = $BF$6, 'Case Counts'!AA45, IF($BK$5 = $BF$7, 'Case Counts'!AB45, 'Case Counts'!AC45)) -> 684213.1708
BJ51: 42 | BK51: =VLOOKUP(BJ51, 'Calc - Base'!$H$35:$I$400, 2) -> 2021-02-12 | BL51: =IF($BK$5 = $BF$6, 'Case Counts'!W46, IF($BK$5 = $BF$7, 'Case Counts'!X46, 'Case Counts'!Y46)) -> 26086.37402 | BM51: ='Calc - SA_Case Counts'!L77 ->  | BN51: =IF($BK$5 = $BF$6, 'Case Counts'!AA46, IF($BK$5 = $BF$7, 'Case Counts'!AB46, 'Case Counts'!AC46)) -> 710299.5449
BJ52: 43 | BK52: =VLOOKUP(BJ52, 'Calc - Base'!$H$35:$I$400, 2) -> 2021-02-13 | BL52: =IF($BK$5 = $BF$6, 'Case Counts'!W47, IF($BK$5 = $BF$7, 'Case Counts'!X47, 'Case Counts'!Y47)) -> 23856.80613 | BM52: ='Calc - SA_Case Counts'!L78 ->  | BN52: =IF($BK$5 = $BF$6, 'Case Counts'!AA47, IF($BK$5 = $BF$7, 'Case Counts'!AB47, 'Case Counts'!AC47)) -> 734156.351
BJ53: 44 | BK53: =VLOOKUP(BJ53, 'Calc - Base'!$H$35:$I$400, 2) -> 2021-02-14 | BL53: =IF($BK$5 = $BF$6, 'Case Counts'!W48, IF($BK$5 = $BF$7, 'Case Counts'!X48, 'Case Counts'!Y48)) -> 21570.92407 | BM53: ='Calc - SA_Case Counts'!L79 ->  | BN53: =IF($BK$5 = $BF$6, 'Case Counts'!AA48, IF($BK$5 = $BF$7, 'Case Counts'!AB48, 'Case Counts'!AC48)) -> 755727.2751
BJ54: 45 | BK54: =VLOOKUP(BJ54, 'Calc - Base'!$H$35:$I$400, 2) -> 2021-02-15 | BL54: =IF($BK$5 = $BF$6, 'Case Counts'!W49, IF($BK$5 = $BF$7, 'Case Counts'!X49, 'Case Counts'!Y49)) -> 19300.03496 | BM54: ='Calc - SA_Case Counts'!L80 ->  | BN54: =IF($BK$5 = $BF$6, 'Case Counts'!AA49, IF($BK$5 = $BF$7, 'Case Counts'!AB49, 'Case Counts'!AC49)) -> 775027.31
BJ55: 46 | BK55: =VLOOKUP(BJ55, 'Calc - Base'!$H$35:$I$400, 2) -> 2021-02-16 | BL55: =IF($BK$5 = $BF$6, 'Case Counts'!W50, IF($BK$5 = $BF$7, 'Case Counts'!X50, 'Case Counts'!Y50)) -> 17103.86228 | BM55: ='Calc - SA_Case Counts'!L81 ->  | BN55: =IF($BK$5 = $BF$6, 'Case Counts'!AA50, IF($BK$5 = $BF$7, 'Case Counts'!AB50, 'Case Counts'!AC50)) -> 792131.1723
BJ56: 47 | BK56: =VLOOKUP(BJ56, 'Calc - Base'!$H$35:$I$400, 2) -> 2021-02-17 | BL56: =IF($BK$5 = $BF$6, 'Case Counts'!W51, IF($BK$5 = $BF$7, 'Case Counts'!X51, 'Case Counts'!Y51)) -> 15028.32358 | BM56: ='Calc - SA_Case Counts'!L82 ->  | BN56: =IF($BK$5 = $BF$6, 'Case Counts'!AA51, IF($BK$5 = $BF$7, 'Case Counts'!AB51, 'Case Counts'!AC51)) -> 807159.4959
BJ57: 48 | BK57: =VLOOKUP(BJ57, 'Calc - Base'!$H$35:$I$400, 2) -> 2021-02-18 | BL57: =IF($BK$5 = $BF$6, 'Case Counts'!W52, IF($BK$5 = $BF$7, 'Case Counts'!X52, 'Case Counts'!Y52)) -> 13105.14194 | BM57: ='Calc - SA_Case Counts'!L83 ->  | BN57: =IF($BK$5 = $BF$6, 'Case Counts'!AA52, IF($BK$5 = $BF$7, 'Case Counts'!AB52, 'Case Counts'!AC52)) -> 820264.6378
BJ58: 49 | BK58: =VLOOKUP(BJ58, 'Calc - Base'!$H$35:$I$400, 2) -> 2021-02-19 | BL58: =IF($BK$5 = $BF$6, 'Case Counts'!W53, IF($BK$5 = $BF$7, 'Case Counts'!X53, 'Case Counts'!Y53)) -> 11352.909 | BM58: ='Calc - SA_Case Counts'!L84 ->  | BN58: =IF($BK$5 = $BF$6, 'Case Counts'!AA53, IF($BK$5 = $BF$7, 'Case Counts'!AB53, 'Case Counts'!AC53)) -> 831617.5468
BJ59: 50 | BK59: =VLOOKUP(BJ59, 'Calc - Base'!$H$35:$I$400, 2) -> 2021-02-20 | BL59: =IF($BK$5 = $BF$6, 'Case Counts'!W54, IF($BK$5 = $BF$7, 'Case Counts'!X54, 'Case Counts'!Y54)) -> 9779.087887 | BM59: ='Calc - SA_Case Counts'!L85 ->  | BN59: =IF($BK$5 = $BF$6, 'Case Counts'!AA54, IF($BK$5 = $BF$7, 'Case Counts'!AB54, 'Case Counts'!AC54)) -> 841396.6347
BJ60: 51 | BK60: =VLOOKUP(BJ60, 'Calc - Base'!$H$35:$I$400, 2) -> 2021-02-21 | BL60: =IF($BK$5 = $BF$6, 'Case Counts'!W55, IF($BK$5 = $BF$7, 'Case Counts'!X55, 'Case Counts'!Y55)) -> 8382.441895 | BM60: ='Calc - SA_Case Counts'!L86 ->  | BN60: =IF($BK$5 = $BF$6, 'Case Counts'!AA55, IF($BK$5 = $BF$7, 'Case Counts'!AB55, 'Case Counts'!AC55)) -> 849779.0766
BJ61: 52 | BK61: =VLOOKUP(BJ61, 'Calc - Base'!$H$35:$I$400, 2) -> 2021-02-22 | BL61: =IF($BK$5 = $BF$6, 'Case Counts'!W56, IF($BK$5 = $BF$7, 'Case Counts'!X56, 'Case Counts'!Y56)) -> 7155.476411 | BM61: ='Calc - SA_Case Counts'!L87 ->  | BN61: =IF($BK$5 = $BF$6, 'Case Counts'!AA56, IF($BK$5 = $BF$7, 'Case Counts'!AB56, 'Case Counts'!AC56)) -> 856934.553
BJ62: 53 | BK62: =VLOOKUP(BJ62, 'Calc - Base'!$H$35:$I$400, 2) -> 2021-02-23 | BL62: =IF($BK$5 = $BF$6, 'Case Counts'!W57, IF($BK$5 = $BF$7, 'Case Counts'!X57, 'Case Counts'!Y57)) -> 6086.619498 | BM62: ='Calc - SA_Case Counts'!L88 ->  | BN62: =IF($BK$5 = $BF$6, 'Case Counts'!AA57, IF($BK$5 = $BF$7, 'Case Counts'!AB57, 'Case Counts'!AC57)) -> 863021.1725
BJ63: 54 | BK63: =VLOOKUP(BJ63, 'Calc - Base'!$H$35:$I$400, 2) -> 2021-02-24 | BL63: =IF($BK$5 = $BF$6, 'Case Counts'!W58, IF($BK$5 = $BF$7, 'Case Counts'!X58, 'Case Counts'!Y58)) -> 5162.004022 | BM63: ='Calc - SA_Case Counts'!L89 ->  | BN63: =IF($BK$5 = $BF$6, 'Case Counts'!AA58, IF($BK$5 = $BF$7, 'Case Counts'!AB58, 'Case Counts'!AC58)) -> 868183.1765
BJ64: 55 | BK64: =VLOOKUP(BJ64, 'Calc - Base'!$H$35:$I$400, 2) -> 2021-02-25 | BL64: =IF($BK$5 = $BF$6, 'Case Counts'!W59, IF($BK$5 = $BF$7, 'Case Counts'!X59, 'Case Counts'!Y59)) -> 4366.81882 | BM64: ='Calc - SA_Case Counts'!L90 ->  | BN64: =IF($BK$5 = $BF$6, 'Case Counts'!AA59, IF($BK$5 = $BF$7, 'Case Counts'!AB59, 'Case Counts'!AC59)) -> 872549.9954
BJ65: 56 | BK65: =VLOOKUP(BJ65, 'Calc - Base'!$H$35:$I$400, 2) -> 2021-02-26 | BL65: =IF($BK$5 = $BF$6, 'Case Counts'!W60, IF($BK$5 = $BF$7, 'Case Counts'!X60, 'Case Counts'!Y60)) -> 3686.26374 | BM65: ='Calc - SA_Case Counts'!L91 ->  | BN65: =IF($BK$5 = $BF$6, 'Case Counts'!AA60, IF($BK$5 = $BF$7, 'Case Counts'!AB60, 'Case Counts'!AC60)) -> 876236.2591
BJ66: 57 | BK66: =VLOOKUP(BJ66, 'Calc - Base'!$H$35:$I$400, 2) -> 2021-02-27 | BL66: =IF($BK$5 = $BF$6, 'Case Counts'!W61, IF($BK$5 = $BF$7, 'Case Counts'!X61, 'Case Counts'!Y61)) -> 3106.176026 | BM66: ='Calc - SA_Case Counts'!L92 ->  | BN66: =IF($BK$5 = $BF$6, 'Case Counts'!AA61, IF($BK$5 = $BF$7, 'Case Counts'!AB61, 'Case Counts'!AC61)) -> 879342.4351
BJ67: 58 | BK67: =VLOOKUP(BJ67, 'Calc - Base'!$H$35:$I$400, 2) -> 2021-02-28 | BL67: =IF($BK$5 = $BF$6, 'Case Counts'!W62, IF($BK$5 = $BF$7, 'Case Counts'!X62, 'Case Counts'!Y62)) -> 2613.404144 | BM67: ='Calc - SA_Case Counts'!L93 ->  | BN67: =IF($BK$5 = $BF$6, 'Case Counts'!AA62, IF($BK$5 = $BF$7, 'Case Counts'!AB62, 'Case Counts'!AC62)) -> 881955.8393
BJ68: 59 | BK68: =VLOOKUP(BJ68, 'Calc - Base'!$H$35:$I$400, 2) -> 2021-03-01 | BL68: =IF($BK$5 = $BF$6, 'Case Counts'!W63, IF($BK$5 = $BF$7, 'Case Counts'!X63, 'Case Counts'!Y63)) -> 2195.999124 | BM68: ='Calc - SA_Case Counts'!L94 ->  | BN68: =IF($BK$5 = $BF$6, 'Case Counts'!AA63, IF($BK$5 = $BF$7, 'Case Counts'!AB63, 'Case Counts'!AC63)) -> 884151.8384
BJ69: 60 | BK69: =VLOOKUP(BJ69, 'Calc - Base'!$H$35:$I$400, 2) -> 2021-03-02 | BL69: =IF($BK$5 = $BF$6, 'Case Counts'!W64, IF($BK$5 = $BF$7, 'Case Counts'!X64, 'Case Counts'!Y64)) -> 1843.281029 | BM69: ='Calc - SA_Case Counts'!L95 ->  | BN69: =IF($BK$5 = $BF$6, 'Case Counts'!AA64, IF($BK$5 = $BF$7, 'Case Counts'!AB64, 'Case Counts'!AC64)) -> 885995.1194
BJ70: 61 | BK70: =VLOOKUP(BJ70, 'Calc - Base'!$H$35:$I$400, 2) -> 2021-03-03 | BL70: =IF($BK$5 = $BF$6, 'Case Counts'!W65, IF($BK$5 = $BF$7, 'Case Counts'!X65, 'Case Counts'!Y65)) -> 1545.824286 | BM70: ='Calc - SA_Case Counts'!L96 ->  | BN70: =IF($BK$5 = $BF$6, 'Case Counts'!AA65, IF($BK$5 = $BF$7, 'Case Counts'!AB65, 'Case Counts'!AC65)) -> 887540.9437
BJ71: 62 | BK71: =VLOOKUP(BJ71, 'Calc - Base'!$H$35:$I$400, 2) -> 2021-03-04 | BL71: =IF($BK$5 = $BF$6, 'Case Counts'!W66, IF($BK$5 = $BF$7, 'Case Counts'!X66, 'Case Counts'!Y66)) -> 1295.393339 | BM71: ='Calc - SA_Case Counts'!L97 ->  | BN71: =IF($BK$5 = $BF$6, 'Case Counts'!AA66, IF($BK$5 = $BF$7, 'Case Counts'!AB66, 'Case Counts'!AC66)) -> 888836.3371
BJ72: 63 | BK72: =VLOOKUP(BJ72, 'Calc - Base'!$H$35:$I$400, 2) -> 2021-03-05 | BL72: =IF($BK$5 = $BF$6, 'Case Counts'!W67, IF($BK$5 = $BF$7, 'Case Counts'!X67, 'Case Counts'!Y67)) -> 1084.850382 | BM72: ='Calc - SA_Case Counts'!L98 ->  | BN72: =IF($BK$5 = $BF$6, 'Case Counts'!AA67, IF($BK$5 = $BF$7, 'Case Counts'!AB67, 'Case Counts'!AC67)) -> 889921.1874
BJ73: 64 | BK73: =VLOOKUP(BJ73, 'Calc - Base'!$H$35:$I$400, 2) -> 2021-03-06 | BL73: =IF($BK$5 = $BF$6, 'Case Counts'!W68, IF($BK$5 = $BF$7, 'Case Counts'!X68, 'Case Counts'!Y68)) -> 908.0498008 | BM73: ='Calc - SA_Case Counts'!L99 ->  | BN73: =IF($BK$5 = $BF$6, 'Case Counts'!AA68, IF($BK$5 = $BF$7, 'Case Counts'!AB68, 'Case Counts'!AC68)) -> 890829.2372
BJ74: 65 | BK74: =VLOOKUP(BJ74, 'Calc - Base'!$H$35:$I$400, 2) -> 2021-03-07 | BL74: =IF($BK$5 = $BF$6, 'Case Counts'!W69, IF($BK$5 = $BF$7, 'Case Counts'!X69, 'Case Counts'!Y69)) -> 759.7289353 | BM74: ='Calc - SA_Case Counts'!L100 ->  | BN74: =IF($BK$5 = $BF$6, 'Case Counts'!AA69, IF($BK$5 = $BF$7, 'Case Counts'!AB69, 'Case Counts'!AC69)) -> 891588.9662
BJ75: 66 | BK75: =VLOOKUP(BJ75, 'Calc - Base'!$H$35:$I$400, 2) -> 2021-03-08 | BL75: =IF($BK$5 = $BF$6, 'Case Counts'!W70, IF($BK$5 = $BF$7, 'Case Counts'!X70, 'Case Counts'!Y70)) -> 635.401344 | BM75: ='Calc - SA_Case Counts'!L101 ->  | BN75: =IF($BK$5 = $BF$6, 'Case Counts'!AA70, IF($BK$5 = $BF$7, 'Case Counts'!AB70, 'Case Counts'!AC70)) -> 892224.3675 | BO75: =BO74+BM75 -> 
BJ76: 67 | BK76: =VLOOKUP(BJ76, 'Calc - Base'!$H$35:$I$400, 2) -> 2021-03-09 | BL76: =IF($BK$5 = $BF$6, 'Case Counts'!W71, IF($BK$5 = $BF$7, 'Case Counts'!X71, 'Case Counts'!Y71)) -> 531.2563387 | BM76: ='Calc - SA_Case Counts'!L102 ->  | BN76: =IF($BK$5 = $BF$6, 'Case Counts'!AA71, IF($BK$5 = $BF$7, 'Case Counts'!AB71, 'Case Counts'!AC71)) -> 892755.6239
BJ77: 68 | BK77: =VLOOKUP(BJ77, 'Calc - Base'!$H$35:$I$400, 2) -> 2021-03-10 | BL77: =IF($BK$5 = $BF$6, 'Case Counts'!W72, IF($BK$5 = $BF$7, 'Case Counts'!X72, 'Case Counts'!Y72)) -> 444.066921 | BM77: ='Calc - SA_Case Counts'!L103 ->  | BN77: =IF($BK$5 = $BF$6, 'Case Counts'!AA72, IF($BK$5 = $BF$7, 'Case Counts'!AB72, 'Case Counts'!AC72)) -> 893199.6908
BJ78: 69 | BK78: =VLOOKUP(BJ78, 'Calc - Base'!$H$35:$I$400, 2) -> 2021-03-11 | BL78: =IF($BK$5 = $BF$6, 'Case Counts'!W73, IF($BK$5 = $BF$7, 'Case Counts'!X73, 'Case Counts'!Y73)) -> 371.107084 | BM78: ='Calc - SA_Case Counts'!L104 ->  | BN78: =IF($BK$5 = $BF$6, 'Case Counts'!AA73, IF($BK$5 = $BF$7, 'Case Counts'!AB73, 'Case Counts'!AC73)) -> 893570.7979
BJ79: 70 | BK79: =VLOOKUP(BJ79, 'Calc - Base'!$H$35:$I$400, 2) -> 2021-03-12 | BL79: =IF($BK$5 = $BF$6, 'Case Counts'!W74, IF($BK$5 = $BF$7, 'Case Counts'!X74, 'Case Counts'!Y74)) -> 310.0786554 | BM79: ='Calc - SA_Case Counts'!L105 ->  | BN79: =IF($BK$5 = $BF$6, 'Case Counts'!AA74, IF($BK$5 = $BF$7, 'Case Counts'!AB74, 'Case Counts'!AC74)) -> 893880.8765
BJ80: 71 | BK80: =VLOOKUP(BJ80, 'Calc - Base'!$H$35:$I$400, 2) -> 2021-03-13 | BL80: =IF($BK$5 = $BF$6, 'Case Counts'!W75, IF($BK$5 = $BF$7, 'Case Counts'!X75, 'Case Counts'!Y75)) -> 259.0473422 | BM80: ='Calc - SA_Case Counts'!L106 ->  | BN80: =IF($BK$5 = $BF$6, 'Case Counts'!AA75, IF($BK$5 = $BF$7, 'Case Counts'!AB75, 'Case Counts'!AC75)) -> 894139.9239
BJ81: 72 | BK81: =VLOOKUP(BJ81, 'Calc - Base'!$H$35:$I$400, 2) -> 2021-03-14 | BL81: =IF($BK$5 = $BF$6, 'Case Counts'!W76, IF($BK$5 = $BF$7, 'Case Counts'!X76, 'Case Counts'!Y76)) -> 216.387329 | BM81: ='Calc - SA_Case Counts'!L107 ->  | BN81: =IF($BK$5 = $BF$6, 'Case Counts'!AA76, IF($BK$5 = $BF$7, 'Case Counts'!AB76, 'Case Counts'!AC76)) -> 894356.3112
BJ82: 73 | BK82: =VLOOKUP(BJ82, 'Calc - Base'!$H$35:$I$400, 2) -> 2021-03-15 | BL82: =IF($BK$5 = $BF$6, 'Case Counts'!W77, IF($BK$5 = $BF$7, 'Case Counts'!X77, 'Case Counts'!Y77)) -> 180.7336255 | BM82: ='Calc - SA_Case Counts'!L108 ->  | BN82: =IF($BK$5 = $BF$6, 'Case Counts'!AA77, IF($BK$5 = $BF$7, 'Case Counts'!AB77, 'Case Counts'!AC77)) -> 894537.0448
BJ83: 74 | BK83: =VLOOKUP(BJ83, 'Calc - Base'!$H$35:$I$400, 2) -> 2021-03-16 | BL83: =IF($BK$5 = $BF$6, 'Case Counts'!W78, IF($BK$5 = $BF$7, 'Case Counts'!X78, 'Case Counts'!Y78)) -> 150.9413038 | BM83: ='Calc - SA_Case Counts'!L109 ->  | BN83: =IF($BK$5 = $BF$6, 'Case Counts'!AA78, IF($BK$5 = $BF$7, 'Case Counts'!AB78, 'Case Counts'!AC78)) -> 894687.9861
BJ84: 75 | BK84: =VLOOKUP(BJ84, 'Calc - Base'!$H$35:$I$400, 2) -> 2021-03-17 | BL84: =IF($BK$5 = $BF$6, 'Case Counts'!W79, IF($BK$5 = $BF$7, 'Case Counts'!X79, 'Case Counts'!Y79)) -> 126.0507797 | BM84: ='Calc - SA_Case Counts'!L110 ->  | BN84: =IF($BK$5 = $BF$6, 'Case Counts'!AA79, IF($BK$5 = $BF$7, 'Case Counts'!AB79, 'Case Counts'!AC79)) -> 894814.0369
BJ85: 76 | BK85: =VLOOKUP(BJ85, 'Calc - Base'!$H$35:$I$400, 2) -> 2021-03-18 | BL85: =IF($BK$5 = $BF$6, 'Case Counts'!W80, IF($BK$5 = $BF$7, 'Case Counts'!X80, 'Case Counts'!Y80)) -> 105.2583424 | BM85: ='Calc - SA_Case Counts'!L111 ->  | BN85: =IF($BK$5 = $BF$6, 'Case Counts'!AA80, IF($BK$5 = $BF$7, 'Case Counts'!AB80, 'Case Counts'!AC80)) -> 894919.2952
BJ86: 77 | BK86: =VLOOKUP(BJ86, 'Calc - Base'!$H$35:$I$400, 2) -> 2021-03-19 | BL86: =IF($BK$5 = $BF$6, 'Case Counts'!W81, IF($BK$5 = $BF$7, 'Case Counts'!X81, 'Case Counts'!Y81)) -> 87.891208 | BM86: ='Calc - SA_Case Counts'!L112 ->  | BN86: =IF($BK$5 = $BF$6, 'Case Counts'!AA81, IF($BK$5 = $BF$7, 'Case Counts'!AB81, 'Case Counts'!AC81)) -> 895007.1864
BJ87: 78 | BK87: =VLOOKUP(BJ87, 'Calc - Base'!$H$35:$I$400, 2) -> 2021-03-20 | BL87: =IF($BK$5 = $BF$6, 'Case Counts'!W82, IF($BK$5 = $BF$7, 'Case Counts'!X82, 'Case Counts'!Y82)) -> 73.38645237 | BM87: ='Calc - SA_Case Counts'!L113 ->  | BN87: =IF($BK$5 = $BF$6, 'Case Counts'!AA82, IF($BK$5 = $BF$7, 'Case Counts'!AB82, 'Case Counts'!AC82)) -> 895080.5729
BJ88: 79 | BK88: =VLOOKUP(BJ88, 'Calc - Base'!$H$35:$I$400, 2) -> 2021-03-21 | BL88: =IF($BK$5 = $BF$6, 'Case Counts'!W83, IF($BK$5 = $BF$7, 'Case Counts'!X83, 'Case Counts'!Y83)) -> 61.27325314 | BM88: ='Calc - SA_Case Counts'!L114 ->  | BN88: =IF($BK$5 = $BF$6, 'Case Counts'!AA83, IF($BK$5 = $BF$7, 'Case Counts'!AB83, 'Case Counts'!AC83)) -> 895141.8462
BJ89: 80 | BK89: =VLOOKUP(BJ89, 'Calc - Base'!$H$35:$I$400, 2) -> 2021-03-22 | BL89: =IF($BK$5 = $BF$6, 'Case Counts'!W84, IF($BK$5 = $BF$7, 'Case Counts'!X84, 'Case Counts'!Y84)) -> 51.15794629 | BM89: ='Calc - SA_Case Counts'!L115 ->  | BN89: =IF($BK$5 = $BF$6, 'Case Counts'!AA84, IF($BK$5 = $BF$7, 'Case Counts'!AB84, 'Case Counts'!AC84)) -> 895193.0041
BJ90: 81 | BK90: =VLOOKUP(BJ90, 'Calc - Base'!$H$35:$I$400, 2) -> 2021-03-23 | BL90: =IF($BK$5 = $BF$6, 'Case Counts'!W85, IF($BK$5 = $BF$7, 'Case Counts'!X85, 'Case Counts'!Y85)) -> 42.71146834 | BM90: ='Calc - SA_Case Counts'!L116 ->  | BN90: =IF($BK$5 = $BF$6, 'Case Counts'!AA85, IF($BK$5 = $BF$7, 'Case Counts'!AB85, 'Case Counts'!AC85)) -> 895235.7156
BJ91: 82 | BK91: =VLOOKUP(BJ91, 'Calc - Base'!$H$35:$I$400, 2) -> 2021-03-24 | BL91: =IF($BK$5 = $BF$6, 'Case Counts'!W86, IF($BK$5 = $BF$7, 'Case Counts'!X86, 'Case Counts'!Y86)) -> 35.6588156 | BM91: ='Calc - SA_Case Counts'!L117 ->  | BN91: =IF($BK$5 = $BF$6, 'Case Counts'!AA86, IF($BK$5 = $BF$7, 'Case Counts'!AB86, 'Case Counts'!AC86)) -> 895271.3744
BJ92: 83 | BK92: =VLOOKUP(BJ92, 'Calc - Base'!$H$35:$I$400, 2) -> 2021-03-25 | BL92: =IF($BK$5 = $BF$6, 'Case Counts'!W87, IF($BK$5 = $BF$7, 'Case Counts'!X87, 'Case Counts'!Y87)) -> 29.77020491 | BM92: ='Calc - SA_Case Counts'!L118 ->  | BN92: =IF($BK$5 = $BF$6, 'Case Counts'!AA87, IF($BK$5 = $BF$7, 'Case Counts'!AB87, 'Case Counts'!AC87)) -> 895301.1446
BJ93: 84 | BK93: =VLOOKUP(BJ93, 'Calc - Base'!$H$35:$I$400, 2) -> 2021-03-26 | BL93: =IF($BK$5 = $BF$6, 'Case Counts'!W88, IF($BK$5 = $BF$7, 'Case Counts'!X88, 'Case Counts'!Y88)) -> 24.85366693 | BM93: ='Calc - SA_Case Counts'!L119 ->  | BN93: =IF($BK$5 = $BF$6, 'Case Counts'!AA88, IF($BK$5 = $BF$7, 'Case Counts'!AB88, 'Case Counts'!AC88)) -> 895325.9983
BJ94: 85 | BK94: =VLOOKUP(BJ94, 'Calc - Base'!$H$35:$I$400, 2) -> 2021-03-27 | BL94: =IF($BK$5 = $BF$6, 'Case Counts'!W89, IF($BK$5 = $BF$7, 'Case Counts'!X89, 'Case Counts'!Y89)) -> 20.74884383 | BM94: ='Calc - SA_Case Counts'!L120 ->  | BN94: =IF($BK$5 = $BF$6, 'Case Counts'!AA89, IF($BK$5 = $BF$7, 'Case Counts'!AB89, 'Case Counts'!AC89)) -> 895346.7471
BJ95: 86 | BK95: =VLOOKUP(BJ95, 'Calc - Base'!$H$35:$I$400, 2) -> 2021-03-28 | BL95: =IF($BK$5 = $BF$6, 'Case Counts'!W90, IF($BK$5 = $BF$7, 'Case Counts'!X90, 'Case Counts'!Y90)) -> 17.32179814 | BM95: ='Calc - SA_Case Counts'!L121 ->  | BN95: =IF($BK$5 = $BF$6, 'Case Counts'!AA90, IF($BK$5 = $BF$7, 'Case Counts'!AB90, 'Case Counts'!AC90)) -> 895364.0689
BJ96: 87 | BK96: =VLOOKUP(BJ96, 'Calc - Base'!$H$35:$I$400, 2) -> 2021-03-29 | BL96: =IF($BK$5 = $BF$6, 'Case Counts'!W91, IF($BK$5 = $BF$7, 'Case Counts'!X91, 'Case Counts'!Y91)) -> 14.46066978 | BM96: ='Calc - SA_Case Counts'!L122 ->  | BN96: =IF($BK$5 = $BF$6, 'Case Counts'!AA91, IF($BK$5 = $BF$7, 'Case Counts'!AB91, 'Case Counts'!AC91)) -> 895378.5296
BJ97: 88 | BK97: =VLOOKUP(BJ97, 'Calc - Base'!$H$35:$I$400, 2) -> 2021-03-30 | BL97: =IF($BK$5 = $BF$6, 'Case Counts'!W92, IF($BK$5 = $BF$7, 'Case Counts'!X92, 'Case Counts'!Y92)) -> 12.072044 | BM97: ='Calc - SA_Case Counts'!L123 ->  | BN97: =IF($BK$5 = $BF$6, 'Case Counts'!AA92, IF($BK$5 = $BF$7, 'Case Counts'!AB92, 'Case Counts'!AC92)) -> 895390.6016
BJ98: 89 | BK98: =VLOOKUP(BJ98, 'Calc - Base'!$H$35:$I$400, 2) -> 2021-03-31 | BL98: =IF($BK$5 = $BF$6, 'Case Counts'!W93, IF($BK$5 = $BF$7, 'Case Counts'!X93, 'Case Counts'!Y93)) -> 10.07791464 | BM98: ='Calc - SA_Case Counts'!L124 ->  | BN98: =IF($BK$5 = $BF$6, 'Case Counts'!AA93, IF($BK$5 = $BF$7, 'Case Counts'!AB93, 'Case Counts'!AC93)) -> 895400.6795
BJ99: 90 | BK99: =VLOOKUP(BJ99, 'Calc - Base'!$H$35:$I$400, 2) -> 2021-04-01 | BL99: =IF($BK$5 = $BF$6, 'Case Counts'!W94, IF($BK$5 = $BF$7, 'Case Counts'!X94, 'Case Counts'!Y94)) -> 8.413145987 | BM99: ='Calc - SA_Case Counts'!L125 ->  | BN99: =IF($BK$5 = $BF$6, 'Case Counts'!AA94, IF($BK$5 = $BF$7, 'Case Counts'!AB94, 'Case Counts'!AC94)) -> 895409.0927
BJ100: 91 | BK100: =VLOOKUP(BJ100, 'Calc - Base'!$H$35:$I$400, 2) -> 2021-04-02 | BL100: =IF($BK$5 = $BF$6, 'Case Counts'!W95, IF($BK$5 = $BF$7, 'Case Counts'!X95, 'Case Counts'!Y95)) -> 7.023351526 | BM100: ='Calc - SA_Case Counts'!L126 ->  | BN100: =IF($BK$5 = $BF$6, 'Case Counts'!AA95, IF($BK$5 = $BF$7, 'Case Counts'!AB95, 'Case Counts'!AC95)) -> 895416.116
BJ101: 92 | BK101: =VLOOKUP(BJ101, 'Calc - Base'!$H$35:$I$400, 2) -> 2021-04-03 | BL101: =IF($BK$5 = $BF$6, 'Case Counts'!W96, IF($BK$5 = $BF$7, 'Case Counts'!X96, 'Case Counts'!Y96)) -> 5.863121714 | BM101: ='Calc - SA_Case Counts'!L127 ->  | BN101: =IF($BK$5 = $BF$6, 'Case Counts'!AA96, IF($BK$5 = $BF$7, 'Case Counts'!AB96, 'Case Counts'!AC96)) -> 895421.9791
BJ102: 93 | BK102: =VLOOKUP(BJ102, 'Calc - Base'!$H$35:$I$400, 2) -> 2021-04-04 | BL102: =IF($BK$5 = $BF$6, 'Case Counts'!W97, IF($BK$5 = $BF$7, 'Case Counts'!X97, 'Case Counts'!Y97)) -> 4.894543368 | BM102: ='Calc - SA_Case Counts'!L128 ->  | BN102: =IF($BK$5 = $BF$6, 'Case Counts'!AA97, IF($BK$5 = $BF$7, 'Case Counts'!AB97, 'Case Counts'!AC97)) -> 895426.8737
BJ103: 94 | BK103: =VLOOKUP(BJ103, 'Calc - Base'!$H$35:$I$400, 2) -> 2021-04-05 | BL103: =IF($BK$5 = $BF$6, 'Case Counts'!W98, IF($BK$5 = $BF$7, 'Case Counts'!X98, 'Case Counts'!Y98)) -> 4.085962935 | BM103: ='Calc - SA_Case Counts'!L129 ->  | BN103: =IF($BK$5 = $BF$6, 'Case Counts'!AA98, IF($BK$5 = $BF$7, 'Case Counts'!AB98, 'Case Counts'!AC98)) -> 895430.9596
BJ104: 95 | BK104: =VLOOKUP(BJ104, 'Calc - Base'!$H$35:$I$400, 2) -> 2021-04-06 | BL104: =IF($BK$5 = $BF$6, 'Case Counts'!W99, IF($BK$5 = $BF$7, 'Case Counts'!X99, 'Case Counts'!Y99)) -> 3.410953553 | BM104: ='Calc - SA_Case Counts'!L130 ->  | BN104: =IF($BK$5 = $BF$6, 'Case Counts'!AA99, IF($BK$5 = $BF$7, 'Case Counts'!AB99, 'Case Counts'!AC99)) -> 895434.3706
BJ105: 96 | BK105: =VLOOKUP(BJ105, 'Calc - Base'!$H$35:$I$400, 2) -> 2021-04-07 | BL105: =IF($BK$5 = $BF$6, 'Case Counts'!W100, IF($BK$5 = $BF$7, 'Case Counts'!X100, 'Case Counts'!Y100)) -> 2.847452395 | BM105: ='Calc - SA_Case Counts'!L131 ->  | BN105: =IF($BK$5 = $BF$6, 'Case Counts'!AA100, IF($BK$5 = $BF$7, 'Case Counts'!AB100, 'Case Counts'!AC100)) -> 895437.2181
BJ106: 97 | BK106: =VLOOKUP(BJ106, 'Calc - Base'!$H$35:$I$400, 2) -> 2021-04-08 | BL106: =IF($BK$5 = $BF$6, 'Case Counts'!W101, IF($BK$5 = $BF$7, 'Case Counts'!X101, 'Case Counts'!Y101)) -> 2.377040277 | BM106: ='Calc - SA_Case Counts'!L132 ->  | BN106: =IF($BK$5 = $BF$6, 'Case Counts'!AA101, IF($BK$5 = $BF$7, 'Case Counts'!AB101, 'Case Counts'!AC101)) -> 895439.5951
BJ107: 98 | BK107: =VLOOKUP(BJ107, 'Calc - Base'!$H$35:$I$400, 2) -> 2021-04-09 | BL107: =IF($BK$5 = $BF$6, 'Case Counts'!W102, IF($BK$5 = $BF$7, 'Case Counts'!X102, 'Case Counts'!Y102)) -> 1.984340105 | BM107: ='Calc - SA_Case Counts'!L133 ->  | BN107: =IF($BK$5 = $BF$6, 'Case Counts'!AA102, IF($BK$5 = $BF$7, 'Case Counts'!AB102, 'Case Counts'!AC102)) -> 895441.5794
BJ108: 99 | BK108: =VLOOKUP(BJ108, 'Calc - Base'!$H$35:$I$400, 2) -> 2021-04-10 | BL108: =IF($BK$5 = $BF$6, 'Case Counts'!W103, IF($BK$5 = $BF$7, 'Case Counts'!X103, 'Case Counts'!Y103)) -> 1.656514579 | BM108: ='Calc - SA_Case Counts'!L134 ->  | BN108: =IF($BK$5 = $BF$6, 'Case Counts'!AA103, IF($BK$5 = $BF$7, 'Case Counts'!AB103, 'Case Counts'!AC103)) -> 895443.2359
BJ109: 100 | BK109: =VLOOKUP(BJ109, 'Calc - Base'!$H$35:$I$400, 2) -> 2021-04-11 | BL109: =IF($BK$5 = $BF$6, 'Case Counts'!W104, IF($BK$5 = $BF$7, 'Case Counts'!X104, 'Case Counts'!Y104)) -> 1.382846795 | BM109: ='Calc - SA_Case Counts'!L135 ->  | BN109: =IF($BK$5 = $BF$6, 'Case Counts'!AA104, IF($BK$5 = $BF$7, 'Case Counts'!AB104, 'Case Counts'!AC104)) -> 895444.6188
BJ110: 101 | BK110: =VLOOKUP(BJ110, 'Calc - Base'!$H$35:$I$400, 2) -> 2021-04-12 | BL110: =IF($BK$5 = $BF$6, 'Case Counts'!W105, IF($BK$5 = $BF$7, 'Case Counts'!X105, 'Case Counts'!Y105)) -> 1.154390068 | BM110: ='Calc - SA_Case Counts'!L136 ->  | BN110: =IF($BK$5 = $BF$6, 'Case Counts'!AA105, IF($BK$5 = $BF$7, 'Case Counts'!AB105, 'Case Counts'!AC105)) -> 895445.7732
BJ111: 102 | BK111: =VLOOKUP(BJ111, 'Calc - Base'!$H$35:$I$400, 2) -> 2021-04-13 | BL111: =IF($BK$5 = $BF$6, 'Case Counts'!W106, IF($BK$5 = $BF$7, 'Case Counts'!X106, 'Case Counts'!Y106)) -> 0.9636755789 | BM111: ='Calc - SA_Case Counts'!L137 ->  | BN111: =IF($BK$5 = $BF$6, 'Case Counts'!AA106, IF($BK$5 = $BF$7, 'Case Counts'!AB106, 'Case Counts'!AC106)) -> 895446.7369
BJ112: 103 | BK112: =VLOOKUP(BJ112, 'Calc - Base'!$H$35:$I$400, 2) -> 2021-04-14 | BL112: =IF($BK$5 = $BF$6, 'Case Counts'!W107, IF($BK$5 = $BF$7, 'Case Counts'!X107, 'Case Counts'!Y107)) -> 0.8044682761 | BM112: ='Calc - SA_Case Counts'!L138 ->  | BN112: =IF($BK$5 = $BF$6, 'Case Counts'!AA107, IF($BK$5 = $BF$7, 'Case Counts'!AB107, 'Case Counts'!AC107)) -> 895447.5413
BJ113: 104 | BK113: =VLOOKUP(BJ113, 'Calc - Base'!$H$35:$I$400, 2) -> 2021-04-15 | BL113: =IF($BK$5 = $BF$6, 'Case Counts'!W108, IF($BK$5 = $BF$7, 'Case Counts'!X108, 'Case Counts'!Y108)) -> 0.6715630959 | BM113: ='Calc - SA_Case Counts'!L139 ->  | BN113: =IF($BK$5 = $BF$6, 'Case Counts'!AA108, IF($BK$5 = $BF$7, 'Case Counts'!AB108, 'Case Counts'!AC108)) -> 895448.2129
BJ114: 105 | BK114: =VLOOKUP(BJ114, 'Calc - Base'!$H$35:$I$400, 2) -> 2021-04-16 | BL114: =IF($BK$5 = $BF$6, 'Case Counts'!W109, IF($BK$5 = $BF$7, 'Case Counts'!X109, 'Case Counts'!Y109)) -> 0.5606148292 | BM114: ='Calc - SA_Case Counts'!L140 ->  | BN114: =IF($BK$5 = $BF$6, 'Case Counts'!AA109, IF($BK$5 = $BF$7, 'Case Counts'!AB109, 'Case Counts'!AC109)) -> 895448.7735
BJ115: 106 | BK115: =VLOOKUP(BJ115, 'Calc - Base'!$H$35:$I$400, 2) -> 2021-04-17 | BL115: =IF($BK$5 = $BF$6, 'Case Counts'!W110, IF($BK$5 = $BF$7, 'Case Counts'!X110, 'Case Counts'!Y110)) -> 0.4679960876 | BM115: ='Calc - SA_Case Counts'!L141 ->  | BN115: =IF($BK$5 = $BF$6, 'Case Counts'!AA110, IF($BK$5 = $BF$7, 'Case Counts'!AB110, 'Case Counts'!AC110)) -> 895449.2415
BJ116: 107 | BK116: =VLOOKUP(BJ116, 'Calc - Base'!$H$35:$I$400, 2) -> 2021-04-18 | BL116: =IF($BK$5 = $BF$6, 'Case Counts'!W111, IF($BK$5 = $BF$7, 'Case Counts'!X111, 'Case Counts'!Y111)) -> 0.3906787281 | BM116: ='Calc - SA_Case Counts'!L142 ->  | BN116: =IF($BK$5 = $BF$6, 'Case Counts'!AA111, IF($BK$5 = $BF$7, 'Case Counts'!AB111, 'Case Counts'!AC111)) -> 895449.6322
BJ117: 108 | BK117: =VLOOKUP(BJ117, 'Calc - Base'!$H$35:$I$400, 2) -> 2021-04-19 | BL117: =IF($BK$5 = $BF$6, 'Case Counts'!W112, IF($BK$5 = $BF$7, 'Case Counts'!X112, 'Case Counts'!Y112)) -> 0.3261348626 | BM117: ='Calc - SA_Case Counts'!L143 ->  | BN117: =IF($BK$5 = $BF$6, 'Case Counts'!AA112, IF($BK$5 = $BF$7, 'Case Counts'!AB112, 'Case Counts'!AC112)) -> 895449.9583
BJ118: 109 | BK118: =VLOOKUP(BJ118, 'Calc - Base'!$H$35:$I$400, 2) -> 2021-04-20 | BL118: =IF($BK$5 = $BF$6, 'Case Counts'!W113, IF($BK$5 = $BF$7, 'Case Counts'!X113, 'Case Counts'!Y113)) -> 0.2722542186 | BM118: ='Calc - SA_Case Counts'!L144 ->  | BN118: =IF($BK$5 = $BF$6, 'Case Counts'!AA113, IF($BK$5 = $BF$7, 'Case Counts'!AB113, 'Case Counts'!AC113)) -> 895450.2306
BJ119: 110 | BK119: =VLOOKUP(BJ119, 'Calc - Base'!$H$35:$I$400, 2) -> 2021-04-21 | BL119: =IF($BK$5 = $BF$6, 'Case Counts'!W114, IF($BK$5 = $BF$7, 'Case Counts'!X114, 'Case Counts'!Y114)) -> 0.2272751499 | BM119: ='Calc - SA_Case Counts'!L145 ->  | BN119: =IF($BK$5 = $BF$6, 'Case Counts'!AA114, IF($BK$5 = $BF$7, 'Case Counts'!AB114, 'Case Counts'!AC114)) -> 895450.4578
BJ120: 111 | BK120: =VLOOKUP(BJ120, 'Calc - Base'!$H$35:$I$400, 2) -> 2021-04-22 | BL120: =IF($BK$5 = $BF$6, 'Case Counts'!W115, IF($BK$5 = $BF$7, 'Case Counts'!X115, 'Case Counts'!Y115)) -> 0.1897270439 | BM120: ='Calc - SA_Case Counts'!L146 ->  | BN120: =IF($BK$5 = $BF$6, 'Case Counts'!AA115, IF($BK$5 = $BF$7, 'Case Counts'!AB115, 'Case Counts'!AC115)) -> 895450.6476
BJ121: 112 | BK121: =VLOOKUP(BJ121, 'Calc - Base'!$H$35:$I$400, 2) -> 2021-04-23 | BL121: =IF($BK$5 = $BF$6, 'Case Counts'!W116, IF($BK$5 = $BF$7, 'Case Counts'!X116, 'Case Counts'!Y116)) -> 0.1583822424 | BM121: ='Calc - SA_Case Counts'!L147 ->  | BN121: =IF($BK$5 = $BF$6, 'Case Counts'!AA116, IF($BK$5 = $BF$7, 'Case Counts'!AB116, 'Case Counts'!AC116)) -> 895450.806
BJ122: 113 | BK122: =VLOOKUP(BJ122, 'Calc - Base'!$H$35:$I$400, 2) -> 2021-04-24 | BL122: =IF($BK$5 = $BF$6, 'Case Counts'!W117, IF($BK$5 = $BF$7, 'Case Counts'!X117, 'Case Counts'!Y117)) -> 0.1322159049 | BM122: ='Calc - SA_Case Counts'!L148 ->  | BN122: =IF($BK$5 = $BF$6, 'Case Counts'!AA117, IF($BK$5 = $BF$7, 'Case Counts'!AB117, 'Case Counts'!AC117)) -> 895450.9382
BJ123: 114 | BK123: =VLOOKUP(BJ123, 'Calc - Base'!$H$35:$I$400, 2) -> 2021-04-25 | BL123: =IF($BK$5 = $BF$6, 'Case Counts'!W118, IF($BK$5 = $BF$7, 'Case Counts'!X118, 'Case Counts'!Y118)) -> 0.1103725021 | BM123: ='Calc - SA_Case Counts'!L149 ->  | BN123: =IF($BK$5 = $BF$6, 'Case Counts'!AA118, IF($BK$5 = $BF$7, 'Case Counts'!AB118, 'Case Counts'!AC118)) -> 895451.0485
BJ124: 115 | BK124: =VLOOKUP(BJ124, 'Calc - Base'!$H$35:$I$400, 2) -> 2021-04-26 | BL124: =IF($BK$5 = $BF$6, 'Case Counts'!W119, IF($BK$5 = $BF$7, 'Case Counts'!X119, 'Case Counts'!Y119)) -> 0.09213784514 | BM124: ='Calc - SA_Case Counts'!L150 ->  | BN124: =IF($BK$5 = $BF$6, 'Case Counts'!AA119, IF($BK$5 = $BF$7, 'Case Counts'!AB119, 'Case Counts'!AC119)) -> 895451.1407
BJ125: 116 | BK125: =VLOOKUP(BJ125, 'Calc - Base'!$H$35:$I$400, 2) -> 2021-04-27 | BL125: =IF($BK$5 = $BF$6, 'Case Counts'!W120, IF($BK$5 = $BF$7, 'Case Counts'!X120, 'Case Counts'!Y120)) -> 0.07691573505 | BM125: ='Calc - SA_Case Counts'!L151 ->  | BN125: =IF($BK$5 = $BF$6, 'Case Counts'!AA120, IF($BK$5 = $BF$7, 'Case Counts'!AB120, 'Case Counts'!AC120)) -> 895451.2176
BJ126: 117 | BK126: =VLOOKUP(BJ126, 'Calc - Base'!$H$35:$I$400, 2) -> 2021-04-28 | BL126: =IF($BK$5 = $BF$6, 'Case Counts'!W121, IF($BK$5 = $BF$7, 'Case Counts'!X121, 'Case Counts'!Y121)) -> 0.06420847014 | BM126: ='Calc - SA_Case Counts'!L152 ->  | BN126: =IF($BK$5 = $BF$6, 'Case Counts'!AA121, IF($BK$5 = $BF$7, 'Case Counts'!AB121, 'Case Counts'!AC121)) -> 895451.2818
BJ127: 118 | BK127: =VLOOKUP(BJ127, 'Calc - Base'!$H$35:$I$400, 2) -> 2021-04-29 | BL127: =IF($BK$5 = $BF$6, 'Case Counts'!W122, IF($BK$5 = $BF$7, 'Case Counts'!X122, 'Case Counts'!Y122)) -> 0.0536005735 | BM127: ='Calc - SA_Case Counts'!L153 ->  | BN127: =IF($BK$5 = $BF$6, 'Case Counts'!AA122, IF($BK$5 = $BF$7, 'Case Counts'!AB122, 'Case Counts'!AC122)) -> 895451.3354
BJ128: 119 | BK128: =VLOOKUP(BJ128, 'Calc - Base'!$H$35:$I$400, 2) -> 2021-04-30 | BL128: =IF($BK$5 = $BF$6, 'Case Counts'!W123, IF($BK$5 = $BF$7, 'Case Counts'!X123, 'Case Counts'!Y123)) -> 0.04474520883 | BM128: ='Calc - SA_Case Counts'!L154 ->  | BN128: =IF($BK$5 = $BF$6, 'Case Counts'!AA123, IF($BK$5 = $BF$7, 'Case Counts'!AB123, 'Case Counts'!AC123)) -> 895451.3802
BJ129: 120 | BK129: =VLOOKUP(BJ129, 'Calc - Base'!$H$35:$I$400, 2) -> 2021-05-01 | BL129: =IF($BK$5 = $BF$6, 'Case Counts'!W124, IF($BK$5 = $BF$7, 'Case Counts'!X124, 'Case Counts'!Y124)) -> 0.03735284044 | BM129: ='Calc - SA_Case Counts'!L155 ->  | BN129: =IF($BK$5 = $BF$6, 'Case Counts'!AA124, IF($BK$5 = $BF$7, 'Case Counts'!AB124, 'Case Counts'!AC124)) -> 895451.4175
BJ130: 121 | BK130: =VLOOKUP(BJ130, 'Calc - Base'!$H$35:$I$400, 2) -> 2021-05-02 | BL130: =IF($BK$5 = $BF$6, 'Case Counts'!W125, IF($BK$5 = $BF$7, 'Case Counts'!X125, 'Case Counts'!Y125)) -> 0.03118176673 | BM130: ='Calc - SA_Case Counts'!L156 ->  | BN130: =IF($BK$5 = $BF$6, 'Case Counts'!AA125, IF($BK$5 = $BF$7, 'Case Counts'!AB125, 'Case Counts'!AC125)) -> 895451.4487
BJ131: 122 | BK131: =VLOOKUP(BJ131, 'Calc - Base'!$H$35:$I$400, 2) -> 2021-05-03 | BL131: =IF($BK$5 = $BF$6, 'Case Counts'!W126, IF($BK$5 = $BF$7, 'Case Counts'!X126, 'Case Counts'!Y126)) -> 0.02603021752 | BM131: ='Calc - SA_Case Counts'!L157 ->  | BN131: =IF($BK$5 = $BF$6, 'Case Counts'!AA126, IF($BK$5 = $BF$7, 'Case Counts'!AB126, 'Case Counts'!AC126)) -> 895451.4747
BJ132: 123 | BK132: =VLOOKUP(BJ132, 'Calc - Base'!$H$35:$I$400, 2) -> 2021-05-04 | BL132: =IF($BK$5 = $BF$6, 'Case Counts'!W127, IF($BK$5 = $BF$7, 'Case Counts'!X127, 'Case Counts'!Y127)) -> 0.02172975706 | BM132: ='Calc - SA_Case Counts'!L158 ->  | BN132: =IF($BK$5 = $BF$6, 'Case Counts'!AA127, IF($BK$5 = $BF$7, 'Case Counts'!AB127, 'Case Counts'!AC127)) -> 895451.4964
BJ133: 124 | BK133: =VLOOKUP(BJ133, 'Calc - Base'!$H$35:$I$400, 2) -> 2021-05-05 | BL133: =IF($BK$5 = $BF$6, 'Case Counts'!W128, IF($BK$5 = $BF$7, 'Case Counts'!X128, 'Case Counts'!Y128)) -> 0.01813977684 | BM133: ='Calc - SA_Case Counts'!L159 ->  | BN133: =IF($BK$5 = $BF$6, 'Case Counts'!AA128, IF($BK$5 = $BF$7, 'Case Counts'!AB128, 'Case Counts'!AC128)) -> 895451.5146
BJ134: 125 | BK134: =VLOOKUP(BJ134, 'Calc - Base'!$H$35:$I$400, 2) -> 2021-05-06 | BL134: =IF($BK$5 = $BF$6, 'Case Counts'!W129, IF($BK$5 = $BF$7, 'Case Counts'!X129, 'Case Counts'!Y129)) -> 0.01514289828 | BM134: ='Calc - SA_Case Counts'!L160 ->  | BN134: =IF($BK$5 = $BF$6, 'Case Counts'!AA129, IF($BK$5 = $BF$7, 'Case Counts'!AB129, 'Case Counts'!AC129)) -> 895451.5297
BJ135: 126 | BK135: =VLOOKUP(BJ135, 'Calc - Base'!$H$35:$I$400, 2) -> 2021-05-07 | BL135: =IF($BK$5 = $BF$6, 'Case Counts'!W130, IF($BK$5 = $BF$7, 'Case Counts'!X130, 'Case Counts'!Y130)) -> 0.01264113493 | BM135: ='Calc - SA_Case Counts'!L161 ->  | BN135: =IF($BK$5 = $BF$6, 'Case Counts'!AA130, IF($BK$5 = $BF$7, 'Case Counts'!AB130, 'Case Counts'!AC130)) -> 895451.5424
BJ136: 127 | BK136: =VLOOKUP(BJ136, 'Calc - Base'!$H$35:$I$400, 2) -> 2021-05-08 | BL136: =IF($BK$5 = $BF$6, 'Case Counts'!W131, IF($BK$5 = $BF$7, 'Case Counts'!X131, 'Case Counts'!Y131)) -> 0.01055268869 | BM136: ='Calc - SA_Case Counts'!L162 ->  | BN136: =IF($BK$5 = $BF$6, 'Case Counts'!AA131, IF($BK$5 = $BF$7, 'Case Counts'!AB131, 'Case Counts'!AC131)) -> 895451.5529
BJ137: 128 | BK137: =VLOOKUP(BJ137, 'Calc - Base'!$H$35:$I$400, 2) -> 2021-05-09 | BL137: =IF($BK$5 = $BF$6, 'Case Counts'!W132, IF($BK$5 = $BF$7, 'Case Counts'!X132, 'Case Counts'!Y132)) -> 0.008809275324 | BM137: ='Calc - SA_Case Counts'!L163 ->  | BN137: =IF($BK$5 = $BF$6, 'Case Counts'!AA132, IF($BK$5 = $BF$7, 'Case Counts'!AB132, 'Case Counts'!AC132)) -> 895451.5617
BJ138: 129 | BK138: =VLOOKUP(BJ138, 'Calc - Base'!$H$35:$I$400, 2) -> 2021-05-10 | BL138: =IF($BK$5 = $BF$6, 'Case Counts'!W133, IF($BK$5 = $BF$7, 'Case Counts'!X133, 'Case Counts'!Y133)) -> 0.007353891854 | BM138: ='Calc - SA_Case Counts'!L164 ->  | BN138: =IF($BK$5 = $BF$6, 'Case Counts'!AA133, IF($BK$5 = $BF$7, 'Case Counts'!AB133, 'Case Counts'!AC133)) -> 895451.5691
BJ139: 130 | BK139: =VLOOKUP(BJ139, 'Calc - Base'!$H$35:$I$400, 2) -> 2021-05-11 | BL139: =IF($BK$5 = $BF$6, 'Case Counts'!W134, IF($BK$5 = $BF$7, 'Case Counts'!X134, 'Case Counts'!Y134)) -> 0.006138952777 | BM139: ='Calc - SA_Case Counts'!L165 ->  | BN139: =IF($BK$5 = $BF$6, 'Case Counts'!AA134, IF($BK$5 = $BF$7, 'Case Counts'!AB134, 'Case Counts'!AC134)) -> 895451.5752 | BO139: =BO138+BM139 -> 
BJ140: 131 | BK140: =VLOOKUP(BJ140, 'Calc - Base'!$H$35:$I$400, 2) -> 2021-05-12 | BL140: =IF($BK$5 = $BF$6, 'Case Counts'!W135, IF($BK$5 = $BF$7, 'Case Counts'!X135, 'Case Counts'!Y135)) -> 0.005124734199 | BM140: ='Calc - SA_Case Counts'!L166 ->  | BN140: =IF($BK$5 = $BF$6, 'Case Counts'!AA135, IF($BK$5 = $BF$7, 'Case Counts'!AB135, 'Case Counts'!AC135)) -> 895451.5804
BJ141: 132 | BK141: =VLOOKUP(BJ141, 'Calc - Base'!$H$35:$I$400, 2) -> 2021-05-13 | BL141: =IF($BK$5 = $BF$6, 'Case Counts'!W136, IF($BK$5 = $BF$7, 'Case Counts'!X136, 'Case Counts'!Y136)) -> 0.004278075024 | BM141: ='Calc - SA_Case Counts'!L167 ->  | BN141: =IF($BK$5 = $BF$6, 'Case Counts'!AA136, IF($BK$5 = $BF$7, 'Case Counts'!AB136, 'Case Counts'!AC136)) -> 895451.5846
BJ142: 133 | BK142: =VLOOKUP(BJ142, 'Calc - Base'!$H$35:$I$400, 2) -> 2021-05-14 | BL142: =IF($BK$5 = $BF$6, 'Case Counts'!W137, IF($BK$5 = $BF$7, 'Case Counts'!X137, 'Case Counts'!Y137)) -> 0.003571292707 | BM142: ='Calc - SA_Case Counts'!L168 ->  | BN142: =IF($BK$5 = $BF$6, 'Case Counts'!AA137, IF($BK$5 = $BF$7, 'Case Counts'!AB137, 'Case Counts'!AC137)) -> 895451.5882
BJ143: 134 | BK143: =VLOOKUP(BJ143, 'Calc - Base'!$H$35:$I$400, 2) -> 2021-05-15 | BL143: =IF($BK$5 = $BF$6, 'Case Counts'!W138, IF($BK$5 = $BF$7, 'Case Counts'!X138, 'Case Counts'!Y138)) -> 0.002981278147 | BM143: ='Calc - SA_Case Counts'!L169 ->  | BN143: =IF($BK$5 = $BF$6, 'Case Counts'!AA138, IF($BK$5 = $BF$7, 'Case Counts'!AB138, 'Case Counts'!AC138)) -> 895451.5912
BJ144: 135 | BK144: =VLOOKUP(BJ144, 'Calc - Base'!$H$35:$I$400, 2) -> 2021-05-16 | BL144: =IF($BK$5 = $BF$6, 'Case Counts'!W139, IF($BK$5 = $BF$7, 'Case Counts'!X139, 'Case Counts'!Y139)) -> 0.002488740102 | BM144: ='Calc - SA_Case Counts'!L170 ->  | BN144: =IF($BK$5 = $BF$6, 'Case Counts'!AA139, IF($BK$5 = $BF$7, 'Case Counts'!AB139, 'Case Counts'!AC139)) -> 895451.5937
BJ145: 136 | BK145: =VLOOKUP(BJ145, 'Calc - Base'!$H$35:$I$400, 2) -> 2021-05-17 | BL145: =IF($BK$5 = $BF$6, 'Case Counts'!W140, IF($BK$5 = $BF$7, 'Case Counts'!X140, 'Case Counts'!Y140)) -> 0.002077574443 | BM145: ='Calc - SA_Case Counts'!L171 ->  | BN145: =IF($BK$5 = $BF$6, 'Case Counts'!AA140, IF($BK$5 = $BF$7, 'Case Counts'!AB140, 'Case Counts'!AC140)) -> 895451.5957
BJ146: 137 | BK146: =VLOOKUP(BJ146, 'Calc - Base'!$H$35:$I$400, 2) -> 2021-05-18 | BL146: =IF($BK$5 = $BF$6, 'Case Counts'!W141, IF($BK$5 = $BF$7, 'Case Counts'!X141, 'Case Counts'!Y141)) -> 0.001734337611 | BM146: ='Calc - SA_Case Counts'!L172 ->  | BN146: =IF($BK$5 = $BF$6, 'Case Counts'!AA141, IF($BK$5 = $BF$7, 'Case Counts'!AB141, 'Case Counts'!AC141)) -> 895451.5975
BJ147: 138 | BK147: =VLOOKUP(BJ147, 'Calc - Base'!$H$35:$I$400, 2) -> 2021-05-19 | BL147: =IF($BK$5 = $BF$6, 'Case Counts'!W142, IF($BK$5 = $BF$7, 'Case Counts'!X142, 'Case Counts'!Y142)) -> 0.001447807061 | BM147: ='Calc - SA_Case Counts'!L173 ->  | BN147: =IF($BK$5 = $BF$6, 'Case Counts'!AA142, IF($BK$5 = $BF$7, 'Case Counts'!AB142, 'Case Counts'!AC142)) -> 895451.5989
BJ148: 139 | BK148: =VLOOKUP(BJ148, 'Calc - Base'!$H$35:$I$400, 2) -> 2021-05-20 | BL148: =IF($BK$5 = $BF$6, 'Case Counts'!W143, IF($BK$5 = $BF$7, 'Case Counts'!X143, 'Case Counts'!Y143)) -> 0.001208614326 | BM148: ='Calc - SA_Case Counts'!L174 ->  | BN148: =IF($BK$5 = $BF$6, 'Case Counts'!AA143, IF($BK$5 = $BF$7, 'Case Counts'!AB143, 'Case Counts'!AC143)) -> 895451.6001
BJ149: 140 | BK149: =VLOOKUP(BJ149, 'Calc - Base'!$H$35:$I$400, 2) -> 2021-05-21 | BL149: =IF($BK$5 = $BF$6, 'Case Counts'!W144, IF($BK$5 = $BF$7, 'Case Counts'!X144, 'Case Counts'!Y144)) -> 0.00100893871 | BM149: ='Calc - SA_Case Counts'!L175 ->  | BN149: =IF($BK$5 = $BF$6, 'Case Counts'!AA144, IF($BK$5 = $BF$7, 'Case Counts'!AB144, 'Case Counts'!AC144)) -> 895451.6011
BJ150: 141 | BK150: =VLOOKUP(BJ150, 'Calc - Base'!$H$35:$I$400, 2) -> 2021-05-22 | BL150: =IF($BK$5 = $BF$6, 'Case Counts'!W145, IF($BK$5 = $BF$7, 'Case Counts'!X145, 'Case Counts'!Y145)) -> 0.0008422515753 | BM150: ='Calc - SA_Case Counts'!L176 ->  | BN150: =IF($BK$5 = $BF$6, 'Case Counts'!AA145, IF($BK$5 = $BF$7, 'Case Counts'!AB145, 'Case Counts'!AC145)) -> 895451.602
BJ151: 142 | BK151: =VLOOKUP(BJ151, 'Calc - Base'!$H$35:$I$400, 2) -> 2021-05-23 | BL151: =IF($BK$5 = $BF$6, 'Case Counts'!W146, IF($BK$5 = $BF$7, 'Case Counts'!X146, 'Case Counts'!Y146)) -> 0.0007031028831 | BM151: ='Calc - SA_Case Counts'!L177 ->  | BN151: =IF($BK$5 = $BF$6, 'Case Counts'!AA146, IF($BK$5 = $BF$7, 'Case Counts'!AB146, 'Case Counts'!AC146)) -> 895451.6027
BJ152: 143 | BK152: =VLOOKUP(BJ152, 'Calc - Base'!$H$35:$I$400, 2) -> 2021-05-24 | BL152: =IF($BK$5 = $BF$6, 'Case Counts'!W147, IF($BK$5 = $BF$7, 'Case Counts'!X147, 'Case Counts'!Y147)) -> 0.0005869429972 | BM152: ='Calc - SA_Case Counts'!L178 ->  | BN152: =IF($BK$5 = $BF$6, 'Case Counts'!AA147, IF($BK$5 = $BF$7, 'Case Counts'!AB147, 'Case Counts'!AC147)) -> 895451.6033
BJ153: 144 | BK153: =VLOOKUP(BJ153, 'Calc - Base'!$H$35:$I$400, 2) -> 2021-05-25 | BL153: =IF($BK$5 = $BF$6, 'Case Counts'!W148, IF($BK$5 = $BF$7, 'Case Counts'!X148, 'Case Counts'!Y148)) -> 0.0004899739287 | BM153: ='Calc - SA_Case Counts'!L179 ->  | BN153: =IF($BK$5 = $BF$6, 'Case Counts'!AA148, IF($BK$5 = $BF$7, 'Case Counts'!AB148, 'Case Counts'!AC148)) -> 895451.6038
BJ154: 145 | BK154: =VLOOKUP(BJ154, 'Calc - Base'!$H$35:$I$400, 2) -> 2021-05-26 | BL154: =IF($BK$5 = $BF$6, 'Case Counts'!W149, IF($BK$5 = $BF$7, 'Case Counts'!X149, 'Case Counts'!Y149)) -> 0.0004090251555 | BM154: ='Calc - SA_Case Counts'!L180 ->  | BN154: =IF($BK$5 = $BF$6, 'Case Counts'!AA149, IF($BK$5 = $BF$7, 'Case Counts'!AB149, 'Case Counts'!AC149)) -> 895451.6042
BJ155: 146 | BK155: =VLOOKUP(BJ155, 'Calc - Base'!$H$35:$I$400, 2) -> 2021-05-27 | BL155: =IF($BK$5 = $BF$6, 'Case Counts'!W150, IF($BK$5 = $BF$7, 'Case Counts'!X150, 'Case Counts'!Y150)) -> 0.0003414499589 | BM155: ='Calc - SA_Case Counts'!L181 ->  | BN155: =IF($BK$5 = $BF$6, 'Case Counts'!AA150, IF($BK$5 = $BF$7, 'Case Counts'!AB150, 'Case Counts'!AC150)) -> 895451.6045
BJ156: 147 | BK156: =VLOOKUP(BJ156, 'Calc - Base'!$H$35:$I$400, 2) -> 2021-05-28 | BL156: =IF($BK$5 = $BF$6, 'Case Counts'!W151, IF($BK$5 = $BF$7, 'Case Counts'!X151, 'Case Counts'!Y151)) -> 0.0002850388854 | BM156: ='Calc - SA_Case Counts'!L182 ->  | BN156: =IF($BK$5 = $BF$6, 'Case Counts'!AA151, IF($BK$5 = $BF$7, 'Case Counts'!AB151, 'Case Counts'!AC151)) -> 895451.6048
BJ157: 148 | BK157: =VLOOKUP(BJ157, 'Calc - Base'!$H$35:$I$400, 2) -> 2021-05-29 | BL157: =IF($BK$5 = $BF$6, 'Case Counts'!W152, IF($BK$5 = $BF$7, 'Case Counts'!X152, 'Case Counts'!Y152)) -> 0.0002379475061 | BM157: ='Calc - SA_Case Counts'!L183 ->  | BN157: =IF($BK$5 = $BF$6, 'Case Counts'!AA152, IF($BK$5 = $BF$7, 'Case Counts'!AB152, 'Case Counts'!AC152)) -> 895451.605
BJ158: 149 | BK158: =VLOOKUP(BJ158, 'Calc - Base'!$H$35:$I$400, 2) -> 2021-05-30 | BL158: =IF($BK$5 = $BF$6, 'Case Counts'!W153, IF($BK$5 = $BF$7, 'Case Counts'!X153, 'Case Counts'!Y153)) -> 0.0001986361109 | BM158: ='Calc - SA_Case Counts'!L184 ->  | BN158: =IF($BK$5 = $BF$6, 'Case Counts'!AA153, IF($BK$5 = $BF$7, 'Case Counts'!AB153, 'Case Counts'!AC153)) -> 895451.6052
BJ159: 150 | BK159: =VLOOKUP(BJ159, 'Calc - Base'!$H$35:$I$400, 2) -> 2021-05-31 | BL159: =IF($BK$5 = $BF$6, 'Case Counts'!W154, IF($BK$5 = $BF$7, 'Case Counts'!X154, 'Case Counts'!Y154)) -> 0.0001658193658 | BM159: ='Calc - SA_Case Counts'!L185 ->  | BN159: =IF($BK$5 = $BF$6, 'Case Counts'!AA154, IF($BK$5 = $BF$7, 'Case Counts'!AB154, 'Case Counts'!AC154)) -> 895451.6054
BJ160: 151 | BK160: =VLOOKUP(BJ160, 'Calc - Base'!$H$35:$I$400, 2) -> 2021-06-01 | BL160: =IF($BK$5 = $BF$6, 'Case Counts'!W155, IF($BK$5 = $BF$7, 'Case Counts'!X155, 'Case Counts'!Y155)) -> 0.0001384242872 | BM160: ='Calc - SA_Case Counts'!L186 ->  | BN160: =IF($BK$5 = $BF$6, 'Case Counts'!AA155, IF($BK$5 = $BF$7, 'Case Counts'!AB155, 'Case Counts'!AC155)) -> 895451.6055
BJ161: 152 | BK161: =VLOOKUP(BJ161, 'Calc - Base'!$H$35:$I$400, 2) -> 2021-06-02 | BL161: =IF($BK$5 = $BF$6, 'Case Counts'!W156, IF($BK$5 = $BF$7, 'Case Counts'!X156, 'Case Counts'!Y156)) -> 0.0001155551596 | BM161: ='Calc - SA_Case Counts'!L187 ->  | BN161: =IF($BK$5 = $BF$6, 'Case Counts'!AA156, IF($BK$5 = $BF$7, 'Case Counts'!AB156, 'Case Counts'!AC156)) -> 895451.6057
BJ162: 153 | BK162: =VLOOKUP(BJ162, 'Calc - Base'!$H$35:$I$400, 2) -> 2021-06-03 | BL162: =IF($BK$5 = $BF$6, 'Case Counts'!W157, IF($BK$5 = $BF$7, 'Case Counts'!X157, 'Case Counts'!Y157)) -> 9.646424908e-05 | BM162: ='Calc - SA_Case Counts'!L188 ->  | BN162: =IF($BK$5 = $BF$6, 'Case Counts'!AA157, IF($BK$5 = $BF$7, 'Case Counts'!AB157, 'Case Counts'!AC157)) -> 895451.6058
BJ163: 154 | BK163: =VLOOKUP(BJ163, 'Calc - Base'!$H$35:$I$400, 2) -> 2021-06-04 | BL163: =IF($BK$5 = $BF$6, 'Case Counts'!W158, IF($BK$5 = $BF$7, 'Case Counts'!X158, 'Case Counts'!Y158)) -> 8.05273549e-05 | BM163: ='Calc - SA_Case Counts'!L189 ->  | BN163: =IF($BK$5 = $BF$6, 'Case Counts'!AA158, IF($BK$5 = $BF$7, 'Case Counts'!AB158, 'Case Counts'!AC158)) -> 895451.6058
BJ164: 155 | BK164: =VLOOKUP(BJ164, 'Calc - Base'!$H$35:$I$400, 2) -> 2021-06-05 | BL164: =IF($BK$5 = $BF$6, 'Case Counts'!W159, IF($BK$5 = $BF$7, 'Case Counts'!X159, 'Case Counts'!Y159)) -> 6.722340088e-05 | BM164: ='Calc - SA_Case Counts'!L190 ->  | BN164: =IF($BK$5 = $BF$6, 'Case Counts'!AA159, IF($BK$5 = $BF$7, 'Case Counts'!AB159, 'Case Counts'!AC159)) -> 895451.6059
BJ165: 156 | BK165: =VLOOKUP(BJ165, 'Calc - Base'!$H$35:$I$400, 2) -> 2021-06-06 | BL165: =IF($BK$5 = $BF$6, 'Case Counts'!W160, IF($BK$5 = $BF$7, 'Case Counts'!X160, 'Case Counts'!Y160)) -> 5.611739802e-05 | BM165: ='Calc - SA_Case Counts'!L191 ->  | BN165: =IF($BK$5 = $BF$6, 'Case Counts'!AA160, IF($BK$5 = $BF$7, 'Case Counts'!AB160, 'Case Counts'!AC160)) -> 895451.606
BJ166: 157 | BK166: =VLOOKUP(BJ166, 'Calc - Base'!$H$35:$I$400, 2) -> 2021-06-07 | BL166: =IF($BK$5 = $BF$6, 'Case Counts'!W161, IF($BK$5 = $BF$7, 'Case Counts'!X161, 'Case Counts'!Y161)) -> 4.684622198e-05 | BM166: ='Calc - SA_Case Counts'!L192 ->  | BN166: =IF($BK$5 = $BF$6, 'Case Counts'!AA161, IF($BK$5 = $BF$7, 'Case Counts'!AB161, 'Case Counts'!AC161)) -> 895451.606
BJ167: 158 | BK167: =VLOOKUP(BJ167, 'Calc - Base'!$H$35:$I$400, 2) -> 2021-06-08 | BL167: =IF($BK$5 = $BF$6, 'Case Counts'!W162, IF($BK$5 = $BF$7, 'Case Counts'!X162, 'Case Counts'!Y162)) -> 3.910674036e-05 | BM167: ='Calc - SA_Case Counts'!L193 ->  | BN167: =IF($BK$5 = $BF$6, 'Case Counts'!AA162, IF($BK$5 = $BF$7, 'Case Counts'!AB162, 'Case Counts'!AC162)) -> 895451.606
BJ168: 159 | BK168: =VLOOKUP(BJ168, 'Calc - Base'!$H$35:$I$400, 2) -> 2021-06-09 | BL168: =IF($BK$5 = $BF$6, 'Case Counts'!W163, IF($BK$5 = $BF$7, 'Case Counts'!X163, 'Case Counts'!Y163)) -> 3.264590135e-05 | BM168: ='Calc - SA_Case Counts'!L194 ->  | BN168: =IF($BK$5 = $BF$6, 'Case Counts'!AA163, IF($BK$5 = $BF$7, 'Case Counts'!AB163, 'Case Counts'!AC163)) -> 895451.6061
BJ169: 160 | BK169: =VLOOKUP(BJ169, 'Calc - Base'!$H$35:$I$400, 2) -> 2021-06-10 | BL169: =IF($BK$5 = $BF$6, 'Case Counts'!W164, IF($BK$5 = $BF$7, 'Case Counts'!X164, 'Case Counts'!Y164)) -> 2.725245994e-05 | BM169: ='Calc - SA_Case Counts'!L195 ->  | BN169: =IF($BK$5 = $BF$6, 'Case Counts'!AA164, IF($BK$5 = $BF$7, 'Case Counts'!AB164, 'Case Counts'!AC164)) -> 895451.6061
BJ170: 161 | BK170: =VLOOKUP(BJ170, 'Calc - Base'!$H$35:$I$400, 2) -> 2021-06-11 | BL170: =IF($BK$5 = $BF$6, 'Case Counts'!W165, IF($BK$5 = $BF$7, 'Case Counts'!X165, 'Case Counts'!Y165)) -> 2.275007097e-05 | BM170: ='Calc - SA_Case Counts'!L196 ->  | BN170: =IF($BK$5 = $BF$6, 'Case Counts'!AA165, IF($BK$5 = $BF$7, 'Case Counts'!AB165, 'Case Counts'!AC165)) -> 895451.6061
BJ171: 162 | BK171: =VLOOKUP(BJ171, 'Calc - Base'!$H$35:$I$400, 2) -> 2021-06-12 | BL171: =IF($BK$5 = $BF$6, 'Case Counts'!W166, IF($BK$5 = $BF$7, 'Case Counts'!X166, 'Case Counts'!Y166)) -> 1.899152335e-05 | BM171: ='Calc - SA_Case Counts'!L197 ->  | BN171: =IF($BK$5 = $BF$6, 'Case Counts'!AA166, IF($BK$5 = $BF$7, 'Case Counts'!AB166, 'Case Counts'!AC166)) -> 895451.6061
BJ172: 163 | BK172: =VLOOKUP(BJ172, 'Calc - Base'!$H$35:$I$400, 2) -> 2021-06-13 | BL172: =IF($BK$5 = $BF$6, 'Case Counts'!W167, IF($BK$5 = $BF$7, 'Case Counts'!X167, 'Case Counts'!Y167)) -> 1.585392677e-05 | BM172: ='Calc - SA_Case Counts'!L198 ->  | BN172: =IF($BK$5 = $BF$6, 'Case Counts'!AA167, IF($BK$5 = $BF$7, 'Case Counts'!AB167, 'Case Counts'!AC167)) -> 895451.6062
BJ173: 164 | BK173: =VLOOKUP(BJ173, 'Calc - Base'!$H$35:$I$400, 2) -> 2021-06-14 | BL173: =IF($BK$5 = $BF$6, 'Case Counts'!W168, IF($BK$5 = $BF$7, 'Case Counts'!X168, 'Case Counts'!Y168)) -> 1.323469367e-05 | BM173: ='Calc - SA_Case Counts'!L199 ->  | BN173: =IF($BK$5 = $BF$6, 'Case Counts'!AA168, IF($BK$5 = $BF$7, 'Case Counts'!AB168, 'Case Counts'!AC168)) -> 895451.6062
BJ174: 165 | BK174: =VLOOKUP(BJ174, 'Calc - Base'!$H$35:$I$400, 2) -> 2021-06-15 | BL174: =IF($BK$5 = $BF$6, 'Case Counts'!W169, IF($BK$5 = $BF$7, 'Case Counts'!X169, 'Case Counts'!Y169)) -> 1.104818505e-05 | BM174: ='Calc - SA_Case Counts'!L200 ->  | BN174: =IF($BK$5 = $BF$6, 'Case Counts'!AA169, IF($BK$5 = $BF$7, 'Case Counts'!AB169, 'Case Counts'!AC169)) -> 895451.6062
BJ175: 166 | BK175: =VLOOKUP(BJ175, 'Calc - Base'!$H$35:$I$400, 2) -> 2021-06-16 | BL175: =IF($BK$5 = $BF$6, 'Case Counts'!W170, IF($BK$5 = $BF$7, 'Case Counts'!X170, 'Case Counts'!Y170)) -> 9.222910317e-06 | BM175: ='Calc - SA_Case Counts'!L201 ->  | BN175: =IF($BK$5 = $BF$6, 'Case Counts'!AA170, IF($BK$5 = $BF$7, 'Case Counts'!AB170, 'Case Counts'!AC170)) -> 895451.6062
BJ176: 167 | BK176: =VLOOKUP(BJ176, 'Calc - Base'!$H$35:$I$400, 2) -> 2021-06-17 | BL176: =IF($BK$5 = $BF$6, 'Case Counts'!W171, IF($BK$5 = $BF$7, 'Case Counts'!X171, 'Case Counts'!Y171)) -> 7.699189899e-06 | BM176: ='Calc - SA_Case Counts'!L202 ->  | BN176: =IF($BK$5 = $BF$6, 'Case Counts'!AA171, IF($BK$5 = $BF$7, 'Case Counts'!AB171, 'Case Counts'!AC171)) -> 895451.6062
BJ177: 168 | BK177: =VLOOKUP(BJ177, 'Calc - Base'!$H$35:$I$400, 2) -> 2021-06-18 | BL177: =IF($BK$5 = $BF$6, 'Case Counts'!W172, IF($BK$5 = $BF$7, 'Case Counts'!X172, 'Case Counts'!Y172)) -> 6.427203894e-06 | BM177: ='Calc - SA_Case Counts'!L203 ->  | BN177: =IF($BK$5 = $BF$6, 'Case Counts'!AA172, IF($BK$5 = $BF$7, 'Case Counts'!AB172, 'Case Counts'!AC172)) -> 895451.6062
BJ178: 169 | BK178: =VLOOKUP(BJ178, 'Calc - Base'!$H$35:$I$400, 2) -> 2021-06-19 | BL178: =IF($BK$5 = $BF$6, 'Case Counts'!W173, IF($BK$5 = $BF$7, 'Case Counts'!X173, 'Case Counts'!Y173)) -> 5.365363166e-06 | BM178: ='Calc - SA_Case Counts'!L204 ->  | BN178: =IF($BK$5 = $BF$6, 'Case Counts'!AA173, IF($BK$5 = $BF$7, 'Case Counts'!AB173, 'Case Counts'!AC173)) -> 895451.6062
BJ179: 170 | BK179: =VLOOKUP(BJ179, 'Calc - Base'!$H$35:$I$400, 2) -> 2021-06-20 | BL179: =IF($BK$5 = $BF$6, 'Case Counts'!W174, IF($BK$5 = $BF$7, 'Case Counts'!X174, 'Case Counts'!Y174)) -> 4.478949537e-06 | BM179: ='Calc - SA_Case Counts'!L205 ->  | BN179: =IF($BK$5 = $BF$6, 'Case Counts'!AA174, IF($BK$5 = $BF$7, 'Case Counts'!AB174, 'Case Counts'!AC174)) -> 895451.6062
BJ180: 171 | BK180: =VLOOKUP(BJ180, 'Calc - Base'!$H$35:$I$400, 2) -> 2021-06-21 | BL180: =IF($BK$5 = $BF$6, 'Case Counts'!W175, IF($BK$5 = $BF$7, 'Case Counts'!X175, 'Case Counts'!Y175)) -> 3.73898063e-06 | BM180: ='Calc - SA_Case Counts'!L206 ->  | BN180: =IF($BK$5 = $BF$6, 'Case Counts'!AA175, IF($BK$5 = $BF$7, 'Case Counts'!AB175, 'Case Counts'!AC175)) -> 895451.6062
BJ181: 172 | BK181: =VLOOKUP(BJ181, 'Calc - Base'!$H$35:$I$400, 2) -> 2021-06-22 | BL181: =IF($BK$5 = $BF$6, 'Case Counts'!W176, IF($BK$5 = $BF$7, 'Case Counts'!X176, 'Case Counts'!Y176)) -> 3.12126226e-06 | BM181: ='Calc - SA_Case Counts'!L207 ->  | BN181: =IF($BK$5 = $BF$6, 'Case Counts'!AA176, IF($BK$5 = $BF$7, 'Case Counts'!AB176, 'Case Counts'!AC176)) -> 895451.6062
BJ182: 173 | BK182: =VLOOKUP(BJ182, 'Calc - Base'!$H$35:$I$400, 2) -> 2021-06-23 | BL182: =IF($BK$5 = $BF$6, 'Case Counts'!W177, IF($BK$5 = $BF$7, 'Case Counts'!X177, 'Case Counts'!Y177)) -> 2.60559737e-06 | BM182: ='Calc - SA_Case Counts'!L208 ->  | BN182: =IF($BK$5 = $BF$6, 'Case Counts'!AA177, IF($BK$5 = $BF$7, 'Case Counts'!AB177, 'Case Counts'!AC177)) -> 895451.6062
BJ183: 174 | BK183: =VLOOKUP(BJ183, 'Calc - Base'!$H$35:$I$400, 2) -> 2021-06-24 | BL183: =IF($BK$5 = $BF$6, 'Case Counts'!W178, IF($BK$5 = $BF$7, 'Case Counts'!X178, 'Case Counts'!Y178)) -> 2.175125667e-06 | BM183: ='Calc - SA_Case Counts'!L209 ->  | BN183: =IF($BK$5 = $BF$6, 'Case Counts'!AA178, IF($BK$5 = $BF$7, 'Case Counts'!AB178, 'Case Counts'!AC178)) -> 895451.6062
BJ184: 175 | BK184: =VLOOKUP(BJ184, 'Calc - Base'!$H$35:$I$400, 2) -> 2021-06-25 | BL184: =IF($BK$5 = $BF$6, 'Case Counts'!W179, IF($BK$5 = $BF$7, 'Case Counts'!X179, 'Case Counts'!Y179)) -> 1.815772352e-06 | BM184: ='Calc - SA_Case Counts'!L210 ->  | BN184: =IF($BK$5 = $BF$6, 'Case Counts'!AA179, IF($BK$5 = $BF$7, 'Case Counts'!AB179, 'Case Counts'!AC179)) -> 895451.6062
BJ185: 176 | BK185: =VLOOKUP(BJ185, 'Calc - Base'!$H$35:$I$400, 2) -> 2021-06-26 | BL185: =IF($BK$5 = $BF$6, 'Case Counts'!W180, IF($BK$5 = $BF$7, 'Case Counts'!X180, 'Case Counts'!Y180)) -> 1.515787932e-06 | BM185: ='Calc - SA_Case Counts'!L211 ->  | BN185: =IF($BK$5 = $BF$6, 'Case Counts'!AA180, IF($BK$5 = $BF$7, 'Case Counts'!AB180, 'Case Counts'!AC180)) -> 895451.6062
BJ186: 177 | BK186: =VLOOKUP(BJ186, 'Calc - Base'!$H$35:$I$400, 2) -> 2021-06-27 | BL186: =IF($BK$5 = $BF$6, 'Case Counts'!W181, IF($BK$5 = $BF$7, 'Case Counts'!X181, 'Case Counts'!Y181)) -> 1.265364048e-06 | BM186: ='Calc - SA_Case Counts'!L212 ->  | BN186: =IF($BK$5 = $BF$6, 'Case Counts'!AA181, IF($BK$5 = $BF$7, 'Case Counts'!AB181, 'Case Counts'!AC181)) -> 895451.6062
BJ187: 178 | BK187: =VLOOKUP(BJ187, 'Calc - Base'!$H$35:$I$400, 2) -> 2021-06-28 | BL187: =IF($BK$5 = $BF$6, 'Case Counts'!W182, IF($BK$5 = $BF$7, 'Case Counts'!X182, 'Case Counts'!Y182)) -> 1.056312786e-06 | BM187: ='Calc - SA_Case Counts'!L213 ->  | BN187: =IF($BK$5 = $BF$6, 'Case Counts'!AA182, IF($BK$5 = $BF$7, 'Case Counts'!AB182, 'Case Counts'!AC182)) -> 895451.6062
BJ188: 179 | BK188: =VLOOKUP(BJ188, 'Calc - Base'!$H$35:$I$400, 2) -> 2021-06-29 | BL188: =IF($BK$5 = $BF$6, 'Case Counts'!W183, IF($BK$5 = $BF$7, 'Case Counts'!X183, 'Case Counts'!Y183)) -> 8.81798961e-07 | BM188: ='Calc - SA_Case Counts'!L214 ->  | BN188: =IF($BK$5 = $BF$6, 'Case Counts'!AA183, IF($BK$5 = $BF$7, 'Case Counts'!AB183, 'Case Counts'!AC183)) -> 895451.6062
BJ189: 180 | BK189: =VLOOKUP(BJ189, 'Calc - Base'!$H$35:$I$400, 2) -> 2021-06-30 | BL189: =IF($BK$5 = $BF$6, 'Case Counts'!W184, IF($BK$5 = $BF$7, 'Case Counts'!X184, 'Case Counts'!Y184)) -> 7.361166292e-07 | BM189: ='Calc - SA_Case Counts'!L215 ->  | BN189: =IF($BK$5 = $BF$6, 'Case Counts'!AA184, IF($BK$5 = $BF$7, 'Case Counts'!AB184, 'Case Counts'!AC184)) -> 895451.6062
BJ190: 181 | BK190: =VLOOKUP(BJ190, 'Calc - Base'!$H$35:$I$400, 2) -> 2021-07-01 | BL190: =IF($BK$5 = $BF$6, 'Case Counts'!W185, IF($BK$5 = $BF$7, 'Case Counts'!X185, 'Case Counts'!Y185)) -> 6.145025291e-07 | BM190: ='Calc - SA_Case Counts'!L216 ->  | BN190: =IF($BK$5 = $BF$6, 'Case Counts'!AA185, IF($BK$5 = $BF$7, 'Case Counts'!AB185, 'Case Counts'!AC185)) -> 895451.6062
BJ191: 182 | BK191: =VLOOKUP(BJ191, 'Calc - Base'!$H$35:$I$400, 2) -> 2021-07-02 | BL191: =IF($BK$5 = $BF$6, 'Case Counts'!W186, IF($BK$5 = $BF$7, 'Case Counts'!X186, 'Case Counts'!Y186)) -> 5.129803394e-07 | BM191: ='Calc - SA_Case Counts'!L217 ->  | BN191: =IF($BK$5 = $BF$6, 'Case Counts'!AA186, IF($BK$5 = $BF$7, 'Case Counts'!AB186, 'Case Counts'!AC186)) -> 895451.6062
BJ192: 183 | BK192: =VLOOKUP(BJ192, 'Calc - Base'!$H$35:$I$400, 2) -> 2021-07-03 | BL192: =IF($BK$5 = $BF$6, 'Case Counts'!W187, IF($BK$5 = $BF$7, 'Case Counts'!X187, 'Case Counts'!Y187)) -> 4.282306682e-07 | BM192: ='Calc - SA_Case Counts'!L218 ->  | BN192: =IF($BK$5 = $BF$6, 'Case Counts'!AA187, IF($BK$5 = $BF$7, 'Case Counts'!AB187, 'Case Counts'!AC187)) -> 895451.6062
BJ193: 184 | BK193: =VLOOKUP(BJ193, 'Calc - Base'!$H$35:$I$400, 2) -> 2021-07-04 | BL193: =IF($BK$5 = $BF$6, 'Case Counts'!W188, IF($BK$5 = $BF$7, 'Case Counts'!X188, 'Case Counts'!Y188)) -> 3.574825214e-07 | BM193: ='Calc - SA_Case Counts'!L219 ->  | BN193: =IF($BK$5 = $BF$6, 'Case Counts'!AA188, IF($BK$5 = $BF$7, 'Case Counts'!AB188, 'Case Counts'!AC188)) -> 895451.6062
BJ194: 185 | BK194: =VLOOKUP(BJ194, 'Calc - Base'!$H$35:$I$400, 2) -> 2021-07-05 | BL194: =IF($BK$5 = $BF$6, 'Case Counts'!W189, IF($BK$5 = $BF$7, 'Case Counts'!X189, 'Case Counts'!Y189)) -> 2.984227021e-07 | BM194: ='Calc - SA_Case Counts'!L220 ->  | BN194: =IF($BK$5 = $BF$6, 'Case Counts'!AA189, IF($BK$5 = $BF$7, 'Case Counts'!AB189, 'Case Counts'!AC189)) -> 895451.6062
BJ195: 186 | BK195: =VLOOKUP(BJ195, 'Calc - Base'!$H$35:$I$400, 2) -> 2021-07-06 | BL195: =IF($BK$5 = $BF$6, 'Case Counts'!W190, IF($BK$5 = $BF$7, 'Case Counts'!X190, 'Case Counts'!Y190)) -> 2.491201773e-07 | BM195: ='Calc - SA_Case Counts'!L221 ->  | BN195: =IF($BK$5 = $BF$6, 'Case Counts'!AA190, IF($BK$5 = $BF$7, 'Case Counts'!AB190, 'Case Counts'!AC190)) -> 895451.6062
BJ196: 187 | BK196: =VLOOKUP(BJ196, 'Calc - Base'!$H$35:$I$400, 2) -> 2021-07-07 | BL196: =IF($BK$5 = $BF$6, 'Case Counts'!W191, IF($BK$5 = $BF$7, 'Case Counts'!X191, 'Case Counts'!Y191)) -> 2.079629408e-07 | BM196: ='Calc - SA_Case Counts'!L222 ->  | BN196: =IF($BK$5 = $BF$6, 'Case Counts'!AA191, IF($BK$5 = $BF$7, 'Case Counts'!AB191, 'Case Counts'!AC191)) -> 895451.6062
BJ197: 188 | BK197: =VLOOKUP(BJ197, 'Calc - Base'!$H$35:$I$400, 2) -> 2021-07-08 | BL197: =IF($BK$5 = $BF$6, 'Case Counts'!W192, IF($BK$5 = $BF$7, 'Case Counts'!X192, 'Case Counts'!Y192)) -> 1.736053066e-07 | BM197: ='Calc - SA_Case Counts'!L223 ->  | BN197: =IF($BK$5 = $BF$6, 'Case Counts'!AA192, IF($BK$5 = $BF$7, 'Case Counts'!AB192, 'Case Counts'!AC192)) -> 895451.6062
BJ198: 189 | BK198: =VLOOKUP(BJ198, 'Calc - Base'!$H$35:$I$400, 2) -> 2021-07-09 | BL198: =IF($BK$5 = $BF$6, 'Case Counts'!W193, IF($BK$5 = $BF$7, 'Case Counts'!X193, 'Case Counts'!Y193)) -> 1.449239098e-07 | BM198: ='Calc - SA_Case Counts'!L224 ->  | BN198: =IF($BK$5 = $BF$6, 'Case Counts'!AA193, IF($BK$5 = $BF$7, 'Case Counts'!AB193, 'Case Counts'!AC193)) -> 895451.6062
BJ199: 190 | BK199: =VLOOKUP(BJ199, 'Calc - Base'!$H$35:$I$400, 2) -> 2021-07-10 | BL199: =IF($BK$5 = $BF$6, 'Case Counts'!W194, IF($BK$5 = $BF$7, 'Case Counts'!X194, 'Case Counts'!Y194)) -> 1.209809772e-07 | BM199: ='Calc - SA_Case Counts'!L225 ->  | BN199: =IF($BK$5 = $BF$6, 'Case Counts'!AA194, IF($BK$5 = $BF$7, 'Case Counts'!AB194, 'Case Counts'!AC194)) -> 895451.6062
BJ200: 191 | BK200: =VLOOKUP(BJ200, 'Calc - Base'!$H$35:$I$400, 2) -> 2021-07-11 | BL200: =IF($BK$5 = $BF$6, 'Case Counts'!W195, IF($BK$5 = $BF$7, 'Case Counts'!X195, 'Case Counts'!Y195)) -> 1.009936653e-07 | BM200: ='Calc - SA_Case Counts'!L226 ->  | BN200: =IF($BK$5 = $BF$6, 'Case Counts'!AA195, IF($BK$5 = $BF$7, 'Case Counts'!AB195, 'Case Counts'!AC195)) -> 895451.6062
BJ201: 192 | BK201: =VLOOKUP(BJ201, 'Calc - Base'!$H$35:$I$400, 2) -> 2021-07-12 | BL201: =IF($BK$5 = $BF$6, 'Case Counts'!W196, IF($BK$5 = $BF$7, 'Case Counts'!X196, 'Case Counts'!Y196)) -> 8.430846456e-08 | BM201: ='Calc - SA_Case Counts'!L227 ->  | BN201: =IF($BK$5 = $BF$6, 'Case Counts'!AA196, IF($BK$5 = $BF$7, 'Case Counts'!AB196, 'Case Counts'!AC196)) -> 895451.6062
BJ202: 193 | BK202: =VLOOKUP(BJ202, 'Calc - Base'!$H$35:$I$400, 2) -> 2021-07-13 | BL202: =IF($BK$5 = $BF$6, 'Case Counts'!W197, IF($BK$5 = $BF$7, 'Case Counts'!X197, 'Case Counts'!Y197)) -> 7.0379832e-08 | BM202: ='Calc - SA_Case Counts'!L228 ->  | BN202: =IF($BK$5 = $BF$6, 'Case Counts'!AA197, IF($BK$5 = $BF$7, 'Case Counts'!AB197, 'Case Counts'!AC197)) -> 895451.6062
BJ203: 194 | BK203: =VLOOKUP(BJ203, 'Calc - Base'!$H$35:$I$400, 2) -> 2021-07-14 | BL203: =IF($BK$5 = $BF$6, 'Case Counts'!W198, IF($BK$5 = $BF$7, 'Case Counts'!X198, 'Case Counts'!Y198)) -> 5.875235398e-08 | BM203: ='Calc - SA_Case Counts'!L229 ->  | BN203: =IF($BK$5 = $BF$6, 'Case Counts'!AA198, IF($BK$5 = $BF$7, 'Case Counts'!AB198, 'Case Counts'!AC198)) -> 895451.6062 | BO203: =BO202+BM203 -> 
BJ204: 195 | BK204: =VLOOKUP(BJ204, 'Calc - Base'!$H$35:$I$400, 2) -> 2021-07-15 | BL204: =IF($BK$5 = $BF$6, 'Case Counts'!W199, IF($BK$5 = $BF$7, 'Case Counts'!X199, 'Case Counts'!Y199)) -> 4.904585589e-08 | BM204: ='Calc - SA_Case Counts'!L230 ->  | BN204: =IF($BK$5 = $BF$6, 'Case Counts'!AA199, IF($BK$5 = $BF$7, 'Case Counts'!AB199, 'Case Counts'!AC199)) -> 895451.6062
... 170 more rows

Sheet SA_Resources
B5: "What-If" Sensitivity Analysis: Staffing Needs | BA5: Chart Text | BF5: Scenario Options | BJ5: Chosen Scenario | BK5: =$E$9 -> Strategy 2 | BL5: =IF($BK$5 = $BF$6, 'B. Contact Tracing Strategies'!$F$19, IF($BK$5 = $BF$7, 'B. Contact Tracing Strategies'!$G$19, 'B. Contact Tracing Strategies'!$H$19)) -> 0 | BT5: Group 1 | BX5: Group 2
BA6: Maximum staff needed on a single day | BF6: ='B. Contact Tracing Strategies'!F16 -> No Contact Tracing | BL6: =E11 -> Original Scenario | BN6: =G11 -> "What-If" Scenario | BT6: =$BL$6 -> Original Scenario | BV6: =$BN$6 -> "What-If" Scenario | BX6: =$BL$6 -> Original Scenario | BZ6: =$BN$6 -> "What-If" Scenario
BF7: ='B. Contact Tracing Strategies'!G16 -> Continued Contact Tracing | BL7: Lower | BM7: Upper | BN7: Lower | BO7: Upper | BT7: Lower | BU7: Upper | BV7: Lower | BW7: Upper | BX7: Lower | BY7: Upper | BZ7: Lower | CA7: Upper
BA8: Chart Titles | BF8: ='B. Contact Tracing Strategies'!H16 -> Strategy 3 (Optional) | BJ8: Day | BK8: Date
B9: Step 1: | C9: Choose A Contact Tracing Strategy | E9: Strategy 2 | K9: Staffing needs would change like this: | BA9: =IFERROR(_xlfn.CONCAT($BA$6, "(", $BK$5, " vs. 'What-If' Scenario)"), CONCATENATE($BA$6, "(", $BK$5, " vs. 'What-If' Scenario)")) -> Maximum staff needed on a single day (Strategy 2 vs. 'What-If' Scenario) | BJ9: 0 | BK9: =VLOOKUP(BJ9, 'Calc - Base'!$H$35:$I$400, 2) -> 2021-01-01 | BL9: =IF($BK$5=$BF$6, 'Staff Needed'!V5, IF($BK$5=$BF$7, 'Staff Needed'!X5, 'Staff Needed'!Z5)) -> 81.91333672 | BM9: =IF($BK$5=$BF$6, 'Staff Needed'!W5, IF($BK$5=$BF$7, 'Staff Needed'!Y5, 'Staff Needed'!AA5)) -> 245.7400102 | BN9: ='Calc - SA_Resources'!AT35 -> 81.91333672 | BO9: ='Calc - SA_Resources'!AU35 -> 245.7400102 | BT9: =IF($BK$5=$BF$6, 'Staff Needed'!AB5, IF($BK$5=$BF$7, 'Staff Needed'!AD5, 'Staff Needed'!AF5)) -> 81.91333672 | BU9: =IF($BK$5=$BF$6, 'Staff Needed'!AC5, IF($BK$5=$BF$7, 'Staff Needed'!AE5, 'Staff Needed'!AG5)) -> 245.7400102 | BV9: ='Calc - SA_Resources'!BA35 -> 81.91333672 | BW9: ='Calc - SA_Resources'!BB35 -> 245.7400102 | BX9: =IF($BK$5=$BF$6, 'Staff Needed'!AH5, IF($BK$5=$BF$7, 'Staff Needed'!AJ5, 'Staff Needed'!AL5)) -> 0 | BY9: =IF($BK$5=$BF$6, 'Staff Needed'!AI5, IF($BK$5=$BF$7, 'Staff Needed'!AK5, 'Staff Needed'!AM5)) -> 0 | BZ9: ='Calc - SA_Resources'!BG35 -> 0 | CA9: ='Calc - SA_Resources'!BH35 -> 0
BJ10: 1 | BK10: =VLOOKUP(BJ10, 'Calc - Base'!$H$35:$I$400, 2) -> 2021-01-02 | BL10: =IF($BK$5=$BF$6, 'Staff Needed'!V6, IF($BK$5=$BF$7, 'Staff Needed'!X6, 'Staff Needed'!Z6)) -> 91.87620384 | BM10: =IF($BK$5=$BF$6, 'Staff Needed'!W6, IF($BK$5=$BF$7, 'Staff Needed'!Y6, 'Staff Needed'!AA6)) -> 275.6286115 | BN10: ='Calc - SA_Resources'!AT36 -> 91.87620384 | BO10: ='Calc - SA_Resources'!AU36 -> 275.6286115 | BT10: =IF($BK$5=$BF$6, 'Staff Needed'!AB6, IF($BK$5=$BF$7, 'Staff Needed'!AD6, 'Staff Needed'!AF6)) -> 91.87620384 | BU10: =IF($BK$5=$BF$6, 'Staff Needed'!AC6, IF($BK$5=$BF$7, 'Staff Needed'!AE6, 'Staff Needed'!AG6)) -> 275.6286115 | BV10: ='Calc - SA_Resources'!BA36 -> 91.87620384 | BW10: ='Calc - SA_Resources'!BB36 -> 275.6286115 | BX10: =IF($BK$5=$BF$6, 'Staff Needed'!AH6, IF($BK$5=$BF$7, 'Staff Needed'!AJ6, 'Staff Needed'!AL6)) -> 0 | BY10: =IF($BK$5=$BF$6, 'Staff Needed'!AI6, IF($BK$5=$BF$7, 'Staff Needed'!AK6, 'Staff Needed'!AM6)) -> 0 | BZ10: ='Calc - SA_Resources'!BG36 -> 0 | CA10: ='Calc - SA_Resources'!BH36 -> 0
B11: Step 2: | C11: Set your "What-If" Scenario | E11: Original Scenario | G11: "What-If" Scenario | BJ11: 2 | BK11: =VLOOKUP(BJ11, 'Calc - Base'!$H$35:$I$400, 2) -> 2021-01-03 | BL11: =IF($BK$5=$BF$6, 'Staff Needed'!V7, IF($BK$5=$BF$7, 'Staff Needed'!X7, 'Staff Needed'!Z7)) -> 101.8075306 | BM11: =IF($BK$5=$BF$6, 'Staff Needed'!W7, IF($BK$5=$BF$7, 'Staff Needed'!Y7, 'Staff Needed'!AA7)) -> 305.4225919 | BN11: ='Calc - SA_Resources'!AT37 -> 101.8075306 | BO11: ='Calc - SA_Resources'!AU37 -> 305.4225919 | BT11: =IF($BK$5=$BF$6, 'Staff Needed'!AB7, IF($BK$5=$BF$7, 'Staff Needed'!AD7, 'Staff Needed'!AF7)) -> 101.8075306 | BU11: =IF($BK$5=$BF$6, 'Staff Needed'!AC7, IF($BK$5=$BF$7, 'Staff Needed'!AE7, 'Staff Needed'!AG7)) -> 305.4225919 | BV11: ='Calc - SA_Resources'!BA37 -> 101.8075306 | BW11: ='Calc - SA_Resources'!BB37 -> 305.4225919 | BX11: =IF($BK$5=$BF$6, 'Staff Needed'!AH7, IF($BK$5=$BF$7, 'Staff Needed'!AJ7, 'Staff Needed'!AL7)) -> 0 | BY11: =IF($BK$5=$BF$6, 'Staff Needed'!AI7, IF($BK$5=$BF$7, 'Staff Needed'!AK7, 'Staff Needed'!AM7)) -> 0 | BZ11: ='Calc - SA_Resources'!BG37 -> 0 | CA11: ='Calc - SA_Resources'!BH37 -> 0
E12: Lower | F12: Upper | G12: Lower | H12: Upper | BJ12: 3 | BK12: =VLOOKUP(BJ12, 'Calc - Base'!$H$35:$I$400, 2) -> 2021-01-04 | BL12: =IF($BK$5=$BF$6, 'Staff Needed'!V8, IF($BK$5=$BF$7, 'Staff Needed'!X8, 'Staff Needed'!Z8)) -> 111.7038008 | BM12: =IF($BK$5=$BF$6, 'Staff Needed'!W8, IF($BK$5=$BF$7, 'Staff Needed'!Y8, 'Staff Needed'!AA8)) -> 335.1114024 | BN12: ='Calc - SA_Resources'!AT38 -> 111.7038008 | BO12: ='Calc - SA_Resources'!AU38 -> 335.1114024 | BT12: =IF($BK$5=$BF$6, 'Staff Needed'!AB8, IF($BK$5=$BF$7, 'Staff Needed'!AD8, 'Staff Needed'!AF8)) -> 111.7038008 | BU12: =IF($BK$5=$BF$6, 'Staff Needed'!AC8, IF($BK$5=$BF$7, 'Staff Needed'!AE8, 'Staff Needed'!AG8)) -> 335.1114024 | BV12: ='Calc - SA_Resources'!BA38 -> 111.7038008 | BW12: ='Calc - SA_Resources'!BB38 -> 335.1114024 | BX12: =IF($BK$5=$BF$6, 'Staff Needed'!AH8, IF($BK$5=$BF$7, 'Staff Needed'!AJ8, 'Staff Needed'!AL8)) -> 0 | BY12: =IF($BK$5=$BF$6, 'Staff Needed'!AI8, IF($BK$5=$BF$7, 'Staff Needed'!AK8, 'Staff Needed'!AM8)) -> 0 | BZ12: ='Calc - SA_Resources'!BG38 -> 0 | CA12: ='Calc - SA_Resources'!BH38 -> 0
C13: Contacts per Case | E13: ='C. Tracing Resources'!D9 -> 5 | F13: ='C. Tracing Resources'!E9 -> 20 | G13: 3 | H13: 10 | BJ13: 4 | BK13: =VLOOKUP(BJ13, 'Calc - Base'!$H$35:$I$400, 2) -> 2021-01-05 | BL13: =IF($BK$5=$BF$6, 'Staff Needed'!V9, IF($BK$5=$BF$7, 'Staff Needed'!X9, 'Staff Needed'!Z9)) -> 129.3830284 | BM13: =IF($BK$5=$BF$6, 'Staff Needed'!W9, IF($BK$5=$BF$7, 'Staff Needed'!Y9, 'Staff Needed'!AA9)) -> 388.1490853 | BN13: ='Calc - SA_Resources'!AT39 -> 129.3830284 | BO13: ='Calc - SA_Resources'!AU39 -> 388.1490853 | BT13: =IF($BK$5=$BF$6, 'Staff Needed'!AB9, IF($BK$5=$BF$7, 'Staff Needed'!AD9, 'Staff Needed'!AF9)) -> 129.3830284 | BU13: =IF($BK$5=$BF$6, 'Staff Needed'!AC9, IF($BK$5=$BF$7, 'Staff Needed'!AE9, 'Staff Needed'!AG9)) -> 388.1490853 | BV13: ='Calc - SA_Resources'!BA39 -> 129.3830284 | BW13: ='Calc - SA_Resources'!BB39 -> 388.1490853 | BX13: =IF($BK$5=$BF$6, 'Staff Needed'!AH9, IF($BK$5=$BF$7, 'Staff Needed'!AJ9, 'Staff Needed'!AL9)) -> 0 | BY13: =IF($BK$5=$BF$6, 'Staff Needed'!AI9, IF($BK$5=$BF$7, 'Staff Needed'!AK9, 'Staff Needed'!AM9)) -> 0 | BZ13: ='Calc - SA_Resources'!BG39 -> 0 | CA13: ='Calc - SA_Resources'!BH39 -> 0
C14: Daily shift length (hours) | E14: ='C. Tracing Resources'!D14 -> 8 | F14: ='C. Tracing Resources'!E14 -> 12 | G14: 8 | H14: 12 | BJ14: 5 | BK14: =VLOOKUP(BJ14, 'Calc - Base'!$H$35:$I$400, 2) -> 2021-01-06 | BL14: =IF($BK$5=$BF$6, 'Staff Needed'!V10, IF($BK$5=$BF$7, 'Staff Needed'!X10, 'Staff Needed'!Z10)) -> 149.896885 | BM14: =IF($BK$5=$BF$6, 'Staff Needed'!W10, IF($BK$5=$BF$7, 'Staff Needed'!Y10, 'Staff Needed'!AA10)) -> 449.6906549 | BN14: ='Calc - SA_Resources'!AT40 -> 149.896885 | BO14: ='Calc - SA_Resources'!AU40 -> 449.6906549 | BQ14: Lower | BR14: Upper | BT14: =IF($BK$5=$BF$6, 'Staff Needed'!AB10, IF($BK$5=$BF$7, 'Staff Needed'!AD10, 'Staff Needed'!AF10)) -> 149.896885 | BU14: =IF($BK$5=$BF$6, 'Staff Needed'!AC10, IF($BK$5=$BF$7, 'Staff Needed'!AE10, 'Staff Needed'!AG10)) -> 449.6906549 | BV14: ='Calc - SA_Resources'!BA40 -> 149.896885 | BW14: ='Calc - SA_Resources'!BB40 -> 449.6906549 | BX14: =IF($BK$5=$BF$6, 'Staff Needed'!AH10, IF($BK$5=$BF$7, 'Staff Needed'!AJ10, 'Staff Needed'!AL10)) -> 0 | BY14: =IF($BK$5=$BF$6, 'Staff Needed'!AI10, IF($BK$5=$BF$7, 'Staff Needed'!AK10, 'Staff Needed'!AM10)) -> 0 | BZ14: ='Calc - SA_Resources'!BG40 -> 0 | CA14: ='Calc - SA_Resources'!BH40 -> 0
C15: Overhead hours (e.g., prep time, supervisory time, support staff) | E15: ='C. Tracing Resources'!D15 -> 0.05 | F15: ='C. Tracing Resources'!E15 -> 0.05 | G15: 0.05 | H15: 0.05 | BB15: =E11 -> Original Scenario | BD15: =G11 -> "What-If" Scenario | BJ15: 6 | BK15: =VLOOKUP(BJ15, 'Calc - Base'!$H$35:$I$400, 2) -> 2021-01-07 | BL15: =IF($BK$5=$BF$6, 'Staff Needed'!V11, IF($BK$5=$BF$7, 'Staff Needed'!X11, 'Staff Needed'!Z11)) -> 172.3495672 | BM15: =IF($BK$5=$BF$6, 'Staff Needed'!W11, IF($BK$5=$BF$7, 'Staff Needed'!Y11, 'Staff Needed'!AA11)) -> 517.0487017 | BN15: ='Calc - SA_Resources'!AT41 -> 172.3495672 | BO15: ='Calc - SA_Resources'!AU41 -> 517.0487017 | BP15: =BL6 -> Original Scenario | BQ15: =MAX(BL9:BL374) -> 2985.292278 | BR15: =MAX(BM9:BM374) -> 8955.876835 | BT15: =IF($BK$5=$BF$6, 'Staff Needed'!AB11, IF($BK$5=$BF$7, 'Staff Needed'!AD11, 'Staff Needed'!AF11)) -> 172.3495672 | BU15: =IF($BK$5=$BF$6, 'Staff Needed'!AC11, IF($BK$5=$BF$7, 'Staff Needed'!AE11, 'Staff Needed'!AG11)) -> 517.0487017 | BV15: ='Calc - SA_Resources'!BA41 -> 172.3495672 | BW15: ='Calc - SA_Resources'!BB41 -> 517.0487017 | BX15: =IF($BK$5=$BF$6, 'Staff Needed'!AH11, IF($BK$5=$BF$7, 'Staff Needed'!AJ11, 'Staff Needed'!AL11)) -> 0 | BY15: =IF($BK$5=$BF$6, 'Staff Needed'!AI11, IF($BK$5=$BF$7, 'Staff Needed'!AK11, 'Staff Needed'!AM11)) -> 0 | BZ15: ='Calc - SA_Resources'!BG41 -> 0 | CA15: ='Calc - SA_Resources'!BH41 -> 0
C16: Alerts per case | E16: ='C. Tracing Resources'!D10 -> 0 | F16: ='C. Tracing Resources'!E10 -> 0 | G16: 0 | H16: 0 | BB16: Lower | BC16: Upper | BD16: Lower | BE16: Upper | BJ16: 7 | BK16: =VLOOKUP(BJ16, 'Calc - Base'!$H$35:$I$400, 2) -> 2021-01-08 | BL16: =IF($BK$5=$BF$6, 'Staff Needed'!V12, IF($BK$5=$BF$7, 'Staff Needed'!X12, 'Staff Needed'!Z12)) -> 195.8204244 | BM16: =IF($BK$5=$BF$6, 'Staff Needed'!W12, IF($BK$5=$BF$7, 'Staff Needed'!Y12, 'Staff Needed'!AA12)) -> 587.4612733 | BN16: ='Calc - SA_Resources'!AT42 -> 195.8204244 | BO16: ='Calc - SA_Resources'!AU42 -> 587.4612733 | BP16: =BN6 -> "What-If" Scenario | BQ16: =MAX(BN9:BN374) -> 2985.292278 | BR16: =MAX(BO9:BO374) -> 8955.876835 | BT16: =IF($BK$5=$BF$6, 'Staff Needed'!AB12, IF($BK$5=$BF$7, 'Staff Needed'!AD12, 'Staff Needed'!AF12)) -> 195.8204244 | BU16: =IF($BK$5=$BF$6, 'Staff Needed'!AC12, IF($BK$5=$BF$7, 'Staff Needed'!AE12, 'Staff Needed'!AG12)) -> 587.4612733 | BV16: ='Calc - SA_Resources'!BA42 -> 195.8204244 | BW16: ='Calc - SA_Resources'!BB42 -> 587.4612733 | BX16: =IF($BK$5=$BF$6, 'Staff Needed'!AH12, IF($BK$5=$BF$7, 'Staff Needed'!AJ12, 'Staff Needed'!AL12)) -> 0 | BY16: =IF($BK$5=$BF$6, 'Staff Needed'!AI12, IF($BK$5=$BF$7, 'Staff Needed'!AK12, 'Staff Needed'!AM12)) -> 0 | BZ16: ='Calc - SA_Resources'!BG42 -> 0 | CA16: ='Calc - SA_Resources'!BH42 -> 0
C17: Time needed for alert screening interview (hours) | E17: ='C. Tracing Resources'!E20 -> 2 | F17: ='C. Tracing Resources'!F20 -> 4 | G17: 5 | H17: 10 | BA17: Group 1 | BB17: =SUM(BT9:BT374)/SUM(BL9:BL374) -> 1 | BC17: =SUM(BU9:BU374)/SUM(BM9:BM374) -> 1 | BD17: =SUM(BV9:BV374)/SUM(BN9:BN374) -> 1 | BE17: =SUM(BW9:BW374)/SUM(BO9:BO374) -> 1 | BJ17: 8 | BK17: =VLOOKUP(BJ17, 'Calc - Base'!$H$35:$I$400, 2) -> 2021-01-09 | BL17: =IF($BK$5=$BF$6, 'Staff Needed'!V13, IF($BK$5=$BF$7, 'Staff Needed'!X13, 'Staff Needed'!Z13)) -> 222.7167236 | BM17: =IF($BK$5=$BF$6, 'Staff Needed'!W13, IF($BK$5=$BF$7, 'Staff Needed'!Y13, 'Staff Needed'!AA13)) -> 668.1501707 | BN17: ='Calc - SA_Resources'!AT43 -> 222.7167236 | BO17: ='Calc - SA_Resources'!AU43 -> 668.1501707 | BT17: =IF($BK$5=$BF$6, 'Staff Needed'!AB13, IF($BK$5=$BF$7, 'Staff Needed'!AD13, 'Staff Needed'!AF13)) -> 222.7167236 | BU17: =IF($BK$5=$BF$6, 'Staff Needed'!AC13, IF($BK$5=$BF$7, 'Staff Needed'!AE13, 'Staff Needed'!AG13)) -> 668.1501707 | BV17: ='Calc - SA_Resources'!BA43 -> 222.7167236 | BW17: ='Calc - SA_Resources'!BB43 -> 668.1501707 | BX17: =IF($BK$5=$BF$6, 'Staff Needed'!AH13, IF($BK$5=$BF$7, 'Staff Needed'!AJ13, 'Staff Needed'!AL13)) -> 0 | BY17: =IF($BK$5=$BF$6, 'Staff Needed'!AI13, IF($BK$5=$BF$7, 'Staff Needed'!AK13, 'Staff Needed'!AM13)) -> 0 | BZ17: ='Calc - SA_Resources'!BG43 -> 0 | CA17: ='Calc - SA_Resources'!BH43 -> 0
C18: Initial case interview (hours) | E18: ='C. Tracing Resources'!E19 -> 1 | F18: ='C. Tracing Resources'!F19 -> 2 | G18: 1 | H18: 2 | BA18: Group 2 | BB18: =SUM(BX9:BX374)/SUM(BL9:BL374) -> 0 | BC18: =SUM(BY9:BY374)/SUM(BM9:BM374) -> 0 | BD18: =SUM(BZ9:BZ374)/SUM(BN9:BN374) -> 0 | BE18: 0 | BJ18: 9 | BK18: =VLOOKUP(BJ18, 'Calc - Base'!$H$35:$I$400, 2) -> 2021-01-10 | BL18: =IF($BK$5=$BF$6, 'Staff Needed'!V14, IF($BK$5=$BF$7, 'Staff Needed'!X14, 'Staff Needed'!Z14)) -> 253.9347721 | BM18: =IF($BK$5=$BF$6, 'Staff Needed'!W14, IF($BK$5=$BF$7, 'Staff Needed'!Y14, 'Staff Needed'!AA14)) -> 761.8043163 | BN18: ='Calc - SA_Resources'!AT44 -> 253.9347721 | BO18: ='Calc - SA_Resources'!AU44 -> 761.8043163 | BT18: =IF($BK$5=$BF$6, 'Staff Needed'!AB14, IF($BK$5=$BF$7, 'Staff Needed'!AD14, 'Staff Needed'!AF14)) -> 253.9347721 | BU18: =IF($BK$5=$BF$6, 'Staff Needed'!AC14, IF($BK$5=$BF$7, 'Staff Needed'!AE14, 'Staff Needed'!AG14)) -> 761.8043163 | BV18: ='Calc - SA_Resources'!BA44 -> 253.9347721 | BW18: ='Calc - SA_Resources'!BB44 -> 761.8043163 | BX18: =IF($BK$5=$BF$6, 'Staff Needed'!AH14, IF($BK$5=$BF$7, 'Staff Needed'!AJ14, 'Staff Needed'!AL14)) -> 0 | BY18: =IF($BK$5=$BF$6, 'Staff Needed'!AI14, IF($BK$5=$BF$7, 'Staff Needed'!AK14, 'Staff Needed'!AM14)) -> 0 | BZ18: ='Calc - SA_Resources'!BG44 -> 0 | CA18: ='Calc - SA_Resources'!BH44 -> 0
C19: Initial contact interview (hours) | E19: ='C. Tracing Resources'!E21 -> 0.5 | F19: ='C. Tracing Resources'!F21 -> 1 | G19: 0.5 | H19: 1 | BJ19: 10 | BK19: =VLOOKUP(BJ19, 'Calc - Base'!$H$35:$I$400, 2) -> 2021-01-11 | BL19: =IF($BK$5=$BF$6, 'Staff Needed'!V15, IF($BK$5=$BF$7, 'Staff Needed'!X15, 'Staff Needed'!Z15)) -> 289.8912679 | BM19: =IF($BK$5=$BF$6, 'Staff Needed'!W15, IF($BK$5=$BF$7, 'Staff Needed'!Y15, 'Staff Needed'!AA15)) -> 869.6738036 | BN19: ='Calc - SA_Resources'!AT45 -> 289.8912679 | BO19: ='Calc - SA_Resources'!AU45 -> 869.6738036 | BT19: =IF($BK$5=$BF$6, 'Staff Needed'!AB15, IF($BK$5=$BF$7, 'Staff Needed'!AD15, 'Staff Needed'!AF15)) -> 289.8912679 | BU19: =IF($BK$5=$BF$6, 'Staff Needed'!AC15, IF($BK$5=$BF$7, 'Staff Needed'!AE15, 'Staff Needed'!AG15)) -> 869.6738036 | BV19: ='Calc - SA_Resources'!BA45 -> 289.8912679 | BW19: ='Calc - SA_Resources'!BB45 -> 869.6738036 | BX19: =IF($BK$5=$BF$6, 'Staff Needed'!AH15, IF($BK$5=$BF$7, 'Staff Needed'!AJ15, 'Staff Needed'!AL15)) -> 0 | BY19: =IF($BK$5=$BF$6, 'Staff Needed'!AI15, IF($BK$5=$BF$7, 'Staff Needed'!AK15, 'Staff Needed'!AM15)) -> 0 | BZ19: ='Calc - SA_Resources'!BG45 -> 0 | CA19: ='Calc - SA_Resources'!BH45 -> 0
C20: Monitoring Hours for Cases + Contacts† | E20: ='C. Tracing Resources'!E22 -> 0.25 | F20: ='C. Tracing Resources'!F22 -> 1 | G20: 0.25 | H20: 1 | BJ20: 11 | BK20: =VLOOKUP(BJ20, 'Calc - Base'!$H$35:$I$400, 2) -> 2021-01-12 | BL20: =IF($BK$5=$BF$6, 'Staff Needed'!V16, IF($BK$5=$BF$7, 'Staff Needed'!X16, 'Staff Needed'!Z16)) -> 330.371228 | BM20: =IF($BK$5=$BF$6, 'Staff Needed'!W16, IF($BK$5=$BF$7, 'Staff Needed'!Y16, 'Staff Needed'!AA16)) -> 991.1136839 | BN20: ='Calc - SA_Resources'!AT46 -> 330.371228 | BO20: ='Calc - SA_Resources'!AU46 -> 991.1136839 | BT20: =IF($BK$5=$BF$6, 'Staff Needed'!AB16, IF($BK$5=$BF$7, 'Staff Needed'!AD16, 'Staff Needed'!AF16)) -> 330.371228 | BU20: =IF($BK$5=$BF$6, 'Staff Needed'!AC16, IF($BK$5=$BF$7, 'Staff Needed'!AE16, 'Staff Needed'!AG16)) -> 991.1136839 | BV20: ='Calc - SA_Resources'!BA46 -> 330.371228 | BW20: ='Calc - SA_Resources'!BB46 -> 991.1136839 | BX20: =IF($BK$5=$BF$6, 'Staff Needed'!AH16, IF($BK$5=$BF$7, 'Staff Needed'!AJ16, 'Staff Needed'!AL16)) -> 0 | BY20: =IF($BK$5=$BF$6, 'Staff Needed'!AI16, IF($BK$5=$BF$7, 'Staff Needed'!AK16, 'Staff Needed'!AM16)) -> 0 | BZ20: ='Calc - SA_Resources'!BG46 -> 0 | CA20: ='Calc - SA_Resources'!BH46 -> 0
C21: Number of days monitored | E21: ='C. Tracing Resources'!D11 -> 14 | F21: ='C. Tracing Resources'!E11 -> 14 | G21: 14 | H21: 21 | BJ21: 12 | BK21: =VLOOKUP(BJ21, 'Calc - Base'!$H$35:$I$400, 2) -> 2021-01-13 | BL21: =IF($BK$5=$BF$6, 'Staff Needed'!V17, IF($BK$5=$BF$7, 'Staff Needed'!X17, 'Staff Needed'!Z17)) -> 375.8535353 | BM21: =IF($BK$5=$BF$6, 'Staff Needed'!W17, IF($BK$5=$BF$7, 'Staff Needed'!Y17, 'Staff Needed'!AA17)) -> 1127.560606 | BN21: ='Calc - SA_Resources'!AT47 -> 375.8535353 | BO21: ='Calc - SA_Resources'!AU47 -> 1127.560606 | BT21: =IF($BK$5=$BF$6, 'Staff Needed'!AB17, IF($BK$5=$BF$7, 'Staff Needed'!AD17, 'Staff Needed'!AF17)) -> 375.8535353 | BU21: =IF($BK$5=$BF$6, 'Staff Needed'!AC17, IF($BK$5=$BF$7, 'Staff Needed'!AE17, 'Staff Needed'!AG17)) -> 1127.560606 | BV21: ='Calc - SA_Resources'!BA47 -> 375.8535353 | BW21: ='Calc - SA_Resources'!BB47 -> 1127.560606 | BX21: =IF($BK$5=$BF$6, 'Staff Needed'!AH17, IF($BK$5=$BF$7, 'Staff Needed'!AJ17, 'Staff Needed'!AL17)) -> 0 | BY21: =IF($BK$5=$BF$6, 'Staff Needed'!AI17, IF($BK$5=$BF$7, 'Staff Needed'!AK17, 'Staff Needed'!AM17)) -> 0 | BZ21: ='Calc - SA_Resources'!BG47 -> 0 | CA21: ='Calc - SA_Resources'!BH47 -> 0
BJ22: 13 | BK22: =VLOOKUP(BJ22, 'Calc - Base'!$H$35:$I$400, 2) -> 2021-01-14 | BL22: =IF($BK$5=$BF$6, 'Staff Needed'!V18, IF($BK$5=$BF$7, 'Staff Needed'!X18, 'Staff Needed'!Z18)) -> 427.0949236 | BM22: =IF($BK$5=$BF$6, 'Staff Needed'!W18, IF($BK$5=$BF$7, 'Staff Needed'!Y18, 'Staff Needed'!AA18)) -> 1281.284771 | BN22: ='Calc - SA_Resources'!AT48 -> 427.0949236 | BO22: ='Calc - SA_Resources'!AU48 -> 1281.284771 | BT22: =IF($BK$5=$BF$6, 'Staff Needed'!AB18, IF($BK$5=$BF$7, 'Staff Needed'!AD18, 'Staff Needed'!AF18)) -> 427.0949236 | BU22: =IF($BK$5=$BF$6, 'Staff Needed'!AC18, IF($BK$5=$BF$7, 'Staff Needed'!AE18, 'Staff Needed'!AG18)) -> 1281.284771 | BV22: ='Calc - SA_Resources'!BA48 -> 427.0949236 | BW22: ='Calc - SA_Resources'!BB48 -> 1281.284771 | BX22: =IF($BK$5=$BF$6, 'Staff Needed'!AH18, IF($BK$5=$BF$7, 'Staff Needed'!AJ18, 'Staff Needed'!AL18)) -> 0 | BY22: =IF($BK$5=$BF$6, 'Staff Needed'!AI18, IF($BK$5=$BF$7, 'Staff Needed'!AK18, 'Staff Needed'!AM18)) -> 0 | BZ22: ='Calc - SA_Resources'!BG48 -> 0 | CA22: ='Calc - SA_Resources'!BH48 -> 0
BJ23: 14 | BK23: =VLOOKUP(BJ23, 'Calc - Base'!$H$35:$I$400, 2) -> 2021-01-15 | BL23: =IF($BK$5=$BF$6, 'Staff Needed'!V19, IF($BK$5=$BF$7, 'Staff Needed'!X19, 'Staff Needed'!Z19)) -> 485.1584331 | BM23: =IF($BK$5=$BF$6, 'Staff Needed'!W19, IF($BK$5=$BF$7, 'Staff Needed'!Y19, 'Staff Needed'!AA19)) -> 1455.475299 | BN23: ='Calc - SA_Resources'!AT49 -> 485.1584331 | BO23: ='Calc - SA_Resources'!AU49 -> 1455.475299 | BT23: =IF($BK$5=$BF$6, 'Staff Needed'!AB19, IF($BK$5=$BF$7, 'Staff Needed'!AD19, 'Staff Needed'!AF19)) -> 485.1584331 | BU23: =IF($BK$5=$BF$6, 'Staff Needed'!AC19, IF($BK$5=$BF$7, 'Staff Needed'!AE19, 'Staff Needed'!AG19)) -> 1455.475299 | BV23: ='Calc - SA_Resources'!BA49 -> 485.1584331 | BW23: ='Calc - SA_Resources'!BB49 -> 1455.475299 | BX23: =IF($BK$5=$BF$6, 'Staff Needed'!AH19, IF($BK$5=$BF$7, 'Staff Needed'!AJ19, 'Staff Needed'!AL19)) -> 0 | BY23: =IF($BK$5=$BF$6, 'Staff Needed'!AI19, IF($BK$5=$BF$7, 'Staff Needed'!AK19, 'Staff Needed'!AM19)) -> 0 | BZ23: ='Calc - SA_Resources'!BG49 -> 0 | CA23: ='Calc - SA_Resources'!BH49 -> 0
BJ24: 15 | BK24: =VLOOKUP(BJ24, 'Calc - Base'!$H$35:$I$400, 2) -> 2021-01-16 | BL24: =IF($BK$5=$BF$6, 'Staff Needed'!V20, IF($BK$5=$BF$7, 'Staff Needed'!X20, 'Staff Needed'!Z20)) -> 549.9544789 | BM24: =IF($BK$5=$BF$6, 'Staff Needed'!W20, IF($BK$5=$BF$7, 'Staff Needed'!Y20, 'Staff Needed'!AA20)) -> 1649.863437 | BN24: ='Calc - SA_Resources'!AT50 -> 549.9544789 | BO24: ='Calc - SA_Resources'!AU50 -> 1649.863437 | BT24: =IF($BK$5=$BF$6, 'Staff Needed'!AB20, IF($BK$5=$BF$7, 'Staff Needed'!AD20, 'Staff Needed'!AF20)) -> 549.9544789 | BU24: =IF($BK$5=$BF$6, 'Staff Needed'!AC20, IF($BK$5=$BF$7, 'Staff Needed'!AE20, 'Staff Needed'!AG20)) -> 1649.863437 | BV24: ='Calc - SA_Resources'!BA50 -> 549.9544789 | BW24: ='Calc - SA_Resources'!BB50 -> 1649.863437 | BX24: =IF($BK$5=$BF$6, 'Staff Needed'!AH20, IF($BK$5=$BF$7, 'Staff Needed'!AJ20, 'Staff Needed'!AL20)) -> 0 | BY24: =IF($BK$5=$BF$6, 'Staff Needed'!AI20, IF($BK$5=$BF$7, 'Staff Needed'!AK20, 'Staff Needed'!AM20)) -> 0 | BZ24: ='Calc - SA_Resources'!BG50 -> 0 | CA24: ='Calc - SA_Resources'!BH50 -> 0
BJ25: 16 | BK25: =VLOOKUP(BJ25, 'Calc - Base'!$H$35:$I$400, 2) -> 2021-01-17 | BL25: =IF($BK$5=$BF$6, 'Staff Needed'!V21, IF($BK$5=$BF$7, 'Staff Needed'!X21, 'Staff Needed'!Z21)) -> 622.5079175 | BM25: =IF($BK$5=$BF$6, 'Staff Needed'!W21, IF($BK$5=$BF$7, 'Staff Needed'!Y21, 'Staff Needed'!AA21)) -> 1867.523752 | BN25: ='Calc - SA_Resources'!AT51 -> 622.5079175 | BO25: ='Calc - SA_Resources'!AU51 -> 1867.523752 | BT25: =IF($BK$5=$BF$6, 'Staff Needed'!AB21, IF($BK$5=$BF$7, 'Staff Needed'!AD21, 'Staff Needed'!AF21)) -> 622.5079175 | BU25: =IF($BK$5=$BF$6, 'Staff Needed'!AC21, IF($BK$5=$BF$7, 'Staff Needed'!AE21, 'Staff Needed'!AG21)) -> 1867.523752 | BV25: ='Calc - SA_Resources'!BA51 -> 622.5079175 | BW25: ='Calc - SA_Resources'!BB51 -> 1867.523752 | BX25: =IF($BK$5=$BF$6, 'Staff Needed'!AH21, IF($BK$5=$BF$7, 'Staff Needed'!AJ21, 'Staff Needed'!AL21)) -> 0 | BY25: =IF($BK$5=$BF$6, 'Staff Needed'!AI21, IF($BK$5=$BF$7, 'Staff Needed'!AK21, 'Staff Needed'!AM21)) -> 0 | BZ25: ='Calc - SA_Resources'!BG51 -> 0 | CA25: ='Calc - SA_Resources'!BH51 -> 0
BJ26: 17 | BK26: =VLOOKUP(BJ26, 'Calc - Base'!$H$35:$I$400, 2) -> 2021-01-18 | BL26: =IF($BK$5=$BF$6, 'Staff Needed'!V22, IF($BK$5=$BF$7, 'Staff Needed'!X22, 'Staff Needed'!Z22)) -> 703.4141174 | BM26: =IF($BK$5=$BF$6, 'Staff Needed'!W22, IF($BK$5=$BF$7, 'Staff Needed'!Y22, 'Staff Needed'!AA22)) -> 2110.242352 | BN26: ='Calc - SA_Resources'!AT52 -> 703.4141174 | BO26: ='Calc - SA_Resources'!AU52 -> 2110.242352 | BT26: =IF($BK$5=$BF$6, 'Staff Needed'!AB22, IF($BK$5=$BF$7, 'Staff Needed'!AD22, 'Staff Needed'!AF22)) -> 703.4141174 | BU26: =IF($BK$5=$BF$6, 'Staff Needed'!AC22, IF($BK$5=$BF$7, 'Staff Needed'!AE22, 'Staff Needed'!AG22)) -> 2110.242352 | BV26: ='Calc - SA_Resources'!BA52 -> 703.4141174 | BW26: ='Calc - SA_Resources'!BB52 -> 2110.242352 | BX26: =IF($BK$5=$BF$6, 'Staff Needed'!AH22, IF($BK$5=$BF$7, 'Staff Needed'!AJ22, 'Staff Needed'!AL22)) -> 0 | BY26: =IF($BK$5=$BF$6, 'Staff Needed'!AI22, IF($BK$5=$BF$7, 'Staff Needed'!AK22, 'Staff Needed'!AM22)) -> 0 | BZ26: ='Calc - SA_Resources'!BG52 -> 0 | CA26: ='Calc - SA_Resources'!BH52 -> 0
BJ27: 18 | BK27: =VLOOKUP(BJ27, 'Calc - Base'!$H$35:$I$400, 2) -> 2021-01-19 | BL27: =IF($BK$5=$BF$6, 'Staff Needed'!V23, IF($BK$5=$BF$7, 'Staff Needed'!X23, 'Staff Needed'!Z23)) -> 793.4939568 | BM27: =IF($BK$5=$BF$6, 'Staff Needed'!W23, IF($BK$5=$BF$7, 'Staff Needed'!Y23, 'Staff Needed'!AA23)) -> 2380.48187 | BN27: ='Calc - SA_Resources'!AT53 -> 793.4939568 | BO27: ='Calc - SA_Resources'!AU53 -> 2380.48187 | BT27: =IF($BK$5=$BF$6, 'Staff Needed'!AB23, IF($BK$5=$BF$7, 'Staff Needed'!AD23, 'Staff Needed'!AF23)) -> 793.4939568 | BU27: =IF($BK$5=$BF$6, 'Staff Needed'!AC23, IF($BK$5=$BF$7, 'Staff Needed'!AE23, 'Staff Needed'!AG23)) -> 2380.48187 | BV27: ='Calc - SA_Resources'!BA53 -> 793.4939568 | BW27: ='Calc - SA_Resources'!BB53 -> 2380.48187 | BX27: =IF($BK$5=$BF$6, 'Staff Needed'!AH23, IF($BK$5=$BF$7, 'Staff Needed'!AJ23, 'Staff Needed'!AL23)) -> 0 | BY27: =IF($BK$5=$BF$6, 'Staff Needed'!AI23, IF($BK$5=$BF$7, 'Staff Needed'!AK23, 'Staff Needed'!AM23)) -> 0 | BZ27: ='Calc - SA_Resources'!BG53 -> 0 | CA27: ='Calc - SA_Resources'!BH53 -> 0
BJ28: 19 | BK28: =VLOOKUP(BJ28, 'Calc - Base'!$H$35:$I$400, 2) -> 2021-01-20 | BL28: =IF($BK$5=$BF$6, 'Staff Needed'!V24, IF($BK$5=$BF$7, 'Staff Needed'!X24, 'Staff Needed'!Z24)) -> 892.9693723 | BM28: =IF($BK$5=$BF$6, 'Staff Needed'!W24, IF($BK$5=$BF$7, 'Staff Needed'!Y24, 'Staff Needed'!AA24)) -> 2678.908117 | BN28: ='Calc - SA_Resources'!AT54 -> 892.9693723 | BO28: ='Calc - SA_Resources'!AU54 -> 2678.908117 | BT28: =IF($BK$5=$BF$6, 'Staff Needed'!AB24, IF($BK$5=$BF$7, 'Staff Needed'!AD24, 'Staff Needed'!AF24)) -> 892.9693723 | BU28: =IF($BK$5=$BF$6, 'Staff Needed'!AC24, IF($BK$5=$BF$7, 'Staff Needed'!AE24, 'Staff Needed'!AG24)) -> 2678.908117 | BV28: ='Calc - SA_Resources'!BA54 -> 892.9693723 | BW28: ='Calc - SA_Resources'!BB54 -> 2678.908117 | BX28: =IF($BK$5=$BF$6, 'Staff Needed'!AH24, IF($BK$5=$BF$7, 'Staff Needed'!AJ24, 'Staff Needed'!AL24)) -> 0 | BY28: =IF($BK$5=$BF$6, 'Staff Needed'!AI24, IF($BK$5=$BF$7, 'Staff Needed'!AK24, 'Staff Needed'!AM24)) -> 0 | BZ28: ='Calc - SA_Resources'!BG54 -> 0 | CA28: ='Calc - SA_Resources'!BH54 -> 0
BJ29: 20 | BK29: =VLOOKUP(BJ29, 'Calc - Base'!$H$35:$I$400, 2) -> 2021-01-21 | BL29: =IF($BK$5=$BF$6, 'Staff Needed'!V25, IF($BK$5=$BF$7, 'Staff Needed'!X25, 'Staff Needed'!Z25)) -> 1002.232988 | BM29: =IF($BK$5=$BF$6, 'Staff Needed'!W25, IF($BK$5=$BF$7, 'Staff Needed'!Y25, 'Staff Needed'!AA25)) -> 3006.698964 | BN29: ='Calc - SA_Resources'!AT55 -> 1002.232988 | BO29: ='Calc - SA_Resources'!AU55 -> 3006.698964 | BT29: =IF($BK$5=$BF$6, 'Staff Needed'!AB25, IF($BK$5=$BF$7, 'Staff Needed'!AD25, 'Staff Needed'!AF25)) -> 1002.232988 | BU29: =IF($BK$5=$BF$6, 'Staff Needed'!AC25, IF($BK$5=$BF$7, 'Staff Needed'!AE25, 'Staff Needed'!AG25)) -> 3006.698964 | BV29: ='Calc - SA_Resources'!BA55 -> 1002.232988 | BW29: ='Calc - SA_Resources'!BB55 -> 3006.698964 | BX29: =IF($BK$5=$BF$6, 'Staff Needed'!AH25, IF($BK$5=$BF$7, 'Staff Needed'!AJ25, 'Staff Needed'!AL25)) -> 0 | BY29: =IF($BK$5=$BF$6, 'Staff Needed'!AI25, IF($BK$5=$BF$7, 'Staff Needed'!AK25, 'Staff Needed'!AM25)) -> 0 | BZ29: ='Calc - SA_Resources'!BG55 -> 0 | CA29: ='Calc - SA_Resources'!BH55 -> 0
BJ30: 21 | BK30: =VLOOKUP(BJ30, 'Calc - Base'!$H$35:$I$400, 2) -> 2021-01-22 | BL30: =IF($BK$5=$BF$6, 'Staff Needed'!V26, IF($BK$5=$BF$7, 'Staff Needed'!X26, 'Staff Needed'!Z26)) -> 1121.517976 | BM30: =IF($BK$5=$BF$6, 'Staff Needed'!W26, IF($BK$5=$BF$7, 'Staff Needed'!Y26, 'Staff Needed'!AA26)) -> 3364.553928 | BN30: ='Calc - SA_Resources'!AT56 -> 1121.517976 | BO30: ='Calc - SA_Resources'!AU56 -> 3364.553928 | BT30: =IF($BK$5=$BF$6, 'Staff Needed'!AB26, IF($BK$5=$BF$7, 'Staff Needed'!AD26, 'Staff Needed'!AF26)) -> 1121.517976 | BU30: =IF($BK$5=$BF$6, 'Staff Needed'!AC26, IF($BK$5=$BF$7, 'Staff Needed'!AE26, 'Staff Needed'!AG26)) -> 3364.553928 | BV30: ='Calc - SA_Resources'!BA56 -> 1121.517976 | BW30: ='Calc - SA_Resources'!BB56 -> 3364.553928 | BX30: =IF($BK$5=$BF$6, 'Staff Needed'!AH26, IF($BK$5=$BF$7, 'Staff Needed'!AJ26, 'Staff Needed'!AL26)) -> 0 | BY30: =IF($BK$5=$BF$6, 'Staff Needed'!AI26, IF($BK$5=$BF$7, 'Staff Needed'!AK26, 'Staff Needed'!AM26)) -> 0 | BZ30: ='Calc - SA_Resources'!BG56 -> 0 | CA30: ='Calc - SA_Resources'!BH56 -> 0
BJ31: 22 | BK31: =VLOOKUP(BJ31, 'Calc - Base'!$H$35:$I$400, 2) -> 2021-01-23 | BL31: =IF($BK$5=$BF$6, 'Staff Needed'!V27, IF($BK$5=$BF$7, 'Staff Needed'!X27, 'Staff Needed'!Z27)) -> 1250.95733 | BM31: =IF($BK$5=$BF$6, 'Staff Needed'!W27, IF($BK$5=$BF$7, 'Staff Needed'!Y27, 'Staff Needed'!AA27)) -> 3752.871989 | BN31: ='Calc - SA_Resources'!AT57 -> 1250.95733 | BO31: ='Calc - SA_Resources'!AU57 -> 3752.871989 | BT31: =IF($BK$5=$BF$6, 'Staff Needed'!AB27, IF($BK$5=$BF$7, 'Staff Needed'!AD27, 'Staff Needed'!AF27)) -> 1250.95733 | BU31: =IF($BK$5=$BF$6, 'Staff Needed'!AC27, IF($BK$5=$BF$7, 'Staff Needed'!AE27, 'Staff Needed'!AG27)) -> 3752.871989 | BV31: ='Calc - SA_Resources'!BA57 -> 1250.95733 | BW31: ='Calc - SA_Resources'!BB57 -> 3752.871989 | BX31: =IF($BK$5=$BF$6, 'Staff Needed'!AH27, IF($BK$5=$BF$7, 'Staff Needed'!AJ27, 'Staff Needed'!AL27)) -> 0 | BY31: =IF($BK$5=$BF$6, 'Staff Needed'!AI27, IF($BK$5=$BF$7, 'Staff Needed'!AK27, 'Staff Needed'!AM27)) -> 0 | BZ31: ='Calc - SA_Resources'!BG57 -> 0 | CA31: ='Calc - SA_Resources'!BH57 -> 0
BJ32: 23 | BK32: =VLOOKUP(BJ32, 'Calc - Base'!$H$35:$I$400, 2) -> 2021-01-24 | BL32: =IF($BK$5=$BF$6, 'Staff Needed'!V28, IF($BK$5=$BF$7, 'Staff Needed'!X28, 'Staff Needed'!Z28)) -> 1390.209293 | BM32: =IF($BK$5=$BF$6, 'Staff Needed'!W28, IF($BK$5=$BF$7, 'Staff Needed'!Y28, 'Staff Needed'!AA28)) -> 4170.627879 | BN32: ='Calc - SA_Resources'!AT58 -> 1390.209293 | BO32: ='Calc - SA_Resources'!AU58 -> 4170.627879 | BT32: =IF($BK$5=$BF$6, 'Staff Needed'!AB28, IF($BK$5=$BF$7, 'Staff Needed'!AD28, 'Staff Needed'!AF28)) -> 1390.209293 | BU32: =IF($BK$5=$BF$6, 'Staff Needed'!AC28, IF($BK$5=$BF$7, 'Staff Needed'!AE28, 'Staff Needed'!AG28)) -> 4170.627879 | BV32: ='Calc - SA_Resources'!BA58 -> 1390.209293 | BW32: ='Calc - SA_Resources'!BB58 -> 4170.627879 | BX32: =IF($BK$5=$BF$6, 'Staff Needed'!AH28, IF($BK$5=$BF$7, 'Staff Needed'!AJ28, 'Staff Needed'!AL28)) -> 0 | BY32: =IF($BK$5=$BF$6, 'Staff Needed'!AI28, IF($BK$5=$BF$7, 'Staff Needed'!AK28, 'Staff Needed'!AM28)) -> 0 | BZ32: ='Calc - SA_Resources'!BG58 -> 0 | CA32: ='Calc - SA_Resources'!BH58 -> 0
BJ33: 24 | BK33: =VLOOKUP(BJ33, 'Calc - Base'!$H$35:$I$400, 2) -> 2021-01-25 | BL33: =IF($BK$5=$BF$6, 'Staff Needed'!V29, IF($BK$5=$BF$7, 'Staff Needed'!X29, 'Staff Needed'!Z29)) -> 1538.509591 | BM33: =IF($BK$5=$BF$6, 'Staff Needed'!W29, IF($BK$5=$BF$7, 'Staff Needed'!Y29, 'Staff Needed'!AA29)) -> 4615.528774 | BN33: ='Calc - SA_Resources'!AT59 -> 1538.509591 | BO33: ='Calc - SA_Resources'!AU59 -> 4615.528774 | BT33: =IF($BK$5=$BF$6, 'Staff Needed'!AB29, IF($BK$5=$BF$7, 'Staff Needed'!AD29, 'Staff Needed'!AF29)) -> 1538.509591 | BU33: =IF($BK$5=$BF$6, 'Staff Needed'!AC29, IF($BK$5=$BF$7, 'Staff Needed'!AE29, 'Staff Needed'!AG29)) -> 4615.528774 | BV33: ='Calc - SA_Resources'!BA59 -> 1538.509591 | BW33: ='Calc - SA_Resources'!BB59 -> 4615.528774 | BX33: =IF($BK$5=$BF$6, 'Staff Needed'!AH29, IF($BK$5=$BF$7, 'Staff Needed'!AJ29, 'Staff Needed'!AL29)) -> 0 | BY33: =IF($BK$5=$BF$6, 'Staff Needed'!AI29, IF($BK$5=$BF$7, 'Staff Needed'!AK29, 'Staff Needed'!AM29)) -> 0 | BZ33: ='Calc - SA_Resources'!BG59 -> 0 | CA33: ='Calc - SA_Resources'!BH59 -> 0
BJ34: 25 | BK34: =VLOOKUP(BJ34, 'Calc - Base'!$H$35:$I$400, 2) -> 2021-01-26 | BL34: =IF($BK$5=$BF$6, 'Staff Needed'!V30, IF($BK$5=$BF$7, 'Staff Needed'!X30, 'Staff Needed'!Z30)) -> 1694.601463 | BM34: =IF($BK$5=$BF$6, 'Staff Needed'!W30, IF($BK$5=$BF$7, 'Staff Needed'!Y30, 'Staff Needed'!AA30)) -> 5083.804388 | BN34: ='Calc - SA_Resources'!AT60 -> 1694.601463 | BO34: ='Calc - SA_Resources'!AU60 -> 5083.804388 | BT34: =IF($BK$5=$BF$6, 'Staff Needed'!AB30, IF($BK$5=$BF$7, 'Staff Needed'!AD30, 'Staff Needed'!AF30)) -> 1694.601463 | BU34: =IF($BK$5=$BF$6, 'Staff Needed'!AC30, IF($BK$5=$BF$7, 'Staff Needed'!AE30, 'Staff Needed'!AG30)) -> 5083.804388 | BV34: ='Calc - SA_Resources'!BA60 -> 1694.601463 | BW34: ='Calc - SA_Resources'!BB60 -> 5083.804388 | BX34: =IF($BK$5=$BF$6, 'Staff Needed'!AH30, IF($BK$5=$BF$7, 'Staff Needed'!AJ30, 'Staff Needed'!AL30)) -> 0 | BY34: =IF($BK$5=$BF$6, 'Staff Needed'!AI30, IF($BK$5=$BF$7, 'Staff Needed'!AK30, 'Staff Needed'!AM30)) -> 0 | BZ34: ='Calc - SA_Resources'!BG60 -> 0 | CA34: ='Calc - SA_Resources'!BH60 -> 0
BJ35: 26 | BK35: =VLOOKUP(BJ35, 'Calc - Base'!$H$35:$I$400, 2) -> 2021-01-27 | BL35: =IF($BK$5=$BF$6, 'Staff Needed'!V31, IF($BK$5=$BF$7, 'Staff Needed'!X31, 'Staff Needed'!Z31)) -> 1856.725094 | BM35: =IF($BK$5=$BF$6, 'Staff Needed'!W31, IF($BK$5=$BF$7, 'Staff Needed'!Y31, 'Staff Needed'!AA31)) -> 5570.175281 | BN35: ='Calc - SA_Resources'!AT61 -> 1856.725094 | BO35: ='Calc - SA_Resources'!AU61 -> 5570.175281 | BT35: =IF($BK$5=$BF$6, 'Staff Needed'!AB31, IF($BK$5=$BF$7, 'Staff Needed'!AD31, 'Staff Needed'!AF31)) -> 1856.725094 | BU35: =IF($BK$5=$BF$6, 'Staff Needed'!AC31, IF($BK$5=$BF$7, 'Staff Needed'!AE31, 'Staff Needed'!AG31)) -> 5570.175281 | BV35: ='Calc - SA_Resources'!BA61 -> 1856.725094 | BW35: ='Calc - SA_Resources'!BB61 -> 5570.175281 | BX35: =IF($BK$5=$BF$6, 'Staff Needed'!AH31, IF($BK$5=$BF$7, 'Staff Needed'!AJ31, 'Staff Needed'!AL31)) -> 0 | BY35: =IF($BK$5=$BF$6, 'Staff Needed'!AI31, IF($BK$5=$BF$7, 'Staff Needed'!AK31, 'Staff Needed'!AM31)) -> 0 | BZ35: ='Calc - SA_Resources'!BG61 -> 0 | CA35: ='Calc - SA_Resources'!BH61 -> 0
BJ36: 27 | BK36: =VLOOKUP(BJ36, 'Calc - Base'!$H$35:$I$400, 2) -> 2021-01-28 | BL36: =IF($BK$5=$BF$6, 'Staff Needed'!V32, IF($BK$5=$BF$7, 'Staff Needed'!X32, 'Staff Needed'!Z32)) -> 2022.474297 | BM36: =IF($BK$5=$BF$6, 'Staff Needed'!W32, IF($BK$5=$BF$7, 'Staff Needed'!Y32, 'Staff Needed'!AA32)) -> 6067.42289 | BN36: ='Calc - SA_Resources'!AT62 -> 2022.474297 | BO36: ='Calc - SA_Resources'!AU62 -> 6067.42289 | BT36: =IF($BK$5=$BF$6, 'Staff Needed'!AB32, IF($BK$5=$BF$7, 'Staff Needed'!AD32, 'Staff Needed'!AF32)) -> 2022.474297 | BU36: =IF($BK$5=$BF$6, 'Staff Needed'!AC32, IF($BK$5=$BF$7, 'Staff Needed'!AE32, 'Staff Needed'!AG32)) -> 6067.42289 | BV36: ='Calc - SA_Resources'!BA62 -> 2022.474297 | BW36: ='Calc - SA_Resources'!BB62 -> 6067.42289 | BX36: =IF($BK$5=$BF$6, 'Staff Needed'!AH32, IF($BK$5=$BF$7, 'Staff Needed'!AJ32, 'Staff Needed'!AL32)) -> 0 | BY36: =IF($BK$5=$BF$6, 'Staff Needed'!AI32, IF($BK$5=$BF$7, 'Staff Needed'!AK32, 'Staff Needed'!AM32)) -> 0 | BZ36: ='Calc - SA_Resources'!BG62 -> 0 | CA36: ='Calc - SA_Resources'!BH62 -> 0
BJ37: 28 | BK37: =VLOOKUP(BJ37, 'Calc - Base'!$H$35:$I$400, 2) -> 2021-01-29 | BL37: =IF($BK$5=$BF$6, 'Staff Needed'!V33, IF($BK$5=$BF$7, 'Staff Needed'!X33, 'Staff Needed'!Z33)) -> 2188.730788 | BM37: =IF($BK$5=$BF$6, 'Staff Needed'!W33, IF($BK$5=$BF$7, 'Staff Needed'!Y33, 'Staff Needed'!AA33)) -> 6566.192363 | BN37: ='Calc - SA_Resources'!AT63 -> 2188.730788 | BO37: ='Calc - SA_Resources'!AU63 -> 6566.192363 | BT37: =IF($BK$5=$BF$6, 'Staff Needed'!AB33, IF($BK$5=$BF$7, 'Staff Needed'!AD33, 'Staff Needed'!AF33)) -> 2188.730788 | BU37: =IF($BK$5=$BF$6, 'Staff Needed'!AC33, IF($BK$5=$BF$7, 'Staff Needed'!AE33, 'Staff Needed'!AG33)) -> 6566.192363 | BV37: ='Calc - SA_Resources'!BA63 -> 2188.730788 | BW37: ='Calc - SA_Resources'!BB63 -> 6566.192363 | BX37: =IF($BK$5=$BF$6, 'Staff Needed'!AH33, IF($BK$5=$BF$7, 'Staff Needed'!AJ33, 'Staff Needed'!AL33)) -> 0 | BY37: =IF($BK$5=$BF$6, 'Staff Needed'!AI33, IF($BK$5=$BF$7, 'Staff Needed'!AK33, 'Staff Needed'!AM33)) -> 0 | BZ37: ='Calc - SA_Resources'!BG63 -> 0 | CA37: ='Calc - SA_Resources'!BH63 -> 0
BJ38: 29 | BK38: =VLOOKUP(BJ38, 'Calc - Base'!$H$35:$I$400, 2) -> 2021-01-30 | BL38: =IF($BK$5=$BF$6, 'Staff Needed'!V34, IF($BK$5=$BF$7, 'Staff Needed'!X34, 'Staff Needed'!Z34)) -> 2351.634139 | BM38: =IF($BK$5=$BF$6, 'Staff Needed'!W34, IF($BK$5=$BF$7, 'Staff Needed'!Y34, 'Staff Needed'!AA34)) -> 7054.902418 | BN38: ='Calc - SA_Resources'!AT64 -> 2351.634139 | BO38: ='Calc - SA_Resources'!AU64 -> 7054.902418 | BT38: =IF($BK$5=$BF$6, 'Staff Needed'!AB34, IF($BK$5=$BF$7, 'Staff Needed'!AD34, 'Staff Needed'!AF34)) -> 2351.634139 | BU38: =IF($BK$5=$BF$6, 'Staff Needed'!AC34, IF($BK$5=$BF$7, 'Staff Needed'!AE34, 'Staff Needed'!AG34)) -> 7054.902418 | BV38: ='Calc - SA_Resources'!BA64 -> 2351.634139 | BW38: ='Calc - SA_Resources'!BB64 -> 7054.902418 | BX38: =IF($BK$5=$BF$6, 'Staff Needed'!AH34, IF($BK$5=$BF$7, 'Staff Needed'!AJ34, 'Staff Needed'!AL34)) -> 0 | BY38: =IF($BK$5=$BF$6, 'Staff Needed'!AI34, IF($BK$5=$BF$7, 'Staff Needed'!AK34, 'Staff Needed'!AM34)) -> 0 | BZ38: ='Calc - SA_Resources'!BG64 -> 0 | CA38: ='Calc - SA_Resources'!BH64 -> 0
BJ39: 30 | BK39: =VLOOKUP(BJ39, 'Calc - Base'!$H$35:$I$400, 2) -> 2021-01-31 | BL39: =IF($BK$5=$BF$6, 'Staff Needed'!V35, IF($BK$5=$BF$7, 'Staff Needed'!X35, 'Staff Needed'!Z35)) -> 2506.690011 | BM39: =IF($BK$5=$BF$6, 'Staff Needed'!W35, IF($BK$5=$BF$7, 'Staff Needed'!Y35, 'Staff Needed'!AA35)) -> 7520.070034 | BN39: ='Calc - SA_Resources'!AT65 -> 2506.690011 | BO39: ='Calc - SA_Resources'!AU65 -> 7520.070034 | BT39: =IF($BK$5=$BF$6, 'Staff Needed'!AB35, IF($BK$5=$BF$7, 'Staff Needed'!AD35, 'Staff Needed'!AF35)) -> 2506.690011 | BU39: =IF($BK$5=$BF$6, 'Staff Needed'!AC35, IF($BK$5=$BF$7, 'Staff Needed'!AE35, 'Staff Needed'!AG35)) -> 7520.070034 | BV39: ='Calc - SA_Resources'!BA65 -> 2506.690011 | BW39: ='Calc - SA_Resources'!BB65 -> 7520.070034 | BX39: =IF($BK$5=$BF$6, 'Staff Needed'!AH35, IF($BK$5=$BF$7, 'Staff Needed'!AJ35, 'Staff Needed'!AL35)) -> 0 | BY39: =IF($BK$5=$BF$6, 'Staff Needed'!AI35, IF($BK$5=$BF$7, 'Staff Needed'!AK35, 'Staff Needed'!AM35)) -> 0 | BZ39: ='Calc - SA_Resources'!BG65 -> 0 | CA39: ='Calc - SA_Resources'!BH65 -> 0
BJ40: 31 | BK40: =VLOOKUP(BJ40, 'Calc - Base'!$H$35:$I$400, 2) -> 2021-02-01 | BL40: =IF($BK$5=$BF$6, 'Staff Needed'!V36, IF($BK$5=$BF$7, 'Staff Needed'!X36, 'Staff Needed'!Z36)) -> 2648.860463 | BM40: =IF($BK$5=$BF$6, 'Staff Needed'!W36, IF($BK$5=$BF$7, 'Staff Needed'!Y36, 'Staff Needed'!AA36)) -> 7946.58139 | BN40: ='Calc - SA_Resources'!AT66 -> 2648.860463 | BO40: ='Calc - SA_Resources'!AU66 -> 7946.58139 | BT40: =IF($BK$5=$BF$6, 'Staff Needed'!AB36, IF($BK$5=$BF$7, 'Staff Needed'!AD36, 'Staff Needed'!AF36)) -> 2648.860463 | BU40: =IF($BK$5=$BF$6, 'Staff Needed'!AC36, IF($BK$5=$BF$7, 'Staff Needed'!AE36, 'Staff Needed'!AG36)) -> 7946.58139 | BV40: ='Calc - SA_Resources'!BA66 -> 2648.860463 | BW40: ='Calc - SA_Resources'!BB66 -> 7946.58139 | BX40: =IF($BK$5=$BF$6, 'Staff Needed'!AH36, IF($BK$5=$BF$7, 'Staff Needed'!AJ36, 'Staff Needed'!AL36)) -> 0 | BY40: =IF($BK$5=$BF$6, 'Staff Needed'!AI36, IF($BK$5=$BF$7, 'Staff Needed'!AK36, 'Staff Needed'!AM36)) -> 0 | BZ40: ='Calc - SA_Resources'!BG66 -> 0 | CA40: ='Calc - SA_Resources'!BH66 -> 0
BJ41: 32 | BK41: =VLOOKUP(BJ41, 'Calc - Base'!$H$35:$I$400, 2) -> 2021-02-02 | BL41: =IF($BK$5=$BF$6, 'Staff Needed'!V37, IF($BK$5=$BF$7, 'Staff Needed'!X37, 'Staff Needed'!Z37)) -> 2772.780051 | BM41: =IF($BK$5=$BF$6, 'Staff Needed'!W37, IF($BK$5=$BF$7, 'Staff Needed'!Y37, 'Staff Needed'!AA37)) -> 8318.340154 | BN41: ='Calc - SA_Resources'!AT67 -> 2772.780051 | BO41: ='Calc - SA_Resources'!AU67 -> 8318.340154 | BT41: =IF($BK$5=$BF$6, 'Staff Needed'!AB37, IF($BK$5=$BF$7, 'Staff Needed'!AD37, 'Staff Needed'!AF37)) -> 2772.780051 | BU41: =IF($BK$5=$BF$6, 'Staff Needed'!AC37, IF($BK$5=$BF$7, 'Staff Needed'!AE37, 'Staff Needed'!AG37)) -> 8318.340154 | BV41: ='Calc - SA_Resources'!BA67 -> 2772.780051 | BW41: ='Calc - SA_Resources'!BB67 -> 8318.340154 | BX41: =IF($BK$5=$BF$6, 'Staff Needed'!AH37, IF($BK$5=$BF$7, 'Staff Needed'!AJ37, 'Staff Needed'!AL37)) -> 0 | BY41: =IF($BK$5=$BF$6, 'Staff Needed'!AI37, IF($BK$5=$BF$7, 'Staff Needed'!AK37, 'Staff Needed'!AM37)) -> 0 | BZ41: ='Calc - SA_Resources'!BG67 -> 0 | CA41: ='Calc - SA_Resources'!BH67 -> 0
BJ42: 33 | BK42: =VLOOKUP(BJ42, 'Calc - Base'!$H$35:$I$400, 2) -> 2021-02-03 | BL42: =IF($BK$5=$BF$6, 'Staff Needed'!V38, IF($BK$5=$BF$7, 'Staff Needed'!X38, 'Staff Needed'!Z38)) -> 2873.03154 | BM42: =IF($BK$5=$BF$6, 'Staff Needed'!W38, IF($BK$5=$BF$7, 'Staff Needed'!Y38, 'Staff Needed'!AA38)) -> 8619.094621 | BN42: ='Calc - SA_Resources'!AT68 -> 2873.03154 | BO42: ='Calc - SA_Resources'!AU68 -> 8619.094621 | BT42: =IF($BK$5=$BF$6, 'Staff Needed'!AB38, IF($BK$5=$BF$7, 'Staff Needed'!AD38, 'Staff Needed'!AF38)) -> 2873.03154 | BU42: =IF($BK$5=$BF$6, 'Staff Needed'!AC38, IF($BK$5=$BF$7, 'Staff Needed'!AE38, 'Staff Needed'!AG38)) -> 8619.094621 | BV42: ='Calc - SA_Resources'!BA68 -> 2873.03154 | BW42: ='Calc - SA_Resources'!BB68 -> 8619.094621 | BX42: =IF($BK$5=$BF$6, 'Staff Needed'!AH38, IF($BK$5=$BF$7, 'Staff Needed'!AJ38, 'Staff Needed'!AL38)) -> 0 | BY42: =IF($BK$5=$BF$6, 'Staff Needed'!AI38, IF($BK$5=$BF$7, 'Staff Needed'!AK38, 'Staff Needed'!AM38)) -> 0 | BZ42: ='Calc - SA_Resources'!BG68 -> 0 | CA42: ='Calc - SA_Resources'!BH68 -> 0
BJ43: 34 | BK43: =VLOOKUP(BJ43, 'Calc - Base'!$H$35:$I$400, 2) -> 2021-02-04 | BL43: =IF($BK$5=$BF$6, 'Staff Needed'!V39, IF($BK$5=$BF$7, 'Staff Needed'!X39, 'Staff Needed'!Z39)) -> 2944.541252 | BM43: =IF($BK$5=$BF$6, 'Staff Needed'!W39, IF($BK$5=$BF$7, 'Staff Needed'!Y39, 'Staff Needed'!AA39)) -> 8833.623757 | BN43: ='Calc - SA_Resources'!AT69 -> 2944.541252 | BO43: ='Calc - SA_Resources'!AU69 -> 8833.623757 | BT43: =IF($BK$5=$BF$6, 'Staff Needed'!AB39, IF($BK$5=$BF$7, 'Staff Needed'!AD39, 'Staff Needed'!AF39)) -> 2944.541252 | BU43: =IF($BK$5=$BF$6, 'Staff Needed'!AC39, IF($BK$5=$BF$7, 'Staff Needed'!AE39, 'Staff Needed'!AG39)) -> 8833.623757 | BV43: ='Calc - SA_Resources'!BA69 -> 2944.541252 | BW43: ='Calc - SA_Resources'!BB69 -> 8833.623757 | BX43: =IF($BK$5=$BF$6, 'Staff Needed'!AH39, IF($BK$5=$BF$7, 'Staff Needed'!AJ39, 'Staff Needed'!AL39)) -> 0 | BY43: =IF($BK$5=$BF$6, 'Staff Needed'!AI39, IF($BK$5=$BF$7, 'Staff Needed'!AK39, 'Staff Needed'!AM39)) -> 0 | BZ43: ='Calc - SA_Resources'!BG69 -> 0 | CA43: ='Calc - SA_Resources'!BH69 -> 0
BJ44: 35 | BK44: =VLOOKUP(BJ44, 'Calc - Base'!$H$35:$I$400, 2) -> 2021-02-05 | BL44: =IF($BK$5=$BF$6, 'Staff Needed'!V40, IF($BK$5=$BF$7, 'Staff Needed'!X40, 'Staff Needed'!Z40)) -> 2982.998386 | BM44: =IF($BK$5=$BF$6, 'Staff Needed'!W40, IF($BK$5=$BF$7, 'Staff Needed'!Y40, 'Staff Needed'!AA40)) -> 8948.995157 | BN44: ='Calc - SA_Resources'!AT70 -> 2982.998386 | BO44: ='Calc - SA_Resources'!AU70 -> 8948.995157 | BT44: =IF($BK$5=$BF$6, 'Staff Needed'!AB40, IF($BK$5=$BF$7, 'Staff Needed'!AD40, 'Staff Needed'!AF40)) -> 2982.998386 | BU44: =IF($BK$5=$BF$6, 'Staff Needed'!AC40, IF($BK$5=$BF$7, 'Staff Needed'!AE40, 'Staff Needed'!AG40)) -> 8948.995157 | BV44: ='Calc - SA_Resources'!BA70 -> 2982.998386 | BW44: ='Calc - SA_Resources'!BB70 -> 8948.995157 | BX44: =IF($BK$5=$BF$6, 'Staff Needed'!AH40, IF($BK$5=$BF$7, 'Staff Needed'!AJ40, 'Staff Needed'!AL40)) -> 0 | BY44: =IF($BK$5=$BF$6, 'Staff Needed'!AI40, IF($BK$5=$BF$7, 'Staff Needed'!AK40, 'Staff Needed'!AM40)) -> 0 | BZ44: ='Calc - SA_Resources'!BG70 -> 0 | CA44: ='Calc - SA_Resources'!BH70 -> 0
BJ45: 36 | BK45: =VLOOKUP(BJ45, 'Calc - Base'!$H$35:$I$400, 2) -> 2021-02-06 | BL45: =IF($BK$5=$BF$6, 'Staff Needed'!V41, IF($BK$5=$BF$7, 'Staff Needed'!X41, 'Staff Needed'!Z41)) -> 2985.292278 | BM45: =IF($BK$5=$BF$6, 'Staff Needed'!W41, IF($BK$5=$BF$7, 'Staff Needed'!Y41, 'Staff Needed'!AA41)) -> 8955.876835 | BN45: ='Calc - SA_Resources'!AT71 -> 2985.292278 | BO45: ='Calc - SA_Resources'!AU71 -> 8955.876835 | BT45: =IF($BK$5=$BF$6, 'Staff Needed'!AB41, IF($BK$5=$BF$7, 'Staff Needed'!AD41, 'Staff Needed'!AF41)) -> 2985.292278 | BU45: =IF($BK$5=$BF$6, 'Staff Needed'!AC41, IF($BK$5=$BF$7, 'Staff Needed'!AE41, 'Staff Needed'!AG41)) -> 8955.876835 | BV45: ='Calc - SA_Resources'!BA71 -> 2985.292278 | BW45: ='Calc - SA_Resources'!BB71 -> 8955.876835 | BX45: =IF($BK$5=$BF$6, 'Staff Needed'!AH41, IF($BK$5=$BF$7, 'Staff Needed'!AJ41, 'Staff Needed'!AL41)) -> 0 | BY45: =IF($BK$5=$BF$6, 'Staff Needed'!AI41, IF($BK$5=$BF$7, 'Staff Needed'!AK41, 'Staff Needed'!AM41)) -> 0 | BZ45: ='Calc - SA_Resources'!BG71 -> 0 | CA45: ='Calc - SA_Resources'!BH71 -> 0
BJ46: 37 | BK46: =VLOOKUP(BJ46, 'Calc - Base'!$H$35:$I$400, 2) -> 2021-02-07 | BL46: =IF($BK$5=$BF$6, 'Staff Needed'!V42, IF($BK$5=$BF$7, 'Staff Needed'!X42, 'Staff Needed'!Z42)) -> 2949.889417 | BM46: =IF($BK$5=$BF$6, 'Staff Needed'!W42, IF($BK$5=$BF$7, 'Staff Needed'!Y42, 'Staff Needed'!AA42)) -> 8849.668252 | BN46: ='Calc - SA_Resources'!AT72 -> 2949.889417 | BO46: ='Calc - SA_Resources'!AU72 -> 8849.668252 | BT46: =IF($BK$5=$BF$6, 'Staff Needed'!AB42, IF($BK$5=$BF$7, 'Staff Needed'!AD42, 'Staff Needed'!AF42)) -> 2949.889417 | BU46: =IF($BK$5=$BF$6, 'Staff Needed'!AC42, IF($BK$5=$BF$7, 'Staff Needed'!AE42, 'Staff Needed'!AG42)) -> 8849.668252 | BV46: ='Calc - SA_Resources'!BA72 -> 2949.889417 | BW46: ='Calc - SA_Resources'!BB72 -> 8849.668252 | BX46: =IF($BK$5=$BF$6, 'Staff Needed'!AH42, IF($BK$5=$BF$7, 'Staff Needed'!AJ42, 'Staff Needed'!AL42)) -> 0 | BY46: =IF($BK$5=$BF$6, 'Staff Needed'!AI42, IF($BK$5=$BF$7, 'Staff Needed'!AK42, 'Staff Needed'!AM42)) -> 0 | BZ46: ='Calc - SA_Resources'!BG72 -> 0 | CA46: ='Calc - SA_Resources'!BH72 -> 0
BJ47: 38 | BK47: =VLOOKUP(BJ47, 'Calc - Base'!$H$35:$I$400, 2) -> 2021-02-08 | BL47: =IF($BK$5=$BF$6, 'Staff Needed'!V43, IF($BK$5=$BF$7, 'Staff Needed'!X43, 'Staff Needed'!Z43)) -> 2877.104665 | BM47: =IF($BK$5=$BF$6, 'Staff Needed'!W43, IF($BK$5=$BF$7, 'Staff Needed'!Y43, 'Staff Needed'!AA43)) -> 8631.313995 | BN47: ='Calc - SA_Resources'!AT73 -> 2877.104665 | BO47: ='Calc - SA_Resources'!AU73 -> 8631.313995 | BT47: =IF($BK$5=$BF$6, 'Staff Needed'!AB43, IF($BK$5=$BF$7, 'Staff Needed'!AD43, 'Staff Needed'!AF43)) -> 2877.104665 | BU47: =IF($BK$5=$BF$6, 'Staff Needed'!AC43, IF($BK$5=$BF$7, 'Staff Needed'!AE43, 'Staff Needed'!AG43)) -> 8631.313995 | BV47: ='Calc - SA_Resources'!BA73 -> 2877.104665 | BW47: ='Calc - SA_Resources'!BB73 -> 8631.313995 | BX47: =IF($BK$5=$BF$6, 'Staff Needed'!AH43, IF($BK$5=$BF$7, 'Staff Needed'!AJ43, 'Staff Needed'!AL43)) -> 0 | BY47: =IF($BK$5=$BF$6, 'Staff Needed'!AI43, IF($BK$5=$BF$7, 'Staff Needed'!AK43, 'Staff Needed'!AM43)) -> 0 | BZ47: ='Calc - SA_Resources'!BG73 -> 0 | CA47: ='Calc - SA_Resources'!BH73 -> 0
BJ48: 39 | BK48: =VLOOKUP(BJ48, 'Calc - Base'!$H$35:$I$400, 2) -> 2021-02-09 | BL48: =IF($BK$5=$BF$6, 'Staff Needed'!V44, IF($BK$5=$BF$7, 'Staff Needed'!X44, 'Staff Needed'!Z44)) -> 2769.193876 | BM48: =IF($BK$5=$BF$6, 'Staff Needed'!W44, IF($BK$5=$BF$7, 'Staff Needed'!Y44, 'Staff Needed'!AA44)) -> 8307.581629 | BN48: ='Calc - SA_Resources'!AT74 -> 2769.193876 | BO48: ='Calc - SA_Resources'!AU74 -> 8307.581629 | BT48: =IF($BK$5=$BF$6, 'Staff Needed'!AB44, IF($BK$5=$BF$7, 'Staff Needed'!AD44, 'Staff Needed'!AF44)) -> 2769.193876 | BU48: =IF($BK$5=$BF$6, 'Staff Needed'!AC44, IF($BK$5=$BF$7, 'Staff Needed'!AE44, 'Staff Needed'!AG44)) -> 8307.581629 | BV48: ='Calc - SA_Resources'!BA74 -> 2769.193876 | BW48: ='Calc - SA_Resources'!BB74 -> 8307.581629 | BX48: =IF($BK$5=$BF$6, 'Staff Needed'!AH44, IF($BK$5=$BF$7, 'Staff Needed'!AJ44, 'Staff Needed'!AL44)) -> 0 | BY48: =IF($BK$5=$BF$6, 'Staff Needed'!AI44, IF($BK$5=$BF$7, 'Staff Needed'!AK44, 'Staff Needed'!AM44)) -> 0 | BZ48: ='Calc - SA_Resources'!BG74 -> 0 | CA48: ='Calc - SA_Resources'!BH74 -> 0
BJ49: 40 | BK49: =VLOOKUP(BJ49, 'Calc - Base'!$H$35:$I$400, 2) -> 2021-02-10 | BL49: =IF($BK$5=$BF$6, 'Staff Needed'!V45, IF($BK$5=$BF$7, 'Staff Needed'!X45, 'Staff Needed'!Z45)) -> 2630.239355 | BM49: =IF($BK$5=$BF$6, 'Staff Needed'!W45, IF($BK$5=$BF$7, 'Staff Needed'!Y45, 'Staff Needed'!AA45)) -> 7890.718066 | BN49: ='Calc - SA_Resources'!AT75 -> 2630.239355 | BO49: ='Calc - SA_Resources'!AU75 -> 7890.718066 | BT49: =IF($BK$5=$BF$6, 'Staff Needed'!AB45, IF($BK$5=$BF$7, 'Staff Needed'!AD45, 'Staff Needed'!AF45)) -> 2630.239355 | BU49: =IF($BK$5=$BF$6, 'Staff Needed'!AC45, IF($BK$5=$BF$7, 'Staff Needed'!AE45, 'Staff Needed'!AG45)) -> 7890.718066 | BV49: ='Calc - SA_Resources'!BA75 -> 2630.239355 | BW49: ='Calc - SA_Resources'!BB75 -> 7890.718066 | BX49: =IF($BK$5=$BF$6, 'Staff Needed'!AH45, IF($BK$5=$BF$7, 'Staff Needed'!AJ45, 'Staff Needed'!AL45)) -> 0 | BY49: =IF($BK$5=$BF$6, 'Staff Needed'!AI45, IF($BK$5=$BF$7, 'Staff Needed'!AK45, 'Staff Needed'!AM45)) -> 0 | BZ49: ='Calc - SA_Resources'!BG75 -> 0 | CA49: ='Calc - SA_Resources'!BH75 -> 0
BJ50: 41 | BK50: =VLOOKUP(BJ50, 'Calc - Base'!$H$35:$I$400, 2) -> 2021-02-11 | BL50: =IF($BK$5=$BF$6, 'Staff Needed'!V46, IF($BK$5=$BF$7, 'Staff Needed'!X46, 'Staff Needed'!Z46)) -> 2465.82669 | BM50: =IF($BK$5=$BF$6, 'Staff Needed'!W46, IF($BK$5=$BF$7, 'Staff Needed'!Y46, 'Staff Needed'!AA46)) -> 7397.48007 | BN50: ='Calc - SA_Resources'!AT76 -> 2465.82669 | BO50: ='Calc - SA_Resources'!AU76 -> 7397.48007 | BT50: =IF($BK$5=$BF$6, 'Staff Needed'!AB46, IF($BK$5=$BF$7, 'Staff Needed'!AD46, 'Staff Needed'!AF46)) -> 2465.82669 | BU50: =IF($BK$5=$BF$6, 'Staff Needed'!AC46, IF($BK$5=$BF$7, 'Staff Needed'!AE46, 'Staff Needed'!AG46)) -> 7397.48007 | BV50: ='Calc - SA_Resources'!BA76 -> 2465.82669 | BW50: ='Calc - SA_Resources'!BB76 -> 7397.48007 | BX50: =IF($BK$5=$BF$6, 'Staff Needed'!AH46, IF($BK$5=$BF$7, 'Staff Needed'!AJ46, 'Staff Needed'!AL46)) -> 0 | BY50: =IF($BK$5=$BF$6, 'Staff Needed'!AI46, IF($BK$5=$BF$7, 'Staff Needed'!AK46, 'Staff Needed'!AM46)) -> 0 | BZ50: ='Calc - SA_Resources'!BG76 -> 0 | CA50: ='Calc - SA_Resources'!BH76 -> 0
BJ51: 42 | BK51: =VLOOKUP(BJ51, 'Calc - Base'!$H$35:$I$400, 2) -> 2021-02-12 | BL51: =IF($BK$5=$BF$6, 'Staff Needed'!V47, IF($BK$5=$BF$7, 'Staff Needed'!X47, 'Staff Needed'!Z47)) -> 2282.557727 | BM51: =IF($BK$5=$BF$6, 'Staff Needed'!W47, IF($BK$5=$BF$7, 'Staff Needed'!Y47, 'Staff Needed'!AA47)) -> 6847.673181 | BN51: ='Calc - SA_Resources'!AT77 -> 2282.557727 | BO51: ='Calc - SA_Resources'!AU77 -> 6847.673181 | BT51: =IF($BK$5=$BF$6, 'Staff Needed'!AB47, IF($BK$5=$BF$7, 'Staff Needed'!AD47, 'Staff Needed'!AF47)) -> 2282.557727 | BU51: =IF($BK$5=$BF$6, 'Staff Needed'!AC47, IF($BK$5=$BF$7, 'Staff Needed'!AE47, 'Staff Needed'!AG47)) -> 6847.673181 | BV51: ='Calc - SA_Resources'!BA77 -> 2282.557727 | BW51: ='Calc - SA_Resources'!BB77 -> 6847.673181 | BX51: =IF($BK$5=$BF$6, 'Staff Needed'!AH47, IF($BK$5=$BF$7, 'Staff Needed'!AJ47, 'Staff Needed'!AL47)) -> 0 | BY51: =IF($BK$5=$BF$6, 'Staff Needed'!AI47, IF($BK$5=$BF$7, 'Staff Needed'!AK47, 'Staff Needed'!AM47)) -> 0 | BZ51: ='Calc - SA_Resources'!BG77 -> 0 | CA51: ='Calc - SA_Resources'!BH77 -> 0
BJ52: 43 | BK52: =VLOOKUP(BJ52, 'Calc - Base'!$H$35:$I$400, 2) -> 2021-02-13 | BL52: =IF($BK$5=$BF$6, 'Staff Needed'!V48, IF($BK$5=$BF$7, 'Staff Needed'!X48, 'Staff Needed'!Z48)) -> 2087.470536 | BM52: =IF($BK$5=$BF$6, 'Staff Needed'!W48, IF($BK$5=$BF$7, 'Staff Needed'!Y48, 'Staff Needed'!AA48)) -> 6262.411609 | BN52: ='Calc - SA_Resources'!AT78 -> 2087.470536 | BO52: ='Calc - SA_Resources'!AU78 -> 6262.411609 | BT52: =IF($BK$5=$BF$6, 'Staff Needed'!AB48, IF($BK$5=$BF$7, 'Staff Needed'!AD48, 'Staff Needed'!AF48)) -> 2087.470536 | BU52: =IF($BK$5=$BF$6, 'Staff Needed'!AC48, IF($BK$5=$BF$7, 'Staff Needed'!AE48, 'Staff Needed'!AG48)) -> 6262.411609 | BV52: ='Calc - SA_Resources'!BA78 -> 2087.470536 | BW52: ='Calc - SA_Resources'!BB78 -> 6262.411609 | BX52: =IF($BK$5=$BF$6, 'Staff Needed'!AH48, IF($BK$5=$BF$7, 'Staff Needed'!AJ48, 'Staff Needed'!AL48)) -> 0 | BY52: =IF($BK$5=$BF$6, 'Staff Needed'!AI48, IF($BK$5=$BF$7, 'Staff Needed'!AK48, 'Staff Needed'!AM48)) -> 0 | BZ52: ='Calc - SA_Resources'!BG78 -> 0 | CA52: ='Calc - SA_Resources'!BH78 -> 0
BJ53: 44 | BK53: =VLOOKUP(BJ53, 'Calc - Base'!$H$35:$I$400, 2) -> 2021-02-14 | BL53: =IF($BK$5=$BF$6, 'Staff Needed'!V49, IF($BK$5=$BF$7, 'Staff Needed'!X49, 'Staff Needed'!Z49)) -> 1887.455856 | BM53: =IF($BK$5=$BF$6, 'Staff Needed'!W49, IF($BK$5=$BF$7, 'Staff Needed'!Y49, 'Staff Needed'!AA49)) -> 5662.367569 | BN53: ='Calc - SA_Resources'!AT79 -> 1887.455856 | BO53: ='Calc - SA_Resources'!AU79 -> 5662.367569 | BT53: =IF($BK$5=$BF$6, 'Staff Needed'!AB49, IF($BK$5=$BF$7, 'Staff Needed'!AD49, 'Staff Needed'!AF49)) -> 1887.455856 | BU53: =IF($BK$5=$BF$6, 'Staff Needed'!AC49, IF($BK$5=$BF$7, 'Staff Needed'!AE49, 'Staff Needed'!AG49)) -> 5662.367569 | BV53: ='Calc - SA_Resources'!BA79 -> 1887.455856 | BW53: ='Calc - SA_Resources'!BB79 -> 5662.367569 | BX53: =IF($BK$5=$BF$6, 'Staff Needed'!AH49, IF($BK$5=$BF$7, 'Staff Needed'!AJ49, 'Staff Needed'!AL49)) -> 0 | BY53: =IF($BK$5=$BF$6, 'Staff Needed'!AI49, IF($BK$5=$BF$7, 'Staff Needed'!AK49, 'Staff Needed'!AM49)) -> 0 | BZ53: ='Calc - SA_Resources'!BG79 -> 0 | CA53: ='Calc - SA_Resources'!BH79 -> 0
BJ54: 45 | BK54: =VLOOKUP(BJ54, 'Calc - Base'!$H$35:$I$400, 2) -> 2021-02-15 | BL54: =IF($BK$5=$BF$6, 'Staff Needed'!V50, IF($BK$5=$BF$7, 'Staff Needed'!X50, 'Staff Needed'!Z50)) -> 1688.753059 | BM54: =IF($BK$5=$BF$6, 'Staff Needed'!W50, IF($BK$5=$BF$7, 'Staff Needed'!Y50, 'Staff Needed'!AA50)) -> 5066.259177 | BN54: ='Calc - SA_Resources'!AT80 -> 1688.753059 | BO54: ='Calc - SA_Resources'!AU80 -> 5066.259177 | BT54: =IF($BK$5=$BF$6, 'Staff Needed'!AB50, IF($BK$5=$BF$7, 'Staff Needed'!AD50, 'Staff Needed'!AF50)) -> 1688.753059 | BU54: =IF($BK$5=$BF$6, 'Staff Needed'!AC50, IF($BK$5=$BF$7, 'Staff Needed'!AE50, 'Staff Needed'!AG50)) -> 5066.259177 | BV54: ='Calc - SA_Resources'!BA80 -> 1688.753059 | BW54: ='Calc - SA_Resources'!BB80 -> 5066.259177 | BX54: =IF($BK$5=$BF$6, 'Staff Needed'!AH50, IF($BK$5=$BF$7, 'Staff Needed'!AJ50, 'Staff Needed'!AL50)) -> 0 | BY54: =IF($BK$5=$BF$6, 'Staff Needed'!AI50, IF($BK$5=$BF$7, 'Staff Needed'!AK50, 'Staff Needed'!AM50)) -> 0 | BZ54: ='Calc - SA_Resources'!BG80 -> 0 | CA54: ='Calc - SA_Resources'!BH80 -> 0
BJ55: 46 | BK55: =VLOOKUP(BJ55, 'Calc - Base'!$H$35:$I$400, 2) -> 2021-02-16 | BL55: =IF($BK$5=$BF$6, 'Staff Needed'!V51, IF($BK$5=$BF$7, 'Staff Needed'!X51, 'Staff Needed'!Z51)) -> 1496.58795 | BM55: =IF($BK$5=$BF$6, 'Staff Needed'!W51, IF($BK$5=$BF$7, 'Staff Needed'!Y51, 'Staff Needed'!AA51)) -> 4489.763849 | BN55: ='Calc - SA_Resources'!AT81 -> 1496.58795 | BO55: ='Calc - SA_Resources'!AU81 -> 4489.763849 | BT55: =IF($BK$5=$BF$6, 'Staff Needed'!AB51, IF($BK$5=$BF$7, 'Staff Needed'!AD51, 'Staff Needed'!AF51)) -> 1496.58795 | BU55: =IF($BK$5=$BF$6, 'Staff Needed'!AC51, IF($BK$5=$BF$7, 'Staff Needed'!AE51, 'Staff Needed'!AG51)) -> 4489.763849 | BV55: ='Calc - SA_Resources'!BA81 -> 1496.58795 | BW55: ='Calc - SA_Resources'!BB81 -> 4489.763849 | BX55: =IF($BK$5=$BF$6, 'Staff Needed'!AH51, IF($BK$5=$BF$7, 'Staff Needed'!AJ51, 'Staff Needed'!AL51)) -> 0 | BY55: =IF($BK$5=$BF$6, 'Staff Needed'!AI51, IF($BK$5=$BF$7, 'Staff Needed'!AK51, 'Staff Needed'!AM51)) -> 0 | BZ55: ='Calc - SA_Resources'!BG81 -> 0 | CA55: ='Calc - SA_Resources'!BH81 -> 0
BJ56: 47 | BK56: =VLOOKUP(BJ56, 'Calc - Base'!$H$35:$I$400, 2) -> 2021-02-17 | BL56: =IF($BK$5=$BF$6, 'Staff Needed'!V52, IF($BK$5=$BF$7, 'Staff Needed'!X52, 'Staff Needed'!Z52)) -> 1314.978313 | BM56: =IF($BK$5=$BF$6, 'Staff Needed'!W52, IF($BK$5=$BF$7, 'Staff Needed'!Y52, 'Staff Needed'!AA52)) -> 3944.93494 | BN56: ='Calc - SA_Resources'!AT82 -> 1314.978313 | BO56: ='Calc - SA_Resources'!AU82 -> 3944.93494 | BT56: =IF($BK$5=$BF$6, 'Staff Needed'!AB52, IF($BK$5=$BF$7, 'Staff Needed'!AD52, 'Staff Needed'!AF52)) -> 1314.978313 | BU56: =IF($BK$5=$BF$6, 'Staff Needed'!AC52, IF($BK$5=$BF$7, 'Staff Needed'!AE52, 'Staff Needed'!AG52)) -> 3944.93494 | BV56: ='Calc - SA_Resources'!BA82 -> 1314.978313 | BW56: ='Calc - SA_Resources'!BB82 -> 3944.93494 | BX56: =IF($BK$5=$BF$6, 'Staff Needed'!AH52, IF($BK$5=$BF$7, 'Staff Needed'!AJ52, 'Staff Needed'!AL52)) -> 0 | BY56: =IF($BK$5=$BF$6, 'Staff Needed'!AI52, IF($BK$5=$BF$7, 'Staff Needed'!AK52, 'Staff Needed'!AM52)) -> 0 | BZ56: ='Calc - SA_Resources'!BG82 -> 0 | CA56: ='Calc - SA_Resources'!BH82 -> 0
BJ57: 48 | BK57: =VLOOKUP(BJ57, 'Calc - Base'!$H$35:$I$400, 2) -> 2021-02-18 | BL57: =IF($BK$5=$BF$6, 'Staff Needed'!V53, IF($BK$5=$BF$7, 'Staff Needed'!X53, 'Staff Needed'!Z53)) -> 1146.69992 | BM57: =IF($BK$5=$BF$6, 'Staff Needed'!W53, IF($BK$5=$BF$7, 'Staff Needed'!Y53, 'Staff Needed'!AA53)) -> 3440.09976 | BN57: ='Calc - SA_Resources'!AT83 -> 1146.69992 | BO57: ='Calc - SA_Resources'!AU83 -> 3440.09976 | BT57: =IF($BK$5=$BF$6, 'Staff Needed'!AB53, IF($BK$5=$BF$7, 'Staff Needed'!AD53, 'Staff Needed'!AF53)) -> 1146.69992 | BU57: =IF($BK$5=$BF$6, 'Staff Needed'!AC53, IF($BK$5=$BF$7, 'Staff Needed'!AE53, 'Staff Needed'!AG53)) -> 3440.09976 | BV57: ='Calc - SA_Resources'!BA83 -> 1146.69992 | BW57: ='Calc - SA_Resources'!BB83 -> 3440.09976 | BX57: =IF($BK$5=$BF$6, 'Staff Needed'!AH53, IF($BK$5=$BF$7, 'Staff Needed'!AJ53, 'Staff Needed'!AL53)) -> 0 | BY57: =IF($BK$5=$BF$6, 'Staff Needed'!AI53, IF($BK$5=$BF$7, 'Staff Needed'!AK53, 'Staff Needed'!AM53)) -> 0 | BZ57: ='Calc - SA_Resources'!BG83 -> 0 | CA57: ='Calc - SA_Resources'!BH83 -> 0
BJ58: 49 | BK58: =VLOOKUP(BJ58, 'Calc - Base'!$H$35:$I$400, 2) -> 2021-02-19 | BL58: =IF($BK$5=$BF$6, 'Staff Needed'!V54, IF($BK$5=$BF$7, 'Staff Needed'!X54, 'Staff Needed'!Z54)) -> 993.3795378 | BM58: =IF($BK$5=$BF$6, 'Staff Needed'!W54, IF($BK$5=$BF$7, 'Staff Needed'!Y54, 'Staff Needed'!AA54)) -> 2980.138613 | BN58: ='Calc - SA_Resources'!AT84 -> 993.3795378 | BO58: ='Calc - SA_Resources'!AU84 -> 2980.138613 | BT58: =IF($BK$5=$BF$6, 'Staff Needed'!AB54, IF($BK$5=$BF$7, 'Staff Needed'!AD54, 'Staff Needed'!AF54)) -> 993.3795378 | BU58: =IF($BK$5=$BF$6, 'Staff Needed'!AC54, IF($BK$5=$BF$7, 'Staff Needed'!AE54, 'Staff Needed'!AG54)) -> 2980.138613 | BV58: ='Calc - SA_Resources'!BA84 -> 993.3795378 | BW58: ='Calc - SA_Resources'!BB84 -> 2980.138613 | BX58: =IF($BK$5=$BF$6, 'Staff Needed'!AH54, IF($BK$5=$BF$7, 'Staff Needed'!AJ54, 'Staff Needed'!AL54)) -> 0 | BY58: =IF($BK$5=$BF$6, 'Staff Needed'!AI54, IF($BK$5=$BF$7, 'Staff Needed'!AK54, 'Staff Needed'!AM54)) -> 0 | BZ58: ='Calc - SA_Resources'!BG84 -> 0 | CA58: ='Calc - SA_Resources'!BH84 -> 0
BJ59: 50 | BK59: =VLOOKUP(BJ59, 'Calc - Base'!$H$35:$I$400, 2) -> 2021-02-20 | BL59: =IF($BK$5=$BF$6, 'Staff Needed'!V55, IF($BK$5=$BF$7, 'Staff Needed'!X55, 'Staff Needed'!Z55)) -> 855.6701901 | BM59: =IF($BK$5=$BF$6, 'Staff Needed'!W55, IF($BK$5=$BF$7, 'Staff Needed'!Y55, 'Staff Needed'!AA55)) -> 2567.01057 | BN59: ='Calc - SA_Resources'!AT85 -> 855.6701901 | BO59: ='Calc - SA_Resources'!AU85 -> 2567.01057 | BT59: =IF($BK$5=$BF$6, 'Staff Needed'!AB55, IF($BK$5=$BF$7, 'Staff Needed'!AD55, 'Staff Needed'!AF55)) -> 855.6701901 | BU59: =IF($BK$5=$BF$6, 'Staff Needed'!AC55, IF($BK$5=$BF$7, 'Staff Needed'!AE55, 'Staff Needed'!AG55)) -> 2567.01057 | BV59: ='Calc - SA_Resources'!BA85 -> 855.6701901 | BW59: ='Calc - SA_Resources'!BB85 -> 2567.01057 | BX59: =IF($BK$5=$BF$6, 'Staff Needed'!AH55, IF($BK$5=$BF$7, 'Staff Needed'!AJ55, 'Staff Needed'!AL55)) -> 0 | BY59: =IF($BK$5=$BF$6, 'Staff Needed'!AI55, IF($BK$5=$BF$7, 'Staff Needed'!AK55, 'Staff Needed'!AM55)) -> 0 | BZ59: ='Calc - SA_Resources'!BG85 -> 0 | CA59: ='Calc - SA_Resources'!BH85 -> 0
BJ60: 51 | BK60: =VLOOKUP(BJ60, 'Calc - Base'!$H$35:$I$400, 2) -> 2021-02-21 | BL60: =IF($BK$5=$BF$6, 'Staff Needed'!V56, IF($BK$5=$BF$7, 'Staff Needed'!X56, 'Staff Needed'!Z56)) -> 733.4636658 | BM60: =IF($BK$5=$BF$6, 'Staff Needed'!W56, IF($BK$5=$BF$7, 'Staff Needed'!Y56, 'Staff Needed'!AA56)) -> 2200.390998 | BN60: ='Calc - SA_Resources'!AT86 -> 733.4636658 | BO60: ='Calc - SA_Resources'!AU86 -> 2200.390998 | BT60: =IF($BK$5=$BF$6, 'Staff Needed'!AB56, IF($BK$5=$BF$7, 'Staff Needed'!AD56, 'Staff Needed'!AF56)) -> 733.4636658 | BU60: =IF($BK$5=$BF$6, 'Staff Needed'!AC56, IF($BK$5=$BF$7, 'Staff Needed'!AE56, 'Staff Needed'!AG56)) -> 2200.390998 | BV60: ='Calc - SA_Resources'!BA86 -> 733.4636658 | BW60: ='Calc - SA_Resources'!BB86 -> 2200.390998 | BX60: =IF($BK$5=$BF$6, 'Staff Needed'!AH56, IF($BK$5=$BF$7, 'Staff Needed'!AJ56, 'Staff Needed'!AL56)) -> 0 | BY60: =IF($BK$5=$BF$6, 'Staff Needed'!AI56, IF($BK$5=$BF$7, 'Staff Needed'!AK56, 'Staff Needed'!AM56)) -> 0 | BZ60: ='Calc - SA_Resources'!BG86 -> 0 | CA60: ='Calc - SA_Resources'!BH86 -> 0
BJ61: 52 | BK61: =VLOOKUP(BJ61, 'Calc - Base'!$H$35:$I$400, 2) -> 2021-02-22 | BL61: =IF($BK$5=$BF$6, 'Staff Needed'!V57, IF($BK$5=$BF$7, 'Staff Needed'!X57, 'Staff Needed'!Z57)) -> 626.1041859 | BM61: =IF($BK$5=$BF$6, 'Staff Needed'!W57, IF($BK$5=$BF$7, 'Staff Needed'!Y57, 'Staff Needed'!AA57)) -> 1878.312558 | BN61: ='Calc - SA_Resources'!AT87 -> 626.1041859 | BO61: ='Calc - SA_Resources'!AU87 -> 1878.312558 | BT61: =IF($BK$5=$BF$6, 'Staff Needed'!AB57, IF($BK$5=$BF$7, 'Staff Needed'!AD57, 'Staff Needed'!AF57)) -> 626.1041859 | BU61: =IF($BK$5=$BF$6, 'Staff Needed'!AC57, IF($BK$5=$BF$7, 'Staff Needed'!AE57, 'Staff Needed'!AG57)) -> 1878.312558 | BV61: ='Calc - SA_Resources'!BA87 -> 626.1041859 | BW61: ='Calc - SA_Resources'!BB87 -> 1878.312558 | BX61: =IF($BK$5=$BF$6, 'Staff Needed'!AH57, IF($BK$5=$BF$7, 'Staff Needed'!AJ57, 'Staff Needed'!AL57)) -> 0 | BY61: =IF($BK$5=$BF$6, 'Staff Needed'!AI57, IF($BK$5=$BF$7, 'Staff Needed'!AK57, 'Staff Needed'!AM57)) -> 0 | BZ61: ='Calc - SA_Resources'!BG87 -> 0 | CA61: ='Calc - SA_Resources'!BH87 -> 0
BJ62: 53 | BK62: =VLOOKUP(BJ62, 'Calc - Base'!$H$35:$I$400, 2) -> 2021-02-23 | BL62: =IF($BK$5=$BF$6, 'Staff Needed'!V58, IF($BK$5=$BF$7, 'Staff Needed'!X58, 'Staff Needed'!Z58)) -> 532.579206 | BM62: =IF($BK$5=$BF$6, 'Staff Needed'!W58, IF($BK$5=$BF$7, 'Staff Needed'!Y58, 'Staff Needed'!AA58)) -> 1597.737618 | BN62: ='Calc - SA_Resources'!AT88 -> 532.579206 | BO62: ='Calc - SA_Resources'!AU88 -> 1597.737618 | BT62: =IF($BK$5=$BF$6, 'Staff Needed'!AB58, IF($BK$5=$BF$7, 'Staff Needed'!AD58, 'Staff Needed'!AF58)) -> 532.579206 | BU62: =IF($BK$5=$BF$6, 'Staff Needed'!AC58, IF($BK$5=$BF$7, 'Staff Needed'!AE58, 'Staff Needed'!AG58)) -> 1597.737618 | BV62: ='Calc - SA_Resources'!BA88 -> 532.579206 | BW62: ='Calc - SA_Resources'!BB88 -> 1597.737618 | BX62: =IF($BK$5=$BF$6, 'Staff Needed'!AH58, IF($BK$5=$BF$7, 'Staff Needed'!AJ58, 'Staff Needed'!AL58)) -> 0 | BY62: =IF($BK$5=$BF$6, 'Staff Needed'!AI58, IF($BK$5=$BF$7, 'Staff Needed'!AK58, 'Staff Needed'!AM58)) -> 0 | BZ62: ='Calc - SA_Resources'!BG88 -> 0 | CA62: ='Calc - SA_Resources'!BH88 -> 0
BJ63: 54 | BK63: =VLOOKUP(BJ63, 'Calc - Base'!$H$35:$I$400, 2) -> 2021-02-24 | BL63: =IF($BK$5=$BF$6, 'Staff Needed'!V59, IF($BK$5=$BF$7, 'Staff Needed'!X59, 'Staff Needed'!Z59)) -> 451.6753519 | BM63: =IF($BK$5=$BF$6, 'Staff Needed'!W59, IF($BK$5=$BF$7, 'Staff Needed'!Y59, 'Staff Needed'!AA59)) -> 1355.026056 | BN63: ='Calc - SA_Resources'!AT89 -> 451.6753519 | BO63: ='Calc - SA_Resources'!AU89 -> 1355.026056 | BT63: =IF($BK$5=$BF$6, 'Staff Needed'!AB59, IF($BK$5=$BF$7, 'Staff Needed'!AD59, 'Staff Needed'!AF59)) -> 451.6753519 | BU63: =IF($BK$5=$BF$6, 'Staff Needed'!AC59, IF($BK$5=$BF$7, 'Staff Needed'!AE59, 'Staff Needed'!AG59)) -> 1355.026056 | BV63: ='Calc - SA_Resources'!BA89 -> 451.6753519 | BW63: ='Calc - SA_Resources'!BB89 -> 1355.026056 | BX63: =IF($BK$5=$BF$6, 'Staff Needed'!AH59, IF($BK$5=$BF$7, 'Staff Needed'!AJ59, 'Staff Needed'!AL59)) -> 0 | BY63: =IF($BK$5=$BF$6, 'Staff Needed'!AI59, IF($BK$5=$BF$7, 'Staff Needed'!AK59, 'Staff Needed'!AM59)) -> 0 | BZ63: ='Calc - SA_Resources'!BG89 -> 0 | CA63: ='Calc - SA_Resources'!BH89 -> 0
